{"text_format":"1","workbook":"xlsx","n_sheets":6,"sheets":["Portada","Ayuda","Planilla de datos","Criterios de validación","SIPM (Actualización en $)","Dólar"],"not_rendered":{"charts":0,"images":13,"macros":1,"external_links":0,"defined_names":9,"comments":0,"pivot_tables":0},"unopened":[],"bounds":{"document_bytes":16777216,"sheet_cells":100000,"rows_first":2000,"rows_last":500,"rows_between":2000,"halvings":0,"cell_chars":16384,"cell_head_chars":4096},"cells_cut":0,"cells_raw":0,"read":"whole","date_system":"1900"}

{"sheet":"Portada","index":0,"n_rows":0,"n_cols":0,"rows_kept":0,"cut":false,"hidden":false,"merged":[]}

{"sheet":"Ayuda","index":1,"n_rows":18,"n_cols":8,"rows_kept":18,"cut":false,"hidden":false,"merged":[]}
[null,"Planilla para el cálculo de la Producción de Carne y del Ingreso Neto Ganadero"]
[]
["1.-","Segui las instrucciones que indica la Guía de ayuda rápida en la solapa Planilla de datos. La misma te guiará por las distintas tablas a completar."]
["2.-","Paso 1 de la Guía de ayuda rápida:\nPrimero tenes que completar el Inventario de inicio con el que comenzarás a cargar los datos. Es la única vez que cargarás un inventario. Luego, en función de los movimientos de altas y bajas que registres, se irá visualizando el inventario de hacienda actualizado en la Tabla de Stock Contable (por altas y bajas generadas por los movimientos).\nTenés que incluir el nombre de la categoría, la actividad a la que pertenece dicha categoría, el tipo de activo del cual se trata (*), la cantidad de cabezas por categoría, los kilos/cabeza promedio de la categoría y el precio de cada categoría en ese momento. En el caso de las categorías de cría (toros, vacas o vaquillonas del rodeo de cría) que habitualmente el mercado valoriza por cabeza y que tienen un \"peso de inventario constante\", indica ese valor dividido por los kilos de la categoría, quedando registrado entonces el valor por kilo.\n(*) Teniendo en cuenta que tanto el Margen de Contribución como el Resultado por Producción incluyen la tenencia de los Bienes de Cambio, pero no así la tenencia de los Bienes de Uso, es importante discriminar entre ambos tipos de activo. Por lo tanto el Resultado por Tenencia se discrimina entre el que impacta en el ACTIVO CORRIENTE y el que lo hace sobre el ACTIVO NO CORRIENTE."]
["3.-","Si desearas agregar otra categoría adicional (por ejemplo Novillos), inserta una fila sobre la categoría siguiente a donde quieres agregarla (en este caso: Novillitos). Al insertarse la fila debes: 1) Ingresá la fecha del Inventario de inicio, 2) Escribi la categoría que desees y 3) Indicá la actividad a la que pertenece la categoría correspondiente.\nLas formulas de las columnas preestablecidas, se completarán automáticamente. Hay que tener en cuenta que la categoría que agregues, no puede tener el mismo nombre que otra de la tabla. En caso de ser necesario, escribí la categoría con alguna diferencia (por ejemplo Novillitos 2, Novillitos JR, etc.)"]
["4.-","Paso 2 de la Guía de ayuda rápida:\nLuego comienza a ingresar los movimientos de hacienda (ventas, compras, traslados, muertes, nacimientos, cambios de categoría, etc.). Antes de hacerlo indicá la campaña que estás analizando (30-6-AAAA a 30-6-AAA), en las casillas correspondientes.\nEstos movimientos iran modificando las existencias, tanto en cabezas, como en \"kilos contables\" y en \"valores contables\", es decir de lo que resulte de dichos movimientos. Hasta aquí no considerará los kilos ganados, o perdidos, y sus correspondientes valores económicos.\nLas categorías de animales que pueden registrarse en la tabla de movimientos, son aquellas que figuran en la Tabla del Inventario de inicio. En caso de necesitar agregar una nueva categoría, tenés que agregar la misma en aquella tabla, siguiendo las instrucciones del punto anterior (3.-). En este caso, dicha categoría tendrá todos sus datos iniciales con valor 0 (cero)."]
["5.-","En caso que quieras agregar un movimiento con fecha anterior a las últimas registradas, si bien podes hacerlo sin seguir un orden cronológico, te sugerimos que lo respetes. Para ello ubica el cursor sobre el margen izquierdo de la celda de la fecha siguiente a donde quieres agregarla. Aparecerá una flecha negra como la que se observa en la figura 1. Hacé click allí con el botón derecho del mouse y se desplegará un menú. En el mismo hacé clíck en Insertar, y luego en Filas de la tabla arriba (Figura 2). Se agregará una fila por encima, pero sólo en la tabla y no en toda la planilla. Allí escribí los datos del movimiento omitido. Las formulas de las columnas preestablecidas, se completarán automáticamente. "]
[null,"Figura 1                                                                                                                                                                                                    Figura 2"]
["6.-","Paso 3 de la Guía de ayuda rápida:\nA medida que agregues esos movimientos de altas y bajas, la Tabla de Stock contable se irá actualizando automáticamente en cabezas, en los kilos y en los montos que hayas dado de alta o de baja, pero no estará incluyendo los kilos que se van produciendo mientras tanto, y sus correspondientes valores económicos. Cuando quieras \"ajustar los kilos\", para obtener el inventario actualizado con pesos y valores reales, basta que indiques los kilos actuales (reales, ya sea pesados o estimados) para cada categoría, en la Tabla de Inventario de kilos y precios actualizados (Real).\nLas Normas de Gestión CREA indican que en la actividad cría se deben actualizar los kilajes al menos una vez al año (al cierre de la campaña). Mientras que en la actividad invernada, debe hacerse de forma trimestral."]
["7.-","Paso 4 de la Guía de ayuda rápida:\nInmediatamente, registra los precios/kilo reales (actualizados a la fecha del ajuste) de cada categoría en misma Tabla. DEBEN INCLUIRSE LOS PRECIOS EN TODAS LAS CATEGORÍAS DE LA TABLA, TENGAN O NO EXISTENCIAS AL CIERRE (Esto es así porque sino se hará un calculo erroneo de la Diferencia por Tenencia con el sistema tradicional, ya que al calcular el valor del inventario inicial a valores de cierre de una categoría cuyo valor al cierre fuera igual a cero (0), calculará que esa categoría del inventario inicial tiene un valor igual a cero(0) al cierre). \nPara que las actualizaciones en kilos y en montos económicos se apliquen, tenés que completar los pasos 5 y 6 de la Guía de ayuda rápida."]
["8.-","Paso 5 de la Guía de ayuda rápida:\nHaciendo click sobre el Paso 5 de la Guía de ayuda rápida, se realizará el ajuste de Kilos Producidos (Diferencia entre los kilos reales y los kilos contables). Luego sólo tenés que completar la fecha correspondiente a la fecha de ajuste (cierre del trimestre en la actividad invernada, y cierre de la campaña en la actividad cría, según las Normas de Gestión CREA), en todos los asientos de Kilos Producidos."]
["9.-","Paso 6 de la Guía de ayuda rápida:\nFinalmente haciendo click sobre el Paso 6 de la Guía de ayuda rápida, se realizará el ajuste por Tenencia (Diferencia entre el valor actualizado del stock de hacienda, y el valor contable que surge de los movimientos de altas y bajas de hacienda registrados). Luego sólo tenés que completar la fecha correspondiente a la fecha de ajuste (cierre del trimestre en la actividad invernada, y cierre de la campaña en la actividad cría, según las Normas de Gestión CREA)."]
["10.-","Realizados todos los pasos anteriores, en las Tablas de Producción de Carne e Ingreso Ganadero, tanto con la Metodología de cálculo actual como con la tradicional, podrás observar la Producción de Carne y el Ingreso Ganadero en pesos corrientes.\nPodés ver el resultado de cada actividad por separado (En Ganadería de carne: Cabaña, Cría, Recría, Invernada o Feed-lot; y en Ganadería de Leche: Tambo, Guachera y Recría). Para ello debes seleccionar la actividad correspondiente en la casilla correspondiente.\nSi quisieras ver todas las actividades consolidadas, basta que pongas un * (asterisco), en la celda de Actividades. Este símbolo englobará todas las actividades que hayas cargado.\nPor defecto (default) la celda de actividad, viene con el asterisco, para visualizar todas las actividades en forma consolidada. \n"]
["11.-","Podés ver el resultado de toda la campaña, indicando la fecha de inicio y cierre de la campaña (30-jun del año de inicio, al 30-jun del año de cierre).\nSi quisieran ver la producción de un período menor (por ejemplo: un trimestre determinado, o incluso un mes), podes hacerlo, teniendo la precausión de que tendrás que hacer los ajustes de \"kilos producidos\" y \"Res. tenencia\" al finalizar cada período que luego quieras analizar. Sólo así los resultados serán correctos. De lo contratio, omitirás ambos términos y el cálculo será incorrecto.\n"]
["11.-","Para visualizar los resultados en pesos constantes, deberás ingresar los coeficientes de actualización (IPIM), tal cual surgen habitualmente en la publicación \"Lo ayudamos a cerrar gestión\", en la correspondiente columna de la solapa Movimientos, Precios e Indices. Una vez que hayas ingresado los coeficientes, podrás ver los resultados en pesos actualizados, haciendo click en la viñeta $ actualizados."]
["12.-","Cualquier duda con respecto a las Normas de Gestión CREA, se sugiere leer el capítulo 6.2 de la misma en la Plataforma correspondiente en la web CREA (https://www.crea.org.ar/6-2-ganaderia/)"]
[null,null,null,null,null,null,null,"Producción de Carne e Ingreso Neto Ganadero\nMetodología de cálculo anterior    ."]
[null,"Area Empresa - I+D - CREA ©   ."]

{"sheet":"Planilla de datos","index":2,"n_rows":126,"n_cols":38,"rows_kept":126,"cut":false,"hidden":false,"merged":[[18,17,19,18],[18,19,19,19],[0,9,0,15],[0,0,0,8],[18,9,19,10],[18,7,19,8],[18,11,19,12],[18,13,19,14],[0,30,0,34],[18,15,19,16],[38,0,40,5],[35,6,37,6],[38,6,40,6],[32,0,34,5],[35,0,37,5],[20,19,21,19],[28,0,31,5],[20,0,21,5],[22,0,24,5],[25,0,27,5],[20,7,22,12],[20,13,22,17],[0,16,0,18],[0,19,0,20]]}
[{"$f":"IF(N19=0,\"Stock al inicio del período analizado\",\"Stock al inicio del período analizado (al \"&DAY(N19)&\"/\"&MONTH(N19)&\"/\"&YEAR(N19)&\")\")","v":"Stock al inicio del período analizado (al 1/7/2023)"},null,null,null,null,null,null,null,null,{"$f":"IF(N19=0,\"Stock Contable (por movimientos de altas y bajas)\",\"Stock Contable (por movimientos de altas y bajas) (al \"&DAY(P19)&\"/\"&MONTH(P19)&\"/\"&YEAR(P19)&\")\")","v":"Stock Contable (por movimientos de altas y bajas) (al 30/6/2024)"},null,null,null,null,null,null,"Inventario Real \n(a kilos y precios actualizados)",null,null,"Dif. Real - Contable",null,null,{"$f":"IF(W3=\"fecha ???\",\"Intentario de inicio\",\"Inventario de inicio (al \"&DAY(W3)&\"/\"&MONTH(W3)&\"/\"&YEAR(W3)&\")\")","v":"Intentario de inicio"},null,null,null,null,null,null,null,"VOLVER AL CUADRO DE STOCK Y RESULTADOS"]
["Categoria","Actividad ","Cab. \nInicio período","Kg/Cab. \nInicio período","Kg. Totales \nInicio período","$/Kg. \nInicio período","$/Cab. \nInicio período","$ Total IP (corrientes)","IP en Valores Actualizados","Cab. \nStock","Kg./cab. \nStock","Kg. Totales \nStock","$/Kg. \nStock","$/Cab. \nStock","$ Total FP (corrientes)","FP en Valores Actualizados","Kg./Cab. \nal Cierre","$/Kg. \nal Cierre","$/Cab. \nal Cierre","Kg. Diferencia","$ Total Diferencia","Columna1","Fecha","Movimiento","Categoría","Actividad","Tipo \nde Activo","Comentarios","Cabezas","Cab.","Kg/Cab.","Kg.","$/Kg","$/Cab.","$ Total\n(corrientes)","Valores Actualizados"]
[{"$f":"+TablaInventarios[[#This Row],[Categoría]]","v":"Toros"},{"$f":"+VLOOKUP(TablaInventarios[[#This Row],[Categoria]],TablaInventarios[[Categoría]:[Actividad]],2,FALSE)","v":"Cría"},{"$f":"+SUMPRODUCT((TablaInventarios[[#This Row],[Categoria]]=TablaInventarios[Categoria])*TablaInventarios[Cab.])+SUMPRODUCT((TablaInventarios[[#This Row],[Categoria]]=TablaMovimientos[Categoría])*(TablaMovimientos[Cab.])*(TablaMovimientos[Fecha]<=$N$19))","v":0},{"$f":"IF(TablaInventarios[[#This Row],[Cab. \nInicio período]]=0,0,(SUMPRODUCT((TablaInventarios[[#This Row],[Categoria]]=TablaInventarios[Categoria])*(TablaInventarios[Kg.]))+SUMPRODUCT((TablaInventarios[[#This Row],[Categoria]]=TablaMovimientos[Categoría])*(TablaMovimientos[Kg.])*(TablaMovimientos[Fecha]<=$N$19)))/TablaInventarios[[#This Row],[Cab. \nInicio período]])","v":0},{"$f":"SUMPRODUCT((TablaInventarios[[#This Row],[Categoria]]=TablaInventarios[Categoria])*TablaInventarios[Kg.])+SUMPRODUCT((TablaInventarios[[#This Row],[Categoria]]=TablaMovimientos[Categoría])*(TablaMovimientos[Cab.])*(TablaMovimientos[Fecha]<=$N$19))","v":0},{"$f":"IF(TablaInventarios[[#This Row],[Kg. Totales \nInicio período]]=0,0,TablaInventarios[[#This Row],[$ Total IP (corrientes)]]/TablaInventarios[[#This Row],[Kg. Totales \nInicio período]])","v":0},{"$f":"+IF(TablaInventarios[[#This Row],[Cab. \nInicio período]]=0,0,TablaInventarios[[#This Row],[$ Total IP (corrientes)]]/TablaInventarios[[#This Row],[Cab. \nInicio período]])","v":0},{"$f":"+SUMPRODUCT((TablaInventarios[[#This Row],[Categoria]]=TablaInventarios[Categoria])*TablaInventarios[$ Total\n(corrientes)])+SUMPRODUCT((TablaInventarios[[#This Row],[Categoria]]=TablaMovimientos[Categoría])*(TablaMovimientos[Total $ corr-tes])*(TablaMovimientos[Fecha]<=$N$19))","v":0},{"$f":"IF($N$19=0,0,TablaInventarios[[#This Row],[$ Total IP (corrientes)]]*IF($S$23=FALSE,0,IF($T$19=\"SIPM\",VLOOKUP(DATE(YEAR($N$19),MONTH($N$19)+IF(DAY($N$19)=1,-1,0),1),Indices[[Fecha]:[Indice SIPM]],2,FALSE),IF($T$19=\"Dólar Oficial\",1/VLOOKUP(DATE(YEAR($N$19),MONTH($N$19),DAY($N$19)+IF(DAY($N$19)=1,-1,0)),Tabla5[],2),IF($T$19=\"Dólar Informal\",1/VLOOKUP(DATE(YEAR($N$19),MONTH($N$19),DAY($N$19)+IF(DAY($N$19)=1,-1,0)),Tabla3[],2))))))","v":0},{"$f":"+SUMPRODUCT((TablaInventarios[[#This Row],[Categoria]]=TablaInventarios[Categoria])*(TablaInventarios[Cab. \nInicio período]))+SUMPRODUCT((TablaInventarios[[#This Row],[Categoria]]=TablaMovimientos[Categoría])*(TablaMovimientos[Cab.])*(TablaMovimientos[Fecha]>$N$19)*(TablaMovimientos[Fecha]<=$P$19))","v":0},{"$f":"IFERROR(TablaInventarios[[#This Row],[Kg. Totales \nStock]]/TablaInventarios[[#This Row],[Cab. \nStock]],0)","v":0},{"$f":"+SUMPRODUCT((TablaInventarios[[#This Row],[Categoria]]=TablaInventarios[Categoria])*(TablaInventarios[Kg. Totales \nInicio período]))+SUMPRODUCT((TablaInventarios[[#This Row],[Categoria]]=TablaMovimientos[Categoría])*(TablaMovimientos[Kg.])*(TablaMovimientos[Fecha]>$N$19)*(TablaMovimientos[Fecha]<=$P$19))","v":0},{"$f":"IF(TablaInventarios[[#This Row],[Kg. Totales \nStock]]=0,TablaInventarios[[#This Row],[$/Kg. \nal Cierre]],IFERROR(TablaInventarios[[#This Row],[$ Total FP (corrientes)]]/TablaInventarios[[#This Row],[Kg. Totales \nStock]],0))","v":0},{"$f":"IFERROR(TablaInventarios[[#This Row],[$ Total FP (corrientes)]]/TablaInventarios[[#This Row],[Cab. \nStock]],0)","v":0},{"$f":"+SUMPRODUCT((TablaInventarios[[#This Row],[Categoria]]=TablaInventarios[Categoria])*(TablaInventarios[$ Total IP (corrientes)]))+SUMPRODUCT((TablaInventarios[[#This Row],[Categoria]]=TablaMovimientos[Categoría])*(TablaMovimientos[Total $ corr-tes])*(TablaMovimientos[Fecha]>$N$19)*(TablaMovimientos[Fecha]<=$P$19))","v":0},{"$f":"IF($P$19=0,0,TablaInventarios[[#This Row],[$ Total FP (corrientes)]]*IF($S$23=FALSE,0,IF($T$19=\"SIPM\",VLOOKUP(DATE(YEAR($P$19),MONTH($P$19),1),Indices[[Fecha]:[Indice SIPM]],2,FALSE),IF($T$19=\"Dólar Oficial\",1/VLOOKUP(DATE(YEAR($P$19),MONTH($P$19),DAY($P$19)),Tabla5[],2),IF($T$19=\"Dólar Informal\",1/VLOOKUP(DATE(YEAR($P$19),MONTH($P$19),DAY($P$19)),Tabla3[],2))))))","v":0},null,null,{"$f":"TablaInventarios[[#This Row],[Kg./Cab. \nal Cierre]]*TablaInventarios[[#This Row],[$/Kg. \nal Cierre]]","v":0},{"$f":"TablaInventarios[[#This Row],[Cab. \nStock]]*TablaInventarios[[#This Row],[Kg./Cab. \nal Cierre]]-TablaInventarios[[#This Row],[Kg. Totales \nStock]]","v":0},{"$f":"TablaInventarios[[#This Row],[Cab. \nStock]]*TablaInventarios[[#This Row],[Kg./Cab. \nal Cierre]]*TablaInventarios[[#This Row],[$/Kg. \nal Cierre]]-TablaInventarios[[#This Row],[$ Total FP (corrientes)]]","v":0},null,"Fecha ???",{"$f":"\"Inventario de inicio\"","v":"Inventario de inicio"},"Toros","Cría","ANC",null,null,{"$f":"+TablaInventarios[[#This Row],[Cabezas]]","v":0},null,{"$f":"+TablaInventarios[[#This Row],[Cabezas]]*TablaInventarios[[#This Row],[Kg/Cab.]]","v":0},null,{"$f":"TablaInventarios[[#This Row],[Kg/Cab.]]*TablaInventarios[[#This Row],[$/Kg]]","v":0},{"$f":"+TablaInventarios[[#This Row],[Kg.]]*TablaInventarios[[#This Row],[$/Kg]]","v":0},{"$f":"IF(W3=\"Fecha ???\",0,TablaInventarios[[#This Row],[$ Total\n(corrientes)]]*IF(AND($S$23=TRUE,$T$19=\"Dólar Informal\"),1/VLOOKUP(TablaInventarios[[#This Row],[Fecha]],Tabla3[],2),IF(AND($S$23=TRUE,$T$19=\"Dólar Oficial\"),1/VLOOKUP(TablaInventarios[[#This Row],[Fecha]],Tabla5[],2),IF(AND($S$23=TRUE,$T$19=\"SIPM\"),VLOOKUP(DATE(YEAR(DATE(YEAR($W3),MONTH($W3),DAY($W3))-1),MONTH(DATE(YEAR($W3),MONTH($W3),DAY($W3))-1),1),Indices[[Fecha]:[Indice SIPM]],2,FALSE)))))","v":0}]
[{"$f":"+TablaInventarios[[#This Row],[Categoría]]","v":"Vacas CUT"},{"$f":"+VLOOKUP(TablaInventarios[[#This Row],[Categoria]],TablaInventarios[[Categoría]:[Actividad]],2,FALSE)","v":"Cría"},{"$f":"+SUMPRODUCT((TablaInventarios[[#This Row],[Categoria]]=TablaInventarios[Categoria])*TablaInventarios[Cab.])+SUMPRODUCT((TablaInventarios[[#This Row],[Categoria]]=TablaMovimientos[Categoría])*(TablaMovimientos[Cab.])*(TablaMovimientos[Fecha]<=$N$19))","v":0},{"$f":"IF(TablaInventarios[[#This Row],[Cab. \nInicio período]]=0,0,(SUMPRODUCT((TablaInventarios[[#This Row],[Categoria]]=TablaInventarios[Categoria])*(TablaInventarios[Kg.]))+SUMPRODUCT((TablaInventarios[[#This Row],[Categoria]]=TablaMovimientos[Categoría])*(TablaMovimientos[Kg.])*(TablaMovimientos[Fecha]<=$N$19)))/TablaInventarios[[#This Row],[Cab. \nInicio período]])","v":0},{"$f":"SUMPRODUCT((TablaInventarios[[#This Row],[Categoria]]=TablaInventarios[Categoria])*TablaInventarios[Kg.])+SUMPRODUCT((TablaInventarios[[#This Row],[Categoria]]=TablaMovimientos[Categoría])*(TablaMovimientos[Cab.])*(TablaMovimientos[Fecha]<=$N$19))","v":0},{"$f":"IF(TablaInventarios[[#This Row],[Kg. Totales \nInicio período]]=0,0,TablaInventarios[[#This Row],[$ Total IP (corrientes)]]/TablaInventarios[[#This Row],[Kg. Totales \nInicio período]])","v":0},{"$f":"+IF(TablaInventarios[[#This Row],[Cab. \nInicio período]]=0,0,TablaInventarios[[#This Row],[$ Total IP (corrientes)]]/TablaInventarios[[#This Row],[Cab. \nInicio período]])","v":0},{"$f":"+SUMPRODUCT((TablaInventarios[[#This Row],[Categoria]]=TablaInventarios[Categoria])*TablaInventarios[$ Total\n(corrientes)])+SUMPRODUCT((TablaInventarios[[#This Row],[Categoria]]=TablaMovimientos[Categoría])*(TablaMovimientos[Total $ corr-tes])*(TablaMovimientos[Fecha]<=$N$19))","v":0},{"$f":"IF($N$19=0,0,TablaInventarios[[#This Row],[$ Total IP (corrientes)]]*IF($S$23=FALSE,0,IF($T$19=\"SIPM\",VLOOKUP(DATE(YEAR($N$19),MONTH($N$19)+IF(DAY($N$19)=1,-1,0),1),Indices[[Fecha]:[Indice SIPM]],2,FALSE),IF($T$19=\"Dólar Oficial\",1/VLOOKUP(DATE(YEAR($N$19),MONTH($N$19),DAY($N$19)+IF(DAY($N$19)=1,-1,0)),Tabla5[],2),IF($T$19=\"Dólar Informal\",1/VLOOKUP(DATE(YEAR($N$19),MONTH($N$19),DAY($N$19)+IF(DAY($N$19)=1,-1,0)),Tabla3[],2))))))","v":0},{"$f":"+SUMPRODUCT((TablaInventarios[[#This Row],[Categoria]]=TablaInventarios[Categoria])*(TablaInventarios[Cab. \nInicio período]))+SUMPRODUCT((TablaInventarios[[#This Row],[Categoria]]=TablaMovimientos[Categoría])*(TablaMovimientos[Cab.])*(TablaMovimientos[Fecha]>$N$19)*(TablaMovimientos[Fecha]<=$P$19))","v":0},{"$f":"IFERROR(TablaInventarios[[#This Row],[Kg. Totales \nStock]]/TablaInventarios[[#This Row],[Cab. \nStock]],0)","v":0},{"$f":"+SUMPRODUCT((TablaInventarios[[#This Row],[Categoria]]=TablaInventarios[Categoria])*(TablaInventarios[Kg. Totales \nInicio período]))+SUMPRODUCT((TablaInventarios[[#This Row],[Categoria]]=TablaMovimientos[Categoría])*(TablaMovimientos[Kg.])*(TablaMovimientos[Fecha]>$N$19)*(TablaMovimientos[Fecha]<=$P$19))","v":0},{"$f":"IF(TablaInventarios[[#This Row],[Kg. Totales \nStock]]=0,TablaInventarios[[#This Row],[$/Kg. \nal Cierre]],IFERROR(TablaInventarios[[#This Row],[$ Total FP (corrientes)]]/TablaInventarios[[#This Row],[Kg. Totales \nStock]],0))","v":0},{"$f":"IFERROR(TablaInventarios[[#This Row],[$ Total FP (corrientes)]]/TablaInventarios[[#This Row],[Cab. \nStock]],0)","v":0},{"$f":"+SUMPRODUCT((TablaInventarios[[#This Row],[Categoria]]=TablaInventarios[Categoria])*(TablaInventarios[$ Total IP (corrientes)]))+SUMPRODUCT((TablaInventarios[[#This Row],[Categoria]]=TablaMovimientos[Categoría])*(TablaMovimientos[Total $ corr-tes])*(TablaMovimientos[Fecha]>$N$19)*(TablaMovimientos[Fecha]<=$P$19))","v":0},{"$f":"IF($P$19=0,0,TablaInventarios[[#This Row],[$ Total FP (corrientes)]]*IF($S$23=FALSE,0,IF($T$19=\"SIPM\",VLOOKUP(DATE(YEAR($P$19),MONTH($P$19),1),Indices[[Fecha]:[Indice SIPM]],2,FALSE),IF($T$19=\"Dólar Oficial\",1/VLOOKUP(DATE(YEAR($P$19),MONTH($P$19),DAY($P$19)),Tabla5[],2),IF($T$19=\"Dólar Informal\",1/VLOOKUP(DATE(YEAR($P$19),MONTH($P$19),DAY($P$19)),Tabla3[],2))))))","v":0},null,null,{"$f":"TablaInventarios[[#This Row],[Kg./Cab. \nal Cierre]]*TablaInventarios[[#This Row],[$/Kg. \nal Cierre]]","v":0},{"$f":"TablaInventarios[[#This Row],[Cab. \nStock]]*TablaInventarios[[#This Row],[Kg./Cab. \nal Cierre]]-TablaInventarios[[#This Row],[Kg. Totales \nStock]]","v":0},{"$f":"TablaInventarios[[#This Row],[Cab. \nStock]]*TablaInventarios[[#This Row],[Kg./Cab. \nal Cierre]]*TablaInventarios[[#This Row],[$/Kg. \nal Cierre]]-TablaInventarios[[#This Row],[$ Total FP (corrientes)]]","v":0},null,{"$f":"+W3","v":"Fecha ???"},{"$f":"\"Inventario de inicio\"","v":"Inventario de inicio"},"Vacas CUT","Cría","ANC",null,null,{"$f":"+TablaInventarios[[#This Row],[Cabezas]]","v":0},null,{"$f":"+TablaInventarios[[#This Row],[Cabezas]]*TablaInventarios[[#This Row],[Kg/Cab.]]","v":0},null,{"$f":"TablaInventarios[[#This Row],[Kg/Cab.]]*TablaInventarios[[#This Row],[$/Kg]]","v":0},{"$f":"+TablaInventarios[[#This Row],[Kg.]]*TablaInventarios[[#This Row],[$/Kg]]","v":0},{"$f":"IF(W4=\"Fecha ???\",0,TablaInventarios[[#This Row],[$ Total\n(corrientes)]]*IF(AND($S$23=TRUE,$T$19=\"Dólar Informal\"),1/VLOOKUP(TablaInventarios[[#This Row],[Fecha]],Tabla3[],2),IF(AND($S$23=TRUE,$T$19=\"Dólar Oficial\"),1/VLOOKUP(TablaInventarios[[#This Row],[Fecha]],Tabla5[],2),IF(AND($S$23=TRUE,$T$19=\"SIPM\"),VLOOKUP(DATE(YEAR(DATE(YEAR($W4),MONTH($W4),DAY($W4))-1),MONTH(DATE(YEAR($W4),MONTH($W4),DAY($W4))-1),1),Indices[[Fecha]:[Indice SIPM]],2,FALSE)))))","v":0}]
[{"$f":"+TablaInventarios[[#This Row],[Categoría]]","v":"Vacas rodeo cría"},{"$f":"+VLOOKUP(TablaInventarios[[#This Row],[Categoria]],TablaInventarios[[Categoría]:[Actividad]],2,FALSE)","v":"Cría"},{"$f":"+SUMPRODUCT((TablaInventarios[[#This Row],[Categoria]]=TablaInventarios[Categoria])*TablaInventarios[Cab.])+SUMPRODUCT((TablaInventarios[[#This Row],[Categoria]]=TablaMovimientos[Categoría])*(TablaMovimientos[Cab.])*(TablaMovimientos[Fecha]<=$N$19))","v":0},{"$f":"IF(TablaInventarios[[#This Row],[Cab. \nInicio período]]=0,0,(SUMPRODUCT((TablaInventarios[[#This Row],[Categoria]]=TablaInventarios[Categoria])*(TablaInventarios[Kg.]))+SUMPRODUCT((TablaInventarios[[#This Row],[Categoria]]=TablaMovimientos[Categoría])*(TablaMovimientos[Kg.])*(TablaMovimientos[Fecha]<=$N$19)))/TablaInventarios[[#This Row],[Cab. \nInicio período]])","v":0},{"$f":"SUMPRODUCT((TablaInventarios[[#This Row],[Categoria]]=TablaInventarios[Categoria])*TablaInventarios[Kg.])+SUMPRODUCT((TablaInventarios[[#This Row],[Categoria]]=TablaMovimientos[Categoría])*(TablaMovimientos[Cab.])*(TablaMovimientos[Fecha]<=$N$19))","v":0},{"$f":"IF(TablaInventarios[[#This Row],[Kg. Totales \nInicio período]]=0,0,TablaInventarios[[#This Row],[$ Total IP (corrientes)]]/TablaInventarios[[#This Row],[Kg. Totales \nInicio período]])","v":0},{"$f":"+IF(TablaInventarios[[#This Row],[Cab. \nInicio período]]=0,0,TablaInventarios[[#This Row],[$ Total IP (corrientes)]]/TablaInventarios[[#This Row],[Cab. \nInicio período]])","v":0},{"$f":"+SUMPRODUCT((TablaInventarios[[#This Row],[Categoria]]=TablaInventarios[Categoria])*TablaInventarios[$ Total\n(corrientes)])+SUMPRODUCT((TablaInventarios[[#This Row],[Categoria]]=TablaMovimientos[Categoría])*(TablaMovimientos[Total $ corr-tes])*(TablaMovimientos[Fecha]<=$N$19))","v":0},{"$f":"IF($N$19=0,0,TablaInventarios[[#This Row],[$ Total IP (corrientes)]]*IF($S$23=FALSE,0,IF($T$19=\"SIPM\",VLOOKUP(DATE(YEAR($N$19),MONTH($N$19)+IF(DAY($N$19)=1,-1,0),1),Indices[[Fecha]:[Indice SIPM]],2,FALSE),IF($T$19=\"Dólar Oficial\",1/VLOOKUP(DATE(YEAR($N$19),MONTH($N$19),DAY($N$19)+IF(DAY($N$19)=1,-1,0)),Tabla5[],2),IF($T$19=\"Dólar Informal\",1/VLOOKUP(DATE(YEAR($N$19),MONTH($N$19),DAY($N$19)+IF(DAY($N$19)=1,-1,0)),Tabla3[],2))))))","v":0},{"$f":"+SUMPRODUCT((TablaInventarios[[#This Row],[Categoria]]=TablaInventarios[Categoria])*(TablaInventarios[Cab. \nInicio período]))+SUMPRODUCT((TablaInventarios[[#This Row],[Categoria]]=TablaMovimientos[Categoría])*(TablaMovimientos[Cab.])*(TablaMovimientos[Fecha]>$N$19)*(TablaMovimientos[Fecha]<=$P$19))","v":0},{"$f":"IFERROR(TablaInventarios[[#This Row],[Kg. Totales \nStock]]/TablaInventarios[[#This Row],[Cab. \nStock]],0)","v":0},{"$f":"+SUMPRODUCT((TablaInventarios[[#This Row],[Categoria]]=TablaInventarios[Categoria])*(TablaInventarios[Kg. Totales \nInicio período]))+SUMPRODUCT((TablaInventarios[[#This Row],[Categoria]]=TablaMovimientos[Categoría])*(TablaMovimientos[Kg.])*(TablaMovimientos[Fecha]>$N$19)*(TablaMovimientos[Fecha]<=$P$19))","v":0},{"$f":"IF(TablaInventarios[[#This Row],[Kg. Totales \nStock]]=0,TablaInventarios[[#This Row],[$/Kg. \nal Cierre]],IFERROR(TablaInventarios[[#This Row],[$ Total FP (corrientes)]]/TablaInventarios[[#This Row],[Kg. Totales \nStock]],0))","v":0},{"$f":"IFERROR(TablaInventarios[[#This Row],[$ Total FP (corrientes)]]/TablaInventarios[[#This Row],[Cab. \nStock]],0)","v":0},{"$f":"+SUMPRODUCT((TablaInventarios[[#This Row],[Categoria]]=TablaInventarios[Categoria])*(TablaInventarios[$ Total IP (corrientes)]))+SUMPRODUCT((TablaInventarios[[#This Row],[Categoria]]=TablaMovimientos[Categoría])*(TablaMovimientos[Total $ corr-tes])*(TablaMovimientos[Fecha]>$N$19)*(TablaMovimientos[Fecha]<=$P$19))","v":0},{"$f":"IF($P$19=0,0,TablaInventarios[[#This Row],[$ Total FP (corrientes)]]*IF($S$23=FALSE,0,IF($T$19=\"SIPM\",VLOOKUP(DATE(YEAR($P$19),MONTH($P$19),1),Indices[[Fecha]:[Indice SIPM]],2,FALSE),IF($T$19=\"Dólar Oficial\",1/VLOOKUP(DATE(YEAR($P$19),MONTH($P$19),DAY($P$19)),Tabla5[],2),IF($T$19=\"Dólar Informal\",1/VLOOKUP(DATE(YEAR($P$19),MONTH($P$19),DAY($P$19)),Tabla3[],2))))))","v":0},null,null,{"$f":"TablaInventarios[[#This Row],[Kg./Cab. \nal Cierre]]*TablaInventarios[[#This Row],[$/Kg. \nal Cierre]]","v":0},{"$f":"TablaInventarios[[#This Row],[Cab. \nStock]]*TablaInventarios[[#This Row],[Kg./Cab. \nal Cierre]]-TablaInventarios[[#This Row],[Kg. Totales \nStock]]","v":0},{"$f":"TablaInventarios[[#This Row],[Cab. \nStock]]*TablaInventarios[[#This Row],[Kg./Cab. \nal Cierre]]*TablaInventarios[[#This Row],[$/Kg. \nal Cierre]]-TablaInventarios[[#This Row],[$ Total FP (corrientes)]]","v":0},null,"Fecha ???","Inventario de inicio","Vacas rodeo cría","Cría","ANC",null,null,{"$f":"+TablaInventarios[[#This Row],[Cabezas]]","v":0},null,{"$f":"+TablaInventarios[[#This Row],[Cabezas]]*TablaInventarios[[#This Row],[Kg/Cab.]]","v":0},null,{"$f":"TablaInventarios[[#This Row],[Kg/Cab.]]*TablaInventarios[[#This Row],[$/Kg]]","v":0},{"$f":"+TablaInventarios[[#This Row],[Kg.]]*TablaInventarios[[#This Row],[$/Kg]]","v":0},{"$f":"IF(W5=\"Fecha ???\",0,TablaInventarios[[#This Row],[$ Total\n(corrientes)]]*IF(AND($S$23=TRUE,$T$19=\"Dólar Informal\"),1/VLOOKUP(TablaInventarios[[#This Row],[Fecha]],Tabla3[],2),IF(AND($S$23=TRUE,$T$19=\"Dólar Oficial\"),1/VLOOKUP(TablaInventarios[[#This Row],[Fecha]],Tabla5[],2),IF(AND($S$23=TRUE,$T$19=\"SIPM\"),VLOOKUP(DATE(YEAR(DATE(YEAR($W5),MONTH($W5),DAY($W5))-1),MONTH(DATE(YEAR($W5),MONTH($W5),DAY($W5))-1),1),Indices[[Fecha]:[Indice SIPM]],2,FALSE)))))","v":0}]
[{"$f":"+TablaInventarios[[#This Row],[Categoría]]","v":"Vaquillonas rodeo cría"},{"$f":"+VLOOKUP(TablaInventarios[[#This Row],[Categoria]],TablaInventarios[[Categoría]:[Actividad]],2,FALSE)","v":"Cría"},{"$f":"+SUMPRODUCT((TablaInventarios[[#This Row],[Categoria]]=TablaInventarios[Categoria])*TablaInventarios[Cab.])+SUMPRODUCT((TablaInventarios[[#This Row],[Categoria]]=TablaMovimientos[Categoría])*(TablaMovimientos[Cab.])*(TablaMovimientos[Fecha]<=$N$19))","v":0},{"$f":"IF(TablaInventarios[[#This Row],[Cab. \nInicio período]]=0,0,(SUMPRODUCT((TablaInventarios[[#This Row],[Categoria]]=TablaInventarios[Categoria])*(TablaInventarios[Kg.]))+SUMPRODUCT((TablaInventarios[[#This Row],[Categoria]]=TablaMovimientos[Categoría])*(TablaMovimientos[Kg.])*(TablaMovimientos[Fecha]<=$N$19)))/TablaInventarios[[#This Row],[Cab. \nInicio período]])","v":0},{"$f":"SUMPRODUCT((TablaInventarios[[#This Row],[Categoria]]=TablaInventarios[Categoria])*TablaInventarios[Kg.])+SUMPRODUCT((TablaInventarios[[#This Row],[Categoria]]=TablaMovimientos[Categoría])*(TablaMovimientos[Cab.])*(TablaMovimientos[Fecha]<=$N$19))","v":0},{"$f":"IF(TablaInventarios[[#This Row],[Kg. Totales \nInicio período]]=0,0,TablaInventarios[[#This Row],[$ Total IP (corrientes)]]/TablaInventarios[[#This Row],[Kg. Totales \nInicio período]])","v":0},{"$f":"+IF(TablaInventarios[[#This Row],[Cab. \nInicio período]]=0,0,TablaInventarios[[#This Row],[$ Total IP (corrientes)]]/TablaInventarios[[#This Row],[Cab. \nInicio período]])","v":0},{"$f":"+SUMPRODUCT((TablaInventarios[[#This Row],[Categoria]]=TablaInventarios[Categoria])*TablaInventarios[$ Total\n(corrientes)])+SUMPRODUCT((TablaInventarios[[#This Row],[Categoria]]=TablaMovimientos[Categoría])*(TablaMovimientos[Total $ corr-tes])*(TablaMovimientos[Fecha]<=$N$19))","v":0},{"$f":"IF($N$19=0,0,TablaInventarios[[#This Row],[$ Total IP (corrientes)]]*IF($S$23=FALSE,0,IF($T$19=\"SIPM\",VLOOKUP(DATE(YEAR($N$19),MONTH($N$19)+IF(DAY($N$19)=1,-1,0),1),Indices[[Fecha]:[Indice SIPM]],2,FALSE),IF($T$19=\"Dólar Oficial\",1/VLOOKUP(DATE(YEAR($N$19),MONTH($N$19),DAY($N$19)+IF(DAY($N$19)=1,-1,0)),Tabla5[],2),IF($T$19=\"Dólar Informal\",1/VLOOKUP(DATE(YEAR($N$19),MONTH($N$19),DAY($N$19)+IF(DAY($N$19)=1,-1,0)),Tabla3[],2))))))","v":0},{"$f":"+SUMPRODUCT((TablaInventarios[[#This Row],[Categoria]]=TablaInventarios[Categoria])*(TablaInventarios[Cab. \nInicio período]))+SUMPRODUCT((TablaInventarios[[#This Row],[Categoria]]=TablaMovimientos[Categoría])*(TablaMovimientos[Cab.])*(TablaMovimientos[Fecha]>$N$19)*(TablaMovimientos[Fecha]<=$P$19))","v":0},{"$f":"IFERROR(TablaInventarios[[#This Row],[Kg. Totales \nStock]]/TablaInventarios[[#This Row],[Cab. \nStock]],0)","v":0},{"$f":"+SUMPRODUCT((TablaInventarios[[#This Row],[Categoria]]=TablaInventarios[Categoria])*(TablaInventarios[Kg. Totales \nInicio período]))+SUMPRODUCT((TablaInventarios[[#This Row],[Categoria]]=TablaMovimientos[Categoría])*(TablaMovimientos[Kg.])*(TablaMovimientos[Fecha]>$N$19)*(TablaMovimientos[Fecha]<=$P$19))","v":0},{"$f":"IF(TablaInventarios[[#This Row],[Kg. Totales \nStock]]=0,TablaInventarios[[#This Row],[$/Kg. \nal Cierre]],IFERROR(TablaInventarios[[#This Row],[$ Total FP (corrientes)]]/TablaInventarios[[#This Row],[Kg. Totales \nStock]],0))","v":0},{"$f":"IFERROR(TablaInventarios[[#This Row],[$ Total FP (corrientes)]]/TablaInventarios[[#This Row],[Cab. \nStock]],0)","v":0},{"$f":"+SUMPRODUCT((TablaInventarios[[#This Row],[Categoria]]=TablaInventarios[Categoria])*(TablaInventarios[$ Total IP (corrientes)]))+SUMPRODUCT((TablaInventarios[[#This Row],[Categoria]]=TablaMovimientos[Categoría])*(TablaMovimientos[Total $ corr-tes])*(TablaMovimientos[Fecha]>$N$19)*(TablaMovimientos[Fecha]<=$P$19))","v":0},{"$f":"IF($P$19=0,0,TablaInventarios[[#This Row],[$ Total FP (corrientes)]]*IF($S$23=FALSE,0,IF($T$19=\"SIPM\",VLOOKUP(DATE(YEAR($P$19),MONTH($P$19),1),Indices[[Fecha]:[Indice SIPM]],2,FALSE),IF($T$19=\"Dólar Oficial\",1/VLOOKUP(DATE(YEAR($P$19),MONTH($P$19),DAY($P$19)),Tabla5[],2),IF($T$19=\"Dólar Informal\",1/VLOOKUP(DATE(YEAR($P$19),MONTH($P$19),DAY($P$19)),Tabla3[],2))))))","v":0},null,null,{"$f":"TablaInventarios[[#This Row],[Kg./Cab. \nal Cierre]]*TablaInventarios[[#This Row],[$/Kg. \nal Cierre]]","v":0},{"$f":"TablaInventarios[[#This Row],[Cab. \nStock]]*TablaInventarios[[#This Row],[Kg./Cab. \nal Cierre]]-TablaInventarios[[#This Row],[Kg. Totales \nStock]]","v":0},{"$f":"TablaInventarios[[#This Row],[Cab. \nStock]]*TablaInventarios[[#This Row],[Kg./Cab. \nal Cierre]]*TablaInventarios[[#This Row],[$/Kg. \nal Cierre]]-TablaInventarios[[#This Row],[$ Total FP (corrientes)]]","v":0},null,"Fecha ???","Inventario de inicio","Vaquillonas rodeo cría","Cría","ANC",null,null,{"$f":"+TablaInventarios[[#This Row],[Cabezas]]","v":0},null,{"$f":"+TablaInventarios[[#This Row],[Cabezas]]*TablaInventarios[[#This Row],[Kg/Cab.]]","v":0},null,{"$f":"TablaInventarios[[#This Row],[Kg/Cab.]]*TablaInventarios[[#This Row],[$/Kg]]","v":0},{"$f":"+TablaInventarios[[#This Row],[Kg.]]*TablaInventarios[[#This Row],[$/Kg]]","v":0},{"$f":"IF(W6=\"Fecha ???\",0,TablaInventarios[[#This Row],[$ Total\n(corrientes)]]*IF(AND($S$23=TRUE,$T$19=\"Dólar Informal\"),1/VLOOKUP(TablaInventarios[[#This Row],[Fecha]],Tabla3[],2),IF(AND($S$23=TRUE,$T$19=\"Dólar Oficial\"),1/VLOOKUP(TablaInventarios[[#This Row],[Fecha]],Tabla5[],2),IF(AND($S$23=TRUE,$T$19=\"SIPM\"),VLOOKUP(DATE(YEAR(DATE(YEAR($W6),MONTH($W6),DAY($W6))-1),MONTH(DATE(YEAR($W6),MONTH($W6),DAY($W6))-1),1),Indices[[Fecha]:[Indice SIPM]],2,FALSE)))))","v":0}]
[{"$f":"+TablaInventarios[[#This Row],[Categoría]]","v":"Vaq. Recría 2/3"},{"$f":"+VLOOKUP(TablaInventarios[[#This Row],[Categoria]],TablaInventarios[[Categoría]:[Actividad]],2,FALSE)","v":"Recría"},{"$f":"+SUMPRODUCT((TablaInventarios[[#This Row],[Categoria]]=TablaInventarios[Categoria])*TablaInventarios[Cab.])+SUMPRODUCT((TablaInventarios[[#This Row],[Categoria]]=TablaMovimientos[Categoría])*(TablaMovimientos[Cab.])*(TablaMovimientos[Fecha]<=$N$19))","v":0},{"$f":"IF(TablaInventarios[[#This Row],[Cab. \nInicio período]]=0,0,(SUMPRODUCT((TablaInventarios[[#This Row],[Categoria]]=TablaInventarios[Categoria])*(TablaInventarios[Kg.]))+SUMPRODUCT((TablaInventarios[[#This Row],[Categoria]]=TablaMovimientos[Categoría])*(TablaMovimientos[Kg.])*(TablaMovimientos[Fecha]<=$N$19)))/TablaInventarios[[#This Row],[Cab. \nInicio período]])","v":0},{"$f":"SUMPRODUCT((TablaInventarios[[#This Row],[Categoria]]=TablaInventarios[Categoria])*TablaInventarios[Kg.])+SUMPRODUCT((TablaInventarios[[#This Row],[Categoria]]=TablaMovimientos[Categoría])*(TablaMovimientos[Cab.])*(TablaMovimientos[Fecha]<=$N$19))","v":0},{"$f":"IF(TablaInventarios[[#This Row],[Kg. Totales \nInicio período]]=0,0,TablaInventarios[[#This Row],[$ Total IP (corrientes)]]/TablaInventarios[[#This Row],[Kg. Totales \nInicio período]])","v":0},{"$f":"+IF(TablaInventarios[[#This Row],[Cab. \nInicio período]]=0,0,TablaInventarios[[#This Row],[$ Total IP (corrientes)]]/TablaInventarios[[#This Row],[Cab. \nInicio período]])","v":0},{"$f":"+SUMPRODUCT((TablaInventarios[[#This Row],[Categoria]]=TablaInventarios[Categoria])*TablaInventarios[$ Total\n(corrientes)])+SUMPRODUCT((TablaInventarios[[#This Row],[Categoria]]=TablaMovimientos[Categoría])*(TablaMovimientos[Total $ corr-tes])*(TablaMovimientos[Fecha]<=$N$19))","v":0},{"$f":"IF($N$19=0,0,TablaInventarios[[#This Row],[$ Total IP (corrientes)]]*IF($S$23=FALSE,0,IF($T$19=\"SIPM\",VLOOKUP(DATE(YEAR($N$19),MONTH($N$19)+IF(DAY($N$19)=1,-1,0),1),Indices[[Fecha]:[Indice SIPM]],2,FALSE),IF($T$19=\"Dólar Oficial\",1/VLOOKUP(DATE(YEAR($N$19),MONTH($N$19),DAY($N$19)+IF(DAY($N$19)=1,-1,0)),Tabla5[],2),IF($T$19=\"Dólar Informal\",1/VLOOKUP(DATE(YEAR($N$19),MONTH($N$19),DAY($N$19)+IF(DAY($N$19)=1,-1,0)),Tabla3[],2))))))","v":0},{"$f":"+SUMPRODUCT((TablaInventarios[[#This Row],[Categoria]]=TablaInventarios[Categoria])*(TablaInventarios[Cab. \nInicio período]))+SUMPRODUCT((TablaInventarios[[#This Row],[Categoria]]=TablaMovimientos[Categoría])*(TablaMovimientos[Cab.])*(TablaMovimientos[Fecha]>$N$19)*(TablaMovimientos[Fecha]<=$P$19))","v":0},{"$f":"IFERROR(TablaInventarios[[#This Row],[Kg. Totales \nStock]]/TablaInventarios[[#This Row],[Cab. \nStock]],0)","v":0},{"$f":"+SUMPRODUCT((TablaInventarios[[#This Row],[Categoria]]=TablaInventarios[Categoria])*(TablaInventarios[Kg. Totales \nInicio período]))+SUMPRODUCT((TablaInventarios[[#This Row],[Categoria]]=TablaMovimientos[Categoría])*(TablaMovimientos[Kg.])*(TablaMovimientos[Fecha]>$N$19)*(TablaMovimientos[Fecha]<=$P$19))","v":0},{"$f":"IF(TablaInventarios[[#This Row],[Kg. Totales \nStock]]=0,TablaInventarios[[#This Row],[$/Kg. \nal Cierre]],IFERROR(TablaInventarios[[#This Row],[$ Total FP (corrientes)]]/TablaInventarios[[#This Row],[Kg. Totales \nStock]],0))","v":0},{"$f":"IFERROR(TablaInventarios[[#This Row],[$ Total FP (corrientes)]]/TablaInventarios[[#This Row],[Cab. \nStock]],0)","v":0},{"$f":"+SUMPRODUCT((TablaInventarios[[#This Row],[Categoria]]=TablaInventarios[Categoria])*(TablaInventarios[$ Total IP (corrientes)]))+SUMPRODUCT((TablaInventarios[[#This Row],[Categoria]]=TablaMovimientos[Categoría])*(TablaMovimientos[Total $ corr-tes])*(TablaMovimientos[Fecha]>$N$19)*(TablaMovimientos[Fecha]<=$P$19))","v":0},{"$f":"IF($P$19=0,0,TablaInventarios[[#This Row],[$ Total FP (corrientes)]]*IF($S$23=FALSE,0,IF($T$19=\"SIPM\",VLOOKUP(DATE(YEAR($P$19),MONTH($P$19),1),Indices[[Fecha]:[Indice SIPM]],2,FALSE),IF($T$19=\"Dólar Oficial\",1/VLOOKUP(DATE(YEAR($P$19),MONTH($P$19),DAY($P$19)),Tabla5[],2),IF($T$19=\"Dólar Informal\",1/VLOOKUP(DATE(YEAR($P$19),MONTH($P$19),DAY($P$19)),Tabla3[],2))))))","v":0},null,null,{"$f":"TablaInventarios[[#This Row],[Kg./Cab. \nal Cierre]]*TablaInventarios[[#This Row],[$/Kg. \nal Cierre]]","v":0},{"$f":"TablaInventarios[[#This Row],[Cab. \nStock]]*TablaInventarios[[#This Row],[Kg./Cab. \nal Cierre]]-TablaInventarios[[#This Row],[Kg. Totales \nStock]]","v":0},{"$f":"TablaInventarios[[#This Row],[Cab. \nStock]]*TablaInventarios[[#This Row],[Kg./Cab. \nal Cierre]]*TablaInventarios[[#This Row],[$/Kg. \nal Cierre]]-TablaInventarios[[#This Row],[$ Total FP (corrientes)]]","v":0},null,"Fecha ???",{"$f":"\"Inventario de inicio\"","v":"Inventario de inicio"},"Vaq. Recría 2/3","Recría","AC",null,null,{"$f":"+TablaInventarios[[#This Row],[Cabezas]]","v":0},null,{"$f":"+TablaInventarios[[#This Row],[Cabezas]]*TablaInventarios[[#This Row],[Kg/Cab.]]","v":0},null,{"$f":"TablaInventarios[[#This Row],[Kg/Cab.]]*TablaInventarios[[#This Row],[$/Kg]]","v":0},{"$f":"+TablaInventarios[[#This Row],[Kg.]]*TablaInventarios[[#This Row],[$/Kg]]","v":0},{"$f":"IF(W7=\"Fecha ???\",0,TablaInventarios[[#This Row],[$ Total\n(corrientes)]]*IF(AND($S$23=TRUE,$T$19=\"Dólar Informal\"),1/VLOOKUP(TablaInventarios[[#This Row],[Fecha]],Tabla3[],2),IF(AND($S$23=TRUE,$T$19=\"Dólar Oficial\"),1/VLOOKUP(TablaInventarios[[#This Row],[Fecha]],Tabla5[],2),IF(AND($S$23=TRUE,$T$19=\"SIPM\"),VLOOKUP(DATE(YEAR(DATE(YEAR($W7),MONTH($W7),DAY($W7))-1),MONTH(DATE(YEAR($W7),MONTH($W7),DAY($W7))-1),1),Indices[[Fecha]:[Indice SIPM]],2,FALSE)))))","v":0}]
[{"$f":"+TablaInventarios[[#This Row],[Categoría]]","v":"Vaq. Recría 1/2"},{"$f":"+VLOOKUP(TablaInventarios[[#This Row],[Categoria]],TablaInventarios[[Categoría]:[Actividad]],2,FALSE)","v":"Recría"},{"$f":"+SUMPRODUCT((TablaInventarios[[#This Row],[Categoria]]=TablaInventarios[Categoria])*TablaInventarios[Cab.])+SUMPRODUCT((TablaInventarios[[#This Row],[Categoria]]=TablaMovimientos[Categoría])*(TablaMovimientos[Cab.])*(TablaMovimientos[Fecha]<=$N$19))","v":0},{"$f":"IF(TablaInventarios[[#This Row],[Cab. \nInicio período]]=0,0,(SUMPRODUCT((TablaInventarios[[#This Row],[Categoria]]=TablaInventarios[Categoria])*(TablaInventarios[Kg.]))+SUMPRODUCT((TablaInventarios[[#This Row],[Categoria]]=TablaMovimientos[Categoría])*(TablaMovimientos[Kg.])*(TablaMovimientos[Fecha]<=$N$19)))/TablaInventarios[[#This Row],[Cab. \nInicio período]])","v":0},{"$f":"SUMPRODUCT((TablaInventarios[[#This Row],[Categoria]]=TablaInventarios[Categoria])*TablaInventarios[Kg.])+SUMPRODUCT((TablaInventarios[[#This Row],[Categoria]]=TablaMovimientos[Categoría])*(TablaMovimientos[Cab.])*(TablaMovimientos[Fecha]<=$N$19))","v":0},{"$f":"IF(TablaInventarios[[#This Row],[Kg. Totales \nInicio período]]=0,0,TablaInventarios[[#This Row],[$ Total IP (corrientes)]]/TablaInventarios[[#This Row],[Kg. Totales \nInicio período]])","v":0},{"$f":"+IF(TablaInventarios[[#This Row],[Cab. \nInicio período]]=0,0,TablaInventarios[[#This Row],[$ Total IP (corrientes)]]/TablaInventarios[[#This Row],[Cab. \nInicio período]])","v":0},{"$f":"+SUMPRODUCT((TablaInventarios[[#This Row],[Categoria]]=TablaInventarios[Categoria])*TablaInventarios[$ Total\n(corrientes)])+SUMPRODUCT((TablaInventarios[[#This Row],[Categoria]]=TablaMovimientos[Categoría])*(TablaMovimientos[Total $ corr-tes])*(TablaMovimientos[Fecha]<=$N$19))","v":0},{"$f":"IF($N$19=0,0,TablaInventarios[[#This Row],[$ Total IP (corrientes)]]*IF($S$23=FALSE,0,IF($T$19=\"SIPM\",VLOOKUP(DATE(YEAR($N$19),MONTH($N$19)+IF(DAY($N$19)=1,-1,0),1),Indices[[Fecha]:[Indice SIPM]],2,FALSE),IF($T$19=\"Dólar Oficial\",1/VLOOKUP(DATE(YEAR($N$19),MONTH($N$19),DAY($N$19)+IF(DAY($N$19)=1,-1,0)),Tabla5[],2),IF($T$19=\"Dólar Informal\",1/VLOOKUP(DATE(YEAR($N$19),MONTH($N$19),DAY($N$19)+IF(DAY($N$19)=1,-1,0)),Tabla3[],2))))))","v":0},{"$f":"+SUMPRODUCT((TablaInventarios[[#This Row],[Categoria]]=TablaInventarios[Categoria])*(TablaInventarios[Cab. \nInicio período]))+SUMPRODUCT((TablaInventarios[[#This Row],[Categoria]]=TablaMovimientos[Categoría])*(TablaMovimientos[Cab.])*(TablaMovimientos[Fecha]>$N$19)*(TablaMovimientos[Fecha]<=$P$19))","v":0},{"$f":"IFERROR(TablaInventarios[[#This Row],[Kg. Totales \nStock]]/TablaInventarios[[#This Row],[Cab. \nStock]],0)","v":0},{"$f":"+SUMPRODUCT((TablaInventarios[[#This Row],[Categoria]]=TablaInventarios[Categoria])*(TablaInventarios[Kg. Totales \nInicio período]))+SUMPRODUCT((TablaInventarios[[#This Row],[Categoria]]=TablaMovimientos[Categoría])*(TablaMovimientos[Kg.])*(TablaMovimientos[Fecha]>$N$19)*(TablaMovimientos[Fecha]<=$P$19))","v":0},{"$f":"IF(TablaInventarios[[#This Row],[Kg. Totales \nStock]]=0,TablaInventarios[[#This Row],[$/Kg. \nal Cierre]],IFERROR(TablaInventarios[[#This Row],[$ Total FP (corrientes)]]/TablaInventarios[[#This Row],[Kg. Totales \nStock]],0))","v":0},{"$f":"IFERROR(TablaInventarios[[#This Row],[$ Total FP (corrientes)]]/TablaInventarios[[#This Row],[Cab. \nStock]],0)","v":0},{"$f":"+SUMPRODUCT((TablaInventarios[[#This Row],[Categoria]]=TablaInventarios[Categoria])*(TablaInventarios[$ Total IP (corrientes)]))+SUMPRODUCT((TablaInventarios[[#This Row],[Categoria]]=TablaMovimientos[Categoría])*(TablaMovimientos[Total $ corr-tes])*(TablaMovimientos[Fecha]>$N$19)*(TablaMovimientos[Fecha]<=$P$19))","v":0},{"$f":"IF($P$19=0,0,TablaInventarios[[#This Row],[$ Total FP (corrientes)]]*IF($S$23=FALSE,0,IF($T$19=\"SIPM\",VLOOKUP(DATE(YEAR($P$19),MONTH($P$19),1),Indices[[Fecha]:[Indice SIPM]],2,FALSE),IF($T$19=\"Dólar Oficial\",1/VLOOKUP(DATE(YEAR($P$19),MONTH($P$19),DAY($P$19)),Tabla5[],2),IF($T$19=\"Dólar Informal\",1/VLOOKUP(DATE(YEAR($P$19),MONTH($P$19),DAY($P$19)),Tabla3[],2))))))","v":0},null,null,{"$f":"TablaInventarios[[#This Row],[Kg./Cab. \nal Cierre]]*TablaInventarios[[#This Row],[$/Kg. \nal Cierre]]","v":0},{"$f":"TablaInventarios[[#This Row],[Cab. \nStock]]*TablaInventarios[[#This Row],[Kg./Cab. \nal Cierre]]-TablaInventarios[[#This Row],[Kg. Totales \nStock]]","v":0},{"$f":"TablaInventarios[[#This Row],[Cab. \nStock]]*TablaInventarios[[#This Row],[Kg./Cab. \nal Cierre]]*TablaInventarios[[#This Row],[$/Kg. \nal Cierre]]-TablaInventarios[[#This Row],[$ Total FP (corrientes)]]","v":0},null,"Fecha ???","Inventario de inicio","Vaq. Recría 1/2","Recría","AC",null,null,{"$f":"+TablaInventarios[[#This Row],[Cabezas]]","v":0},null,{"$f":"+TablaInventarios[[#This Row],[Cabezas]]*TablaInventarios[[#This Row],[Kg/Cab.]]","v":0},null,{"$f":"TablaInventarios[[#This Row],[Kg/Cab.]]*TablaInventarios[[#This Row],[$/Kg]]","v":0},{"$f":"+TablaInventarios[[#This Row],[Kg.]]*TablaInventarios[[#This Row],[$/Kg]]","v":0},{"$f":"IF(W8=\"Fecha ???\",0,TablaInventarios[[#This Row],[$ Total\n(corrientes)]]*IF(AND($S$23=TRUE,$T$19=\"Dólar Informal\"),1/VLOOKUP(TablaInventarios[[#This Row],[Fecha]],Tabla3[],2),IF(AND($S$23=TRUE,$T$19=\"Dólar Oficial\"),1/VLOOKUP(TablaInventarios[[#This Row],[Fecha]],Tabla5[],2),IF(AND($S$23=TRUE,$T$19=\"SIPM\"),VLOOKUP(DATE(YEAR(DATE(YEAR($W8),MONTH($W8),DAY($W8))-1),MONTH(DATE(YEAR($W8),MONTH($W8),DAY($W8))-1),1),Indices[[Fecha]:[Indice SIPM]],2,FALSE)))))","v":0}]
[{"$f":"+TablaInventarios[[#This Row],[Categoría]]","v":"Terneras"},{"$f":"+VLOOKUP(TablaInventarios[[#This Row],[Categoria]],TablaInventarios[[Categoría]:[Actividad]],2,FALSE)","v":"Recría"},{"$f":"+SUMPRODUCT((TablaInventarios[[#This Row],[Categoria]]=TablaInventarios[Categoria])*TablaInventarios[Cab.])+SUMPRODUCT((TablaInventarios[[#This Row],[Categoria]]=TablaMovimientos[Categoría])*(TablaMovimientos[Cab.])*(TablaMovimientos[Fecha]<=$N$19))","v":0},{"$f":"IF(TablaInventarios[[#This Row],[Cab. \nInicio período]]=0,0,(SUMPRODUCT((TablaInventarios[[#This Row],[Categoria]]=TablaInventarios[Categoria])*(TablaInventarios[Kg.]))+SUMPRODUCT((TablaInventarios[[#This Row],[Categoria]]=TablaMovimientos[Categoría])*(TablaMovimientos[Kg.])*(TablaMovimientos[Fecha]<=$N$19)))/TablaInventarios[[#This Row],[Cab. \nInicio período]])","v":0},{"$f":"SUMPRODUCT((TablaInventarios[[#This Row],[Categoria]]=TablaInventarios[Categoria])*TablaInventarios[Kg.])+SUMPRODUCT((TablaInventarios[[#This Row],[Categoria]]=TablaMovimientos[Categoría])*(TablaMovimientos[Cab.])*(TablaMovimientos[Fecha]<=$N$19))","v":0},{"$f":"IF(TablaInventarios[[#This Row],[Kg. Totales \nInicio período]]=0,0,TablaInventarios[[#This Row],[$ Total IP (corrientes)]]/TablaInventarios[[#This Row],[Kg. Totales \nInicio período]])","v":0},{"$f":"+IF(TablaInventarios[[#This Row],[Cab. \nInicio período]]=0,0,TablaInventarios[[#This Row],[$ Total IP (corrientes)]]/TablaInventarios[[#This Row],[Cab. \nInicio período]])","v":0},{"$f":"+SUMPRODUCT((TablaInventarios[[#This Row],[Categoria]]=TablaInventarios[Categoria])*TablaInventarios[$ Total\n(corrientes)])+SUMPRODUCT((TablaInventarios[[#This Row],[Categoria]]=TablaMovimientos[Categoría])*(TablaMovimientos[Total $ corr-tes])*(TablaMovimientos[Fecha]<=$N$19))","v":0},{"$f":"IF($N$19=0,0,TablaInventarios[[#This Row],[$ Total IP (corrientes)]]*IF($S$23=FALSE,0,IF($T$19=\"SIPM\",VLOOKUP(DATE(YEAR($N$19),MONTH($N$19)+IF(DAY($N$19)=1,-1,0),1),Indices[[Fecha]:[Indice SIPM]],2,FALSE),IF($T$19=\"Dólar Oficial\",1/VLOOKUP(DATE(YEAR($N$19),MONTH($N$19),DAY($N$19)+IF(DAY($N$19)=1,-1,0)),Tabla5[],2),IF($T$19=\"Dólar Informal\",1/VLOOKUP(DATE(YEAR($N$19),MONTH($N$19),DAY($N$19)+IF(DAY($N$19)=1,-1,0)),Tabla3[],2))))))","v":0},{"$f":"+SUMPRODUCT((TablaInventarios[[#This Row],[Categoria]]=TablaInventarios[Categoria])*(TablaInventarios[Cab. \nInicio período]))+SUMPRODUCT((TablaInventarios[[#This Row],[Categoria]]=TablaMovimientos[Categoría])*(TablaMovimientos[Cab.])*(TablaMovimientos[Fecha]>$N$19)*(TablaMovimientos[Fecha]<=$P$19))","v":0},{"$f":"IFERROR(TablaInventarios[[#This Row],[Kg. Totales \nStock]]/TablaInventarios[[#This Row],[Cab. \nStock]],0)","v":0},{"$f":"+SUMPRODUCT((TablaInventarios[[#This Row],[Categoria]]=TablaInventarios[Categoria])*(TablaInventarios[Kg. Totales \nInicio período]))+SUMPRODUCT((TablaInventarios[[#This Row],[Categoria]]=TablaMovimientos[Categoría])*(TablaMovimientos[Kg.])*(TablaMovimientos[Fecha]>$N$19)*(TablaMovimientos[Fecha]<=$P$19))","v":0},{"$f":"IF(TablaInventarios[[#This Row],[Kg. Totales \nStock]]=0,TablaInventarios[[#This Row],[$/Kg. \nal Cierre]],IFERROR(TablaInventarios[[#This Row],[$ Total FP (corrientes)]]/TablaInventarios[[#This Row],[Kg. Totales \nStock]],0))","v":0},{"$f":"IFERROR(TablaInventarios[[#This Row],[$ Total FP (corrientes)]]/TablaInventarios[[#This Row],[Cab. \nStock]],0)","v":0},{"$f":"+SUMPRODUCT((TablaInventarios[[#This Row],[Categoria]]=TablaInventarios[Categoria])*(TablaInventarios[$ Total IP (corrientes)]))+SUMPRODUCT((TablaInventarios[[#This Row],[Categoria]]=TablaMovimientos[Categoría])*(TablaMovimientos[Total $ corr-tes])*(TablaMovimientos[Fecha]>$N$19)*(TablaMovimientos[Fecha]<=$P$19))","v":0},{"$f":"IF($P$19=0,0,TablaInventarios[[#This Row],[$ Total FP (corrientes)]]*IF($S$23=FALSE,0,IF($T$19=\"SIPM\",VLOOKUP(DATE(YEAR($P$19),MONTH($P$19),1),Indices[[Fecha]:[Indice SIPM]],2,FALSE),IF($T$19=\"Dólar Oficial\",1/VLOOKUP(DATE(YEAR($P$19),MONTH($P$19),DAY($P$19)),Tabla5[],2),IF($T$19=\"Dólar Informal\",1/VLOOKUP(DATE(YEAR($P$19),MONTH($P$19),DAY($P$19)),Tabla3[],2))))))","v":0},null,null,{"$f":"TablaInventarios[[#This Row],[Kg./Cab. \nal Cierre]]*TablaInventarios[[#This Row],[$/Kg. \nal Cierre]]","v":0},{"$f":"TablaInventarios[[#This Row],[Cab. \nStock]]*TablaInventarios[[#This Row],[Kg./Cab. \nal Cierre]]-TablaInventarios[[#This Row],[Kg. Totales \nStock]]","v":0},{"$f":"TablaInventarios[[#This Row],[Cab. \nStock]]*TablaInventarios[[#This Row],[Kg./Cab. \nal Cierre]]*TablaInventarios[[#This Row],[$/Kg. \nal Cierre]]-TablaInventarios[[#This Row],[$ Total FP (corrientes)]]","v":0},null,"Fecha ???","Inventario de inicio","Terneras","Recría","AC",null,null,{"$f":"+TablaInventarios[[#This Row],[Cabezas]]","v":0},null,{"$f":"+TablaInventarios[[#This Row],[Cabezas]]*TablaInventarios[[#This Row],[Kg/Cab.]]","v":0},null,{"$f":"TablaInventarios[[#This Row],[Kg/Cab.]]*TablaInventarios[[#This Row],[$/Kg]]","v":0},{"$f":"+TablaInventarios[[#This Row],[Kg.]]*TablaInventarios[[#This Row],[$/Kg]]","v":0},{"$f":"IF(W9=\"Fecha ???\",0,TablaInventarios[[#This Row],[$ Total\n(corrientes)]]*IF(AND($S$23=TRUE,$T$19=\"Dólar Informal\"),1/VLOOKUP(TablaInventarios[[#This Row],[Fecha]],Tabla3[],2),IF(AND($S$23=TRUE,$T$19=\"Dólar Oficial\"),1/VLOOKUP(TablaInventarios[[#This Row],[Fecha]],Tabla5[],2),IF(AND($S$23=TRUE,$T$19=\"SIPM\"),VLOOKUP(DATE(YEAR(DATE(YEAR($W9),MONTH($W9),DAY($W9))-1),MONTH(DATE(YEAR($W9),MONTH($W9),DAY($W9))-1),1),Indices[[Fecha]:[Indice SIPM]],2,FALSE)))))","v":0}]
[{"$f":"+TablaInventarios[[#This Row],[Categoría]]","v":"Terneros al pie"},{"$f":"+VLOOKUP(TablaInventarios[[#This Row],[Categoria]],TablaInventarios[[Categoría]:[Actividad]],2,FALSE)","v":"Cría"},{"$f":"+SUMPRODUCT((TablaInventarios[[#This Row],[Categoria]]=TablaInventarios[Categoria])*TablaInventarios[Cab.])+SUMPRODUCT((TablaInventarios[[#This Row],[Categoria]]=TablaMovimientos[Categoría])*(TablaMovimientos[Cab.])*(TablaMovimientos[Fecha]<=$N$19))","v":0},{"$f":"IF(TablaInventarios[[#This Row],[Cab. \nInicio período]]=0,0,(SUMPRODUCT((TablaInventarios[[#This Row],[Categoria]]=TablaInventarios[Categoria])*(TablaInventarios[Kg.]))+SUMPRODUCT((TablaInventarios[[#This Row],[Categoria]]=TablaMovimientos[Categoría])*(TablaMovimientos[Kg.])*(TablaMovimientos[Fecha]<=$N$19)))/TablaInventarios[[#This Row],[Cab. \nInicio período]])","v":0},{"$f":"SUMPRODUCT((TablaInventarios[[#This Row],[Categoria]]=TablaInventarios[Categoria])*TablaInventarios[Kg.])+SUMPRODUCT((TablaInventarios[[#This Row],[Categoria]]=TablaMovimientos[Categoría])*(TablaMovimientos[Cab.])*(TablaMovimientos[Fecha]<=$N$19))","v":0},{"$f":"IF(TablaInventarios[[#This Row],[Kg. Totales \nInicio período]]=0,0,TablaInventarios[[#This Row],[$ Total IP (corrientes)]]/TablaInventarios[[#This Row],[Kg. Totales \nInicio período]])","v":0},{"$f":"+IF(TablaInventarios[[#This Row],[Cab. \nInicio período]]=0,0,TablaInventarios[[#This Row],[$ Total IP (corrientes)]]/TablaInventarios[[#This Row],[Cab. \nInicio período]])","v":0},{"$f":"+SUMPRODUCT((TablaInventarios[[#This Row],[Categoria]]=TablaInventarios[Categoria])*TablaInventarios[$ Total\n(corrientes)])+SUMPRODUCT((TablaInventarios[[#This Row],[Categoria]]=TablaMovimientos[Categoría])*(TablaMovimientos[Total $ corr-tes])*(TablaMovimientos[Fecha]<=$N$19))","v":0},{"$f":"IF($N$19=0,0,TablaInventarios[[#This Row],[$ Total IP (corrientes)]]*IF($S$23=FALSE,0,IF($T$19=\"SIPM\",VLOOKUP(DATE(YEAR($N$19),MONTH($N$19)+IF(DAY($N$19)=1,-1,0),1),Indices[[Fecha]:[Indice SIPM]],2,FALSE),IF($T$19=\"Dólar Oficial\",1/VLOOKUP(DATE(YEAR($N$19),MONTH($N$19),DAY($N$19)+IF(DAY($N$19)=1,-1,0)),Tabla5[],2),IF($T$19=\"Dólar Informal\",1/VLOOKUP(DATE(YEAR($N$19),MONTH($N$19),DAY($N$19)+IF(DAY($N$19)=1,-1,0)),Tabla3[],2))))))","v":0},{"$f":"+SUMPRODUCT((TablaInventarios[[#This Row],[Categoria]]=TablaInventarios[Categoria])*(TablaInventarios[Cab. \nInicio período]))+SUMPRODUCT((TablaInventarios[[#This Row],[Categoria]]=TablaMovimientos[Categoría])*(TablaMovimientos[Cab.])*(TablaMovimientos[Fecha]>$N$19)*(TablaMovimientos[Fecha]<=$P$19))","v":0},{"$f":"IFERROR(TablaInventarios[[#This Row],[Kg. Totales \nStock]]/TablaInventarios[[#This Row],[Cab. \nStock]],0)","v":0},{"$f":"+SUMPRODUCT((TablaInventarios[[#This Row],[Categoria]]=TablaInventarios[Categoria])*(TablaInventarios[Kg. Totales \nInicio período]))+SUMPRODUCT((TablaInventarios[[#This Row],[Categoria]]=TablaMovimientos[Categoría])*(TablaMovimientos[Kg.])*(TablaMovimientos[Fecha]>$N$19)*(TablaMovimientos[Fecha]<=$P$19))","v":0},{"$f":"IF(TablaInventarios[[#This Row],[Kg. Totales \nStock]]=0,TablaInventarios[[#This Row],[$/Kg. \nal Cierre]],IFERROR(TablaInventarios[[#This Row],[$ Total FP (corrientes)]]/TablaInventarios[[#This Row],[Kg. Totales \nStock]],0))","v":0},{"$f":"IFERROR(TablaInventarios[[#This Row],[$ Total FP (corrientes)]]/TablaInventarios[[#This Row],[Cab. \nStock]],0)","v":0},{"$f":"+SUMPRODUCT((TablaInventarios[[#This Row],[Categoria]]=TablaInventarios[Categoria])*(TablaInventarios[$ Total IP (corrientes)]))+SUMPRODUCT((TablaInventarios[[#This Row],[Categoria]]=TablaMovimientos[Categoría])*(TablaMovimientos[Total $ corr-tes])*(TablaMovimientos[Fecha]>$N$19)*(TablaMovimientos[Fecha]<=$P$19))","v":0},{"$f":"IF($P$19=0,0,TablaInventarios[[#This Row],[$ Total FP (corrientes)]]*IF($S$23=FALSE,0,IF($T$19=\"SIPM\",VLOOKUP(DATE(YEAR($P$19),MONTH($P$19),1),Indices[[Fecha]:[Indice SIPM]],2,FALSE),IF($T$19=\"Dólar Oficial\",1/VLOOKUP(DATE(YEAR($P$19),MONTH($P$19),DAY($P$19)),Tabla5[],2),IF($T$19=\"Dólar Informal\",1/VLOOKUP(DATE(YEAR($P$19),MONTH($P$19),DAY($P$19)),Tabla3[],2))))))","v":0},null,null,{"$f":"TablaInventarios[[#This Row],[Kg./Cab. \nal Cierre]]*TablaInventarios[[#This Row],[$/Kg. \nal Cierre]]","v":0},{"$f":"TablaInventarios[[#This Row],[Cab. \nStock]]*TablaInventarios[[#This Row],[Kg./Cab. \nal Cierre]]-TablaInventarios[[#This Row],[Kg. Totales \nStock]]","v":0},{"$f":"TablaInventarios[[#This Row],[Cab. \nStock]]*TablaInventarios[[#This Row],[Kg./Cab. \nal Cierre]]*TablaInventarios[[#This Row],[$/Kg. \nal Cierre]]-TablaInventarios[[#This Row],[$ Total FP (corrientes)]]","v":0},null,"Fecha ???","Inventario de inicio","Terneros al pie","Cría","AC",null,null,{"$f":"+TablaInventarios[[#This Row],[Cabezas]]","v":0},null,{"$f":"+TablaInventarios[[#This Row],[Cabezas]]*TablaInventarios[[#This Row],[Kg/Cab.]]","v":0},null,{"$f":"TablaInventarios[[#This Row],[Kg/Cab.]]*TablaInventarios[[#This Row],[$/Kg]]","v":0},{"$f":"+TablaInventarios[[#This Row],[Kg.]]*TablaInventarios[[#This Row],[$/Kg]]","v":0},{"$f":"IF(W10=\"Fecha ???\",0,TablaInventarios[[#This Row],[$ Total\n(corrientes)]]*IF(AND($S$23=TRUE,$T$19=\"Dólar Informal\"),1/VLOOKUP(TablaInventarios[[#This Row],[Fecha]],Tabla3[],2),IF(AND($S$23=TRUE,$T$19=\"Dólar Oficial\"),1/VLOOKUP(TablaInventarios[[#This Row],[Fecha]],Tabla5[],2),IF(AND($S$23=TRUE,$T$19=\"SIPM\"),VLOOKUP(DATE(YEAR(DATE(YEAR($W10),MONTH($W10),DAY($W10))-1),MONTH(DATE(YEAR($W10),MONTH($W10),DAY($W10))-1),1),Indices[[Fecha]:[Indice SIPM]],2,FALSE)))))","v":0}]
[{"$f":"+TablaInventarios[[#This Row],[Categoría]]","v":"Toros refugo"},{"$f":"+VLOOKUP(TablaInventarios[[#This Row],[Categoria]],TablaInventarios[[Categoría]:[Actividad]],2,FALSE)","v":"Cría"},{"$f":"+SUMPRODUCT((TablaInventarios[[#This Row],[Categoria]]=TablaInventarios[Categoria])*TablaInventarios[Cab.])+SUMPRODUCT((TablaInventarios[[#This Row],[Categoria]]=TablaMovimientos[Categoría])*(TablaMovimientos[Cab.])*(TablaMovimientos[Fecha]<=$N$19))","v":0},{"$f":"IF(TablaInventarios[[#This Row],[Cab. \nInicio período]]=0,0,(SUMPRODUCT((TablaInventarios[[#This Row],[Categoria]]=TablaInventarios[Categoria])*(TablaInventarios[Kg.]))+SUMPRODUCT((TablaInventarios[[#This Row],[Categoria]]=TablaMovimientos[Categoría])*(TablaMovimientos[Kg.])*(TablaMovimientos[Fecha]<=$N$19)))/TablaInventarios[[#This Row],[Cab. \nInicio período]])","v":0},{"$f":"SUMPRODUCT((TablaInventarios[[#This Row],[Categoria]]=TablaInventarios[Categoria])*TablaInventarios[Kg.])+SUMPRODUCT((TablaInventarios[[#This Row],[Categoria]]=TablaMovimientos[Categoría])*(TablaMovimientos[Cab.])*(TablaMovimientos[Fecha]<=$N$19))","v":0},{"$f":"IF(TablaInventarios[[#This Row],[Kg. Totales \nInicio período]]=0,0,TablaInventarios[[#This Row],[$ Total IP (corrientes)]]/TablaInventarios[[#This Row],[Kg. Totales \nInicio período]])","v":0},{"$f":"+IF(TablaInventarios[[#This Row],[Cab. \nInicio período]]=0,0,TablaInventarios[[#This Row],[$ Total IP (corrientes)]]/TablaInventarios[[#This Row],[Cab. \nInicio período]])","v":0},{"$f":"+SUMPRODUCT((TablaInventarios[[#This Row],[Categoria]]=TablaInventarios[Categoria])*TablaInventarios[$ Total\n(corrientes)])+SUMPRODUCT((TablaInventarios[[#This Row],[Categoria]]=TablaMovimientos[Categoría])*(TablaMovimientos[Total $ corr-tes])*(TablaMovimientos[Fecha]<=$N$19))","v":0},{"$f":"IF($N$19=0,0,TablaInventarios[[#This Row],[$ Total IP (corrientes)]]*IF($S$23=FALSE,0,IF($T$19=\"SIPM\",VLOOKUP(DATE(YEAR($N$19),MONTH($N$19)+IF(DAY($N$19)=1,-1,0),1),Indices[[Fecha]:[Indice SIPM]],2,FALSE),IF($T$19=\"Dólar Oficial\",1/VLOOKUP(DATE(YEAR($N$19),MONTH($N$19),DAY($N$19)+IF(DAY($N$19)=1,-1,0)),Tabla5[],2),IF($T$19=\"Dólar Informal\",1/VLOOKUP(DATE(YEAR($N$19),MONTH($N$19),DAY($N$19)+IF(DAY($N$19)=1,-1,0)),Tabla3[],2))))))","v":0},{"$f":"+SUMPRODUCT((TablaInventarios[[#This Row],[Categoria]]=TablaInventarios[Categoria])*(TablaInventarios[Cab. \nInicio período]))+SUMPRODUCT((TablaInventarios[[#This Row],[Categoria]]=TablaMovimientos[Categoría])*(TablaMovimientos[Cab.])*(TablaMovimientos[Fecha]>$N$19)*(TablaMovimientos[Fecha]<=$P$19))","v":0},{"$f":"IFERROR(TablaInventarios[[#This Row],[Kg. Totales \nStock]]/TablaInventarios[[#This Row],[Cab. \nStock]],0)","v":0},{"$f":"+SUMPRODUCT((TablaInventarios[[#This Row],[Categoria]]=TablaInventarios[Categoria])*(TablaInventarios[Kg. Totales \nInicio período]))+SUMPRODUCT((TablaInventarios[[#This Row],[Categoria]]=TablaMovimientos[Categoría])*(TablaMovimientos[Kg.])*(TablaMovimientos[Fecha]>$N$19)*(TablaMovimientos[Fecha]<=$P$19))","v":0},{"$f":"IF(TablaInventarios[[#This Row],[Kg. Totales \nStock]]=0,TablaInventarios[[#This Row],[$/Kg. \nal Cierre]],IFERROR(TablaInventarios[[#This Row],[$ Total FP (corrientes)]]/TablaInventarios[[#This Row],[Kg. Totales \nStock]],0))","v":0},{"$f":"IFERROR(TablaInventarios[[#This Row],[$ Total FP (corrientes)]]/TablaInventarios[[#This Row],[Cab. \nStock]],0)","v":0},{"$f":"+SUMPRODUCT((TablaInventarios[[#This Row],[Categoria]]=TablaInventarios[Categoria])*(TablaInventarios[$ Total IP (corrientes)]))+SUMPRODUCT((TablaInventarios[[#This Row],[Categoria]]=TablaMovimientos[Categoría])*(TablaMovimientos[Total $ corr-tes])*(TablaMovimientos[Fecha]>$N$19)*(TablaMovimientos[Fecha]<=$P$19))","v":0},{"$f":"IF($P$19=0,0,TablaInventarios[[#This Row],[$ Total FP (corrientes)]]*IF($S$23=FALSE,0,IF($T$19=\"SIPM\",VLOOKUP(DATE(YEAR($P$19),MONTH($P$19),1),Indices[[Fecha]:[Indice SIPM]],2,FALSE),IF($T$19=\"Dólar Oficial\",1/VLOOKUP(DATE(YEAR($P$19),MONTH($P$19),DAY($P$19)),Tabla5[],2),IF($T$19=\"Dólar Informal\",1/VLOOKUP(DATE(YEAR($P$19),MONTH($P$19),DAY($P$19)),Tabla3[],2))))))","v":0},null,null,{"$f":"TablaInventarios[[#This Row],[Kg./Cab. \nal Cierre]]*TablaInventarios[[#This Row],[$/Kg. \nal Cierre]]","v":0},{"$f":"TablaInventarios[[#This Row],[Cab. \nStock]]*TablaInventarios[[#This Row],[Kg./Cab. \nal Cierre]]-TablaInventarios[[#This Row],[Kg. Totales \nStock]]","v":0},{"$f":"TablaInventarios[[#This Row],[Cab. \nStock]]*TablaInventarios[[#This Row],[Kg./Cab. \nal Cierre]]*TablaInventarios[[#This Row],[$/Kg. \nal Cierre]]-TablaInventarios[[#This Row],[$ Total FP (corrientes)]]","v":0},null,"Fecha ???","Inventario de inicio","Toros refugo","Cría","AC",null,null,{"$f":"+TablaInventarios[[#This Row],[Cabezas]]","v":0},null,{"$f":"+TablaInventarios[[#This Row],[Cabezas]]*TablaInventarios[[#This Row],[Kg/Cab.]]","v":0},null,{"$f":"TablaInventarios[[#This Row],[Kg/Cab.]]*TablaInventarios[[#This Row],[$/Kg]]","v":0},{"$f":"+TablaInventarios[[#This Row],[Kg.]]*TablaInventarios[[#This Row],[$/Kg]]","v":0},{"$f":"IF(W11=\"Fecha ???\",0,TablaInventarios[[#This Row],[$ Total\n(corrientes)]]*IF(AND($S$23=TRUE,$T$19=\"Dólar Informal\"),1/VLOOKUP(TablaInventarios[[#This Row],[Fecha]],Tabla3[],2),IF(AND($S$23=TRUE,$T$19=\"Dólar Oficial\"),1/VLOOKUP(TablaInventarios[[#This Row],[Fecha]],Tabla5[],2),IF(AND($S$23=TRUE,$T$19=\"SIPM\"),VLOOKUP(DATE(YEAR(DATE(YEAR($W11),MONTH($W11),DAY($W11))-1),MONTH(DATE(YEAR($W11),MONTH($W11),DAY($W11))-1),1),Indices[[Fecha]:[Indice SIPM]],2,FALSE)))))","v":0}]
[{"$f":"+TablaInventarios[[#This Row],[Categoría]]","v":"Vacas refugo"},{"$f":"+VLOOKUP(TablaInventarios[[#This Row],[Categoria]],TablaInventarios[[Categoría]:[Actividad]],2,FALSE)","v":"Cría"},{"$f":"+SUMPRODUCT((TablaInventarios[[#This Row],[Categoria]]=TablaInventarios[Categoria])*TablaInventarios[Cab.])+SUMPRODUCT((TablaInventarios[[#This Row],[Categoria]]=TablaMovimientos[Categoría])*(TablaMovimientos[Cab.])*(TablaMovimientos[Fecha]<=$N$19))","v":0},{"$f":"IF(TablaInventarios[[#This Row],[Cab. \nInicio período]]=0,0,(SUMPRODUCT((TablaInventarios[[#This Row],[Categoria]]=TablaInventarios[Categoria])*(TablaInventarios[Kg.]))+SUMPRODUCT((TablaInventarios[[#This Row],[Categoria]]=TablaMovimientos[Categoría])*(TablaMovimientos[Kg.])*(TablaMovimientos[Fecha]<=$N$19)))/TablaInventarios[[#This Row],[Cab. \nInicio período]])","v":0},{"$f":"SUMPRODUCT((TablaInventarios[[#This Row],[Categoria]]=TablaInventarios[Categoria])*TablaInventarios[Kg.])+SUMPRODUCT((TablaInventarios[[#This Row],[Categoria]]=TablaMovimientos[Categoría])*(TablaMovimientos[Cab.])*(TablaMovimientos[Fecha]<=$N$19))","v":0},{"$f":"IF(TablaInventarios[[#This Row],[Kg. Totales \nInicio período]]=0,0,TablaInventarios[[#This Row],[$ Total IP (corrientes)]]/TablaInventarios[[#This Row],[Kg. Totales \nInicio período]])","v":0},{"$f":"+IF(TablaInventarios[[#This Row],[Cab. \nInicio período]]=0,0,TablaInventarios[[#This Row],[$ Total IP (corrientes)]]/TablaInventarios[[#This Row],[Cab. \nInicio período]])","v":0},{"$f":"+SUMPRODUCT((TablaInventarios[[#This Row],[Categoria]]=TablaInventarios[Categoria])*TablaInventarios[$ Total\n(corrientes)])+SUMPRODUCT((TablaInventarios[[#This Row],[Categoria]]=TablaMovimientos[Categoría])*(TablaMovimientos[Total $ corr-tes])*(TablaMovimientos[Fecha]<=$N$19))","v":0},{"$f":"IF($N$19=0,0,TablaInventarios[[#This Row],[$ Total IP (corrientes)]]*IF($S$23=FALSE,0,IF($T$19=\"SIPM\",VLOOKUP(DATE(YEAR($N$19),MONTH($N$19)+IF(DAY($N$19)=1,-1,0),1),Indices[[Fecha]:[Indice SIPM]],2,FALSE),IF($T$19=\"Dólar Oficial\",1/VLOOKUP(DATE(YEAR($N$19),MONTH($N$19),DAY($N$19)+IF(DAY($N$19)=1,-1,0)),Tabla5[],2),IF($T$19=\"Dólar Informal\",1/VLOOKUP(DATE(YEAR($N$19),MONTH($N$19),DAY($N$19)+IF(DAY($N$19)=1,-1,0)),Tabla3[],2))))))","v":0},{"$f":"+SUMPRODUCT((TablaInventarios[[#This Row],[Categoria]]=TablaInventarios[Categoria])*(TablaInventarios[Cab. \nInicio período]))+SUMPRODUCT((TablaInventarios[[#This Row],[Categoria]]=TablaMovimientos[Categoría])*(TablaMovimientos[Cab.])*(TablaMovimientos[Fecha]>$N$19)*(TablaMovimientos[Fecha]<=$P$19))","v":0},{"$f":"IFERROR(TablaInventarios[[#This Row],[Kg. Totales \nStock]]/TablaInventarios[[#This Row],[Cab. \nStock]],0)","v":0},{"$f":"+SUMPRODUCT((TablaInventarios[[#This Row],[Categoria]]=TablaInventarios[Categoria])*(TablaInventarios[Kg. Totales \nInicio período]))+SUMPRODUCT((TablaInventarios[[#This Row],[Categoria]]=TablaMovimientos[Categoría])*(TablaMovimientos[Kg.])*(TablaMovimientos[Fecha]>$N$19)*(TablaMovimientos[Fecha]<=$P$19))","v":0},{"$f":"IF(TablaInventarios[[#This Row],[Kg. Totales \nStock]]=0,TablaInventarios[[#This Row],[$/Kg. \nal Cierre]],IFERROR(TablaInventarios[[#This Row],[$ Total FP (corrientes)]]/TablaInventarios[[#This Row],[Kg. Totales \nStock]],0))","v":0},{"$f":"IFERROR(TablaInventarios[[#This Row],[$ Total FP (corrientes)]]/TablaInventarios[[#This Row],[Cab. \nStock]],0)","v":0},{"$f":"+SUMPRODUCT((TablaInventarios[[#This Row],[Categoria]]=TablaInventarios[Categoria])*(TablaInventarios[$ Total IP (corrientes)]))+SUMPRODUCT((TablaInventarios[[#This Row],[Categoria]]=TablaMovimientos[Categoría])*(TablaMovimientos[Total $ corr-tes])*(TablaMovimientos[Fecha]>$N$19)*(TablaMovimientos[Fecha]<=$P$19))","v":0},{"$f":"IF($P$19=0,0,TablaInventarios[[#This Row],[$ Total FP (corrientes)]]*IF($S$23=FALSE,0,IF($T$19=\"SIPM\",VLOOKUP(DATE(YEAR($P$19),MONTH($P$19),1),Indices[[Fecha]:[Indice SIPM]],2,FALSE),IF($T$19=\"Dólar Oficial\",1/VLOOKUP(DATE(YEAR($P$19),MONTH($P$19),DAY($P$19)),Tabla5[],2),IF($T$19=\"Dólar Informal\",1/VLOOKUP(DATE(YEAR($P$19),MONTH($P$19),DAY($P$19)),Tabla3[],2))))))","v":0},null,null,{"$f":"TablaInventarios[[#This Row],[Kg./Cab. \nal Cierre]]*TablaInventarios[[#This Row],[$/Kg. \nal Cierre]]","v":0},{"$f":"TablaInventarios[[#This Row],[Cab. \nStock]]*TablaInventarios[[#This Row],[Kg./Cab. \nal Cierre]]-TablaInventarios[[#This Row],[Kg. Totales \nStock]]","v":0},{"$f":"TablaInventarios[[#This Row],[Cab. \nStock]]*TablaInventarios[[#This Row],[Kg./Cab. \nal Cierre]]*TablaInventarios[[#This Row],[$/Kg. \nal Cierre]]-TablaInventarios[[#This Row],[$ Total FP (corrientes)]]","v":0},null,"Fecha ???","Inventario de inicio","Vacas refugo","Cría","AC",null,null,{"$f":"+TablaInventarios[[#This Row],[Cabezas]]","v":0},null,{"$f":"+TablaInventarios[[#This Row],[Cabezas]]*TablaInventarios[[#This Row],[Kg/Cab.]]","v":0},null,{"$f":"TablaInventarios[[#This Row],[Kg/Cab.]]*TablaInventarios[[#This Row],[$/Kg]]","v":0},{"$f":"+TablaInventarios[[#This Row],[Kg.]]*TablaInventarios[[#This Row],[$/Kg]]","v":0},{"$f":"IF(W12=\"Fecha ???\",0,TablaInventarios[[#This Row],[$ Total\n(corrientes)]]*IF(AND($S$23=TRUE,$T$19=\"Dólar Informal\"),1/VLOOKUP(TablaInventarios[[#This Row],[Fecha]],Tabla3[],2),IF(AND($S$23=TRUE,$T$19=\"Dólar Oficial\"),1/VLOOKUP(TablaInventarios[[#This Row],[Fecha]],Tabla5[],2),IF(AND($S$23=TRUE,$T$19=\"SIPM\"),VLOOKUP(DATE(YEAR(DATE(YEAR($W12),MONTH($W12),DAY($W12))-1),MONTH(DATE(YEAR($W12),MONTH($W12),DAY($W12))-1),1),Indices[[Fecha]:[Indice SIPM]],2,FALSE)))))","v":0}]
[{"$f":"+TablaInventarios[[#This Row],[Categoría]]","v":"Novillitos 260-300"},{"$f":"+VLOOKUP(TablaInventarios[[#This Row],[Categoria]],TablaInventarios[[Categoría]:[Actividad]],2,FALSE)","v":"Recría"},{"$f":"+SUMPRODUCT((TablaInventarios[[#This Row],[Categoria]]=TablaInventarios[Categoria])*TablaInventarios[Cab.])+SUMPRODUCT((TablaInventarios[[#This Row],[Categoria]]=TablaMovimientos[Categoría])*(TablaMovimientos[Cab.])*(TablaMovimientos[Fecha]<=$N$19))","v":0},{"$f":"IF(TablaInventarios[[#This Row],[Cab. \nInicio período]]=0,0,(SUMPRODUCT((TablaInventarios[[#This Row],[Categoria]]=TablaInventarios[Categoria])*(TablaInventarios[Kg.]))+SUMPRODUCT((TablaInventarios[[#This Row],[Categoria]]=TablaMovimientos[Categoría])*(TablaMovimientos[Kg.])*(TablaMovimientos[Fecha]<=$N$19)))/TablaInventarios[[#This Row],[Cab. \nInicio período]])","v":0},{"$f":"SUMPRODUCT((TablaInventarios[[#This Row],[Categoria]]=TablaInventarios[Categoria])*TablaInventarios[Kg.])+SUMPRODUCT((TablaInventarios[[#This Row],[Categoria]]=TablaMovimientos[Categoría])*(TablaMovimientos[Cab.])*(TablaMovimientos[Fecha]<=$N$19))","v":0},{"$f":"IF(TablaInventarios[[#This Row],[Kg. Totales \nInicio período]]=0,0,TablaInventarios[[#This Row],[$ Total IP (corrientes)]]/TablaInventarios[[#This Row],[Kg. Totales \nInicio período]])","v":0},{"$f":"+IF(TablaInventarios[[#This Row],[Cab. \nInicio período]]=0,0,TablaInventarios[[#This Row],[$ Total IP (corrientes)]]/TablaInventarios[[#This Row],[Cab. \nInicio período]])","v":0},{"$f":"+SUMPRODUCT((TablaInventarios[[#This Row],[Categoria]]=TablaInventarios[Categoria])*TablaInventarios[$ Total\n(corrientes)])+SUMPRODUCT((TablaInventarios[[#This Row],[Categoria]]=TablaMovimientos[Categoría])*(TablaMovimientos[Total $ corr-tes])*(TablaMovimientos[Fecha]<=$N$19))","v":0},{"$f":"IF($N$19=0,0,TablaInventarios[[#This Row],[$ Total IP (corrientes)]]*IF($S$23=FALSE,0,IF($T$19=\"SIPM\",VLOOKUP(DATE(YEAR($N$19),MONTH($N$19)+IF(DAY($N$19)=1,-1,0),1),Indices[[Fecha]:[Indice SIPM]],2,FALSE),IF($T$19=\"Dólar Oficial\",1/VLOOKUP(DATE(YEAR($N$19),MONTH($N$19),DAY($N$19)+IF(DAY($N$19)=1,-1,0)),Tabla5[],2),IF($T$19=\"Dólar Informal\",1/VLOOKUP(DATE(YEAR($N$19),MONTH($N$19),DAY($N$19)+IF(DAY($N$19)=1,-1,0)),Tabla3[],2))))))","v":0},{"$f":"+SUMPRODUCT((TablaInventarios[[#This Row],[Categoria]]=TablaInventarios[Categoria])*(TablaInventarios[Cab. \nInicio período]))+SUMPRODUCT((TablaInventarios[[#This Row],[Categoria]]=TablaMovimientos[Categoría])*(TablaMovimientos[Cab.])*(TablaMovimientos[Fecha]>$N$19)*(TablaMovimientos[Fecha]<=$P$19))","v":0},{"$f":"IFERROR(TablaInventarios[[#This Row],[Kg. Totales \nStock]]/TablaInventarios[[#This Row],[Cab. \nStock]],0)","v":0},{"$f":"+SUMPRODUCT((TablaInventarios[[#This Row],[Categoria]]=TablaInventarios[Categoria])*(TablaInventarios[Kg. Totales \nInicio período]))+SUMPRODUCT((TablaInventarios[[#This Row],[Categoria]]=TablaMovimientos[Categoría])*(TablaMovimientos[Kg.])*(TablaMovimientos[Fecha]>$N$19)*(TablaMovimientos[Fecha]<=$P$19))","v":0},{"$f":"IF(TablaInventarios[[#This Row],[Kg. Totales \nStock]]=0,TablaInventarios[[#This Row],[$/Kg. \nal Cierre]],IFERROR(TablaInventarios[[#This Row],[$ Total FP (corrientes)]]/TablaInventarios[[#This Row],[Kg. Totales \nStock]],0))","v":0},{"$f":"IFERROR(TablaInventarios[[#This Row],[$ Total FP (corrientes)]]/TablaInventarios[[#This Row],[Cab. \nStock]],0)","v":0},{"$f":"+SUMPRODUCT((TablaInventarios[[#This Row],[Categoria]]=TablaInventarios[Categoria])*(TablaInventarios[$ Total IP (corrientes)]))+SUMPRODUCT((TablaInventarios[[#This Row],[Categoria]]=TablaMovimientos[Categoría])*(TablaMovimientos[Total $ corr-tes])*(TablaMovimientos[Fecha]>$N$19)*(TablaMovimientos[Fecha]<=$P$19))","v":0},{"$f":"IF($P$19=0,0,TablaInventarios[[#This Row],[$ Total FP (corrientes)]]*IF($S$23=FALSE,0,IF($T$19=\"SIPM\",VLOOKUP(DATE(YEAR($P$19),MONTH($P$19),1),Indices[[Fecha]:[Indice SIPM]],2,FALSE),IF($T$19=\"Dólar Oficial\",1/VLOOKUP(DATE(YEAR($P$19),MONTH($P$19),DAY($P$19)),Tabla5[],2),IF($T$19=\"Dólar Informal\",1/VLOOKUP(DATE(YEAR($P$19),MONTH($P$19),DAY($P$19)),Tabla3[],2))))))","v":0},null,null,{"$f":"TablaInventarios[[#This Row],[Kg./Cab. \nal Cierre]]*TablaInventarios[[#This Row],[$/Kg. \nal Cierre]]","v":0},{"$f":"TablaInventarios[[#This Row],[Cab. \nStock]]*TablaInventarios[[#This Row],[Kg./Cab. \nal Cierre]]-TablaInventarios[[#This Row],[Kg. Totales \nStock]]","v":0},{"$f":"TablaInventarios[[#This Row],[Cab. \nStock]]*TablaInventarios[[#This Row],[Kg./Cab. \nal Cierre]]*TablaInventarios[[#This Row],[$/Kg. \nal Cierre]]-TablaInventarios[[#This Row],[$ Total FP (corrientes)]]","v":0},null,"Fecha ???",{"$f":"\"Inventario de inicio\"","v":"Inventario de inicio"},"Novillitos 260-300","Recría","AC",null,null,{"$f":"+TablaInventarios[[#This Row],[Cabezas]]","v":0},null,{"$f":"+TablaInventarios[[#This Row],[Cabezas]]*TablaInventarios[[#This Row],[Kg/Cab.]]","v":0},null,{"$f":"TablaInventarios[[#This Row],[Kg/Cab.]]*TablaInventarios[[#This Row],[$/Kg]]","v":0},{"$f":"+TablaInventarios[[#This Row],[Kg.]]*TablaInventarios[[#This Row],[$/Kg]]","v":0},{"$f":"IF(W13=\"Fecha ???\",0,TablaInventarios[[#This Row],[$ Total\n(corrientes)]]*IF(AND($S$23=TRUE,$T$19=\"Dólar Informal\"),1/VLOOKUP(TablaInventarios[[#This Row],[Fecha]],Tabla3[],2),IF(AND($S$23=TRUE,$T$19=\"Dólar Oficial\"),1/VLOOKUP(TablaInventarios[[#This Row],[Fecha]],Tabla5[],2),IF(AND($S$23=TRUE,$T$19=\"SIPM\"),VLOOKUP(DATE(YEAR(DATE(YEAR($W13),MONTH($W13),DAY($W13))-1),MONTH(DATE(YEAR($W13),MONTH($W13),DAY($W13))-1),1),Indices[[Fecha]:[Indice SIPM]],2,FALSE)))))","v":0}]
[{"$f":"+TablaInventarios[[#This Row],[Categoría]]","v":"Novillitos 230-260"},{"$f":"+VLOOKUP(TablaInventarios[[#This Row],[Categoria]],TablaInventarios[[Categoría]:[Actividad]],2,FALSE)","v":"Recría"},{"$f":"+SUMPRODUCT((TablaInventarios[[#This Row],[Categoria]]=TablaInventarios[Categoria])*TablaInventarios[Cab.])+SUMPRODUCT((TablaInventarios[[#This Row],[Categoria]]=TablaMovimientos[Categoría])*(TablaMovimientos[Cab.])*(TablaMovimientos[Fecha]<=$N$19))","v":0},{"$f":"IF(TablaInventarios[[#This Row],[Cab. \nInicio período]]=0,0,(SUMPRODUCT((TablaInventarios[[#This Row],[Categoria]]=TablaInventarios[Categoria])*(TablaInventarios[Kg.]))+SUMPRODUCT((TablaInventarios[[#This Row],[Categoria]]=TablaMovimientos[Categoría])*(TablaMovimientos[Kg.])*(TablaMovimientos[Fecha]<=$N$19)))/TablaInventarios[[#This Row],[Cab. \nInicio período]])","v":0},{"$f":"SUMPRODUCT((TablaInventarios[[#This Row],[Categoria]]=TablaInventarios[Categoria])*TablaInventarios[Kg.])+SUMPRODUCT((TablaInventarios[[#This Row],[Categoria]]=TablaMovimientos[Categoría])*(TablaMovimientos[Cab.])*(TablaMovimientos[Fecha]<=$N$19))","v":0},{"$f":"IF(TablaInventarios[[#This Row],[Kg. Totales \nInicio período]]=0,0,TablaInventarios[[#This Row],[$ Total IP (corrientes)]]/TablaInventarios[[#This Row],[Kg. Totales \nInicio período]])","v":0},{"$f":"+IF(TablaInventarios[[#This Row],[Cab. \nInicio período]]=0,0,TablaInventarios[[#This Row],[$ Total IP (corrientes)]]/TablaInventarios[[#This Row],[Cab. \nInicio período]])","v":0},{"$f":"+SUMPRODUCT((TablaInventarios[[#This Row],[Categoria]]=TablaInventarios[Categoria])*TablaInventarios[$ Total\n(corrientes)])+SUMPRODUCT((TablaInventarios[[#This Row],[Categoria]]=TablaMovimientos[Categoría])*(TablaMovimientos[Total $ corr-tes])*(TablaMovimientos[Fecha]<=$N$19))","v":0},{"$f":"IF($N$19=0,0,TablaInventarios[[#This Row],[$ Total IP (corrientes)]]*IF($S$23=FALSE,0,IF($T$19=\"SIPM\",VLOOKUP(DATE(YEAR($N$19),MONTH($N$19)+IF(DAY($N$19)=1,-1,0),1),Indices[[Fecha]:[Indice SIPM]],2,FALSE),IF($T$19=\"Dólar Oficial\",1/VLOOKUP(DATE(YEAR($N$19),MONTH($N$19),DAY($N$19)+IF(DAY($N$19)=1,-1,0)),Tabla5[],2),IF($T$19=\"Dólar Informal\",1/VLOOKUP(DATE(YEAR($N$19),MONTH($N$19),DAY($N$19)+IF(DAY($N$19)=1,-1,0)),Tabla3[],2))))))","v":0},{"$f":"+SUMPRODUCT((TablaInventarios[[#This Row],[Categoria]]=TablaInventarios[Categoria])*(TablaInventarios[Cab. \nInicio período]))+SUMPRODUCT((TablaInventarios[[#This Row],[Categoria]]=TablaMovimientos[Categoría])*(TablaMovimientos[Cab.])*(TablaMovimientos[Fecha]>$N$19)*(TablaMovimientos[Fecha]<=$P$19))","v":0},{"$f":"IFERROR(TablaInventarios[[#This Row],[Kg. Totales \nStock]]/TablaInventarios[[#This Row],[Cab. \nStock]],0)","v":0},{"$f":"+SUMPRODUCT((TablaInventarios[[#This Row],[Categoria]]=TablaInventarios[Categoria])*(TablaInventarios[Kg. Totales \nInicio período]))+SUMPRODUCT((TablaInventarios[[#This Row],[Categoria]]=TablaMovimientos[Categoría])*(TablaMovimientos[Kg.])*(TablaMovimientos[Fecha]>$N$19)*(TablaMovimientos[Fecha]<=$P$19))","v":0},{"$f":"IF(TablaInventarios[[#This Row],[Kg. Totales \nStock]]=0,TablaInventarios[[#This Row],[$/Kg. \nal Cierre]],IFERROR(TablaInventarios[[#This Row],[$ Total FP (corrientes)]]/TablaInventarios[[#This Row],[Kg. Totales \nStock]],0))","v":0},{"$f":"IFERROR(TablaInventarios[[#This Row],[$ Total FP (corrientes)]]/TablaInventarios[[#This Row],[Cab. \nStock]],0)","v":0},{"$f":"+SUMPRODUCT((TablaInventarios[[#This Row],[Categoria]]=TablaInventarios[Categoria])*(TablaInventarios[$ Total IP (corrientes)]))+SUMPRODUCT((TablaInventarios[[#This Row],[Categoria]]=TablaMovimientos[Categoría])*(TablaMovimientos[Total $ corr-tes])*(TablaMovimientos[Fecha]>$N$19)*(TablaMovimientos[Fecha]<=$P$19))","v":0},{"$f":"IF($P$19=0,0,TablaInventarios[[#This Row],[$ Total FP (corrientes)]]*IF($S$23=FALSE,0,IF($T$19=\"SIPM\",VLOOKUP(DATE(YEAR($P$19),MONTH($P$19),1),Indices[[Fecha]:[Indice SIPM]],2,FALSE),IF($T$19=\"Dólar Oficial\",1/VLOOKUP(DATE(YEAR($P$19),MONTH($P$19),DAY($P$19)),Tabla5[],2),IF($T$19=\"Dólar Informal\",1/VLOOKUP(DATE(YEAR($P$19),MONTH($P$19),DAY($P$19)),Tabla3[],2))))))","v":0},null,null,{"$f":"TablaInventarios[[#This Row],[Kg./Cab. \nal Cierre]]*TablaInventarios[[#This Row],[$/Kg. \nal Cierre]]","v":0},{"$f":"TablaInventarios[[#This Row],[Cab. \nStock]]*TablaInventarios[[#This Row],[Kg./Cab. \nal Cierre]]-TablaInventarios[[#This Row],[Kg. Totales \nStock]]","v":0},{"$f":"TablaInventarios[[#This Row],[Cab. \nStock]]*TablaInventarios[[#This Row],[Kg./Cab. \nal Cierre]]*TablaInventarios[[#This Row],[$/Kg. \nal Cierre]]-TablaInventarios[[#This Row],[$ Total FP (corrientes)]]","v":0},null,"Fecha ???","Inventario de inicio","Novillitos 230-260","Recría","AC",null,null,{"$f":"+TablaInventarios[[#This Row],[Cabezas]]","v":0},null,{"$f":"+TablaInventarios[[#This Row],[Cabezas]]*TablaInventarios[[#This Row],[Kg/Cab.]]","v":0},null,{"$f":"TablaInventarios[[#This Row],[Kg/Cab.]]*TablaInventarios[[#This Row],[$/Kg]]","v":0},{"$f":"+TablaInventarios[[#This Row],[Kg.]]*TablaInventarios[[#This Row],[$/Kg]]","v":0},{"$f":"IF(W14=\"Fecha ???\",0,TablaInventarios[[#This Row],[$ Total\n(corrientes)]]*IF(AND($S$23=TRUE,$T$19=\"Dólar Informal\"),1/VLOOKUP(TablaInventarios[[#This Row],[Fecha]],Tabla3[],2),IF(AND($S$23=TRUE,$T$19=\"Dólar Oficial\"),1/VLOOKUP(TablaInventarios[[#This Row],[Fecha]],Tabla5[],2),IF(AND($S$23=TRUE,$T$19=\"SIPM\"),VLOOKUP(DATE(YEAR(DATE(YEAR($W14),MONTH($W14),DAY($W14))-1),MONTH(DATE(YEAR($W14),MONTH($W14),DAY($W14))-1),1),Indices[[Fecha]:[Indice SIPM]],2,FALSE)))))","v":0}]
[{"$f":"+TablaInventarios[[#This Row],[Categoría]]","v":"Terneros"},{"$f":"+VLOOKUP(TablaInventarios[[#This Row],[Categoria]],TablaInventarios[[Categoría]:[Actividad]],2,FALSE)","v":"Recría"},{"$f":"+SUMPRODUCT((TablaInventarios[[#This Row],[Categoria]]=TablaInventarios[Categoria])*TablaInventarios[Cab.])+SUMPRODUCT((TablaInventarios[[#This Row],[Categoria]]=TablaMovimientos[Categoría])*(TablaMovimientos[Cab.])*(TablaMovimientos[Fecha]<=$N$19))","v":0},{"$f":"IF(TablaInventarios[[#This Row],[Cab. \nInicio período]]=0,0,(SUMPRODUCT((TablaInventarios[[#This Row],[Categoria]]=TablaInventarios[Categoria])*(TablaInventarios[Kg.]))+SUMPRODUCT((TablaInventarios[[#This Row],[Categoria]]=TablaMovimientos[Categoría])*(TablaMovimientos[Kg.])*(TablaMovimientos[Fecha]<=$N$19)))/TablaInventarios[[#This Row],[Cab. \nInicio período]])","v":0},{"$f":"SUMPRODUCT((TablaInventarios[[#This Row],[Categoria]]=TablaInventarios[Categoria])*TablaInventarios[Kg.])+SUMPRODUCT((TablaInventarios[[#This Row],[Categoria]]=TablaMovimientos[Categoría])*(TablaMovimientos[Cab.])*(TablaMovimientos[Fecha]<=$N$19))","v":0},{"$f":"IF(TablaInventarios[[#This Row],[Kg. Totales \nInicio período]]=0,0,TablaInventarios[[#This Row],[$ Total IP (corrientes)]]/TablaInventarios[[#This Row],[Kg. Totales \nInicio período]])","v":0},{"$f":"+IF(TablaInventarios[[#This Row],[Cab. \nInicio período]]=0,0,TablaInventarios[[#This Row],[$ Total IP (corrientes)]]/TablaInventarios[[#This Row],[Cab. \nInicio período]])","v":0},{"$f":"+SUMPRODUCT((TablaInventarios[[#This Row],[Categoria]]=TablaInventarios[Categoria])*TablaInventarios[$ Total\n(corrientes)])+SUMPRODUCT((TablaInventarios[[#This Row],[Categoria]]=TablaMovimientos[Categoría])*(TablaMovimientos[Total $ corr-tes])*(TablaMovimientos[Fecha]<=$N$19))","v":0},{"$f":"IF($N$19=0,0,TablaInventarios[[#This Row],[$ Total IP (corrientes)]]*IF($S$23=FALSE,0,IF($T$19=\"SIPM\",VLOOKUP(DATE(YEAR($N$19),MONTH($N$19)+IF(DAY($N$19)=1,-1,0),1),Indices[[Fecha]:[Indice SIPM]],2,FALSE),IF($T$19=\"Dólar Oficial\",1/VLOOKUP(DATE(YEAR($N$19),MONTH($N$19),DAY($N$19)+IF(DAY($N$19)=1,-1,0)),Tabla5[],2),IF($T$19=\"Dólar Informal\",1/VLOOKUP(DATE(YEAR($N$19),MONTH($N$19),DAY($N$19)+IF(DAY($N$19)=1,-1,0)),Tabla3[],2))))))","v":0},{"$f":"+SUMPRODUCT((TablaInventarios[[#This Row],[Categoria]]=TablaInventarios[Categoria])*(TablaInventarios[Cab. \nInicio período]))+SUMPRODUCT((TablaInventarios[[#This Row],[Categoria]]=TablaMovimientos[Categoría])*(TablaMovimientos[Cab.])*(TablaMovimientos[Fecha]>$N$19)*(TablaMovimientos[Fecha]<=$P$19))","v":0},{"$f":"IFERROR(TablaInventarios[[#This Row],[Kg. Totales \nStock]]/TablaInventarios[[#This Row],[Cab. \nStock]],0)","v":0},{"$f":"+SUMPRODUCT((TablaInventarios[[#This Row],[Categoria]]=TablaInventarios[Categoria])*(TablaInventarios[Kg. Totales \nInicio período]))+SUMPRODUCT((TablaInventarios[[#This Row],[Categoria]]=TablaMovimientos[Categoría])*(TablaMovimientos[Kg.])*(TablaMovimientos[Fecha]>$N$19)*(TablaMovimientos[Fecha]<=$P$19))","v":0},{"$f":"IF(TablaInventarios[[#This Row],[Kg. Totales \nStock]]=0,TablaInventarios[[#This Row],[$/Kg. \nal Cierre]],IFERROR(TablaInventarios[[#This Row],[$ Total FP (corrientes)]]/TablaInventarios[[#This Row],[Kg. Totales \nStock]],0))","v":0},{"$f":"IFERROR(TablaInventarios[[#This Row],[$ Total FP (corrientes)]]/TablaInventarios[[#This Row],[Cab. \nStock]],0)","v":0},{"$f":"+SUMPRODUCT((TablaInventarios[[#This Row],[Categoria]]=TablaInventarios[Categoria])*(TablaInventarios[$ Total IP (corrientes)]))+SUMPRODUCT((TablaInventarios[[#This Row],[Categoria]]=TablaMovimientos[Categoría])*(TablaMovimientos[Total $ corr-tes])*(TablaMovimientos[Fecha]>$N$19)*(TablaMovimientos[Fecha]<=$P$19))","v":0},{"$f":"IF($P$19=0,0,TablaInventarios[[#This Row],[$ Total FP (corrientes)]]*IF($S$23=FALSE,0,IF($T$19=\"SIPM\",VLOOKUP(DATE(YEAR($P$19),MONTH($P$19),1),Indices[[Fecha]:[Indice SIPM]],2,FALSE),IF($T$19=\"Dólar Oficial\",1/VLOOKUP(DATE(YEAR($P$19),MONTH($P$19),DAY($P$19)),Tabla5[],2),IF($T$19=\"Dólar Informal\",1/VLOOKUP(DATE(YEAR($P$19),MONTH($P$19),DAY($P$19)),Tabla3[],2))))))","v":0},null,null,{"$f":"TablaInventarios[[#This Row],[Kg./Cab. \nal Cierre]]*TablaInventarios[[#This Row],[$/Kg. \nal Cierre]]","v":0},{"$f":"TablaInventarios[[#This Row],[Cab. \nStock]]*TablaInventarios[[#This Row],[Kg./Cab. \nal Cierre]]-TablaInventarios[[#This Row],[Kg. Totales \nStock]]","v":0},{"$f":"TablaInventarios[[#This Row],[Cab. \nStock]]*TablaInventarios[[#This Row],[Kg./Cab. \nal Cierre]]*TablaInventarios[[#This Row],[$/Kg. \nal Cierre]]-TablaInventarios[[#This Row],[$ Total FP (corrientes)]]","v":0},null,{"$f":"+W14","v":"Fecha ???"},"Inventario de inicio","Terneros","Recría","AC",null,null,{"$f":"+TablaInventarios[[#This Row],[Cabezas]]","v":0},null,{"$f":"+TablaInventarios[[#This Row],[Cabezas]]*TablaInventarios[[#This Row],[Kg/Cab.]]","v":0},null,{"$f":"TablaInventarios[[#This Row],[Kg/Cab.]]*TablaInventarios[[#This Row],[$/Kg]]","v":0},{"$f":"+TablaInventarios[[#This Row],[Kg.]]*TablaInventarios[[#This Row],[$/Kg]]","v":0},{"$f":"IF(W15=\"Fecha ???\",0,TablaInventarios[[#This Row],[$ Total\n(corrientes)]]*IF(AND($S$23=TRUE,$T$19=\"Dólar Informal\"),1/VLOOKUP(TablaInventarios[[#This Row],[Fecha]],Tabla3[],2),IF(AND($S$23=TRUE,$T$19=\"Dólar Oficial\"),1/VLOOKUP(TablaInventarios[[#This Row],[Fecha]],Tabla5[],2),IF(AND($S$23=TRUE,$T$19=\"SIPM\"),VLOOKUP(DATE(YEAR(DATE(YEAR($W15),MONTH($W15),DAY($W15))-1),MONTH(DATE(YEAR($W15),MONTH($W15),DAY($W15))-1),1),Indices[[Fecha]:[Indice SIPM]],2,FALSE)))))","v":0}]
[]
["TOTAL",{"$f":"+J19","v":"*"},{"$f":"+SUMIFS(TablaInventarios[Cab. \nInicio período],TablaInventarios[[Actividad ]],B17)","v":0},{"$f":"IF(C17=0,0,E17/C17)","v":0},{"$f":"SUMIFS(TablaInventarios[Kg. Totales \nInicio período],TablaInventarios[[Actividad ]],B17)","v":0},{"$f":"IF(E17=0,0,H17/E17)","v":0},{"$f":"IF(C17=0,0,H17/C17)","v":0},{"$f":"SUMIFS(TablaInventarios[$ Total IP (corrientes)],TablaInventarios[[Actividad ]],B17)","v":0},{"$f":"SUMIFS(TablaInventarios[IP en Valores Actualizados],TablaInventarios[[Actividad ]],B17)","v":0},{"$f":"SUMIFS(TablaInventarios[Cab. \nStock],TablaInventarios[[Actividad ]],B17)","v":0},{"$f":"IF(J17=0,0,L17/J17)","v":0},{"$f":"SUMIFS(TablaInventarios[Kg. Totales \nStock],TablaInventarios[[Actividad ]],B17)","v":0},{"$f":"IF(L17=0,0,O17/L17)","v":0},{"$f":"IF(J17=0,0,O17/J17)","v":0},{"$f":"SUMIFS(TablaInventarios[$ Total FP (corrientes)],TablaInventarios[[Actividad ]],B17)","v":0},{"$f":"SUMIFS(TablaInventarios[FP en Valores Actualizados],TablaInventarios[[Actividad ]],B17)","v":0},null,null,null,{"$f":"SUMIFS(Kg._Diferencia,TablaInventarios[[Actividad ]],B17)","v":0},{"$f":"SUMIFS(TablaInventarios[$ Total Diferencia],TablaInventarios[[Actividad ]],B17)","v":0},null,"TOTAL",null,"TODAS",{"$f":"+J19","v":"*"},null,null,{"$f":"+SUMIFS(TablaInventarios[Cabezas],TablaInventarios[Actividad],$Z$17)","v":0},{"$f":"+SUMIFS(TablaInventarios[Cab.],TablaInventarios[Actividad],$Z$17)","v":0},{"$f":"IF(AD17=0,0,AF17/AD17)","v":0},{"$f":"+SUMIFS(TablaInventarios[Kg.],TablaInventarios[Actividad],$Z$17)","v":0},null,null,{"$f":"+SUMIFS(TablaInventarios[$ Total\n(corrientes)],TablaInventarios[Actividad],$Z$17)","v":0},{"$f":"+SUMIFS(TablaInventarios[Valores Actualizados],TablaInventarios[Actividad],$Z$17)","v":0}]
[null,null,null,null,null,null,null,null,null,null,null,null,null,null,null,null,null,null,null,null,null,null,"Movimientos"]
[null,null,null,null,null,null,null,"Actividad",null,"*",null,{"$f":"('SIPM (Actualización en $)'!L4-1)","v":12},null,"2023-07-01",null,"2024-06-30",null,"Ajustado por",null,"SIPM",null,null,"Fecha","Movimiento","Categoría","Actividad","Activo","Comentarios","Cabezas","Cab.","Kg/Cab.","Kg.","$/Kg","$/Cab.","Total $ corr-tes","Valores Actualizados"]
[null,null,null,null,null,null,null,null,null,null,null,null,null,null,null,null,null,null,null,null,null,null,null,null,null,{"$f":"IF(TablaMovimientos[[#This Row],[Categoría]]=0,\"\",VLOOKUP(TablaMovimientos[[#This Row],[Categoría]],TablaInventarios[[Categoría]:[Actividad]],2,FALSE))","v":""},{"$f":"IF(TablaMovimientos[[#This Row],[Categoría]]=0,\"\",VLOOKUP(TablaMovimientos[[#This Row],[Categoría]],TablaInventarios[[Categoría]:[Tipo \nde Activo]],3,FALSE))","v":""},null,null,{"$f":"IF(OR(TablaMovimientos[[#This Row],[Movimiento]]=\"Kilos Producidos\",TablaMovimientos[[#This Row],[Movimiento]]=\"Res. por Tenencia\",TablaMovimientos[[#This Row],[Movimiento]]=0),0,IF(VLOOKUP(TablaMovimientos[[#This Row],[Movimiento]],Movimientos[],2,FALSE)=\"-\",-TablaMovimientos[[#This Row],[Cabezas]],TablaMovimientos[[#This Row],[Cabezas]]))","v":0},null,{"$f":"+TablaMovimientos[[#This Row],[Cab.]]*TablaMovimientos[[#This Row],[Kg/Cab.]]","v":0},null,{"$f":"IF(TablaMovimientos[[#This Row],[Movimiento]]=\"Res. por Tenencia\",0,TablaMovimientos[[#This Row],[Kg/Cab.]]*TablaMovimientos[[#This Row],[$/Kg]])","v":0},{"$f":"+TablaMovimientos[[#This Row],[Kg.]]*TablaMovimientos[[#This Row],[$/Kg]]","v":0},{"$f":"IF(TablaMovimientos[[#This Row],[Total $ corr-tes]]=0,0,TablaMovimientos[[#This Row],[Total $ corr-tes]]*IF(AND($S$23=TRUE,$T$19=\"Dólar Informal\"),1/VLOOKUP(TablaMovimientos[[#This Row],[Fecha]],Tabla3[],2),IF(AND($S$23=TRUE,$T$19=\"Dólar Oficial\"),1/VLOOKUP(TablaMovimientos[[#This Row],[Fecha]],Tabla5[],2),IF(AND($S$23=TRUE,$T$19=\"SIPM\"),VLOOKUP(DATE(YEAR(DATE(YEAR($W20),MONTH($W20),DAY($W20))-1),MONTH(DATE(YEAR($W20),MONTH($W20),DAY($W20))-1),1),Indices[[Fecha]:[Indice SIPM]],2,FALSE)))))","v":0}]
["GUIA DE AYUDA RÁPIDA: (hacé click sobre cada uno de los pasos)",null,null,null,null,null,null,"Producción de Carne e Ingreso Ganadero\nMetodología de cálculo actual",null,null,null,null,null,"Producción de Carne e Ingreso Ganadero\nMetodología de cálculo tradicional             .",null,null,null,null,null,"Valores ajustados a"]
[]
["1- Completa el inventario de inicio (sólo las celdas grisadas)\n                Tenes que hacerlo sólo la primera vez que cargues los datos.",null,null,null,null,null,null,null,null,null,null,null,null,null,null,null,null,null,true,"2024-06-01"]
[null,null,null,null,null,null,null,null,null,"Kilos",{"$f":"IF(S23=TRUE,\"$act./Kg\",\"$corr./Kg\")","v":"$act./Kg"},"Total $ corrientes","Valores Actualiz.",null,null,"Cabezas","Kilos",{"$f":"IF(S23=TRUE,\"$act./Kg\",\"$corr./Kg\")","v":"$act./Kg"},"Total $ corrientes","Valores Actualiz."]
[null,null,null,null,null,null,null,"Kilos Producidos",null,{"$f":"+SUMPRODUCT((H25=TablaMovimientos[Movimiento])*(TablaMovimientos[Kg.])*(TablaMovimientos[Fecha]>$N$19)*(TablaMovimientos[Fecha]<=$P$19)*IF(J19=\"*\",1,(TablaMovimientos[Actividad]=$J$19)))","v":0},{"$f":"IF(J25=0,0,IF($S$23=TRUE,M25/J25,L25/J25))","v":0},{"$f":"+SUMPRODUCT((H25=TablaMovimientos[Movimiento])*(TablaMovimientos[Total $ corr-tes])*(TablaMovimientos[Fecha]>$N$19)*(TablaMovimientos[Fecha]<=$P$19)*IF(J19=\"*\",1,(TablaMovimientos[Actividad]=$J$19)))","v":0},{"$f":"IF($J$19=\"*\",SUMPRODUCT((H25=TablaMovimientos[Movimiento])*(TablaMovimientos[Valores Actualizados])*(TablaMovimientos[Fecha]>$N$19)*(TablaMovimientos[Fecha]<=$P$19)),SUMPRODUCT((H25=TablaMovimientos[Movimiento])*(TablaMovimientos[Valores Actualizados])*(TablaMovimientos[Fecha]>$N$19)*(TablaMovimientos[Fecha]<=$P$19)*(TablaMovimientos[Actividad]=$J$19)))","v":0},"Venta",null,{"$f":"SUMPRODUCT((N25=TablaMovimientos[Movimiento])*(TablaMovimientos[Cab.])*(TablaMovimientos[Fecha]>$N$19)*(TablaMovimientos[Fecha]<=$P$19)*IF(J19=\"*\",1,(TablaMovimientos[Actividad]=$J$19)))","v":0},{"$f":"-SUMPRODUCT((N25=TablaMovimientos[Movimiento])*(TablaMovimientos[Kg.])*(TablaMovimientos[Fecha]>$N$19)*(TablaMovimientos[Fecha]<=$P$19)*IF(J19=\"*\",1,(TablaMovimientos[Actividad]=$J$19)))","v":0},{"$f":"IF(Q25=0,0,IF($S$23=TRUE,T25/Q25,S25/Q25))","v":0},{"$f":"-SUMPRODUCT((N25=TablaMovimientos[Movimiento])*(TablaMovimientos[Total $ corr-tes])*(TablaMovimientos[Fecha]>$N$19)*(TablaMovimientos[Fecha]<=$P$19)*IF(J19=\"*\",1,(TablaMovimientos[Actividad]=$J$19)))","v":0},{"$f":"IF($J$19=\"*\",-SUMPRODUCT((N25=TablaMovimientos[Movimiento])*(TablaMovimientos[Valores Actualizados])*(TablaMovimientos[Fecha]>$N$19)*(TablaMovimientos[Fecha]<=$P$19)),-SUMPRODUCT((N25=TablaMovimientos[Movimiento])*(TablaMovimientos[Valores Actualizados])*(TablaMovimientos[Fecha]>$N$19)*(TablaMovimientos[Fecha]<=$P$19)*(TablaMovimientos[Actividad]=$J$19)))","v":0}]
["2- Introduci todos los MOVIMIENTOS de ALTAS y BAJAS",null,null,null,null,null,null,"Nacimiento",null,{"$f":"+SUMPRODUCT((H26=TablaMovimientos[Movimiento])*(TablaMovimientos[Kg.])*(TablaMovimientos[Fecha]>$N$19)*(TablaMovimientos[Fecha]<=$P$19)*IF(J19=\"*\",1,(TablaMovimientos[Actividad]=$J$19)))","v":0},{"$f":"IF(J26=0,0,IF($S$23=TRUE,M26/J26,L26/J26))","v":0},{"$f":"+SUMPRODUCT((H26=TablaMovimientos[Movimiento])*(TablaMovimientos[Total $ corr-tes])*(TablaMovimientos[Fecha]>$N$19)*(TablaMovimientos[Fecha]<=$P$19)*IF(J19=\"*\",1,(TablaMovimientos[Actividad]=$J$19)))","v":0},{"$f":"IF($J$19=\"*\",SUMPRODUCT((H26=TablaMovimientos[Movimiento])*(TablaMovimientos[Valores Actualizados])*(TablaMovimientos[Fecha]>$N$19)*(TablaMovimientos[Fecha]<=$P$19)),SUMPRODUCT((H26=TablaMovimientos[Movimiento])*(TablaMovimientos[Valores Actualizados])*(TablaMovimientos[Fecha]>$N$19)*(TablaMovimientos[Fecha]<=$P$19)*(TablaMovimientos[Actividad]=$J$19)))","v":0},"Traslado Salida",null,{"$f":"SUMPRODUCT((N26=TablaMovimientos[Movimiento])*(TablaMovimientos[Cab.])*(TablaMovimientos[Fecha]>$N$19)*(TablaMovimientos[Fecha]<=$P$19)*IF(J19=\"*\",1,(TablaMovimientos[Actividad]=$J$19)))","v":0},{"$f":"-SUMPRODUCT((N26=TablaMovimientos[Movimiento])*(TablaMovimientos[Kg.])*(TablaMovimientos[Fecha]>$N$19)*(TablaMovimientos[Fecha]<=$P$19)*IF(J19=\"*\",1,(TablaMovimientos[Actividad]=$J$19)))","v":0},{"$f":"IF(Q26=0,0,IF($S$23=TRUE,T26/Q26,S26/Q26))","v":0},{"$f":"-SUMPRODUCT((N26=TablaMovimientos[Movimiento])*(TablaMovimientos[Total $ corr-tes])*(TablaMovimientos[Fecha]>$N$19)*(TablaMovimientos[Fecha]<=$P$19)*IF(J19=\"*\",1,(TablaMovimientos[Actividad]=$J$19)))","v":0},{"$f":"IF($J$19=\"*\",-SUMPRODUCT((N26=TablaMovimientos[Movimiento])*(TablaMovimientos[Valores Actualizados])*(TablaMovimientos[Fecha]>$N$19)*(TablaMovimientos[Fecha]<=$P$19)),-SUMPRODUCT((N26=TablaMovimientos[Movimiento])*(TablaMovimientos[Valores Actualizados])*(TablaMovimientos[Fecha]>$N$19)*(TablaMovimientos[Fecha]<=$P$19)*(TablaMovimientos[Actividad]=$J$19)))","v":0}]
[null,null,null,null,null,null,null,"Mortandad",null,{"$f":"+SUMPRODUCT((H27=TablaMovimientos[Movimiento])*(TablaMovimientos[Kg.])*(TablaMovimientos[Fecha]>$N$19)*(TablaMovimientos[Fecha]<=$P$19)*IF(J19=\"*\",1,(TablaMovimientos[Actividad]=$J$19)))","v":0},{"$f":"IF(J27=0,0,IF($S$23=TRUE,M27/J27,L27/J27))","v":0},{"$f":"+SUMPRODUCT((H27=TablaMovimientos[Movimiento])*(TablaMovimientos[Total $ corr-tes])*(TablaMovimientos[Fecha]>$N$19)*(TablaMovimientos[Fecha]<=$P$19)*IF(J19=\"*\",1,(TablaMovimientos[Actividad]=$J$19)))","v":0},{"$f":"IF($J$19=\"*\",SUMPRODUCT((H27=TablaMovimientos[Movimiento])*(TablaMovimientos[Valores Actualizados])*(TablaMovimientos[Fecha]>$N$19)*(TablaMovimientos[Fecha]<=$P$19)),SUMPRODUCT((H27=TablaMovimientos[Movimiento])*(TablaMovimientos[Valores Actualizados])*(TablaMovimientos[Fecha]>$N$19)*(TablaMovimientos[Fecha]<=$P$19)*(TablaMovimientos[Actividad]=$J$19)))","v":0},"Consumo",null,{"$f":"SUMPRODUCT((N27=TablaMovimientos[Movimiento])*(TablaMovimientos[Cab.])*(TablaMovimientos[Fecha]>$N$19)*(TablaMovimientos[Fecha]<=$P$19)*IF(J19=\"*\",1,(TablaMovimientos[Actividad]=$J$19)))","v":0},{"$f":"-SUMPRODUCT((N27=TablaMovimientos[Movimiento])*(TablaMovimientos[Kg.])*(TablaMovimientos[Fecha]>$N$19)*(TablaMovimientos[Fecha]<=$P$19)*IF(J19=\"*\",1,(TablaMovimientos[Actividad]=$J$19)))","v":0},{"$f":"IF(Q27=0,0,IF($S$23=TRUE,T27/Q27,S27/Q27))","v":0},{"$f":"-SUMPRODUCT((N27=TablaMovimientos[Movimiento])*(TablaMovimientos[Total $ corr-tes])*(TablaMovimientos[Fecha]>$N$19)*(TablaMovimientos[Fecha]<=$P$19)*IF(J19=\"*\",1,(TablaMovimientos[Actividad]=$J$19)))","v":0},{"$f":"IF($J$19=\"*\",-SUMPRODUCT((N27=TablaMovimientos[Movimiento])*(TablaMovimientos[Valores Actualizados])*(TablaMovimientos[Fecha]>$N$19)*(TablaMovimientos[Fecha]<=$P$19)),-SUMPRODUCT((N27=TablaMovimientos[Movimiento])*(TablaMovimientos[Valores Actualizados])*(TablaMovimientos[Fecha]>$N$19)*(TablaMovimientos[Fecha]<=$P$19)*(TablaMovimientos[Actividad]=$J$19)))","v":0}]
[null,null,null,null,null,null,null,"Cambio Categoria",{"$f":"IF(J28=0,\"\",\"Revisar (debe ser 0)\")","v":""},{"$f":"SUMPRODUCT((\"Cambio Categoría (-)\"=TablaMovimientos[Movimiento])*(TablaMovimientos[Kg.])*(TablaMovimientos[Fecha]>$N$19)*(TablaMovimientos[Fecha]<=$P$19)*IF(J19=\"*\",1,(TablaMovimientos[Actividad]=$J$19)))+SUMPRODUCT((\"Cambio Categoría (+)\"=TablaMovimientos[Movimiento])*(TablaMovimientos[Kg.])*(TablaMovimientos[Fecha]>$N$19)*(TablaMovimientos[Fecha]<=$P$19)*IF(J19=\"*\",1,(TablaMovimientos[Actividad]=$J$19)))","v":0},{"$f":"IF(J40=0,0,IF($S$23=TRUE,M28/J40,L28/J40))","v":0},{"$f":"SUMPRODUCT((\"Cambio Categoría (-)\"=TablaMovimientos[Movimiento])*(TablaMovimientos[Total $ corr-tes])*(TablaMovimientos[Fecha]>$N$19)*(TablaMovimientos[Fecha]<=$P$19)*IF(J19=\"*\",1,(TablaMovimientos[Actividad]=$J$19)))+SUMPRODUCT((\"Cambio Categoría (+)\"=TablaMovimientos[Movimiento])*(TablaMovimientos[Total $ corr-tes])*(TablaMovimientos[Fecha]>$N$19)*(TablaMovimientos[Fecha]<=$P$19)*IF(J19=\"*\",1,(TablaMovimientos[Actividad]=$J$19)))","v":0},{"$f":"SUMPRODUCT((\"Cambio Categoría (-)\"=TablaMovimientos[Movimiento])*(TablaMovimientos[Valores Actualizados])*(TablaMovimientos[Fecha]>$N$19)*(TablaMovimientos[Fecha]<=$P$19)*IF(J19=\"*\",1,(TablaMovimientos[Actividad]=$J$19)))+SUMPRODUCT((\"Cambio Categoría (+)\"=TablaMovimientos[Movimiento])*(TablaMovimientos[Valores Actualizados])*(TablaMovimientos[Fecha]>$N$19)*(TablaMovimientos[Fecha]<=$P$19)*IF(J19=\"*\",1,(TablaMovimientos[Actividad]=$J$19)))","v":0},"Donación",null,{"$f":"SUMPRODUCT((N28=TablaMovimientos[Movimiento])*(TablaMovimientos[Cab.])*(TablaMovimientos[Fecha]>$N$19)*(TablaMovimientos[Fecha]<=$P$19)*IF(J19=\"*\",1,(TablaMovimientos[Actividad]=$J$19)))","v":0},{"$f":"-SUMPRODUCT((N28=TablaMovimientos[Movimiento])*(TablaMovimientos[Kg.])*(TablaMovimientos[Fecha]>$N$19)*(TablaMovimientos[Fecha]<=$P$19)*IF(J19=\"*\",1,(TablaMovimientos[Actividad]=$J$19)))","v":0},{"$f":"IF(Q28=0,0,IF($S$23=TRUE,T28/Q28,S28/Q28))","v":0},{"$f":"-SUMPRODUCT((N28=TablaMovimientos[Movimiento])*(TablaMovimientos[Total $ corr-tes])*(TablaMovimientos[Fecha]>$N$19)*(TablaMovimientos[Fecha]<=$P$19)*IF(J19=\"*\",1,(TablaMovimientos[Actividad]=$J$19)))","v":0},{"$f":"IF($J$19=\"*\",-SUMPRODUCT((N28=TablaMovimientos[Movimiento])*(TablaMovimientos[Valores Actualizados])*(TablaMovimientos[Fecha]>$N$19)*(TablaMovimientos[Fecha]<=$P$19)),-SUMPRODUCT((N28=TablaMovimientos[Movimiento])*(TablaMovimientos[Valores Actualizados])*(TablaMovimientos[Fecha]>$N$19)*(TablaMovimientos[Fecha]<=$P$19)*(TablaMovimientos[Actividad]=$J$19)))","v":0}]
["3- Cuando quieras ajustar los kilajes reales de cada categoría, registralos\n     en la Tabla de Inventario de kilos y precios actualizados (Real).",null,null,null,null,null,null,{"$f":"IF(Actividad=\"*\",\"Cesión e/actividades\",\"\")","v":"Cesión e/actividades"},{"$f":"IF(J29=\"\",\"\",IF(J29=0,\"\",\"Revisar (debe ser 0)\"))","v":""},{"$f":"IF(Actividad=\"*\",ROUND((SUMPRODUCT((\"Cesión (-)\"=TablaMovimientos[Movimiento])*(TablaMovimientos[Kg.])*(TablaMovimientos[Fecha]>$N$19)*(TablaMovimientos[Fecha]<=$P$19)*IF($J$19=\"*\",1,(TablaMovimientos[Actividad]=$J$19)))+SUMPRODUCT((\"Cesión (+)\"=TablaMovimientos[Movimiento])*(TablaMovimientos[Kg.])*(TablaMovimientos[Fecha]>$N$19)*(TablaMovimientos[Fecha]<=$P$19)*IF($J$19=\"*\",1,(TablaMovimientos[Actividad]=$J$19)))),0),\"\")","v":0},{"$f":"IF(OR(L29=\"\",M29=\"\"),\"\",IF(J40=0,0,IF($S$23=TRUE,M29/J40,L29/J40)))","v":0},{"$f":"IF(Actividad=\"*\",(SUMPRODUCT((\"Cesión (-)\"=TablaMovimientos[Movimiento])*(TablaMovimientos[Total $ corr-tes])*(TablaMovimientos[Fecha]>$N$19)*(TablaMovimientos[Fecha]<=$P$19)*IF($J$19=\"*\",1,(TablaMovimientos[Actividad]=$J$19)))+SUMPRODUCT((\"Cesión (+)\"=TablaMovimientos[Movimiento])*(TablaMovimientos[Total $ corr-tes])*(TablaMovimientos[Fecha]>$N$19)*(TablaMovimientos[Fecha]<=$P$19)*IF($J$19=\"*\",1,(TablaMovimientos[Actividad]=$J$19)))),\"\")","v":0},{"$f":"IF(Actividad=\"*\",(SUMPRODUCT((\"Cesión (-)\"=TablaMovimientos[Movimiento])*(TablaMovimientos[Valores Actualizados])*(TablaMovimientos[Fecha]>$N$19)*(TablaMovimientos[Fecha]<=$P$19)*IF($J$19=\"*\",1,(TablaMovimientos[Actividad]=$J$19)))+SUMPRODUCT((\"Cesión (+)\"=TablaMovimientos[Movimiento])*(TablaMovimientos[Valores Actualizados])*(TablaMovimientos[Fecha]>$N$19)*(TablaMovimientos[Fecha]<=$P$19)*IF($J$19=\"*\",1,(TablaMovimientos[Actividad]=$J$19)))),\"\")","v":0},{"$f":"IF(Actividad=\"*\",\"\",\"Cesión (-)\")","v":""},null,{"$f":"SUMPRODUCT((N29=TablaMovimientos[Movimiento])*(TablaMovimientos[Cab.])*(TablaMovimientos[Fecha]>$N$19)*(TablaMovimientos[Fecha]<=$P$19)*IF(J19=\"*\",1,(TablaMovimientos[Actividad]=$J$19)))","v":0},{"$f":"-SUMPRODUCT((N29=TablaMovimientos[Movimiento])*(TablaMovimientos[Kg.])*(TablaMovimientos[Fecha]>$N$19)*(TablaMovimientos[Fecha]<=$P$19)*IF(J19=\"*\",1,(TablaMovimientos[Actividad]=$J$19)))","v":0},{"$f":"IF(Q29=0,0,IF($S$23=TRUE,T29/Q29,S29/Q29))","v":0},{"$f":"-SUMPRODUCT((N29=TablaMovimientos[Movimiento])*(TablaMovimientos[Total $ corr-tes])*(TablaMovimientos[Fecha]>$N$19)*(TablaMovimientos[Fecha]<=$P$19)*IF(J19=\"*\",1,(TablaMovimientos[Actividad]=$J$19)))","v":0},{"$f":"IF($J$19=\"*\",-SUMPRODUCT((N29=TablaMovimientos[Movimiento])*(TablaMovimientos[Valores Actualizados])*(TablaMovimientos[Fecha]>$N$19)*(TablaMovimientos[Fecha]<=$P$19)),-SUMPRODUCT((N29=TablaMovimientos[Movimiento])*(TablaMovimientos[Valores Actualizados])*(TablaMovimientos[Fecha]>$N$19)*(TablaMovimientos[Fecha]<=$P$19)*(TablaMovimientos[Actividad]=$J$19)))","v":0}]
[null,null,null,null,null,null,null,null,null,null,null,null,null,"Mortandad",null,{"$f":"SUMPRODUCT((N30=TablaMovimientos[Movimiento])*(TablaMovimientos[Cab.])*(TablaMovimientos[Fecha]>$N$19)*(TablaMovimientos[Fecha]<=$P$19)*IF(J19=\"*\",1,(TablaMovimientos[Actividad]=$J$19)))","v":0},"/ / / / / / / / / /","/ / / / / / / / / /","/ / / / / / / / / / /","/ / / / / / / / / / /"]
[null,null,null,null,null,null,null,null,null,null,null,null,null,"Robo",null,{"$f":"SUMPRODUCT((N31=TablaMovimientos[Movimiento])*(TablaMovimientos[Cab.])*(TablaMovimientos[Fecha]>$N$19)*(TablaMovimientos[Fecha]<=$P$19)*IF(J19=\"*\",1,(TablaMovimientos[Actividad]=$J$19)))","v":0},{"$f":"-SUMPRODUCT((N31=TablaMovimientos[Movimiento])*(TablaMovimientos[Kg.])*(TablaMovimientos[Fecha]>$N$19)*(TablaMovimientos[Fecha]<=$P$19)*IF(J19=\"*\",1,(TablaMovimientos[Actividad]=$J$19)))","v":0},{"$f":"IF(Q31=0,0,IF($S$23=TRUE,T31/Q31,S31/Q31))","v":0},{"$f":"-SUMPRODUCT((N31=TablaMovimientos[Movimiento])*(TablaMovimientos[Total $ corr-tes])*(TablaMovimientos[Fecha]>$N$19)*(TablaMovimientos[Fecha]<=$P$19)*IF(J19=\"*\",1,(TablaMovimientos[Actividad]=$J$19)))","v":0},{"$f":"IF($J$19=\"*\",-SUMPRODUCT((N31=TablaMovimientos[Movimiento])*(TablaMovimientos[Valores Actualizados])*(TablaMovimientos[Fecha]>$N$19)*(TablaMovimientos[Fecha]<=$P$19)),-SUMPRODUCT((N31=TablaMovimientos[Movimiento])*(TablaMovimientos[Valores Actualizados])*(TablaMovimientos[Fecha]>$N$19)*(TablaMovimientos[Fecha]<=$P$19)*(TablaMovimientos[Actividad]=$J$19)))","v":0}]
[null,null,null,null,null,null,null,null,null,null,null,null,null,"Error de recuento (-)",null,{"$f":"SUMPRODUCT((N32=TablaMovimientos[Movimiento])*(TablaMovimientos[Cab.])*(TablaMovimientos[Fecha]>$N$19)*(TablaMovimientos[Fecha]<=$P$19)*IF(J19=\"*\",1,(TablaMovimientos[Actividad]=$J$19)))","v":0},{"$f":"-SUMPRODUCT((N32=TablaMovimientos[Movimiento])*(TablaMovimientos[Kg.])*(TablaMovimientos[Fecha]>$N$19)*(TablaMovimientos[Fecha]<=$P$19)*IF(J19=\"*\",1,(TablaMovimientos[Actividad]=$J$19)))","v":0},{"$f":"IF(Q32=0,0,IF($S$23=TRUE,T32/Q32,S32/Q32))","v":0},{"$f":"-SUMPRODUCT((N32=TablaMovimientos[Movimiento])*(TablaMovimientos[Total $ corr-tes])*(TablaMovimientos[Fecha]>$N$19)*(TablaMovimientos[Fecha]<=$P$19)*IF(J19=\"*\",1,(TablaMovimientos[Actividad]=$J$19)))","v":0},{"$f":"IF($J$19=\"*\",-SUMPRODUCT((N32=TablaMovimientos[Movimiento])*(TablaMovimientos[Valores Actualizados])*(TablaMovimientos[Fecha]>$N$19)*(TablaMovimientos[Fecha]<=$P$19)),-SUMPRODUCT((N32=TablaMovimientos[Movimiento])*(TablaMovimientos[Valores Actualizados])*(TablaMovimientos[Fecha]>$N$19)*(TablaMovimientos[Fecha]<=$P$19)*(TablaMovimientos[Actividad]=$J$19)))","v":0}]
["4- Inmediatamente, registra los precios/kilo reales (actualizados) de cada\n     categoría en misma Tabla.",null,null,null,null,null,null,null,null,null,null,null,null,"Compra",null,{"$f":"SUMPRODUCT((N33=TablaMovimientos[Movimiento])*(TablaMovimientos[Cab.])*(TablaMovimientos[Fecha]>$N$19)*(TablaMovimientos[Fecha]<=$P$19)*IF(J19=\"*\",1,(TablaMovimientos[Actividad]=$J$19)))","v":0},{"$f":"-SUMPRODUCT((N33=TablaMovimientos[Movimiento])*(TablaMovimientos[Kg.])*(TablaMovimientos[Fecha]>$N$19)*(TablaMovimientos[Fecha]<=$P$19)*IF(J19=\"*\",1,(TablaMovimientos[Actividad]=$J$19)))","v":0},{"$f":"IF(Q33=0,0,IF($S$23=TRUE,T33/Q33,S33/Q33))","v":0},{"$f":"-SUMPRODUCT((N33=TablaMovimientos[Movimiento])*(TablaMovimientos[Total $ corr-tes])*(TablaMovimientos[Fecha]>$N$19)*(TablaMovimientos[Fecha]<=$P$19)*IF(J19=\"*\",1,(TablaMovimientos[Actividad]=$J$19)))","v":0},{"$f":"IF($J$19=\"*\",-SUMPRODUCT((N33=TablaMovimientos[Movimiento])*(TablaMovimientos[Valores Actualizados])*(TablaMovimientos[Fecha]>$N$19)*(TablaMovimientos[Fecha]<=$P$19)),-SUMPRODUCT((N33=TablaMovimientos[Movimiento])*(TablaMovimientos[Valores Actualizados])*(TablaMovimientos[Fecha]>$N$19)*(TablaMovimientos[Fecha]<=$P$19)*(TablaMovimientos[Actividad]=$J$19)))","v":0}]
[null,null,null,null,null,null,null,null,null,null,null,null,null,"Traslado Entrada",null,{"$f":"SUMPRODUCT((N34=TablaMovimientos[Movimiento])*(TablaMovimientos[Cab.])*(TablaMovimientos[Fecha]>$N$19)*(TablaMovimientos[Fecha]<=$P$19)*IF(J19=\"*\",1,(TablaMovimientos[Actividad]=$J$19)))","v":0},{"$f":"-SUMPRODUCT((N34=TablaMovimientos[Movimiento])*(TablaMovimientos[Kg.])*(TablaMovimientos[Fecha]>$N$19)*(TablaMovimientos[Fecha]<=$P$19)*IF(J19=\"*\",1,(TablaMovimientos[Actividad]=$J$19)))","v":0},{"$f":"IF(Q34=0,0,IF($S$23=TRUE,T34/Q34,S34/Q34))","v":0},{"$f":"-SUMPRODUCT((N34=TablaMovimientos[Movimiento])*(TablaMovimientos[Total $ corr-tes])*(TablaMovimientos[Fecha]>$N$19)*(TablaMovimientos[Fecha]<=$P$19)*IF(J19=\"*\",1,(TablaMovimientos[Actividad]=$J$19)))","v":0},{"$f":"IF($J$19=\"*\",-SUMPRODUCT((N34=TablaMovimientos[Movimiento])*(TablaMovimientos[Valores Actualizados])*(TablaMovimientos[Fecha]>$N$19)*(TablaMovimientos[Fecha]<=$P$19)),-SUMPRODUCT((N34=TablaMovimientos[Movimiento])*(TablaMovimientos[Valores Actualizados])*(TablaMovimientos[Fecha]>$N$19)*(TablaMovimientos[Fecha]<=$P$19)*(TablaMovimientos[Actividad]=$J$19)))","v":0}]
[null,null,null,null,null,null,null,null,null,null,null,null,null,{"$f":"IF(Actividad=\"*\",\"\",\"Cesión (+)\")","v":""},null,{"$f":"SUMPRODUCT((N35=TablaMovimientos[Movimiento])*(TablaMovimientos[Cab.])*(TablaMovimientos[Fecha]>$N$19)*(TablaMovimientos[Fecha]<=$P$19)*IF(J19=\"*\",1,(TablaMovimientos[Actividad]=$J$19)))","v":0},{"$f":"-SUMPRODUCT((N35=TablaMovimientos[Movimiento])*(TablaMovimientos[Kg.])*(TablaMovimientos[Fecha]>$N$19)*(TablaMovimientos[Fecha]<=$P$19)*IF(J19=\"*\",1,(TablaMovimientos[Actividad]=$J$19)))","v":0},{"$f":"IF(Q35=0,0,IF($S$23=TRUE,T35/Q35,S35/Q35))","v":0},{"$f":"-SUMPRODUCT((N35=TablaMovimientos[Movimiento])*(TablaMovimientos[Total $ corr-tes])*(TablaMovimientos[Fecha]>$N$19)*(TablaMovimientos[Fecha]<=$P$19)*IF(J19=\"*\",1,(TablaMovimientos[Actividad]=$J$19)))","v":0},{"$f":"IF($J$19=\"*\",-SUMPRODUCT((N35=TablaMovimientos[Movimiento])*(TablaMovimientos[Valores Actualizados])*(TablaMovimientos[Fecha]>$N$19)*(TablaMovimientos[Fecha]<=$P$19)),-SUMPRODUCT((N35=TablaMovimientos[Movimiento])*(TablaMovimientos[Valores Actualizados])*(TablaMovimientos[Fecha]>$N$19)*(TablaMovimientos[Fecha]<=$P$19)*(TablaMovimientos[Actividad]=$J$19)))","v":0}]
["5- Ajusta la diferencia de kilos (Real-Contable)/ KILOS PRODUCIDOS\n                Al finalizar agrega la fecha de ajuste",null,null,null,null,null,{"$f":"+IF(T17=0,\"Ajuste Kilos Producidos REALIZADO\",\"Ajuste Kilos Producidos PENDIENTE\")","v":"Ajuste Kilos Producidos REALIZADO"},null,null,null,null,null,null,"Nacimiento",null,{"$f":"SUMPRODUCT((N36=TablaMovimientos[Movimiento])*(TablaMovimientos[Cab.])*(TablaMovimientos[Fecha]>$N$19)*(TablaMovimientos[Fecha]<=$P$19)*IF(J19=\"*\",1,(TablaMovimientos[Actividad]=$J$19)))","v":0},"/ / / / / / / / / /","/ / / / / / / / / /","/ / / / / / / / / / /","/ / / / / / / / / / /"]
[null,null,null,null,null,null,null,null,null,null,null,null,null,"Error de recuento (+)",null,{"$f":"SUMPRODUCT((N37=TablaMovimientos[Movimiento])*(TablaMovimientos[Cab.])*(TablaMovimientos[Fecha]>$N$19)*(TablaMovimientos[Fecha]<=$P$19)*IF(J19=\"*\",1,(TablaMovimientos[Actividad]=$J$19)))","v":0},{"$f":"-SUMPRODUCT((N37=TablaMovimientos[Movimiento])*(TablaMovimientos[Kg.])*(TablaMovimientos[Fecha]>$N$19)*(TablaMovimientos[Fecha]<=$P$19)*IF(J19=\"*\",1,(TablaMovimientos[Actividad]=$J$19)))","v":0},{"$f":"IF(Q37=0,0,IF($S$23=TRUE,T37/Q37,S37/Q37))","v":0},{"$f":"-SUMPRODUCT((N37=TablaMovimientos[Movimiento])*(TablaMovimientos[Total $ corr-tes])*(TablaMovimientos[Fecha]>$N$19)*(TablaMovimientos[Fecha]<=$P$19)*IF(J19=\"*\",1,(TablaMovimientos[Actividad]=$J$19)))","v":0},{"$f":"IF($J$19=\"*\",-SUMPRODUCT((N37=TablaMovimientos[Movimiento])*(TablaMovimientos[Valores Actualizados])*(TablaMovimientos[Fecha]>$N$19)*(TablaMovimientos[Fecha]<=$P$19)),-SUMPRODUCT((N37=TablaMovimientos[Movimiento])*(TablaMovimientos[Valores Actualizados])*(TablaMovimientos[Fecha]>$N$19)*(TablaMovimientos[Fecha]<=$P$19)*(TablaMovimientos[Actividad]=$J$19)))","v":0}]
[null,null,null,null,null,null,null,null,null,null,null,null,null,"Inventario Final ",null,{"$f":"-J17","v":0},{"$f":"L17","v":0},{"$f":"IF(Q38=0,0,IF($S$23=TRUE,T38/Q38,S38/Q38))","v":0},{"$f":"O17","v":0},{"$f":"+P17","v":0}]
["6.- Ajusta la diferencia de valuación (Real-Contable) / TENENCIA\n                Al finalizar agregua la fecha de ajuste",null,null,null,null,null,{"$f":"+IF(U17=0,\"Ajuste por Tenencia REALIZADO\",\"Ajuste por Tenencia PENDIENTE\")","v":"Ajuste por Tenencia REALIZADO"},null,null,null,null,null,null,"Inventario Inicial",null,{"$f":"+C17","v":0},{"$f":"-E17","v":0},{"$f":"IF(Q39=0,0,IF($S$23=TRUE,T39/Q39,S39/Q39))","v":0},{"$f":"-SUMPRODUCT((TablaInventarios[Cab. \nInicio período])*(TablaInventarios[Kg/Cab. \nInicio período])*(TablaInventarios[$/Kg. \nStock])*IF(J19=\"*\",1,TablaInventarios[[Actividad ]]=J19))","v":0},{"$f":"VLOOKUP(DATE(YEAR(P19),MONTH(P19),1),Indices[],2,FALSE)*S39","v":0}]
[null,null,null,null,null,null,null,"Ingreso",null,{"$f":"+SUM(J25:J29)","v":0},{"$f":"IF(J40=0,0,IF($S$23=TRUE,M40/J40,L40/J40))","v":0},{"$f":"+SUM(L25:L29)","v":0},{"$f":"+SUM(M25:M29)","v":0},"Ingreso",null,{"$f":"IF(SUM(P25:P39)=0,\"Cab. OK!\",\"Revisar !!\")","v":"Cab. OK!"},{"$f":"+SUM(Q25:Q39)","v":0},{"$f":"IF(Q40=0,0,IF($S$23=TRUE,T40/Q40,S40/Q40))","v":0},{"$f":"+SUM(S25:S39)","v":0},{"$f":"+SUM(T25:T39)","v":0}]
[null,null,null,null,null,null,null,"Res. por Tenencia (AC)",null,null,{"$f":"IF(J44=0,0,IF($S$23=TRUE,M41/J44,L41/J44))","v":0},{"$f":"SUMPRODUCT((\"Res. por Tenencia\"=TablaMovimientos[Movimiento])*(\"AC\"=TablaMovimientos[Activo])*(TablaMovimientos[Total $ corr-tes])*(TablaMovimientos[Fecha]>$N$19)*(TablaMovimientos[Fecha]<=$P$19)*IF($J$19=\"*\",1,(TablaMovimientos[Actividad]=$J$19)))","v":0},{"$f":"+SUMPRODUCT((\"Res. por Tenencia\"=TablaMovimientos[Movimiento])*(\"AC\"=TablaMovimientos[Activo])*(TablaMovimientos[Valores Actualizados])*(TablaMovimientos[Fecha]>$N$19)*(TablaMovimientos[Fecha]<=$P$19)*IF($J$19=\"*\",1,(TablaMovimientos[Actividad]=$J$19)))","v":0},"Res. por Tenencia",null,null,null,{"$f":"IF(Q44=0,0,IF($S$23=TRUE,T41/Q44,S41/Q44))","v":0},{"$f":"SUMPRODUCT((TablaInventarios[Cab. \nInicio período])*(TablaInventarios[Kg/Cab. \nInicio período])*(TablaInventarios[$/Kg. \nStock])*IF(J19=\"*\",1,TablaInventarios[[Actividad ]]=J19))-H17","v":0},{"$f":"IF($N$19=0,0,IF(Actividad=\"*\",(SUMPRODUCT((TablaInventarios[Kg. Totales \nInicio período])*(TablaInventarios[$/Kg. \nStock]))*IF($S$23=FALSE,0,IF($T$19=\"SIPM\",VLOOKUP(DATE(YEAR($P$19),MONTH($P$19),1),Indices[[Fecha]:[Indice SIPM]],2,FALSE),IF($T$19=\"Dólar Oficial\",1/VLOOKUP(DATE(YEAR($P$19),MONTH($P$19),DAY($P$19)),Tabla5[],2),IF($T$19=\"Dólar Informal\",1/VLOOKUP(DATE(YEAR($P$19),MONTH($P$19),DAY($P$19)),Tabla3[],2)))))-I17),(SUMPRODUCT((TablaInventarios[Kg. Totales \nInicio período])*(TablaInventarios[$/Kg. \nStock])*(TablaInventarios[[Actividad ]]=Actividad)))*IF($S$23=FALSE,0,IF($T$19=\"SIPM\",VLOOKUP(DATE(YEAR($P$19),MONTH($P$19),1),Indices[[Fecha]:[Indice SIPM]],2,FALSE),IF($T$19=\"Dólar Oficial\",1/VLOOKUP(DATE(YEAR($P$19),MONTH($P$19),DAY($P$19)),Tabla5[],2),IF($T$19=\"Dólar Informal\",1/VLOOKUP(DATE(YEAR($P$19),MONTH($P$19),DAY($P$19)),Tabla3[],2)))))-SUMPRODUCT((TablaInventarios[IP en Valores Actualizados])*(TablaInventarios[[Actividad ]]=Actividad))))","v":0}]
[null,null,null,null,null,null,null,"Res. por Tenencia (ANC)",null,null,{"$f":"IF(J44=0,0,IF($S$23=TRUE,M42/J44,L42/J44))","v":0},{"$f":"SUMPRODUCT((\"Res. por Tenencia\"=TablaMovimientos[Movimiento])*(\"ANC\"=TablaMovimientos[Activo])*(TablaMovimientos[Total $ corr-tes])*(TablaMovimientos[Fecha]>$N$19)*(TablaMovimientos[Fecha]<=$P$19)*IF($J$19=\"*\",1,(TablaMovimientos[Actividad]=$J$19)))","v":0},{"$f":"+SUMPRODUCT((\"Res. por Tenencia\"=TablaMovimientos[Movimiento])*(\"ANC\"=TablaMovimientos[Activo])*(TablaMovimientos[Valores Actualizados])*(TablaMovimientos[Fecha]>$N$19)*(TablaMovimientos[Fecha]<=$P$19)*IF($J$19=\"*\",1,(TablaMovimientos[Actividad]=$J$19)))","v":0}]
[null,null,null,null,null,null,null,"Ajuste por exposición inflación",null,null,{"$f":"IF(J44=0,0,IF($S$23=TRUE,M43/J44,\"\"))","v":0},null,{"$f":"+SUM(T25:T38)-H17*VLOOKUP(DATE(YEAR(DATE(YEAR($N19),MONTH($N19),DAY($N19))-1),MONTH(DATE(YEAR($N19),MONTH($N19),DAY($N19))-1),1),Indices[[Fecha]:[Coef. SIPM]],2,FALSE)-SUM('Planilla de datos'!M40:M42)","v":0}]
[null,null,null,null,null,null,null,"Ingreso con Tenencia",null,{"$f":"+SUM(J40:J41)","v":0},{"$f":"IF(J44=0,0,IF($S$23=TRUE,M44/J44,L44/J44))","v":0},{"$f":"+SUM(L40:L43)","v":0},{"$f":"+SUM(M40:M43)","v":0},"Ingreso con Tenencia",null,null,{"$f":"+SUM(Q40:Q41)","v":0},{"$f":"IF(Q44=0,0,IF($S$23=TRUE,T44/Q44,S44/Q44))","v":0},{"$f":"+SUM(S40:S43)","v":0},{"$f":"+T40+T41","v":0}]
[]
[null,null,null,null,null,null,null,null,"Stock Promedio",null,{"$f":"IF(J19=\"*\",'SIPM (Actualización en $)'!K4,HLOOKUP(J19,'SIPM (Actualización en $)'!D3:K4,2,FALSE))","v":0},"Cabezas adultas"]
[null,null,null,null,null,null,null,null,"Producción / cab. adulta",null,{"$f":"IF(K46=0,\"\",J44/K46)","v":""},"Kg./cabeza adulta"]
[null,null,null,null,null,null,{"$f":"IF(N19=0,0,SUMPRODUCT((TablaMovimientos[Fecha]=P19)*(TablaMovimientos[Movimiento]=H25))=ROWS(TablaInventarios[Categoria]))","v":false},{"$f":"IF(N19=0,\"\",IF(SUMPRODUCT((TablaMovimientos[Fecha]=P19)*(TablaMovimientos[Movimiento]=H25))=ROWS(TablaInventarios[Categoria])=TRUE,\"Existe ajuste de kilos producidos en todas las categorías, a la fecha de cierre del período analizado.\",\"ATENCION: NO EXISTE AJUSTE DE KILOS PRODUCIDOS EN TODAS LAS CATEGORÍAS, A LA FECHA DE CIERRE DEL PERÍODO ANALIZADO. LA PRODUCCION PUEDE NO ESTAR INCLUYENDOLOS\"))","v":"ATENCION: NO EXISTE AJUSTE DE KILOS PRODUCIDOS EN TODAS LAS CATEGORÍAS, A LA FECHA DE CIERRE DEL PERÍODO ANALIZADO. LA PRODUCCION PUEDE NO ESTAR INCLUYENDOLOS"}]
[null,null,null,null,null,null,{"$f":"IF(N19=0,0,SUMPRODUCT((TablaMovimientos[Fecha]=P19)*(TablaMovimientos[Movimiento]=\"Res. por Tenencia\"))=ROWS(TablaInventarios[Categoria]))","v":false},{"$f":"(IF(N19=0,\"\",IF(SUMPRODUCT((TablaMovimientos[Fecha]=P19)*(TablaMovimientos[Movimiento]=\"Res. por Tenencia\"))=ROWS(TablaInventarios[Categoria])=TRUE,\"Existe ajuste por tenencia en todas las categorías, a la fecha de cierre del período analizado.\",\"ATENCION: NO EXISTE AJUSTE POR TENENCIA EN TODAS LAS CATEGORÍAS, A LA FECHA DE CIERRE DEL PERÍODO ANALIZADO. EL INGRESO PUEDE NO ESTAR INCLUYENDOLO\")))","v":"ATENCION: NO EXISTE AJUSTE POR TENENCIA EN TODAS LAS CATEGORÍAS, A LA FECHA DE CIERRE DEL PERÍODO ANALIZADO. EL INGRESO PUEDE NO ESTAR INCLUYENDOLO"}]
[]
[]
[]
[]
[]
[]
[]
[]
[]
[]
[]
[]
[]
[]
[]
[]
[]
[]
[]
[]
[]
[]
[]
[]
[]
[]
[]
[]
[]
[]
[]
[]
[]
[]
[]
[]
[]
[]
[]
[]
[]
[]
[]
[]
[]
[]
[]
[]
[]
[]
[]
[]
[]
[]
[]
[]
[]
[]
[]
[]
[]
[]
[]
[]
[]
[]
[]
[]
[]
[]
[]
[]
[]
[]
[]
[]
[null,null,null,null,null,null,null,null,null,null,null,null,null,null,null,null,null,null,null,null,null,null,null,null,null,null,null,null,null,null,null,null,null,null,null,null,null,{"$f":"-#REF!/SUM(#REF!)","v":{"$error":"#REF!"}}]

{"sheet":"Criterios de validación","index":3,"n_rows":18,"n_cols":7,"rows_kept":18,"cut":false,"hidden":false,"merged":[]}
["MOVIMIENTOS","Alta / Baja",null,"ACTIVIDADES","# Act.",null,"Tipo de Activo"]
["Venta","-",null,"Cría",1,null,"AC"]
["Traslado Salida","-",null,"Recría",{"$f":"1+E2","v":2},null,"ANC"]
["Consumo","-",null,"Invernada",3]
["Donación","-",null,"Feed-lot",4]
["Cesión (-)","-",null,"Cabaña",5]
["Cambio Categoría (-)","-",null,"Tambo",{"$f":"1+E6","v":6}]
["Robo","-",null,"Guachera",{"$f":"1+E7","v":7}]
["Mortandad","-"]
["Error de recuento (-)","-"]
["Compra","+"]
["Traslado Entrada","+"]
["Cesión (+)","+"]
["Cambio Categoría (+)","+"]
["Nacimiento","+"]
["Error de recuento (+)","+"]
["Kilos Producidos"]
["Res. por Tenencia"]

{"sheet":"SIPM (Actualización en $)","index":4,"n_rows":87,"n_cols":13,"rows_kept":87,"cut":false,"hidden":false,"merged":[]}
["SIPM - Fuente: https://www.indec.gob.ar/ftp/cuadros/economia/series_sipm_dic2015.xls "]
[]
[null,null,null,{"$f":"+D5","v":"Cría"},{"$f":"+E5","v":"Recría"},"Invernada","Feed-lot","Cabaña","Tambo","Guachera","*"]
["Período analizado",{"$f":"'Planilla de datos'!N19","v":"2023-07-01"},{"$f":"'Planilla de datos'!P19","v":"2024-06-30"},{"$f":"IF($L$4=0,0,SUMPRODUCT(Indices[Cría],Indices[Meses activos])/$L$4)","v":0},{"$f":"IF($L$4=0,0,SUMPRODUCT(Indices[Recría],Indices[Meses activos])/$L$4)","v":0},{"$f":"IF($L$4=0,0,SUMPRODUCT(Indices[Invernada],Indices[Meses activos])/$L$4)","v":0},{"$f":"IF($L$4=0,0,SUMPRODUCT(Indices[Feed-lot],Indices[Meses activos])/$L$4)","v":0},{"$f":"IF($L$4=0,0,SUMPRODUCT(Indices[Cabaña],Indices[Meses activos])/$L$4)","v":0},{"$f":"IF($L$4=0,0,SUMPRODUCT(Indices[Tambo],Indices[Meses activos])/$L$4)","v":0},{"$f":"IF($L$4=0,0,SUMPRODUCT(Indices[Guachera],Indices[Meses activos])/$L$4)","v":0},{"$f":"+SUM(D4:J4)","v":0},{"$f":"+SUM(Indices[Meses activos])","v":13}]
["Fecha","Coef. SIPM","Indice SIPM","Cría","Recría","Invernada","Feed-lot","Cabaña","Tambo","Guachera","*","Meses activos"]
["2021-06-01",{"$f":"IF(C6=0,\"\",VLOOKUP('Planilla de datos'!$T$23,'SIPM (Actualización en $)'!$A$6:$C$42,3,FALSE)/C6)","v":""},null,{"$f":"IF(Indices[[#This Row],[Meses activos]]=0,0,(SUMPRODUCT((TablaInventarios[Cab.])*(TablaInventarios[Actividad]=Indices[[#Headers],[Cría]]))+SUMPRODUCT((TablaMovimientos[Cab.])*(TablaMovimientos[Fecha]<=Indices[[#This Row],[Fecha]])*(TablaMovimientos[Actividad]=Indices[[#Headers],[Cría]])))-(SUMPRODUCT((TablaInventarios[Cab.])*(TablaInventarios[Actividad]=Indices[[#Headers],[Cría]])*(TablaInventarios[Categoría]=\"Terneros al pie\"))+SUMPRODUCT((TablaMovimientos[Cab.])*(TablaMovimientos[Fecha]<=Indices[[#This Row],[Fecha]])*(TablaMovimientos[Actividad]=Indices[[#Headers],[Cría]])*(TablaMovimientos[Categoría]=\"Terneros al pie\"))))","v":0},{"$f":"IF(Indices[[#This Row],[Meses activos]]=0,0,(SUMPRODUCT((TablaInventarios[Cab.])*(TablaInventarios[Actividad]=Indices[[#Headers],[Recría]]))+SUMPRODUCT((TablaMovimientos[Cab.])*(TablaMovimientos[Fecha]<=Indices[[#This Row],[Fecha]])*(TablaMovimientos[Actividad]=Indices[[#Headers],[Recría]])))-(SUMPRODUCT((TablaInventarios[Cab.])*(TablaInventarios[Actividad]=Indices[[#Headers],[Recría]])*(TablaInventarios[Categoría]=\"Terneros al pie\"))+SUMPRODUCT((TablaMovimientos[Cab.])*(TablaMovimientos[Fecha]<=Indices[[#This Row],[Fecha]])*(TablaMovimientos[Actividad]=Indices[[#Headers],[Recría]])*(TablaMovimientos[Categoría]=\"Terneros al pie\"))))","v":0},{"$f":"IF(Indices[[#This Row],[Meses activos]]=0,0,(SUMPRODUCT((TablaInventarios[Cab.])*(TablaInventarios[Actividad]=Indices[[#Headers],[Invernada]]))+SUMPRODUCT((TablaMovimientos[Cab.])*(TablaMovimientos[Fecha]<=Indices[[#This Row],[Fecha]])*(TablaMovimientos[Actividad]=Indices[[#Headers],[Invernada]])))-(SUMPRODUCT((TablaInventarios[Cab.])*(TablaInventarios[Actividad]=Indices[[#Headers],[Invernada]])*(TablaInventarios[Categoría]=\"Terneros al pie\"))+SUMPRODUCT((TablaMovimientos[Cab.])*(TablaMovimientos[Fecha]<=Indices[[#This Row],[Fecha]])*(TablaMovimientos[Actividad]=Indices[[#Headers],[Invernada]])*(TablaMovimientos[Categoría]=\"Terneros al pie\"))))","v":0},{"$f":"IF(Indices[[#This Row],[Meses activos]]=0,0,(SUMPRODUCT((TablaInventarios[Cab.])*(TablaInventarios[Actividad]=Indices[[#Headers],[Feed-lot]]))+SUMPRODUCT((TablaMovimientos[Cab.])*(TablaMovimientos[Fecha]<=Indices[[#This Row],[Fecha]])*(TablaMovimientos[Actividad]=Indices[[#Headers],[Feed-lot]])))-(SUMPRODUCT((TablaInventarios[Cab.])*(TablaInventarios[Actividad]=Indices[[#Headers],[Feed-lot]])*(TablaInventarios[Categoría]=\"Terneros al pie\"))+SUMPRODUCT((TablaMovimientos[Cab.])*(TablaMovimientos[Fecha]<=Indices[[#This Row],[Fecha]])*(TablaMovimientos[Actividad]=Indices[[#Headers],[Feed-lot]])*(TablaMovimientos[Categoría]=\"Terneros al pie\"))))","v":0},{"$f":"IF(Indices[[#This Row],[Meses activos]]=0,0,(SUMPRODUCT((TablaInventarios[Cab.])*(TablaInventarios[Actividad]=Indices[[#Headers],[Cabaña]]))+SUMPRODUCT((TablaMovimientos[Cab.])*(TablaMovimientos[Fecha]<=Indices[[#This Row],[Fecha]])*(TablaMovimientos[Actividad]=Indices[[#Headers],[Cabaña]])))-(SUMPRODUCT((TablaInventarios[Cab.])*(TablaInventarios[Actividad]=Indices[[#Headers],[Cabaña]])*(TablaInventarios[Categoría]=\"Terneros al pie\"))+SUMPRODUCT((TablaMovimientos[Cab.])*(TablaMovimientos[Fecha]<=Indices[[#This Row],[Fecha]])*(TablaMovimientos[Actividad]=Indices[[#Headers],[Cabaña]])*(TablaMovimientos[Categoría]=\"Terneros al pie\"))))","v":0},{"$f":"IF(Indices[[#This Row],[Meses activos]]=0,0,(SUMPRODUCT((TablaInventarios[Cab.])*(TablaInventarios[Actividad]=Indices[[#Headers],[Tambo]]))+SUMPRODUCT((TablaMovimientos[Cab.])*(TablaMovimientos[Fecha]<=Indices[[#This Row],[Fecha]])*(TablaMovimientos[Actividad]=Indices[[#Headers],[Tambo]])))-(SUMPRODUCT((TablaInventarios[Cab.])*(TablaInventarios[Actividad]=Indices[[#Headers],[Tambo]])*(TablaInventarios[Categoría]=\"Terneros al pie\"))+SUMPRODUCT((TablaMovimientos[Cab.])*(TablaMovimientos[Fecha]<=Indices[[#This Row],[Fecha]])*(TablaMovimientos[Actividad]=Indices[[#Headers],[Tambo]])*(TablaMovimientos[Categoría]=\"Terneros al pie\"))))","v":0},{"$f":"IF(Indices[[#This Row],[Meses activos]]=0,0,(SUMPRODUCT((TablaInventarios[Cab.])*(TablaInventarios[Actividad]=Indices[[#Headers],[Guachera]]))+SUMPRODUCT((TablaMovimientos[Cab.])*(TablaMovimientos[Fecha]<=Indices[[#This Row],[Fecha]])*(TablaMovimientos[Actividad]=Indices[[#Headers],[Guachera]])))-(SUMPRODUCT((TablaInventarios[Cab.])*(TablaInventarios[Actividad]=Indices[[#Headers],[Guachera]])*(TablaInventarios[Categoría]=\"Terneros al pie\"))+SUMPRODUCT((TablaMovimientos[Cab.])*(TablaMovimientos[Fecha]<=Indices[[#This Row],[Fecha]])*(TablaMovimientos[Actividad]=Indices[[#Headers],[Guachera]])*(TablaMovimientos[Categoría]=\"Terneros al pie\"))))","v":0},{"$f":"+SUM(Indices[[#This Row],[Cría]:[Guachera]])","v":0},{"$f":"IF(DATE(YEAR(Indices[[#This Row],[Fecha]]),MONTH(Indices[[#This Row],[Fecha]]),1)>=DATE(YEAR('Planilla de datos'!$N$19-1),MONTH('Planilla de datos'!$N$19-1),1),1,0)*IF(DATE(YEAR(Indices[[#This Row],[Fecha]]),MONTH(Indices[[#This Row],[Fecha]]),1)<='Planilla de datos'!$P$19,1,0)","v":0}]
["2021-07-01",{"$f":"IF(C7=0,\"\",VLOOKUP('Planilla de datos'!$T$23,'SIPM (Actualización en $)'!$A$6:$C$42,3,FALSE)/C7)","v":""},null,{"$f":"IF(Indices[[#This Row],[Meses activos]]=0,0,(SUMPRODUCT((TablaInventarios[Cab.])*(TablaInventarios[Actividad]=Indices[[#Headers],[Cría]]))+SUMPRODUCT((TablaMovimientos[Cab.])*(TablaMovimientos[Fecha]<=Indices[[#This Row],[Fecha]])*(TablaMovimientos[Actividad]=Indices[[#Headers],[Cría]])))-(SUMPRODUCT((TablaInventarios[Cab.])*(TablaInventarios[Actividad]=Indices[[#Headers],[Cría]])*(TablaInventarios[Categoría]=\"Terneros al pie\"))+SUMPRODUCT((TablaMovimientos[Cab.])*(TablaMovimientos[Fecha]<=Indices[[#This Row],[Fecha]])*(TablaMovimientos[Actividad]=Indices[[#Headers],[Cría]])*(TablaMovimientos[Categoría]=\"Terneros al pie\"))))","v":0},{"$f":"IF(Indices[[#This Row],[Meses activos]]=0,0,(SUMPRODUCT((TablaInventarios[Cab.])*(TablaInventarios[Actividad]=Indices[[#Headers],[Recría]]))+SUMPRODUCT((TablaMovimientos[Cab.])*(TablaMovimientos[Fecha]<=Indices[[#This Row],[Fecha]])*(TablaMovimientos[Actividad]=Indices[[#Headers],[Recría]])))-(SUMPRODUCT((TablaInventarios[Cab.])*(TablaInventarios[Actividad]=Indices[[#Headers],[Recría]])*(TablaInventarios[Categoría]=\"Terneros al pie\"))+SUMPRODUCT((TablaMovimientos[Cab.])*(TablaMovimientos[Fecha]<=Indices[[#This Row],[Fecha]])*(TablaMovimientos[Actividad]=Indices[[#Headers],[Recría]])*(TablaMovimientos[Categoría]=\"Terneros al pie\"))))","v":0},{"$f":"IF(Indices[[#This Row],[Meses activos]]=0,0,(SUMPRODUCT((TablaInventarios[Cab.])*(TablaInventarios[Actividad]=Indices[[#Headers],[Invernada]]))+SUMPRODUCT((TablaMovimientos[Cab.])*(TablaMovimientos[Fecha]<=Indices[[#This Row],[Fecha]])*(TablaMovimientos[Actividad]=Indices[[#Headers],[Invernada]])))-(SUMPRODUCT((TablaInventarios[Cab.])*(TablaInventarios[Actividad]=Indices[[#Headers],[Invernada]])*(TablaInventarios[Categoría]=\"Terneros al pie\"))+SUMPRODUCT((TablaMovimientos[Cab.])*(TablaMovimientos[Fecha]<=Indices[[#This Row],[Fecha]])*(TablaMovimientos[Actividad]=Indices[[#Headers],[Invernada]])*(TablaMovimientos[Categoría]=\"Terneros al pie\"))))","v":0},{"$f":"IF(Indices[[#This Row],[Meses activos]]=0,0,(SUMPRODUCT((TablaInventarios[Cab.])*(TablaInventarios[Actividad]=Indices[[#Headers],[Feed-lot]]))+SUMPRODUCT((TablaMovimientos[Cab.])*(TablaMovimientos[Fecha]<=Indices[[#This Row],[Fecha]])*(TablaMovimientos[Actividad]=Indices[[#Headers],[Feed-lot]])))-(SUMPRODUCT((TablaInventarios[Cab.])*(TablaInventarios[Actividad]=Indices[[#Headers],[Feed-lot]])*(TablaInventarios[Categoría]=\"Terneros al pie\"))+SUMPRODUCT((TablaMovimientos[Cab.])*(TablaMovimientos[Fecha]<=Indices[[#This Row],[Fecha]])*(TablaMovimientos[Actividad]=Indices[[#Headers],[Feed-lot]])*(TablaMovimientos[Categoría]=\"Terneros al pie\"))))","v":0},{"$f":"IF(Indices[[#This Row],[Meses activos]]=0,0,(SUMPRODUCT((TablaInventarios[Cab.])*(TablaInventarios[Actividad]=Indices[[#Headers],[Cabaña]]))+SUMPRODUCT((TablaMovimientos[Cab.])*(TablaMovimientos[Fecha]<=Indices[[#This Row],[Fecha]])*(TablaMovimientos[Actividad]=Indices[[#Headers],[Cabaña]])))-(SUMPRODUCT((TablaInventarios[Cab.])*(TablaInventarios[Actividad]=Indices[[#Headers],[Cabaña]])*(TablaInventarios[Categoría]=\"Terneros al pie\"))+SUMPRODUCT((TablaMovimientos[Cab.])*(TablaMovimientos[Fecha]<=Indices[[#This Row],[Fecha]])*(TablaMovimientos[Actividad]=Indices[[#Headers],[Cabaña]])*(TablaMovimientos[Categoría]=\"Terneros al pie\"))))","v":0},{"$f":"IF(Indices[[#This Row],[Meses activos]]=0,0,(SUMPRODUCT((TablaInventarios[Cab.])*(TablaInventarios[Actividad]=Indices[[#Headers],[Tambo]]))+SUMPRODUCT((TablaMovimientos[Cab.])*(TablaMovimientos[Fecha]<=Indices[[#This Row],[Fecha]])*(TablaMovimientos[Actividad]=Indices[[#Headers],[Tambo]])))-(SUMPRODUCT((TablaInventarios[Cab.])*(TablaInventarios[Actividad]=Indices[[#Headers],[Tambo]])*(TablaInventarios[Categoría]=\"Terneros al pie\"))+SUMPRODUCT((TablaMovimientos[Cab.])*(TablaMovimientos[Fecha]<=Indices[[#This Row],[Fecha]])*(TablaMovimientos[Actividad]=Indices[[#Headers],[Tambo]])*(TablaMovimientos[Categoría]=\"Terneros al pie\"))))","v":0},{"$f":"IF(Indices[[#This Row],[Meses activos]]=0,0,(SUMPRODUCT((TablaInventarios[Cab.])*(TablaInventarios[Actividad]=Indices[[#Headers],[Guachera]]))+SUMPRODUCT((TablaMovimientos[Cab.])*(TablaMovimientos[Fecha]<=Indices[[#This Row],[Fecha]])*(TablaMovimientos[Actividad]=Indices[[#Headers],[Guachera]])))-(SUMPRODUCT((TablaInventarios[Cab.])*(TablaInventarios[Actividad]=Indices[[#Headers],[Guachera]])*(TablaInventarios[Categoría]=\"Terneros al pie\"))+SUMPRODUCT((TablaMovimientos[Cab.])*(TablaMovimientos[Fecha]<=Indices[[#This Row],[Fecha]])*(TablaMovimientos[Actividad]=Indices[[#Headers],[Guachera]])*(TablaMovimientos[Categoría]=\"Terneros al pie\"))))","v":0},{"$f":"+SUM(Indices[[#This Row],[Cría]:[Guachera]])","v":0},{"$f":"IF(DATE(YEAR(Indices[[#This Row],[Fecha]]),MONTH(Indices[[#This Row],[Fecha]]),1)>=DATE(YEAR('Planilla de datos'!$N$19-1),MONTH('Planilla de datos'!$N$19-1),1),1,0)*IF(DATE(YEAR(Indices[[#This Row],[Fecha]]),MONTH(Indices[[#This Row],[Fecha]]),1)<='Planilla de datos'!$P$19,1,0)","v":0}]
["2021-08-01",{"$f":"IF(C8=0,\"\",VLOOKUP('Planilla de datos'!$T$23,'SIPM (Actualización en $)'!$A$6:$C$42,3,FALSE)/C8)","v":""},null,{"$f":"IF(Indices[[#This Row],[Meses activos]]=0,0,(SUMPRODUCT((TablaInventarios[Cab.])*(TablaInventarios[Actividad]=Indices[[#Headers],[Cría]]))+SUMPRODUCT((TablaMovimientos[Cab.])*(TablaMovimientos[Fecha]<=Indices[[#This Row],[Fecha]])*(TablaMovimientos[Actividad]=Indices[[#Headers],[Cría]])))-(SUMPRODUCT((TablaInventarios[Cab.])*(TablaInventarios[Actividad]=Indices[[#Headers],[Cría]])*(TablaInventarios[Categoría]=\"Terneros al pie\"))+SUMPRODUCT((TablaMovimientos[Cab.])*(TablaMovimientos[Fecha]<=Indices[[#This Row],[Fecha]])*(TablaMovimientos[Actividad]=Indices[[#Headers],[Cría]])*(TablaMovimientos[Categoría]=\"Terneros al pie\"))))","v":0},{"$f":"IF(Indices[[#This Row],[Meses activos]]=0,0,(SUMPRODUCT((TablaInventarios[Cab.])*(TablaInventarios[Actividad]=Indices[[#Headers],[Recría]]))+SUMPRODUCT((TablaMovimientos[Cab.])*(TablaMovimientos[Fecha]<=Indices[[#This Row],[Fecha]])*(TablaMovimientos[Actividad]=Indices[[#Headers],[Recría]])))-(SUMPRODUCT((TablaInventarios[Cab.])*(TablaInventarios[Actividad]=Indices[[#Headers],[Recría]])*(TablaInventarios[Categoría]=\"Terneros al pie\"))+SUMPRODUCT((TablaMovimientos[Cab.])*(TablaMovimientos[Fecha]<=Indices[[#This Row],[Fecha]])*(TablaMovimientos[Actividad]=Indices[[#Headers],[Recría]])*(TablaMovimientos[Categoría]=\"Terneros al pie\"))))","v":0},{"$f":"IF(Indices[[#This Row],[Meses activos]]=0,0,(SUMPRODUCT((TablaInventarios[Cab.])*(TablaInventarios[Actividad]=Indices[[#Headers],[Invernada]]))+SUMPRODUCT((TablaMovimientos[Cab.])*(TablaMovimientos[Fecha]<=Indices[[#This Row],[Fecha]])*(TablaMovimientos[Actividad]=Indices[[#Headers],[Invernada]])))-(SUMPRODUCT((TablaInventarios[Cab.])*(TablaInventarios[Actividad]=Indices[[#Headers],[Invernada]])*(TablaInventarios[Categoría]=\"Terneros al pie\"))+SUMPRODUCT((TablaMovimientos[Cab.])*(TablaMovimientos[Fecha]<=Indices[[#This Row],[Fecha]])*(TablaMovimientos[Actividad]=Indices[[#Headers],[Invernada]])*(TablaMovimientos[Categoría]=\"Terneros al pie\"))))","v":0},{"$f":"IF(Indices[[#This Row],[Meses activos]]=0,0,(SUMPRODUCT((TablaInventarios[Cab.])*(TablaInventarios[Actividad]=Indices[[#Headers],[Feed-lot]]))+SUMPRODUCT((TablaMovimientos[Cab.])*(TablaMovimientos[Fecha]<=Indices[[#This Row],[Fecha]])*(TablaMovimientos[Actividad]=Indices[[#Headers],[Feed-lot]])))-(SUMPRODUCT((TablaInventarios[Cab.])*(TablaInventarios[Actividad]=Indices[[#Headers],[Feed-lot]])*(TablaInventarios[Categoría]=\"Terneros al pie\"))+SUMPRODUCT((TablaMovimientos[Cab.])*(TablaMovimientos[Fecha]<=Indices[[#This Row],[Fecha]])*(TablaMovimientos[Actividad]=Indices[[#Headers],[Feed-lot]])*(TablaMovimientos[Categoría]=\"Terneros al pie\"))))","v":0},{"$f":"IF(Indices[[#This Row],[Meses activos]]=0,0,(SUMPRODUCT((TablaInventarios[Cab.])*(TablaInventarios[Actividad]=Indices[[#Headers],[Cabaña]]))+SUMPRODUCT((TablaMovimientos[Cab.])*(TablaMovimientos[Fecha]<=Indices[[#This Row],[Fecha]])*(TablaMovimientos[Actividad]=Indices[[#Headers],[Cabaña]])))-(SUMPRODUCT((TablaInventarios[Cab.])*(TablaInventarios[Actividad]=Indices[[#Headers],[Cabaña]])*(TablaInventarios[Categoría]=\"Terneros al pie\"))+SUMPRODUCT((TablaMovimientos[Cab.])*(TablaMovimientos[Fecha]<=Indices[[#This Row],[Fecha]])*(TablaMovimientos[Actividad]=Indices[[#Headers],[Cabaña]])*(TablaMovimientos[Categoría]=\"Terneros al pie\"))))","v":0},{"$f":"IF(Indices[[#This Row],[Meses activos]]=0,0,(SUMPRODUCT((TablaInventarios[Cab.])*(TablaInventarios[Actividad]=Indices[[#Headers],[Tambo]]))+SUMPRODUCT((TablaMovimientos[Cab.])*(TablaMovimientos[Fecha]<=Indices[[#This Row],[Fecha]])*(TablaMovimientos[Actividad]=Indices[[#Headers],[Tambo]])))-(SUMPRODUCT((TablaInventarios[Cab.])*(TablaInventarios[Actividad]=Indices[[#Headers],[Tambo]])*(TablaInventarios[Categoría]=\"Terneros al pie\"))+SUMPRODUCT((TablaMovimientos[Cab.])*(TablaMovimientos[Fecha]<=Indices[[#This Row],[Fecha]])*(TablaMovimientos[Actividad]=Indices[[#Headers],[Tambo]])*(TablaMovimientos[Categoría]=\"Terneros al pie\"))))","v":0},{"$f":"IF(Indices[[#This Row],[Meses activos]]=0,0,(SUMPRODUCT((TablaInventarios[Cab.])*(TablaInventarios[Actividad]=Indices[[#Headers],[Guachera]]))+SUMPRODUCT((TablaMovimientos[Cab.])*(TablaMovimientos[Fecha]<=Indices[[#This Row],[Fecha]])*(TablaMovimientos[Actividad]=Indices[[#Headers],[Guachera]])))-(SUMPRODUCT((TablaInventarios[Cab.])*(TablaInventarios[Actividad]=Indices[[#Headers],[Guachera]])*(TablaInventarios[Categoría]=\"Terneros al pie\"))+SUMPRODUCT((TablaMovimientos[Cab.])*(TablaMovimientos[Fecha]<=Indices[[#This Row],[Fecha]])*(TablaMovimientos[Actividad]=Indices[[#Headers],[Guachera]])*(TablaMovimientos[Categoría]=\"Terneros al pie\"))))","v":0},{"$f":"+SUM(Indices[[#This Row],[Cría]:[Guachera]])","v":0},{"$f":"IF(DATE(YEAR(Indices[[#This Row],[Fecha]]),MONTH(Indices[[#This Row],[Fecha]]),1)>=DATE(YEAR('Planilla de datos'!$N$19-1),MONTH('Planilla de datos'!$N$19-1),1),1,0)*IF(DATE(YEAR(Indices[[#This Row],[Fecha]]),MONTH(Indices[[#This Row],[Fecha]]),1)<='Planilla de datos'!$P$19,1,0)","v":0}]
["2021-09-01",{"$f":"IF(C9=0,\"\",VLOOKUP('Planilla de datos'!$T$23,'SIPM (Actualización en $)'!$A$6:$C$42,3,FALSE)/C9)","v":""},null,{"$f":"IF(Indices[[#This Row],[Meses activos]]=0,0,(SUMPRODUCT((TablaInventarios[Cab.])*(TablaInventarios[Actividad]=Indices[[#Headers],[Cría]]))+SUMPRODUCT((TablaMovimientos[Cab.])*(TablaMovimientos[Fecha]<=Indices[[#This Row],[Fecha]])*(TablaMovimientos[Actividad]=Indices[[#Headers],[Cría]])))-(SUMPRODUCT((TablaInventarios[Cab.])*(TablaInventarios[Actividad]=Indices[[#Headers],[Cría]])*(TablaInventarios[Categoría]=\"Terneros al pie\"))+SUMPRODUCT((TablaMovimientos[Cab.])*(TablaMovimientos[Fecha]<=Indices[[#This Row],[Fecha]])*(TablaMovimientos[Actividad]=Indices[[#Headers],[Cría]])*(TablaMovimientos[Categoría]=\"Terneros al pie\"))))","v":0},{"$f":"IF(Indices[[#This Row],[Meses activos]]=0,0,(SUMPRODUCT((TablaInventarios[Cab.])*(TablaInventarios[Actividad]=Indices[[#Headers],[Recría]]))+SUMPRODUCT((TablaMovimientos[Cab.])*(TablaMovimientos[Fecha]<=Indices[[#This Row],[Fecha]])*(TablaMovimientos[Actividad]=Indices[[#Headers],[Recría]])))-(SUMPRODUCT((TablaInventarios[Cab.])*(TablaInventarios[Actividad]=Indices[[#Headers],[Recría]])*(TablaInventarios[Categoría]=\"Terneros al pie\"))+SUMPRODUCT((TablaMovimientos[Cab.])*(TablaMovimientos[Fecha]<=Indices[[#This Row],[Fecha]])*(TablaMovimientos[Actividad]=Indices[[#Headers],[Recría]])*(TablaMovimientos[Categoría]=\"Terneros al pie\"))))","v":0},{"$f":"IF(Indices[[#This Row],[Meses activos]]=0,0,(SUMPRODUCT((TablaInventarios[Cab.])*(TablaInventarios[Actividad]=Indices[[#Headers],[Invernada]]))+SUMPRODUCT((TablaMovimientos[Cab.])*(TablaMovimientos[Fecha]<=Indices[[#This Row],[Fecha]])*(TablaMovimientos[Actividad]=Indices[[#Headers],[Invernada]])))-(SUMPRODUCT((TablaInventarios[Cab.])*(TablaInventarios[Actividad]=Indices[[#Headers],[Invernada]])*(TablaInventarios[Categoría]=\"Terneros al pie\"))+SUMPRODUCT((TablaMovimientos[Cab.])*(TablaMovimientos[Fecha]<=Indices[[#This Row],[Fecha]])*(TablaMovimientos[Actividad]=Indices[[#Headers],[Invernada]])*(TablaMovimientos[Categoría]=\"Terneros al pie\"))))","v":0},{"$f":"IF(Indices[[#This Row],[Meses activos]]=0,0,(SUMPRODUCT((TablaInventarios[Cab.])*(TablaInventarios[Actividad]=Indices[[#Headers],[Feed-lot]]))+SUMPRODUCT((TablaMovimientos[Cab.])*(TablaMovimientos[Fecha]<=Indices[[#This Row],[Fecha]])*(TablaMovimientos[Actividad]=Indices[[#Headers],[Feed-lot]])))-(SUMPRODUCT((TablaInventarios[Cab.])*(TablaInventarios[Actividad]=Indices[[#Headers],[Feed-lot]])*(TablaInventarios[Categoría]=\"Terneros al pie\"))+SUMPRODUCT((TablaMovimientos[Cab.])*(TablaMovimientos[Fecha]<=Indices[[#This Row],[Fecha]])*(TablaMovimientos[Actividad]=Indices[[#Headers],[Feed-lot]])*(TablaMovimientos[Categoría]=\"Terneros al pie\"))))","v":0},{"$f":"IF(Indices[[#This Row],[Meses activos]]=0,0,(SUMPRODUCT((TablaInventarios[Cab.])*(TablaInventarios[Actividad]=Indices[[#Headers],[Cabaña]]))+SUMPRODUCT((TablaMovimientos[Cab.])*(TablaMovimientos[Fecha]<=Indices[[#This Row],[Fecha]])*(TablaMovimientos[Actividad]=Indices[[#Headers],[Cabaña]])))-(SUMPRODUCT((TablaInventarios[Cab.])*(TablaInventarios[Actividad]=Indices[[#Headers],[Cabaña]])*(TablaInventarios[Categoría]=\"Terneros al pie\"))+SUMPRODUCT((TablaMovimientos[Cab.])*(TablaMovimientos[Fecha]<=Indices[[#This Row],[Fecha]])*(TablaMovimientos[Actividad]=Indices[[#Headers],[Cabaña]])*(TablaMovimientos[Categoría]=\"Terneros al pie\"))))","v":0},{"$f":"IF(Indices[[#This Row],[Meses activos]]=0,0,(SUMPRODUCT((TablaInventarios[Cab.])*(TablaInventarios[Actividad]=Indices[[#Headers],[Tambo]]))+SUMPRODUCT((TablaMovimientos[Cab.])*(TablaMovimientos[Fecha]<=Indices[[#This Row],[Fecha]])*(TablaMovimientos[Actividad]=Indices[[#Headers],[Tambo]])))-(SUMPRODUCT((TablaInventarios[Cab.])*(TablaInventarios[Actividad]=Indices[[#Headers],[Tambo]])*(TablaInventarios[Categoría]=\"Terneros al pie\"))+SUMPRODUCT((TablaMovimientos[Cab.])*(TablaMovimientos[Fecha]<=Indices[[#This Row],[Fecha]])*(TablaMovimientos[Actividad]=Indices[[#Headers],[Tambo]])*(TablaMovimientos[Categoría]=\"Terneros al pie\"))))","v":0},{"$f":"IF(Indices[[#This Row],[Meses activos]]=0,0,(SUMPRODUCT((TablaInventarios[Cab.])*(TablaInventarios[Actividad]=Indices[[#Headers],[Guachera]]))+SUMPRODUCT((TablaMovimientos[Cab.])*(TablaMovimientos[Fecha]<=Indices[[#This Row],[Fecha]])*(TablaMovimientos[Actividad]=Indices[[#Headers],[Guachera]])))-(SUMPRODUCT((TablaInventarios[Cab.])*(TablaInventarios[Actividad]=Indices[[#Headers],[Guachera]])*(TablaInventarios[Categoría]=\"Terneros al pie\"))+SUMPRODUCT((TablaMovimientos[Cab.])*(TablaMovimientos[Fecha]<=Indices[[#This Row],[Fecha]])*(TablaMovimientos[Actividad]=Indices[[#Headers],[Guachera]])*(TablaMovimientos[Categoría]=\"Terneros al pie\"))))","v":0},{"$f":"+SUM(Indices[[#This Row],[Cría]:[Guachera]])","v":0},{"$f":"IF(DATE(YEAR(Indices[[#This Row],[Fecha]]),MONTH(Indices[[#This Row],[Fecha]]),1)>=DATE(YEAR('Planilla de datos'!$N$19-1),MONTH('Planilla de datos'!$N$19-1),1),1,0)*IF(DATE(YEAR(Indices[[#This Row],[Fecha]]),MONTH(Indices[[#This Row],[Fecha]]),1)<='Planilla de datos'!$P$19,1,0)","v":0}]
["2021-10-01",{"$f":"IF(C10=0,\"\",VLOOKUP('Planilla de datos'!$T$23,'SIPM (Actualización en $)'!$A$6:$C$42,3,FALSE)/C10)","v":""},null,{"$f":"IF(Indices[[#This Row],[Meses activos]]=0,0,(SUMPRODUCT((TablaInventarios[Cab.])*(TablaInventarios[Actividad]=Indices[[#Headers],[Cría]]))+SUMPRODUCT((TablaMovimientos[Cab.])*(TablaMovimientos[Fecha]<=Indices[[#This Row],[Fecha]])*(TablaMovimientos[Actividad]=Indices[[#Headers],[Cría]])))-(SUMPRODUCT((TablaInventarios[Cab.])*(TablaInventarios[Actividad]=Indices[[#Headers],[Cría]])*(TablaInventarios[Categoría]=\"Terneros al pie\"))+SUMPRODUCT((TablaMovimientos[Cab.])*(TablaMovimientos[Fecha]<=Indices[[#This Row],[Fecha]])*(TablaMovimientos[Actividad]=Indices[[#Headers],[Cría]])*(TablaMovimientos[Categoría]=\"Terneros al pie\"))))","v":0},{"$f":"IF(Indices[[#This Row],[Meses activos]]=0,0,(SUMPRODUCT((TablaInventarios[Cab.])*(TablaInventarios[Actividad]=Indices[[#Headers],[Recría]]))+SUMPRODUCT((TablaMovimientos[Cab.])*(TablaMovimientos[Fecha]<=Indices[[#This Row],[Fecha]])*(TablaMovimientos[Actividad]=Indices[[#Headers],[Recría]])))-(SUMPRODUCT((TablaInventarios[Cab.])*(TablaInventarios[Actividad]=Indices[[#Headers],[Recría]])*(TablaInventarios[Categoría]=\"Terneros al pie\"))+SUMPRODUCT((TablaMovimientos[Cab.])*(TablaMovimientos[Fecha]<=Indices[[#This Row],[Fecha]])*(TablaMovimientos[Actividad]=Indices[[#Headers],[Recría]])*(TablaMovimientos[Categoría]=\"Terneros al pie\"))))","v":0},{"$f":"IF(Indices[[#This Row],[Meses activos]]=0,0,(SUMPRODUCT((TablaInventarios[Cab.])*(TablaInventarios[Actividad]=Indices[[#Headers],[Invernada]]))+SUMPRODUCT((TablaMovimientos[Cab.])*(TablaMovimientos[Fecha]<=Indices[[#This Row],[Fecha]])*(TablaMovimientos[Actividad]=Indices[[#Headers],[Invernada]])))-(SUMPRODUCT((TablaInventarios[Cab.])*(TablaInventarios[Actividad]=Indices[[#Headers],[Invernada]])*(TablaInventarios[Categoría]=\"Terneros al pie\"))+SUMPRODUCT((TablaMovimientos[Cab.])*(TablaMovimientos[Fecha]<=Indices[[#This Row],[Fecha]])*(TablaMovimientos[Actividad]=Indices[[#Headers],[Invernada]])*(TablaMovimientos[Categoría]=\"Terneros al pie\"))))","v":0},{"$f":"IF(Indices[[#This Row],[Meses activos]]=0,0,(SUMPRODUCT((TablaInventarios[Cab.])*(TablaInventarios[Actividad]=Indices[[#Headers],[Feed-lot]]))+SUMPRODUCT((TablaMovimientos[Cab.])*(TablaMovimientos[Fecha]<=Indices[[#This Row],[Fecha]])*(TablaMovimientos[Actividad]=Indices[[#Headers],[Feed-lot]])))-(SUMPRODUCT((TablaInventarios[Cab.])*(TablaInventarios[Actividad]=Indices[[#Headers],[Feed-lot]])*(TablaInventarios[Categoría]=\"Terneros al pie\"))+SUMPRODUCT((TablaMovimientos[Cab.])*(TablaMovimientos[Fecha]<=Indices[[#This Row],[Fecha]])*(TablaMovimientos[Actividad]=Indices[[#Headers],[Feed-lot]])*(TablaMovimientos[Categoría]=\"Terneros al pie\"))))","v":0},{"$f":"IF(Indices[[#This Row],[Meses activos]]=0,0,(SUMPRODUCT((TablaInventarios[Cab.])*(TablaInventarios[Actividad]=Indices[[#Headers],[Cabaña]]))+SUMPRODUCT((TablaMovimientos[Cab.])*(TablaMovimientos[Fecha]<=Indices[[#This Row],[Fecha]])*(TablaMovimientos[Actividad]=Indices[[#Headers],[Cabaña]])))-(SUMPRODUCT((TablaInventarios[Cab.])*(TablaInventarios[Actividad]=Indices[[#Headers],[Cabaña]])*(TablaInventarios[Categoría]=\"Terneros al pie\"))+SUMPRODUCT((TablaMovimientos[Cab.])*(TablaMovimientos[Fecha]<=Indices[[#This Row],[Fecha]])*(TablaMovimientos[Actividad]=Indices[[#Headers],[Cabaña]])*(TablaMovimientos[Categoría]=\"Terneros al pie\"))))","v":0},{"$f":"IF(Indices[[#This Row],[Meses activos]]=0,0,(SUMPRODUCT((TablaInventarios[Cab.])*(TablaInventarios[Actividad]=Indices[[#Headers],[Tambo]]))+SUMPRODUCT((TablaMovimientos[Cab.])*(TablaMovimientos[Fecha]<=Indices[[#This Row],[Fecha]])*(TablaMovimientos[Actividad]=Indices[[#Headers],[Tambo]])))-(SUMPRODUCT((TablaInventarios[Cab.])*(TablaInventarios[Actividad]=Indices[[#Headers],[Tambo]])*(TablaInventarios[Categoría]=\"Terneros al pie\"))+SUMPRODUCT((TablaMovimientos[Cab.])*(TablaMovimientos[Fecha]<=Indices[[#This Row],[Fecha]])*(TablaMovimientos[Actividad]=Indices[[#Headers],[Tambo]])*(TablaMovimientos[Categoría]=\"Terneros al pie\"))))","v":0},{"$f":"IF(Indices[[#This Row],[Meses activos]]=0,0,(SUMPRODUCT((TablaInventarios[Cab.])*(TablaInventarios[Actividad]=Indices[[#Headers],[Guachera]]))+SUMPRODUCT((TablaMovimientos[Cab.])*(TablaMovimientos[Fecha]<=Indices[[#This Row],[Fecha]])*(TablaMovimientos[Actividad]=Indices[[#Headers],[Guachera]])))-(SUMPRODUCT((TablaInventarios[Cab.])*(TablaInventarios[Actividad]=Indices[[#Headers],[Guachera]])*(TablaInventarios[Categoría]=\"Terneros al pie\"))+SUMPRODUCT((TablaMovimientos[Cab.])*(TablaMovimientos[Fecha]<=Indices[[#This Row],[Fecha]])*(TablaMovimientos[Actividad]=Indices[[#Headers],[Guachera]])*(TablaMovimientos[Categoría]=\"Terneros al pie\"))))","v":0},{"$f":"+SUM(Indices[[#This Row],[Cría]:[Guachera]])","v":0},{"$f":"IF(DATE(YEAR(Indices[[#This Row],[Fecha]]),MONTH(Indices[[#This Row],[Fecha]]),1)>=DATE(YEAR('Planilla de datos'!$N$19-1),MONTH('Planilla de datos'!$N$19-1),1),1,0)*IF(DATE(YEAR(Indices[[#This Row],[Fecha]]),MONTH(Indices[[#This Row],[Fecha]]),1)<='Planilla de datos'!$P$19,1,0)","v":0}]
["2021-11-01",{"$f":"IF(C11=0,\"\",VLOOKUP('Planilla de datos'!$T$23,'SIPM (Actualización en $)'!$A$6:$C$42,3,FALSE)/C11)","v":""},null,{"$f":"IF(Indices[[#This Row],[Meses activos]]=0,0,(SUMPRODUCT((TablaInventarios[Cab.])*(TablaInventarios[Actividad]=Indices[[#Headers],[Cría]]))+SUMPRODUCT((TablaMovimientos[Cab.])*(TablaMovimientos[Fecha]<=Indices[[#This Row],[Fecha]])*(TablaMovimientos[Actividad]=Indices[[#Headers],[Cría]])))-(SUMPRODUCT((TablaInventarios[Cab.])*(TablaInventarios[Actividad]=Indices[[#Headers],[Cría]])*(TablaInventarios[Categoría]=\"Terneros al pie\"))+SUMPRODUCT((TablaMovimientos[Cab.])*(TablaMovimientos[Fecha]<=Indices[[#This Row],[Fecha]])*(TablaMovimientos[Actividad]=Indices[[#Headers],[Cría]])*(TablaMovimientos[Categoría]=\"Terneros al pie\"))))","v":0},{"$f":"IF(Indices[[#This Row],[Meses activos]]=0,0,(SUMPRODUCT((TablaInventarios[Cab.])*(TablaInventarios[Actividad]=Indices[[#Headers],[Recría]]))+SUMPRODUCT((TablaMovimientos[Cab.])*(TablaMovimientos[Fecha]<=Indices[[#This Row],[Fecha]])*(TablaMovimientos[Actividad]=Indices[[#Headers],[Recría]])))-(SUMPRODUCT((TablaInventarios[Cab.])*(TablaInventarios[Actividad]=Indices[[#Headers],[Recría]])*(TablaInventarios[Categoría]=\"Terneros al pie\"))+SUMPRODUCT((TablaMovimientos[Cab.])*(TablaMovimientos[Fecha]<=Indices[[#This Row],[Fecha]])*(TablaMovimientos[Actividad]=Indices[[#Headers],[Recría]])*(TablaMovimientos[Categoría]=\"Terneros al pie\"))))","v":0},{"$f":"IF(Indices[[#This Row],[Meses activos]]=0,0,(SUMPRODUCT((TablaInventarios[Cab.])*(TablaInventarios[Actividad]=Indices[[#Headers],[Invernada]]))+SUMPRODUCT((TablaMovimientos[Cab.])*(TablaMovimientos[Fecha]<=Indices[[#This Row],[Fecha]])*(TablaMovimientos[Actividad]=Indices[[#Headers],[Invernada]])))-(SUMPRODUCT((TablaInventarios[Cab.])*(TablaInventarios[Actividad]=Indices[[#Headers],[Invernada]])*(TablaInventarios[Categoría]=\"Terneros al pie\"))+SUMPRODUCT((TablaMovimientos[Cab.])*(TablaMovimientos[Fecha]<=Indices[[#This Row],[Fecha]])*(TablaMovimientos[Actividad]=Indices[[#Headers],[Invernada]])*(TablaMovimientos[Categoría]=\"Terneros al pie\"))))","v":0},{"$f":"IF(Indices[[#This Row],[Meses activos]]=0,0,(SUMPRODUCT((TablaInventarios[Cab.])*(TablaInventarios[Actividad]=Indices[[#Headers],[Feed-lot]]))+SUMPRODUCT((TablaMovimientos[Cab.])*(TablaMovimientos[Fecha]<=Indices[[#This Row],[Fecha]])*(TablaMovimientos[Actividad]=Indices[[#Headers],[Feed-lot]])))-(SUMPRODUCT((TablaInventarios[Cab.])*(TablaInventarios[Actividad]=Indices[[#Headers],[Feed-lot]])*(TablaInventarios[Categoría]=\"Terneros al pie\"))+SUMPRODUCT((TablaMovimientos[Cab.])*(TablaMovimientos[Fecha]<=Indices[[#This Row],[Fecha]])*(TablaMovimientos[Actividad]=Indices[[#Headers],[Feed-lot]])*(TablaMovimientos[Categoría]=\"Terneros al pie\"))))","v":0},{"$f":"IF(Indices[[#This Row],[Meses activos]]=0,0,(SUMPRODUCT((TablaInventarios[Cab.])*(TablaInventarios[Actividad]=Indices[[#Headers],[Cabaña]]))+SUMPRODUCT((TablaMovimientos[Cab.])*(TablaMovimientos[Fecha]<=Indices[[#This Row],[Fecha]])*(TablaMovimientos[Actividad]=Indices[[#Headers],[Cabaña]])))-(SUMPRODUCT((TablaInventarios[Cab.])*(TablaInventarios[Actividad]=Indices[[#Headers],[Cabaña]])*(TablaInventarios[Categoría]=\"Terneros al pie\"))+SUMPRODUCT((TablaMovimientos[Cab.])*(TablaMovimientos[Fecha]<=Indices[[#This Row],[Fecha]])*(TablaMovimientos[Actividad]=Indices[[#Headers],[Cabaña]])*(TablaMovimientos[Categoría]=\"Terneros al pie\"))))","v":0},{"$f":"IF(Indices[[#This Row],[Meses activos]]=0,0,(SUMPRODUCT((TablaInventarios[Cab.])*(TablaInventarios[Actividad]=Indices[[#Headers],[Tambo]]))+SUMPRODUCT((TablaMovimientos[Cab.])*(TablaMovimientos[Fecha]<=Indices[[#This Row],[Fecha]])*(TablaMovimientos[Actividad]=Indices[[#Headers],[Tambo]])))-(SUMPRODUCT((TablaInventarios[Cab.])*(TablaInventarios[Actividad]=Indices[[#Headers],[Tambo]])*(TablaInventarios[Categoría]=\"Terneros al pie\"))+SUMPRODUCT((TablaMovimientos[Cab.])*(TablaMovimientos[Fecha]<=Indices[[#This Row],[Fecha]])*(TablaMovimientos[Actividad]=Indices[[#Headers],[Tambo]])*(TablaMovimientos[Categoría]=\"Terneros al pie\"))))","v":0},{"$f":"IF(Indices[[#This Row],[Meses activos]]=0,0,(SUMPRODUCT((TablaInventarios[Cab.])*(TablaInventarios[Actividad]=Indices[[#Headers],[Guachera]]))+SUMPRODUCT((TablaMovimientos[Cab.])*(TablaMovimientos[Fecha]<=Indices[[#This Row],[Fecha]])*(TablaMovimientos[Actividad]=Indices[[#Headers],[Guachera]])))-(SUMPRODUCT((TablaInventarios[Cab.])*(TablaInventarios[Actividad]=Indices[[#Headers],[Guachera]])*(TablaInventarios[Categoría]=\"Terneros al pie\"))+SUMPRODUCT((TablaMovimientos[Cab.])*(TablaMovimientos[Fecha]<=Indices[[#This Row],[Fecha]])*(TablaMovimientos[Actividad]=Indices[[#Headers],[Guachera]])*(TablaMovimientos[Categoría]=\"Terneros al pie\"))))","v":0},{"$f":"+SUM(Indices[[#This Row],[Cría]:[Guachera]])","v":0},{"$f":"IF(DATE(YEAR(Indices[[#This Row],[Fecha]]),MONTH(Indices[[#This Row],[Fecha]]),1)>=DATE(YEAR('Planilla de datos'!$N$19-1),MONTH('Planilla de datos'!$N$19-1),1),1,0)*IF(DATE(YEAR(Indices[[#This Row],[Fecha]]),MONTH(Indices[[#This Row],[Fecha]]),1)<='Planilla de datos'!$P$19,1,0)","v":0}]
["2021-12-01",{"$f":"IF(C12=0,\"\",VLOOKUP('Planilla de datos'!$T$23,'SIPM (Actualización en $)'!$A$6:$C$42,3,FALSE)/C12)","v":""},null,{"$f":"IF(Indices[[#This Row],[Meses activos]]=0,0,(SUMPRODUCT((TablaInventarios[Cab.])*(TablaInventarios[Actividad]=Indices[[#Headers],[Cría]]))+SUMPRODUCT((TablaMovimientos[Cab.])*(TablaMovimientos[Fecha]<=Indices[[#This Row],[Fecha]])*(TablaMovimientos[Actividad]=Indices[[#Headers],[Cría]])))-(SUMPRODUCT((TablaInventarios[Cab.])*(TablaInventarios[Actividad]=Indices[[#Headers],[Cría]])*(TablaInventarios[Categoría]=\"Terneros al pie\"))+SUMPRODUCT((TablaMovimientos[Cab.])*(TablaMovimientos[Fecha]<=Indices[[#This Row],[Fecha]])*(TablaMovimientos[Actividad]=Indices[[#Headers],[Cría]])*(TablaMovimientos[Categoría]=\"Terneros al pie\"))))","v":0},{"$f":"IF(Indices[[#This Row],[Meses activos]]=0,0,(SUMPRODUCT((TablaInventarios[Cab.])*(TablaInventarios[Actividad]=Indices[[#Headers],[Recría]]))+SUMPRODUCT((TablaMovimientos[Cab.])*(TablaMovimientos[Fecha]<=Indices[[#This Row],[Fecha]])*(TablaMovimientos[Actividad]=Indices[[#Headers],[Recría]])))-(SUMPRODUCT((TablaInventarios[Cab.])*(TablaInventarios[Actividad]=Indices[[#Headers],[Recría]])*(TablaInventarios[Categoría]=\"Terneros al pie\"))+SUMPRODUCT((TablaMovimientos[Cab.])*(TablaMovimientos[Fecha]<=Indices[[#This Row],[Fecha]])*(TablaMovimientos[Actividad]=Indices[[#Headers],[Recría]])*(TablaMovimientos[Categoría]=\"Terneros al pie\"))))","v":0},{"$f":"IF(Indices[[#This Row],[Meses activos]]=0,0,(SUMPRODUCT((TablaInventarios[Cab.])*(TablaInventarios[Actividad]=Indices[[#Headers],[Invernada]]))+SUMPRODUCT((TablaMovimientos[Cab.])*(TablaMovimientos[Fecha]<=Indices[[#This Row],[Fecha]])*(TablaMovimientos[Actividad]=Indices[[#Headers],[Invernada]])))-(SUMPRODUCT((TablaInventarios[Cab.])*(TablaInventarios[Actividad]=Indices[[#Headers],[Invernada]])*(TablaInventarios[Categoría]=\"Terneros al pie\"))+SUMPRODUCT((TablaMovimientos[Cab.])*(TablaMovimientos[Fecha]<=Indices[[#This Row],[Fecha]])*(TablaMovimientos[Actividad]=Indices[[#Headers],[Invernada]])*(TablaMovimientos[Categoría]=\"Terneros al pie\"))))","v":0},{"$f":"IF(Indices[[#This Row],[Meses activos]]=0,0,(SUMPRODUCT((TablaInventarios[Cab.])*(TablaInventarios[Actividad]=Indices[[#Headers],[Feed-lot]]))+SUMPRODUCT((TablaMovimientos[Cab.])*(TablaMovimientos[Fecha]<=Indices[[#This Row],[Fecha]])*(TablaMovimientos[Actividad]=Indices[[#Headers],[Feed-lot]])))-(SUMPRODUCT((TablaInventarios[Cab.])*(TablaInventarios[Actividad]=Indices[[#Headers],[Feed-lot]])*(TablaInventarios[Categoría]=\"Terneros al pie\"))+SUMPRODUCT((TablaMovimientos[Cab.])*(TablaMovimientos[Fecha]<=Indices[[#This Row],[Fecha]])*(TablaMovimientos[Actividad]=Indices[[#Headers],[Feed-lot]])*(TablaMovimientos[Categoría]=\"Terneros al pie\"))))","v":0},{"$f":"IF(Indices[[#This Row],[Meses activos]]=0,0,(SUMPRODUCT((TablaInventarios[Cab.])*(TablaInventarios[Actividad]=Indices[[#Headers],[Cabaña]]))+SUMPRODUCT((TablaMovimientos[Cab.])*(TablaMovimientos[Fecha]<=Indices[[#This Row],[Fecha]])*(TablaMovimientos[Actividad]=Indices[[#Headers],[Cabaña]])))-(SUMPRODUCT((TablaInventarios[Cab.])*(TablaInventarios[Actividad]=Indices[[#Headers],[Cabaña]])*(TablaInventarios[Categoría]=\"Terneros al pie\"))+SUMPRODUCT((TablaMovimientos[Cab.])*(TablaMovimientos[Fecha]<=Indices[[#This Row],[Fecha]])*(TablaMovimientos[Actividad]=Indices[[#Headers],[Cabaña]])*(TablaMovimientos[Categoría]=\"Terneros al pie\"))))","v":0},{"$f":"IF(Indices[[#This Row],[Meses activos]]=0,0,(SUMPRODUCT((TablaInventarios[Cab.])*(TablaInventarios[Actividad]=Indices[[#Headers],[Tambo]]))+SUMPRODUCT((TablaMovimientos[Cab.])*(TablaMovimientos[Fecha]<=Indices[[#This Row],[Fecha]])*(TablaMovimientos[Actividad]=Indices[[#Headers],[Tambo]])))-(SUMPRODUCT((TablaInventarios[Cab.])*(TablaInventarios[Actividad]=Indices[[#Headers],[Tambo]])*(TablaInventarios[Categoría]=\"Terneros al pie\"))+SUMPRODUCT((TablaMovimientos[Cab.])*(TablaMovimientos[Fecha]<=Indices[[#This Row],[Fecha]])*(TablaMovimientos[Actividad]=Indices[[#Headers],[Tambo]])*(TablaMovimientos[Categoría]=\"Terneros al pie\"))))","v":0},{"$f":"IF(Indices[[#This Row],[Meses activos]]=0,0,(SUMPRODUCT((TablaInventarios[Cab.])*(TablaInventarios[Actividad]=Indices[[#Headers],[Guachera]]))+SUMPRODUCT((TablaMovimientos[Cab.])*(TablaMovimientos[Fecha]<=Indices[[#This Row],[Fecha]])*(TablaMovimientos[Actividad]=Indices[[#Headers],[Guachera]])))-(SUMPRODUCT((TablaInventarios[Cab.])*(TablaInventarios[Actividad]=Indices[[#Headers],[Guachera]])*(TablaInventarios[Categoría]=\"Terneros al pie\"))+SUMPRODUCT((TablaMovimientos[Cab.])*(TablaMovimientos[Fecha]<=Indices[[#This Row],[Fecha]])*(TablaMovimientos[Actividad]=Indices[[#Headers],[Guachera]])*(TablaMovimientos[Categoría]=\"Terneros al pie\"))))","v":0},{"$f":"+SUM(Indices[[#This Row],[Cría]:[Guachera]])","v":0},{"$f":"IF(DATE(YEAR(Indices[[#This Row],[Fecha]]),MONTH(Indices[[#This Row],[Fecha]]),1)>=DATE(YEAR('Planilla de datos'!$N$19-1),MONTH('Planilla de datos'!$N$19-1),1),1,0)*IF(DATE(YEAR(Indices[[#This Row],[Fecha]]),MONTH(Indices[[#This Row],[Fecha]]),1)<='Planilla de datos'!$P$19,1,0)","v":0}]
["2022-01-01",{"$f":"IF(C13=0,\"\",VLOOKUP('Planilla de datos'!$T$23,'SIPM (Actualización en $)'!$A$6:$C$42,3,FALSE)/C13)","v":""},null,{"$f":"IF(Indices[[#This Row],[Meses activos]]=0,0,(SUMPRODUCT((TablaInventarios[Cab.])*(TablaInventarios[Actividad]=Indices[[#Headers],[Cría]]))+SUMPRODUCT((TablaMovimientos[Cab.])*(TablaMovimientos[Fecha]<=Indices[[#This Row],[Fecha]])*(TablaMovimientos[Actividad]=Indices[[#Headers],[Cría]])))-(SUMPRODUCT((TablaInventarios[Cab.])*(TablaInventarios[Actividad]=Indices[[#Headers],[Cría]])*(TablaInventarios[Categoría]=\"Terneros al pie\"))+SUMPRODUCT((TablaMovimientos[Cab.])*(TablaMovimientos[Fecha]<=Indices[[#This Row],[Fecha]])*(TablaMovimientos[Actividad]=Indices[[#Headers],[Cría]])*(TablaMovimientos[Categoría]=\"Terneros al pie\"))))","v":0},{"$f":"IF(Indices[[#This Row],[Meses activos]]=0,0,(SUMPRODUCT((TablaInventarios[Cab.])*(TablaInventarios[Actividad]=Indices[[#Headers],[Recría]]))+SUMPRODUCT((TablaMovimientos[Cab.])*(TablaMovimientos[Fecha]<=Indices[[#This Row],[Fecha]])*(TablaMovimientos[Actividad]=Indices[[#Headers],[Recría]])))-(SUMPRODUCT((TablaInventarios[Cab.])*(TablaInventarios[Actividad]=Indices[[#Headers],[Recría]])*(TablaInventarios[Categoría]=\"Terneros al pie\"))+SUMPRODUCT((TablaMovimientos[Cab.])*(TablaMovimientos[Fecha]<=Indices[[#This Row],[Fecha]])*(TablaMovimientos[Actividad]=Indices[[#Headers],[Recría]])*(TablaMovimientos[Categoría]=\"Terneros al pie\"))))","v":0},{"$f":"IF(Indices[[#This Row],[Meses activos]]=0,0,(SUMPRODUCT((TablaInventarios[Cab.])*(TablaInventarios[Actividad]=Indices[[#Headers],[Invernada]]))+SUMPRODUCT((TablaMovimientos[Cab.])*(TablaMovimientos[Fecha]<=Indices[[#This Row],[Fecha]])*(TablaMovimientos[Actividad]=Indices[[#Headers],[Invernada]])))-(SUMPRODUCT((TablaInventarios[Cab.])*(TablaInventarios[Actividad]=Indices[[#Headers],[Invernada]])*(TablaInventarios[Categoría]=\"Terneros al pie\"))+SUMPRODUCT((TablaMovimientos[Cab.])*(TablaMovimientos[Fecha]<=Indices[[#This Row],[Fecha]])*(TablaMovimientos[Actividad]=Indices[[#Headers],[Invernada]])*(TablaMovimientos[Categoría]=\"Terneros al pie\"))))","v":0},{"$f":"IF(Indices[[#This Row],[Meses activos]]=0,0,(SUMPRODUCT((TablaInventarios[Cab.])*(TablaInventarios[Actividad]=Indices[[#Headers],[Feed-lot]]))+SUMPRODUCT((TablaMovimientos[Cab.])*(TablaMovimientos[Fecha]<=Indices[[#This Row],[Fecha]])*(TablaMovimientos[Actividad]=Indices[[#Headers],[Feed-lot]])))-(SUMPRODUCT((TablaInventarios[Cab.])*(TablaInventarios[Actividad]=Indices[[#Headers],[Feed-lot]])*(TablaInventarios[Categoría]=\"Terneros al pie\"))+SUMPRODUCT((TablaMovimientos[Cab.])*(TablaMovimientos[Fecha]<=Indices[[#This Row],[Fecha]])*(TablaMovimientos[Actividad]=Indices[[#Headers],[Feed-lot]])*(TablaMovimientos[Categoría]=\"Terneros al pie\"))))","v":0},{"$f":"IF(Indices[[#This Row],[Meses activos]]=0,0,(SUMPRODUCT((TablaInventarios[Cab.])*(TablaInventarios[Actividad]=Indices[[#Headers],[Cabaña]]))+SUMPRODUCT((TablaMovimientos[Cab.])*(TablaMovimientos[Fecha]<=Indices[[#This Row],[Fecha]])*(TablaMovimientos[Actividad]=Indices[[#Headers],[Cabaña]])))-(SUMPRODUCT((TablaInventarios[Cab.])*(TablaInventarios[Actividad]=Indices[[#Headers],[Cabaña]])*(TablaInventarios[Categoría]=\"Terneros al pie\"))+SUMPRODUCT((TablaMovimientos[Cab.])*(TablaMovimientos[Fecha]<=Indices[[#This Row],[Fecha]])*(TablaMovimientos[Actividad]=Indices[[#Headers],[Cabaña]])*(TablaMovimientos[Categoría]=\"Terneros al pie\"))))","v":0},{"$f":"IF(Indices[[#This Row],[Meses activos]]=0,0,(SUMPRODUCT((TablaInventarios[Cab.])*(TablaInventarios[Actividad]=Indices[[#Headers],[Tambo]]))+SUMPRODUCT((TablaMovimientos[Cab.])*(TablaMovimientos[Fecha]<=Indices[[#This Row],[Fecha]])*(TablaMovimientos[Actividad]=Indices[[#Headers],[Tambo]])))-(SUMPRODUCT((TablaInventarios[Cab.])*(TablaInventarios[Actividad]=Indices[[#Headers],[Tambo]])*(TablaInventarios[Categoría]=\"Terneros al pie\"))+SUMPRODUCT((TablaMovimientos[Cab.])*(TablaMovimientos[Fecha]<=Indices[[#This Row],[Fecha]])*(TablaMovimientos[Actividad]=Indices[[#Headers],[Tambo]])*(TablaMovimientos[Categoría]=\"Terneros al pie\"))))","v":0},{"$f":"IF(Indices[[#This Row],[Meses activos]]=0,0,(SUMPRODUCT((TablaInventarios[Cab.])*(TablaInventarios[Actividad]=Indices[[#Headers],[Guachera]]))+SUMPRODUCT((TablaMovimientos[Cab.])*(TablaMovimientos[Fecha]<=Indices[[#This Row],[Fecha]])*(TablaMovimientos[Actividad]=Indices[[#Headers],[Guachera]])))-(SUMPRODUCT((TablaInventarios[Cab.])*(TablaInventarios[Actividad]=Indices[[#Headers],[Guachera]])*(TablaInventarios[Categoría]=\"Terneros al pie\"))+SUMPRODUCT((TablaMovimientos[Cab.])*(TablaMovimientos[Fecha]<=Indices[[#This Row],[Fecha]])*(TablaMovimientos[Actividad]=Indices[[#Headers],[Guachera]])*(TablaMovimientos[Categoría]=\"Terneros al pie\"))))","v":0},{"$f":"+SUM(Indices[[#This Row],[Cría]:[Guachera]])","v":0},{"$f":"IF(DATE(YEAR(Indices[[#This Row],[Fecha]]),MONTH(Indices[[#This Row],[Fecha]]),1)>=DATE(YEAR('Planilla de datos'!$N$19-1),MONTH('Planilla de datos'!$N$19-1),1),1,0)*IF(DATE(YEAR(Indices[[#This Row],[Fecha]]),MONTH(Indices[[#This Row],[Fecha]]),1)<='Planilla de datos'!$P$19,1,0)","v":0}]
["2022-02-01",{"$f":"IF(C14=0,\"\",VLOOKUP('Planilla de datos'!$T$23,'SIPM (Actualización en $)'!$A$6:$C$42,3,FALSE)/C14)","v":""},null,{"$f":"IF(Indices[[#This Row],[Meses activos]]=0,0,(SUMPRODUCT((TablaInventarios[Cab.])*(TablaInventarios[Actividad]=Indices[[#Headers],[Cría]]))+SUMPRODUCT((TablaMovimientos[Cab.])*(TablaMovimientos[Fecha]<=Indices[[#This Row],[Fecha]])*(TablaMovimientos[Actividad]=Indices[[#Headers],[Cría]])))-(SUMPRODUCT((TablaInventarios[Cab.])*(TablaInventarios[Actividad]=Indices[[#Headers],[Cría]])*(TablaInventarios[Categoría]=\"Terneros al pie\"))+SUMPRODUCT((TablaMovimientos[Cab.])*(TablaMovimientos[Fecha]<=Indices[[#This Row],[Fecha]])*(TablaMovimientos[Actividad]=Indices[[#Headers],[Cría]])*(TablaMovimientos[Categoría]=\"Terneros al pie\"))))","v":0},{"$f":"IF(Indices[[#This Row],[Meses activos]]=0,0,(SUMPRODUCT((TablaInventarios[Cab.])*(TablaInventarios[Actividad]=Indices[[#Headers],[Recría]]))+SUMPRODUCT((TablaMovimientos[Cab.])*(TablaMovimientos[Fecha]<=Indices[[#This Row],[Fecha]])*(TablaMovimientos[Actividad]=Indices[[#Headers],[Recría]])))-(SUMPRODUCT((TablaInventarios[Cab.])*(TablaInventarios[Actividad]=Indices[[#Headers],[Recría]])*(TablaInventarios[Categoría]=\"Terneros al pie\"))+SUMPRODUCT((TablaMovimientos[Cab.])*(TablaMovimientos[Fecha]<=Indices[[#This Row],[Fecha]])*(TablaMovimientos[Actividad]=Indices[[#Headers],[Recría]])*(TablaMovimientos[Categoría]=\"Terneros al pie\"))))","v":0},{"$f":"IF(Indices[[#This Row],[Meses activos]]=0,0,(SUMPRODUCT((TablaInventarios[Cab.])*(TablaInventarios[Actividad]=Indices[[#Headers],[Invernada]]))+SUMPRODUCT((TablaMovimientos[Cab.])*(TablaMovimientos[Fecha]<=Indices[[#This Row],[Fecha]])*(TablaMovimientos[Actividad]=Indices[[#Headers],[Invernada]])))-(SUMPRODUCT((TablaInventarios[Cab.])*(TablaInventarios[Actividad]=Indices[[#Headers],[Invernada]])*(TablaInventarios[Categoría]=\"Terneros al pie\"))+SUMPRODUCT((TablaMovimientos[Cab.])*(TablaMovimientos[Fecha]<=Indices[[#This Row],[Fecha]])*(TablaMovimientos[Actividad]=Indices[[#Headers],[Invernada]])*(TablaMovimientos[Categoría]=\"Terneros al pie\"))))","v":0},{"$f":"IF(Indices[[#This Row],[Meses activos]]=0,0,(SUMPRODUCT((TablaInventarios[Cab.])*(TablaInventarios[Actividad]=Indices[[#Headers],[Feed-lot]]))+SUMPRODUCT((TablaMovimientos[Cab.])*(TablaMovimientos[Fecha]<=Indices[[#This Row],[Fecha]])*(TablaMovimientos[Actividad]=Indices[[#Headers],[Feed-lot]])))-(SUMPRODUCT((TablaInventarios[Cab.])*(TablaInventarios[Actividad]=Indices[[#Headers],[Feed-lot]])*(TablaInventarios[Categoría]=\"Terneros al pie\"))+SUMPRODUCT((TablaMovimientos[Cab.])*(TablaMovimientos[Fecha]<=Indices[[#This Row],[Fecha]])*(TablaMovimientos[Actividad]=Indices[[#Headers],[Feed-lot]])*(TablaMovimientos[Categoría]=\"Terneros al pie\"))))","v":0},{"$f":"IF(Indices[[#This Row],[Meses activos]]=0,0,(SUMPRODUCT((TablaInventarios[Cab.])*(TablaInventarios[Actividad]=Indices[[#Headers],[Cabaña]]))+SUMPRODUCT((TablaMovimientos[Cab.])*(TablaMovimientos[Fecha]<=Indices[[#This Row],[Fecha]])*(TablaMovimientos[Actividad]=Indices[[#Headers],[Cabaña]])))-(SUMPRODUCT((TablaInventarios[Cab.])*(TablaInventarios[Actividad]=Indices[[#Headers],[Cabaña]])*(TablaInventarios[Categoría]=\"Terneros al pie\"))+SUMPRODUCT((TablaMovimientos[Cab.])*(TablaMovimientos[Fecha]<=Indices[[#This Row],[Fecha]])*(TablaMovimientos[Actividad]=Indices[[#Headers],[Cabaña]])*(TablaMovimientos[Categoría]=\"Terneros al pie\"))))","v":0},{"$f":"IF(Indices[[#This Row],[Meses activos]]=0,0,(SUMPRODUCT((TablaInventarios[Cab.])*(TablaInventarios[Actividad]=Indices[[#Headers],[Tambo]]))+SUMPRODUCT((TablaMovimientos[Cab.])*(TablaMovimientos[Fecha]<=Indices[[#This Row],[Fecha]])*(TablaMovimientos[Actividad]=Indices[[#Headers],[Tambo]])))-(SUMPRODUCT((TablaInventarios[Cab.])*(TablaInventarios[Actividad]=Indices[[#Headers],[Tambo]])*(TablaInventarios[Categoría]=\"Terneros al pie\"))+SUMPRODUCT((TablaMovimientos[Cab.])*(TablaMovimientos[Fecha]<=Indices[[#This Row],[Fecha]])*(TablaMovimientos[Actividad]=Indices[[#Headers],[Tambo]])*(TablaMovimientos[Categoría]=\"Terneros al pie\"))))","v":0},{"$f":"IF(Indices[[#This Row],[Meses activos]]=0,0,(SUMPRODUCT((TablaInventarios[Cab.])*(TablaInventarios[Actividad]=Indices[[#Headers],[Guachera]]))+SUMPRODUCT((TablaMovimientos[Cab.])*(TablaMovimientos[Fecha]<=Indices[[#This Row],[Fecha]])*(TablaMovimientos[Actividad]=Indices[[#Headers],[Guachera]])))-(SUMPRODUCT((TablaInventarios[Cab.])*(TablaInventarios[Actividad]=Indices[[#Headers],[Guachera]])*(TablaInventarios[Categoría]=\"Terneros al pie\"))+SUMPRODUCT((TablaMovimientos[Cab.])*(TablaMovimientos[Fecha]<=Indices[[#This Row],[Fecha]])*(TablaMovimientos[Actividad]=Indices[[#Headers],[Guachera]])*(TablaMovimientos[Categoría]=\"Terneros al pie\"))))","v":0},{"$f":"+SUM(Indices[[#This Row],[Cría]:[Guachera]])","v":0},{"$f":"IF(DATE(YEAR(Indices[[#This Row],[Fecha]]),MONTH(Indices[[#This Row],[Fecha]]),1)>=DATE(YEAR('Planilla de datos'!$N$19-1),MONTH('Planilla de datos'!$N$19-1),1),1,0)*IF(DATE(YEAR(Indices[[#This Row],[Fecha]]),MONTH(Indices[[#This Row],[Fecha]]),1)<='Planilla de datos'!$P$19,1,0)","v":0}]
["2022-03-01",{"$f":"IF(C15=0,\"\",VLOOKUP('Planilla de datos'!$T$23,'SIPM (Actualización en $)'!$A$6:$C$42,3,FALSE)/C15)","v":""},null,{"$f":"IF(Indices[[#This Row],[Meses activos]]=0,0,(SUMPRODUCT((TablaInventarios[Cab.])*(TablaInventarios[Actividad]=Indices[[#Headers],[Cría]]))+SUMPRODUCT((TablaMovimientos[Cab.])*(TablaMovimientos[Fecha]<=Indices[[#This Row],[Fecha]])*(TablaMovimientos[Actividad]=Indices[[#Headers],[Cría]])))-(SUMPRODUCT((TablaInventarios[Cab.])*(TablaInventarios[Actividad]=Indices[[#Headers],[Cría]])*(TablaInventarios[Categoría]=\"Terneros al pie\"))+SUMPRODUCT((TablaMovimientos[Cab.])*(TablaMovimientos[Fecha]<=Indices[[#This Row],[Fecha]])*(TablaMovimientos[Actividad]=Indices[[#Headers],[Cría]])*(TablaMovimientos[Categoría]=\"Terneros al pie\"))))","v":0},{"$f":"IF(Indices[[#This Row],[Meses activos]]=0,0,(SUMPRODUCT((TablaInventarios[Cab.])*(TablaInventarios[Actividad]=Indices[[#Headers],[Recría]]))+SUMPRODUCT((TablaMovimientos[Cab.])*(TablaMovimientos[Fecha]<=Indices[[#This Row],[Fecha]])*(TablaMovimientos[Actividad]=Indices[[#Headers],[Recría]])))-(SUMPRODUCT((TablaInventarios[Cab.])*(TablaInventarios[Actividad]=Indices[[#Headers],[Recría]])*(TablaInventarios[Categoría]=\"Terneros al pie\"))+SUMPRODUCT((TablaMovimientos[Cab.])*(TablaMovimientos[Fecha]<=Indices[[#This Row],[Fecha]])*(TablaMovimientos[Actividad]=Indices[[#Headers],[Recría]])*(TablaMovimientos[Categoría]=\"Terneros al pie\"))))","v":0},{"$f":"IF(Indices[[#This Row],[Meses activos]]=0,0,(SUMPRODUCT((TablaInventarios[Cab.])*(TablaInventarios[Actividad]=Indices[[#Headers],[Invernada]]))+SUMPRODUCT((TablaMovimientos[Cab.])*(TablaMovimientos[Fecha]<=Indices[[#This Row],[Fecha]])*(TablaMovimientos[Actividad]=Indices[[#Headers],[Invernada]])))-(SUMPRODUCT((TablaInventarios[Cab.])*(TablaInventarios[Actividad]=Indices[[#Headers],[Invernada]])*(TablaInventarios[Categoría]=\"Terneros al pie\"))+SUMPRODUCT((TablaMovimientos[Cab.])*(TablaMovimientos[Fecha]<=Indices[[#This Row],[Fecha]])*(TablaMovimientos[Actividad]=Indices[[#Headers],[Invernada]])*(TablaMovimientos[Categoría]=\"Terneros al pie\"))))","v":0},{"$f":"IF(Indices[[#This Row],[Meses activos]]=0,0,(SUMPRODUCT((TablaInventarios[Cab.])*(TablaInventarios[Actividad]=Indices[[#Headers],[Feed-lot]]))+SUMPRODUCT((TablaMovimientos[Cab.])*(TablaMovimientos[Fecha]<=Indices[[#This Row],[Fecha]])*(TablaMovimientos[Actividad]=Indices[[#Headers],[Feed-lot]])))-(SUMPRODUCT((TablaInventarios[Cab.])*(TablaInventarios[Actividad]=Indices[[#Headers],[Feed-lot]])*(TablaInventarios[Categoría]=\"Terneros al pie\"))+SUMPRODUCT((TablaMovimientos[Cab.])*(TablaMovimientos[Fecha]<=Indices[[#This Row],[Fecha]])*(TablaMovimientos[Actividad]=Indices[[#Headers],[Feed-lot]])*(TablaMovimientos[Categoría]=\"Terneros al pie\"))))","v":0},{"$f":"IF(Indices[[#This Row],[Meses activos]]=0,0,(SUMPRODUCT((TablaInventarios[Cab.])*(TablaInventarios[Actividad]=Indices[[#Headers],[Cabaña]]))+SUMPRODUCT((TablaMovimientos[Cab.])*(TablaMovimientos[Fecha]<=Indices[[#This Row],[Fecha]])*(TablaMovimientos[Actividad]=Indices[[#Headers],[Cabaña]])))-(SUMPRODUCT((TablaInventarios[Cab.])*(TablaInventarios[Actividad]=Indices[[#Headers],[Cabaña]])*(TablaInventarios[Categoría]=\"Terneros al pie\"))+SUMPRODUCT((TablaMovimientos[Cab.])*(TablaMovimientos[Fecha]<=Indices[[#This Row],[Fecha]])*(TablaMovimientos[Actividad]=Indices[[#Headers],[Cabaña]])*(TablaMovimientos[Categoría]=\"Terneros al pie\"))))","v":0},{"$f":"IF(Indices[[#This Row],[Meses activos]]=0,0,(SUMPRODUCT((TablaInventarios[Cab.])*(TablaInventarios[Actividad]=Indices[[#Headers],[Tambo]]))+SUMPRODUCT((TablaMovimientos[Cab.])*(TablaMovimientos[Fecha]<=Indices[[#This Row],[Fecha]])*(TablaMovimientos[Actividad]=Indices[[#Headers],[Tambo]])))-(SUMPRODUCT((TablaInventarios[Cab.])*(TablaInventarios[Actividad]=Indices[[#Headers],[Tambo]])*(TablaInventarios[Categoría]=\"Terneros al pie\"))+SUMPRODUCT((TablaMovimientos[Cab.])*(TablaMovimientos[Fecha]<=Indices[[#This Row],[Fecha]])*(TablaMovimientos[Actividad]=Indices[[#Headers],[Tambo]])*(TablaMovimientos[Categoría]=\"Terneros al pie\"))))","v":0},{"$f":"IF(Indices[[#This Row],[Meses activos]]=0,0,(SUMPRODUCT((TablaInventarios[Cab.])*(TablaInventarios[Actividad]=Indices[[#Headers],[Guachera]]))+SUMPRODUCT((TablaMovimientos[Cab.])*(TablaMovimientos[Fecha]<=Indices[[#This Row],[Fecha]])*(TablaMovimientos[Actividad]=Indices[[#Headers],[Guachera]])))-(SUMPRODUCT((TablaInventarios[Cab.])*(TablaInventarios[Actividad]=Indices[[#Headers],[Guachera]])*(TablaInventarios[Categoría]=\"Terneros al pie\"))+SUMPRODUCT((TablaMovimientos[Cab.])*(TablaMovimientos[Fecha]<=Indices[[#This Row],[Fecha]])*(TablaMovimientos[Actividad]=Indices[[#Headers],[Guachera]])*(TablaMovimientos[Categoría]=\"Terneros al pie\"))))","v":0},{"$f":"+SUM(Indices[[#This Row],[Cría]:[Guachera]])","v":0},{"$f":"IF(DATE(YEAR(Indices[[#This Row],[Fecha]]),MONTH(Indices[[#This Row],[Fecha]]),1)>=DATE(YEAR('Planilla de datos'!$N$19-1),MONTH('Planilla de datos'!$N$19-1),1),1,0)*IF(DATE(YEAR(Indices[[#This Row],[Fecha]]),MONTH(Indices[[#This Row],[Fecha]]),1)<='Planilla de datos'!$P$19,1,0)","v":0}]
["2022-04-01",{"$f":"IF(C16=0,\"\",VLOOKUP('Planilla de datos'!$T$23,'SIPM (Actualización en $)'!$A$6:$C$42,3,FALSE)/C16)","v":""},null,{"$f":"IF(Indices[[#This Row],[Meses activos]]=0,0,(SUMPRODUCT((TablaInventarios[Cab.])*(TablaInventarios[Actividad]=Indices[[#Headers],[Cría]]))+SUMPRODUCT((TablaMovimientos[Cab.])*(TablaMovimientos[Fecha]<=Indices[[#This Row],[Fecha]])*(TablaMovimientos[Actividad]=Indices[[#Headers],[Cría]])))-(SUMPRODUCT((TablaInventarios[Cab.])*(TablaInventarios[Actividad]=Indices[[#Headers],[Cría]])*(TablaInventarios[Categoría]=\"Terneros al pie\"))+SUMPRODUCT((TablaMovimientos[Cab.])*(TablaMovimientos[Fecha]<=Indices[[#This Row],[Fecha]])*(TablaMovimientos[Actividad]=Indices[[#Headers],[Cría]])*(TablaMovimientos[Categoría]=\"Terneros al pie\"))))","v":0},{"$f":"IF(Indices[[#This Row],[Meses activos]]=0,0,(SUMPRODUCT((TablaInventarios[Cab.])*(TablaInventarios[Actividad]=Indices[[#Headers],[Recría]]))+SUMPRODUCT((TablaMovimientos[Cab.])*(TablaMovimientos[Fecha]<=Indices[[#This Row],[Fecha]])*(TablaMovimientos[Actividad]=Indices[[#Headers],[Recría]])))-(SUMPRODUCT((TablaInventarios[Cab.])*(TablaInventarios[Actividad]=Indices[[#Headers],[Recría]])*(TablaInventarios[Categoría]=\"Terneros al pie\"))+SUMPRODUCT((TablaMovimientos[Cab.])*(TablaMovimientos[Fecha]<=Indices[[#This Row],[Fecha]])*(TablaMovimientos[Actividad]=Indices[[#Headers],[Recría]])*(TablaMovimientos[Categoría]=\"Terneros al pie\"))))","v":0},{"$f":"IF(Indices[[#This Row],[Meses activos]]=0,0,(SUMPRODUCT((TablaInventarios[Cab.])*(TablaInventarios[Actividad]=Indices[[#Headers],[Invernada]]))+SUMPRODUCT((TablaMovimientos[Cab.])*(TablaMovimientos[Fecha]<=Indices[[#This Row],[Fecha]])*(TablaMovimientos[Actividad]=Indices[[#Headers],[Invernada]])))-(SUMPRODUCT((TablaInventarios[Cab.])*(TablaInventarios[Actividad]=Indices[[#Headers],[Invernada]])*(TablaInventarios[Categoría]=\"Terneros al pie\"))+SUMPRODUCT((TablaMovimientos[Cab.])*(TablaMovimientos[Fecha]<=Indices[[#This Row],[Fecha]])*(TablaMovimientos[Actividad]=Indices[[#Headers],[Invernada]])*(TablaMovimientos[Categoría]=\"Terneros al pie\"))))","v":0},{"$f":"IF(Indices[[#This Row],[Meses activos]]=0,0,(SUMPRODUCT((TablaInventarios[Cab.])*(TablaInventarios[Actividad]=Indices[[#Headers],[Feed-lot]]))+SUMPRODUCT((TablaMovimientos[Cab.])*(TablaMovimientos[Fecha]<=Indices[[#This Row],[Fecha]])*(TablaMovimientos[Actividad]=Indices[[#Headers],[Feed-lot]])))-(SUMPRODUCT((TablaInventarios[Cab.])*(TablaInventarios[Actividad]=Indices[[#Headers],[Feed-lot]])*(TablaInventarios[Categoría]=\"Terneros al pie\"))+SUMPRODUCT((TablaMovimientos[Cab.])*(TablaMovimientos[Fecha]<=Indices[[#This Row],[Fecha]])*(TablaMovimientos[Actividad]=Indices[[#Headers],[Feed-lot]])*(TablaMovimientos[Categoría]=\"Terneros al pie\"))))","v":0},{"$f":"IF(Indices[[#This Row],[Meses activos]]=0,0,(SUMPRODUCT((TablaInventarios[Cab.])*(TablaInventarios[Actividad]=Indices[[#Headers],[Cabaña]]))+SUMPRODUCT((TablaMovimientos[Cab.])*(TablaMovimientos[Fecha]<=Indices[[#This Row],[Fecha]])*(TablaMovimientos[Actividad]=Indices[[#Headers],[Cabaña]])))-(SUMPRODUCT((TablaInventarios[Cab.])*(TablaInventarios[Actividad]=Indices[[#Headers],[Cabaña]])*(TablaInventarios[Categoría]=\"Terneros al pie\"))+SUMPRODUCT((TablaMovimientos[Cab.])*(TablaMovimientos[Fecha]<=Indices[[#This Row],[Fecha]])*(TablaMovimientos[Actividad]=Indices[[#Headers],[Cabaña]])*(TablaMovimientos[Categoría]=\"Terneros al pie\"))))","v":0},{"$f":"IF(Indices[[#This Row],[Meses activos]]=0,0,(SUMPRODUCT((TablaInventarios[Cab.])*(TablaInventarios[Actividad]=Indices[[#Headers],[Tambo]]))+SUMPRODUCT((TablaMovimientos[Cab.])*(TablaMovimientos[Fecha]<=Indices[[#This Row],[Fecha]])*(TablaMovimientos[Actividad]=Indices[[#Headers],[Tambo]])))-(SUMPRODUCT((TablaInventarios[Cab.])*(TablaInventarios[Actividad]=Indices[[#Headers],[Tambo]])*(TablaInventarios[Categoría]=\"Terneros al pie\"))+SUMPRODUCT((TablaMovimientos[Cab.])*(TablaMovimientos[Fecha]<=Indices[[#This Row],[Fecha]])*(TablaMovimientos[Actividad]=Indices[[#Headers],[Tambo]])*(TablaMovimientos[Categoría]=\"Terneros al pie\"))))","v":0},{"$f":"IF(Indices[[#This Row],[Meses activos]]=0,0,(SUMPRODUCT((TablaInventarios[Cab.])*(TablaInventarios[Actividad]=Indices[[#Headers],[Guachera]]))+SUMPRODUCT((TablaMovimientos[Cab.])*(TablaMovimientos[Fecha]<=Indices[[#This Row],[Fecha]])*(TablaMovimientos[Actividad]=Indices[[#Headers],[Guachera]])))-(SUMPRODUCT((TablaInventarios[Cab.])*(TablaInventarios[Actividad]=Indices[[#Headers],[Guachera]])*(TablaInventarios[Categoría]=\"Terneros al pie\"))+SUMPRODUCT((TablaMovimientos[Cab.])*(TablaMovimientos[Fecha]<=Indices[[#This Row],[Fecha]])*(TablaMovimientos[Actividad]=Indices[[#Headers],[Guachera]])*(TablaMovimientos[Categoría]=\"Terneros al pie\"))))","v":0},{"$f":"+SUM(Indices[[#This Row],[Cría]:[Guachera]])","v":0},{"$f":"IF(DATE(YEAR(Indices[[#This Row],[Fecha]]),MONTH(Indices[[#This Row],[Fecha]]),1)>=DATE(YEAR('Planilla de datos'!$N$19-1),MONTH('Planilla de datos'!$N$19-1),1),1,0)*IF(DATE(YEAR(Indices[[#This Row],[Fecha]]),MONTH(Indices[[#This Row],[Fecha]]),1)<='Planilla de datos'!$P$19,1,0)","v":0}]
["2022-05-01",{"$f":"IF(C17=0,\"\",VLOOKUP('Planilla de datos'!$T$23,'SIPM (Actualización en $)'!$A$6:$C$42,3,FALSE)/C17)","v":""},null,{"$f":"IF(Indices[[#This Row],[Meses activos]]=0,0,(SUMPRODUCT((TablaInventarios[Cab.])*(TablaInventarios[Actividad]=Indices[[#Headers],[Cría]]))+SUMPRODUCT((TablaMovimientos[Cab.])*(TablaMovimientos[Fecha]<=Indices[[#This Row],[Fecha]])*(TablaMovimientos[Actividad]=Indices[[#Headers],[Cría]])))-(SUMPRODUCT((TablaInventarios[Cab.])*(TablaInventarios[Actividad]=Indices[[#Headers],[Cría]])*(TablaInventarios[Categoría]=\"Terneros al pie\"))+SUMPRODUCT((TablaMovimientos[Cab.])*(TablaMovimientos[Fecha]<=Indices[[#This Row],[Fecha]])*(TablaMovimientos[Actividad]=Indices[[#Headers],[Cría]])*(TablaMovimientos[Categoría]=\"Terneros al pie\"))))","v":0},{"$f":"IF(Indices[[#This Row],[Meses activos]]=0,0,(SUMPRODUCT((TablaInventarios[Cab.])*(TablaInventarios[Actividad]=Indices[[#Headers],[Recría]]))+SUMPRODUCT((TablaMovimientos[Cab.])*(TablaMovimientos[Fecha]<=Indices[[#This Row],[Fecha]])*(TablaMovimientos[Actividad]=Indices[[#Headers],[Recría]])))-(SUMPRODUCT((TablaInventarios[Cab.])*(TablaInventarios[Actividad]=Indices[[#Headers],[Recría]])*(TablaInventarios[Categoría]=\"Terneros al pie\"))+SUMPRODUCT((TablaMovimientos[Cab.])*(TablaMovimientos[Fecha]<=Indices[[#This Row],[Fecha]])*(TablaMovimientos[Actividad]=Indices[[#Headers],[Recría]])*(TablaMovimientos[Categoría]=\"Terneros al pie\"))))","v":0},{"$f":"IF(Indices[[#This Row],[Meses activos]]=0,0,(SUMPRODUCT((TablaInventarios[Cab.])*(TablaInventarios[Actividad]=Indices[[#Headers],[Invernada]]))+SUMPRODUCT((TablaMovimientos[Cab.])*(TablaMovimientos[Fecha]<=Indices[[#This Row],[Fecha]])*(TablaMovimientos[Actividad]=Indices[[#Headers],[Invernada]])))-(SUMPRODUCT((TablaInventarios[Cab.])*(TablaInventarios[Actividad]=Indices[[#Headers],[Invernada]])*(TablaInventarios[Categoría]=\"Terneros al pie\"))+SUMPRODUCT((TablaMovimientos[Cab.])*(TablaMovimientos[Fecha]<=Indices[[#This Row],[Fecha]])*(TablaMovimientos[Actividad]=Indices[[#Headers],[Invernada]])*(TablaMovimientos[Categoría]=\"Terneros al pie\"))))","v":0},{"$f":"IF(Indices[[#This Row],[Meses activos]]=0,0,(SUMPRODUCT((TablaInventarios[Cab.])*(TablaInventarios[Actividad]=Indices[[#Headers],[Feed-lot]]))+SUMPRODUCT((TablaMovimientos[Cab.])*(TablaMovimientos[Fecha]<=Indices[[#This Row],[Fecha]])*(TablaMovimientos[Actividad]=Indices[[#Headers],[Feed-lot]])))-(SUMPRODUCT((TablaInventarios[Cab.])*(TablaInventarios[Actividad]=Indices[[#Headers],[Feed-lot]])*(TablaInventarios[Categoría]=\"Terneros al pie\"))+SUMPRODUCT((TablaMovimientos[Cab.])*(TablaMovimientos[Fecha]<=Indices[[#This Row],[Fecha]])*(TablaMovimientos[Actividad]=Indices[[#Headers],[Feed-lot]])*(TablaMovimientos[Categoría]=\"Terneros al pie\"))))","v":0},{"$f":"IF(Indices[[#This Row],[Meses activos]]=0,0,(SUMPRODUCT((TablaInventarios[Cab.])*(TablaInventarios[Actividad]=Indices[[#Headers],[Cabaña]]))+SUMPRODUCT((TablaMovimientos[Cab.])*(TablaMovimientos[Fecha]<=Indices[[#This Row],[Fecha]])*(TablaMovimientos[Actividad]=Indices[[#Headers],[Cabaña]])))-(SUMPRODUCT((TablaInventarios[Cab.])*(TablaInventarios[Actividad]=Indices[[#Headers],[Cabaña]])*(TablaInventarios[Categoría]=\"Terneros al pie\"))+SUMPRODUCT((TablaMovimientos[Cab.])*(TablaMovimientos[Fecha]<=Indices[[#This Row],[Fecha]])*(TablaMovimientos[Actividad]=Indices[[#Headers],[Cabaña]])*(TablaMovimientos[Categoría]=\"Terneros al pie\"))))","v":0},{"$f":"IF(Indices[[#This Row],[Meses activos]]=0,0,(SUMPRODUCT((TablaInventarios[Cab.])*(TablaInventarios[Actividad]=Indices[[#Headers],[Tambo]]))+SUMPRODUCT((TablaMovimientos[Cab.])*(TablaMovimientos[Fecha]<=Indices[[#This Row],[Fecha]])*(TablaMovimientos[Actividad]=Indices[[#Headers],[Tambo]])))-(SUMPRODUCT((TablaInventarios[Cab.])*(TablaInventarios[Actividad]=Indices[[#Headers],[Tambo]])*(TablaInventarios[Categoría]=\"Terneros al pie\"))+SUMPRODUCT((TablaMovimientos[Cab.])*(TablaMovimientos[Fecha]<=Indices[[#This Row],[Fecha]])*(TablaMovimientos[Actividad]=Indices[[#Headers],[Tambo]])*(TablaMovimientos[Categoría]=\"Terneros al pie\"))))","v":0},{"$f":"IF(Indices[[#This Row],[Meses activos]]=0,0,(SUMPRODUCT((TablaInventarios[Cab.])*(TablaInventarios[Actividad]=Indices[[#Headers],[Guachera]]))+SUMPRODUCT((TablaMovimientos[Cab.])*(TablaMovimientos[Fecha]<=Indices[[#This Row],[Fecha]])*(TablaMovimientos[Actividad]=Indices[[#Headers],[Guachera]])))-(SUMPRODUCT((TablaInventarios[Cab.])*(TablaInventarios[Actividad]=Indices[[#Headers],[Guachera]])*(TablaInventarios[Categoría]=\"Terneros al pie\"))+SUMPRODUCT((TablaMovimientos[Cab.])*(TablaMovimientos[Fecha]<=Indices[[#This Row],[Fecha]])*(TablaMovimientos[Actividad]=Indices[[#Headers],[Guachera]])*(TablaMovimientos[Categoría]=\"Terneros al pie\"))))","v":0},{"$f":"+SUM(Indices[[#This Row],[Cría]:[Guachera]])","v":0},{"$f":"IF(DATE(YEAR(Indices[[#This Row],[Fecha]]),MONTH(Indices[[#This Row],[Fecha]]),1)>=DATE(YEAR('Planilla de datos'!$N$19-1),MONTH('Planilla de datos'!$N$19-1),1),1,0)*IF(DATE(YEAR(Indices[[#This Row],[Fecha]]),MONTH(Indices[[#This Row],[Fecha]]),1)<='Planilla de datos'!$P$19,1,0)","v":0}]
["2022-06-01",{"$f":"IF(C18=0,\"\",VLOOKUP('Planilla de datos'!$T$23,'SIPM (Actualización en $)'!$A$6:$C$42,3,FALSE)/C18)","v":""},null,{"$f":"IF(Indices[[#This Row],[Meses activos]]=0,0,(SUMPRODUCT((TablaInventarios[Cab.])*(TablaInventarios[Actividad]=Indices[[#Headers],[Cría]]))+SUMPRODUCT((TablaMovimientos[Cab.])*(TablaMovimientos[Fecha]<=Indices[[#This Row],[Fecha]])*(TablaMovimientos[Actividad]=Indices[[#Headers],[Cría]])))-(SUMPRODUCT((TablaInventarios[Cab.])*(TablaInventarios[Actividad]=Indices[[#Headers],[Cría]])*(TablaInventarios[Categoría]=\"Terneros al pie\"))+SUMPRODUCT((TablaMovimientos[Cab.])*(TablaMovimientos[Fecha]<=Indices[[#This Row],[Fecha]])*(TablaMovimientos[Actividad]=Indices[[#Headers],[Cría]])*(TablaMovimientos[Categoría]=\"Terneros al pie\"))))","v":0},{"$f":"IF(Indices[[#This Row],[Meses activos]]=0,0,(SUMPRODUCT((TablaInventarios[Cab.])*(TablaInventarios[Actividad]=Indices[[#Headers],[Recría]]))+SUMPRODUCT((TablaMovimientos[Cab.])*(TablaMovimientos[Fecha]<=Indices[[#This Row],[Fecha]])*(TablaMovimientos[Actividad]=Indices[[#Headers],[Recría]])))-(SUMPRODUCT((TablaInventarios[Cab.])*(TablaInventarios[Actividad]=Indices[[#Headers],[Recría]])*(TablaInventarios[Categoría]=\"Terneros al pie\"))+SUMPRODUCT((TablaMovimientos[Cab.])*(TablaMovimientos[Fecha]<=Indices[[#This Row],[Fecha]])*(TablaMovimientos[Actividad]=Indices[[#Headers],[Recría]])*(TablaMovimientos[Categoría]=\"Terneros al pie\"))))","v":0},{"$f":"IF(Indices[[#This Row],[Meses activos]]=0,0,(SUMPRODUCT((TablaInventarios[Cab.])*(TablaInventarios[Actividad]=Indices[[#Headers],[Invernada]]))+SUMPRODUCT((TablaMovimientos[Cab.])*(TablaMovimientos[Fecha]<=Indices[[#This Row],[Fecha]])*(TablaMovimientos[Actividad]=Indices[[#Headers],[Invernada]])))-(SUMPRODUCT((TablaInventarios[Cab.])*(TablaInventarios[Actividad]=Indices[[#Headers],[Invernada]])*(TablaInventarios[Categoría]=\"Terneros al pie\"))+SUMPRODUCT((TablaMovimientos[Cab.])*(TablaMovimientos[Fecha]<=Indices[[#This Row],[Fecha]])*(TablaMovimientos[Actividad]=Indices[[#Headers],[Invernada]])*(TablaMovimientos[Categoría]=\"Terneros al pie\"))))","v":0},{"$f":"IF(Indices[[#This Row],[Meses activos]]=0,0,(SUMPRODUCT((TablaInventarios[Cab.])*(TablaInventarios[Actividad]=Indices[[#Headers],[Feed-lot]]))+SUMPRODUCT((TablaMovimientos[Cab.])*(TablaMovimientos[Fecha]<=Indices[[#This Row],[Fecha]])*(TablaMovimientos[Actividad]=Indices[[#Headers],[Feed-lot]])))-(SUMPRODUCT((TablaInventarios[Cab.])*(TablaInventarios[Actividad]=Indices[[#Headers],[Feed-lot]])*(TablaInventarios[Categoría]=\"Terneros al pie\"))+SUMPRODUCT((TablaMovimientos[Cab.])*(TablaMovimientos[Fecha]<=Indices[[#This Row],[Fecha]])*(TablaMovimientos[Actividad]=Indices[[#Headers],[Feed-lot]])*(TablaMovimientos[Categoría]=\"Terneros al pie\"))))","v":0},{"$f":"IF(Indices[[#This Row],[Meses activos]]=0,0,(SUMPRODUCT((TablaInventarios[Cab.])*(TablaInventarios[Actividad]=Indices[[#Headers],[Cabaña]]))+SUMPRODUCT((TablaMovimientos[Cab.])*(TablaMovimientos[Fecha]<=Indices[[#This Row],[Fecha]])*(TablaMovimientos[Actividad]=Indices[[#Headers],[Cabaña]])))-(SUMPRODUCT((TablaInventarios[Cab.])*(TablaInventarios[Actividad]=Indices[[#Headers],[Cabaña]])*(TablaInventarios[Categoría]=\"Terneros al pie\"))+SUMPRODUCT((TablaMovimientos[Cab.])*(TablaMovimientos[Fecha]<=Indices[[#This Row],[Fecha]])*(TablaMovimientos[Actividad]=Indices[[#Headers],[Cabaña]])*(TablaMovimientos[Categoría]=\"Terneros al pie\"))))","v":0},{"$f":"IF(Indices[[#This Row],[Meses activos]]=0,0,(SUMPRODUCT((TablaInventarios[Cab.])*(TablaInventarios[Actividad]=Indices[[#Headers],[Tambo]]))+SUMPRODUCT((TablaMovimientos[Cab.])*(TablaMovimientos[Fecha]<=Indices[[#This Row],[Fecha]])*(TablaMovimientos[Actividad]=Indices[[#Headers],[Tambo]])))-(SUMPRODUCT((TablaInventarios[Cab.])*(TablaInventarios[Actividad]=Indices[[#Headers],[Tambo]])*(TablaInventarios[Categoría]=\"Terneros al pie\"))+SUMPRODUCT((TablaMovimientos[Cab.])*(TablaMovimientos[Fecha]<=Indices[[#This Row],[Fecha]])*(TablaMovimientos[Actividad]=Indices[[#Headers],[Tambo]])*(TablaMovimientos[Categoría]=\"Terneros al pie\"))))","v":0},{"$f":"IF(Indices[[#This Row],[Meses activos]]=0,0,(SUMPRODUCT((TablaInventarios[Cab.])*(TablaInventarios[Actividad]=Indices[[#Headers],[Guachera]]))+SUMPRODUCT((TablaMovimientos[Cab.])*(TablaMovimientos[Fecha]<=Indices[[#This Row],[Fecha]])*(TablaMovimientos[Actividad]=Indices[[#Headers],[Guachera]])))-(SUMPRODUCT((TablaInventarios[Cab.])*(TablaInventarios[Actividad]=Indices[[#Headers],[Guachera]])*(TablaInventarios[Categoría]=\"Terneros al pie\"))+SUMPRODUCT((TablaMovimientos[Cab.])*(TablaMovimientos[Fecha]<=Indices[[#This Row],[Fecha]])*(TablaMovimientos[Actividad]=Indices[[#Headers],[Guachera]])*(TablaMovimientos[Categoría]=\"Terneros al pie\"))))","v":0},{"$f":"+SUM(Indices[[#This Row],[Cría]:[Guachera]])","v":0},{"$f":"IF(DATE(YEAR(Indices[[#This Row],[Fecha]]),MONTH(Indices[[#This Row],[Fecha]]),1)>=DATE(YEAR('Planilla de datos'!$N$19-1),MONTH('Planilla de datos'!$N$19-1),1),1,0)*IF(DATE(YEAR(Indices[[#This Row],[Fecha]]),MONTH(Indices[[#This Row],[Fecha]]),1)<='Planilla de datos'!$P$19,1,0)","v":0}]
["2022-07-01",{"$f":"IF(C19=0,\"\",VLOOKUP('Planilla de datos'!$T$23,'SIPM (Actualización en $)'!$A$6:$C$42,3,FALSE)/C19)","v":""},null,{"$f":"IF(Indices[[#This Row],[Meses activos]]=0,0,(SUMPRODUCT((TablaInventarios[Cab.])*(TablaInventarios[Actividad]=Indices[[#Headers],[Cría]]))+SUMPRODUCT((TablaMovimientos[Cab.])*(TablaMovimientos[Fecha]<=Indices[[#This Row],[Fecha]])*(TablaMovimientos[Actividad]=Indices[[#Headers],[Cría]])))-(SUMPRODUCT((TablaInventarios[Cab.])*(TablaInventarios[Actividad]=Indices[[#Headers],[Cría]])*(TablaInventarios[Categoría]=\"Terneros al pie\"))+SUMPRODUCT((TablaMovimientos[Cab.])*(TablaMovimientos[Fecha]<=Indices[[#This Row],[Fecha]])*(TablaMovimientos[Actividad]=Indices[[#Headers],[Cría]])*(TablaMovimientos[Categoría]=\"Terneros al pie\"))))","v":0},{"$f":"IF(Indices[[#This Row],[Meses activos]]=0,0,(SUMPRODUCT((TablaInventarios[Cab.])*(TablaInventarios[Actividad]=Indices[[#Headers],[Recría]]))+SUMPRODUCT((TablaMovimientos[Cab.])*(TablaMovimientos[Fecha]<=Indices[[#This Row],[Fecha]])*(TablaMovimientos[Actividad]=Indices[[#Headers],[Recría]])))-(SUMPRODUCT((TablaInventarios[Cab.])*(TablaInventarios[Actividad]=Indices[[#Headers],[Recría]])*(TablaInventarios[Categoría]=\"Terneros al pie\"))+SUMPRODUCT((TablaMovimientos[Cab.])*(TablaMovimientos[Fecha]<=Indices[[#This Row],[Fecha]])*(TablaMovimientos[Actividad]=Indices[[#Headers],[Recría]])*(TablaMovimientos[Categoría]=\"Terneros al pie\"))))","v":0},{"$f":"IF(Indices[[#This Row],[Meses activos]]=0,0,(SUMPRODUCT((TablaInventarios[Cab.])*(TablaInventarios[Actividad]=Indices[[#Headers],[Invernada]]))+SUMPRODUCT((TablaMovimientos[Cab.])*(TablaMovimientos[Fecha]<=Indices[[#This Row],[Fecha]])*(TablaMovimientos[Actividad]=Indices[[#Headers],[Invernada]])))-(SUMPRODUCT((TablaInventarios[Cab.])*(TablaInventarios[Actividad]=Indices[[#Headers],[Invernada]])*(TablaInventarios[Categoría]=\"Terneros al pie\"))+SUMPRODUCT((TablaMovimientos[Cab.])*(TablaMovimientos[Fecha]<=Indices[[#This Row],[Fecha]])*(TablaMovimientos[Actividad]=Indices[[#Headers],[Invernada]])*(TablaMovimientos[Categoría]=\"Terneros al pie\"))))","v":0},{"$f":"IF(Indices[[#This Row],[Meses activos]]=0,0,(SUMPRODUCT((TablaInventarios[Cab.])*(TablaInventarios[Actividad]=Indices[[#Headers],[Feed-lot]]))+SUMPRODUCT((TablaMovimientos[Cab.])*(TablaMovimientos[Fecha]<=Indices[[#This Row],[Fecha]])*(TablaMovimientos[Actividad]=Indices[[#Headers],[Feed-lot]])))-(SUMPRODUCT((TablaInventarios[Cab.])*(TablaInventarios[Actividad]=Indices[[#Headers],[Feed-lot]])*(TablaInventarios[Categoría]=\"Terneros al pie\"))+SUMPRODUCT((TablaMovimientos[Cab.])*(TablaMovimientos[Fecha]<=Indices[[#This Row],[Fecha]])*(TablaMovimientos[Actividad]=Indices[[#Headers],[Feed-lot]])*(TablaMovimientos[Categoría]=\"Terneros al pie\"))))","v":0},{"$f":"IF(Indices[[#This Row],[Meses activos]]=0,0,(SUMPRODUCT((TablaInventarios[Cab.])*(TablaInventarios[Actividad]=Indices[[#Headers],[Cabaña]]))+SUMPRODUCT((TablaMovimientos[Cab.])*(TablaMovimientos[Fecha]<=Indices[[#This Row],[Fecha]])*(TablaMovimientos[Actividad]=Indices[[#Headers],[Cabaña]])))-(SUMPRODUCT((TablaInventarios[Cab.])*(TablaInventarios[Actividad]=Indices[[#Headers],[Cabaña]])*(TablaInventarios[Categoría]=\"Terneros al pie\"))+SUMPRODUCT((TablaMovimientos[Cab.])*(TablaMovimientos[Fecha]<=Indices[[#This Row],[Fecha]])*(TablaMovimientos[Actividad]=Indices[[#Headers],[Cabaña]])*(TablaMovimientos[Categoría]=\"Terneros al pie\"))))","v":0},{"$f":"IF(Indices[[#This Row],[Meses activos]]=0,0,(SUMPRODUCT((TablaInventarios[Cab.])*(TablaInventarios[Actividad]=Indices[[#Headers],[Tambo]]))+SUMPRODUCT((TablaMovimientos[Cab.])*(TablaMovimientos[Fecha]<=Indices[[#This Row],[Fecha]])*(TablaMovimientos[Actividad]=Indices[[#Headers],[Tambo]])))-(SUMPRODUCT((TablaInventarios[Cab.])*(TablaInventarios[Actividad]=Indices[[#Headers],[Tambo]])*(TablaInventarios[Categoría]=\"Terneros al pie\"))+SUMPRODUCT((TablaMovimientos[Cab.])*(TablaMovimientos[Fecha]<=Indices[[#This Row],[Fecha]])*(TablaMovimientos[Actividad]=Indices[[#Headers],[Tambo]])*(TablaMovimientos[Categoría]=\"Terneros al pie\"))))","v":0},{"$f":"IF(Indices[[#This Row],[Meses activos]]=0,0,(SUMPRODUCT((TablaInventarios[Cab.])*(TablaInventarios[Actividad]=Indices[[#Headers],[Guachera]]))+SUMPRODUCT((TablaMovimientos[Cab.])*(TablaMovimientos[Fecha]<=Indices[[#This Row],[Fecha]])*(TablaMovimientos[Actividad]=Indices[[#Headers],[Guachera]])))-(SUMPRODUCT((TablaInventarios[Cab.])*(TablaInventarios[Actividad]=Indices[[#Headers],[Guachera]])*(TablaInventarios[Categoría]=\"Terneros al pie\"))+SUMPRODUCT((TablaMovimientos[Cab.])*(TablaMovimientos[Fecha]<=Indices[[#This Row],[Fecha]])*(TablaMovimientos[Actividad]=Indices[[#Headers],[Guachera]])*(TablaMovimientos[Categoría]=\"Terneros al pie\"))))","v":0},{"$f":"+SUM(Indices[[#This Row],[Cría]:[Guachera]])","v":0},{"$f":"IF(DATE(YEAR(Indices[[#This Row],[Fecha]]),MONTH(Indices[[#This Row],[Fecha]]),1)>=DATE(YEAR('Planilla de datos'!$N$19-1),MONTH('Planilla de datos'!$N$19-1),1),1,0)*IF(DATE(YEAR(Indices[[#This Row],[Fecha]]),MONTH(Indices[[#This Row],[Fecha]]),1)<='Planilla de datos'!$P$19,1,0)","v":0}]
["2022-08-01",{"$f":"IF(C20=0,\"\",VLOOKUP('Planilla de datos'!$T$23,'SIPM (Actualización en $)'!$A$6:$C$42,3,FALSE)/C20)","v":""},null,{"$f":"IF(Indices[[#This Row],[Meses activos]]=0,0,(SUMPRODUCT((TablaInventarios[Cab.])*(TablaInventarios[Actividad]=Indices[[#Headers],[Cría]]))+SUMPRODUCT((TablaMovimientos[Cab.])*(TablaMovimientos[Fecha]<=Indices[[#This Row],[Fecha]])*(TablaMovimientos[Actividad]=Indices[[#Headers],[Cría]])))-(SUMPRODUCT((TablaInventarios[Cab.])*(TablaInventarios[Actividad]=Indices[[#Headers],[Cría]])*(TablaInventarios[Categoría]=\"Terneros al pie\"))+SUMPRODUCT((TablaMovimientos[Cab.])*(TablaMovimientos[Fecha]<=Indices[[#This Row],[Fecha]])*(TablaMovimientos[Actividad]=Indices[[#Headers],[Cría]])*(TablaMovimientos[Categoría]=\"Terneros al pie\"))))","v":0},{"$f":"IF(Indices[[#This Row],[Meses activos]]=0,0,(SUMPRODUCT((TablaInventarios[Cab.])*(TablaInventarios[Actividad]=Indices[[#Headers],[Recría]]))+SUMPRODUCT((TablaMovimientos[Cab.])*(TablaMovimientos[Fecha]<=Indices[[#This Row],[Fecha]])*(TablaMovimientos[Actividad]=Indices[[#Headers],[Recría]])))-(SUMPRODUCT((TablaInventarios[Cab.])*(TablaInventarios[Actividad]=Indices[[#Headers],[Recría]])*(TablaInventarios[Categoría]=\"Terneros al pie\"))+SUMPRODUCT((TablaMovimientos[Cab.])*(TablaMovimientos[Fecha]<=Indices[[#This Row],[Fecha]])*(TablaMovimientos[Actividad]=Indices[[#Headers],[Recría]])*(TablaMovimientos[Categoría]=\"Terneros al pie\"))))","v":0},{"$f":"IF(Indices[[#This Row],[Meses activos]]=0,0,(SUMPRODUCT((TablaInventarios[Cab.])*(TablaInventarios[Actividad]=Indices[[#Headers],[Invernada]]))+SUMPRODUCT((TablaMovimientos[Cab.])*(TablaMovimientos[Fecha]<=Indices[[#This Row],[Fecha]])*(TablaMovimientos[Actividad]=Indices[[#Headers],[Invernada]])))-(SUMPRODUCT((TablaInventarios[Cab.])*(TablaInventarios[Actividad]=Indices[[#Headers],[Invernada]])*(TablaInventarios[Categoría]=\"Terneros al pie\"))+SUMPRODUCT((TablaMovimientos[Cab.])*(TablaMovimientos[Fecha]<=Indices[[#This Row],[Fecha]])*(TablaMovimientos[Actividad]=Indices[[#Headers],[Invernada]])*(TablaMovimientos[Categoría]=\"Terneros al pie\"))))","v":0},{"$f":"IF(Indices[[#This Row],[Meses activos]]=0,0,(SUMPRODUCT((TablaInventarios[Cab.])*(TablaInventarios[Actividad]=Indices[[#Headers],[Feed-lot]]))+SUMPRODUCT((TablaMovimientos[Cab.])*(TablaMovimientos[Fecha]<=Indices[[#This Row],[Fecha]])*(TablaMovimientos[Actividad]=Indices[[#Headers],[Feed-lot]])))-(SUMPRODUCT((TablaInventarios[Cab.])*(TablaInventarios[Actividad]=Indices[[#Headers],[Feed-lot]])*(TablaInventarios[Categoría]=\"Terneros al pie\"))+SUMPRODUCT((TablaMovimientos[Cab.])*(TablaMovimientos[Fecha]<=Indices[[#This Row],[Fecha]])*(TablaMovimientos[Actividad]=Indices[[#Headers],[Feed-lot]])*(TablaMovimientos[Categoría]=\"Terneros al pie\"))))","v":0},{"$f":"IF(Indices[[#This Row],[Meses activos]]=0,0,(SUMPRODUCT((TablaInventarios[Cab.])*(TablaInventarios[Actividad]=Indices[[#Headers],[Cabaña]]))+SUMPRODUCT((TablaMovimientos[Cab.])*(TablaMovimientos[Fecha]<=Indices[[#This Row],[Fecha]])*(TablaMovimientos[Actividad]=Indices[[#Headers],[Cabaña]])))-(SUMPRODUCT((TablaInventarios[Cab.])*(TablaInventarios[Actividad]=Indices[[#Headers],[Cabaña]])*(TablaInventarios[Categoría]=\"Terneros al pie\"))+SUMPRODUCT((TablaMovimientos[Cab.])*(TablaMovimientos[Fecha]<=Indices[[#This Row],[Fecha]])*(TablaMovimientos[Actividad]=Indices[[#Headers],[Cabaña]])*(TablaMovimientos[Categoría]=\"Terneros al pie\"))))","v":0},{"$f":"IF(Indices[[#This Row],[Meses activos]]=0,0,(SUMPRODUCT((TablaInventarios[Cab.])*(TablaInventarios[Actividad]=Indices[[#Headers],[Tambo]]))+SUMPRODUCT((TablaMovimientos[Cab.])*(TablaMovimientos[Fecha]<=Indices[[#This Row],[Fecha]])*(TablaMovimientos[Actividad]=Indices[[#Headers],[Tambo]])))-(SUMPRODUCT((TablaInventarios[Cab.])*(TablaInventarios[Actividad]=Indices[[#Headers],[Tambo]])*(TablaInventarios[Categoría]=\"Terneros al pie\"))+SUMPRODUCT((TablaMovimientos[Cab.])*(TablaMovimientos[Fecha]<=Indices[[#This Row],[Fecha]])*(TablaMovimientos[Actividad]=Indices[[#Headers],[Tambo]])*(TablaMovimientos[Categoría]=\"Terneros al pie\"))))","v":0},{"$f":"IF(Indices[[#This Row],[Meses activos]]=0,0,(SUMPRODUCT((TablaInventarios[Cab.])*(TablaInventarios[Actividad]=Indices[[#Headers],[Guachera]]))+SUMPRODUCT((TablaMovimientos[Cab.])*(TablaMovimientos[Fecha]<=Indices[[#This Row],[Fecha]])*(TablaMovimientos[Actividad]=Indices[[#Headers],[Guachera]])))-(SUMPRODUCT((TablaInventarios[Cab.])*(TablaInventarios[Actividad]=Indices[[#Headers],[Guachera]])*(TablaInventarios[Categoría]=\"Terneros al pie\"))+SUMPRODUCT((TablaMovimientos[Cab.])*(TablaMovimientos[Fecha]<=Indices[[#This Row],[Fecha]])*(TablaMovimientos[Actividad]=Indices[[#Headers],[Guachera]])*(TablaMovimientos[Categoría]=\"Terneros al pie\"))))","v":0},{"$f":"+SUM(Indices[[#This Row],[Cría]:[Guachera]])","v":0},{"$f":"IF(DATE(YEAR(Indices[[#This Row],[Fecha]]),MONTH(Indices[[#This Row],[Fecha]]),1)>=DATE(YEAR('Planilla de datos'!$N$19-1),MONTH('Planilla de datos'!$N$19-1),1),1,0)*IF(DATE(YEAR(Indices[[#This Row],[Fecha]]),MONTH(Indices[[#This Row],[Fecha]]),1)<='Planilla de datos'!$P$19,1,0)","v":0}]
["2022-09-01",{"$f":"IF(C21=0,\"\",VLOOKUP('Planilla de datos'!$T$23,'SIPM (Actualización en $)'!$A$6:$C$42,3,FALSE)/C21)","v":""},null,{"$f":"IF(Indices[[#This Row],[Meses activos]]=0,0,(SUMPRODUCT((TablaInventarios[Cab.])*(TablaInventarios[Actividad]=Indices[[#Headers],[Cría]]))+SUMPRODUCT((TablaMovimientos[Cab.])*(TablaMovimientos[Fecha]<=Indices[[#This Row],[Fecha]])*(TablaMovimientos[Actividad]=Indices[[#Headers],[Cría]])))-(SUMPRODUCT((TablaInventarios[Cab.])*(TablaInventarios[Actividad]=Indices[[#Headers],[Cría]])*(TablaInventarios[Categoría]=\"Terneros al pie\"))+SUMPRODUCT((TablaMovimientos[Cab.])*(TablaMovimientos[Fecha]<=Indices[[#This Row],[Fecha]])*(TablaMovimientos[Actividad]=Indices[[#Headers],[Cría]])*(TablaMovimientos[Categoría]=\"Terneros al pie\"))))","v":0},{"$f":"IF(Indices[[#This Row],[Meses activos]]=0,0,(SUMPRODUCT((TablaInventarios[Cab.])*(TablaInventarios[Actividad]=Indices[[#Headers],[Recría]]))+SUMPRODUCT((TablaMovimientos[Cab.])*(TablaMovimientos[Fecha]<=Indices[[#This Row],[Fecha]])*(TablaMovimientos[Actividad]=Indices[[#Headers],[Recría]])))-(SUMPRODUCT((TablaInventarios[Cab.])*(TablaInventarios[Actividad]=Indices[[#Headers],[Recría]])*(TablaInventarios[Categoría]=\"Terneros al pie\"))+SUMPRODUCT((TablaMovimientos[Cab.])*(TablaMovimientos[Fecha]<=Indices[[#This Row],[Fecha]])*(TablaMovimientos[Actividad]=Indices[[#Headers],[Recría]])*(TablaMovimientos[Categoría]=\"Terneros al pie\"))))","v":0},{"$f":"IF(Indices[[#This Row],[Meses activos]]=0,0,(SUMPRODUCT((TablaInventarios[Cab.])*(TablaInventarios[Actividad]=Indices[[#Headers],[Invernada]]))+SUMPRODUCT((TablaMovimientos[Cab.])*(TablaMovimientos[Fecha]<=Indices[[#This Row],[Fecha]])*(TablaMovimientos[Actividad]=Indices[[#Headers],[Invernada]])))-(SUMPRODUCT((TablaInventarios[Cab.])*(TablaInventarios[Actividad]=Indices[[#Headers],[Invernada]])*(TablaInventarios[Categoría]=\"Terneros al pie\"))+SUMPRODUCT((TablaMovimientos[Cab.])*(TablaMovimientos[Fecha]<=Indices[[#This Row],[Fecha]])*(TablaMovimientos[Actividad]=Indices[[#Headers],[Invernada]])*(TablaMovimientos[Categoría]=\"Terneros al pie\"))))","v":0},{"$f":"IF(Indices[[#This Row],[Meses activos]]=0,0,(SUMPRODUCT((TablaInventarios[Cab.])*(TablaInventarios[Actividad]=Indices[[#Headers],[Feed-lot]]))+SUMPRODUCT((TablaMovimientos[Cab.])*(TablaMovimientos[Fecha]<=Indices[[#This Row],[Fecha]])*(TablaMovimientos[Actividad]=Indices[[#Headers],[Feed-lot]])))-(SUMPRODUCT((TablaInventarios[Cab.])*(TablaInventarios[Actividad]=Indices[[#Headers],[Feed-lot]])*(TablaInventarios[Categoría]=\"Terneros al pie\"))+SUMPRODUCT((TablaMovimientos[Cab.])*(TablaMovimientos[Fecha]<=Indices[[#This Row],[Fecha]])*(TablaMovimientos[Actividad]=Indices[[#Headers],[Feed-lot]])*(TablaMovimientos[Categoría]=\"Terneros al pie\"))))","v":0},{"$f":"IF(Indices[[#This Row],[Meses activos]]=0,0,(SUMPRODUCT((TablaInventarios[Cab.])*(TablaInventarios[Actividad]=Indices[[#Headers],[Cabaña]]))+SUMPRODUCT((TablaMovimientos[Cab.])*(TablaMovimientos[Fecha]<=Indices[[#This Row],[Fecha]])*(TablaMovimientos[Actividad]=Indices[[#Headers],[Cabaña]])))-(SUMPRODUCT((TablaInventarios[Cab.])*(TablaInventarios[Actividad]=Indices[[#Headers],[Cabaña]])*(TablaInventarios[Categoría]=\"Terneros al pie\"))+SUMPRODUCT((TablaMovimientos[Cab.])*(TablaMovimientos[Fecha]<=Indices[[#This Row],[Fecha]])*(TablaMovimientos[Actividad]=Indices[[#Headers],[Cabaña]])*(TablaMovimientos[Categoría]=\"Terneros al pie\"))))","v":0},{"$f":"IF(Indices[[#This Row],[Meses activos]]=0,0,(SUMPRODUCT((TablaInventarios[Cab.])*(TablaInventarios[Actividad]=Indices[[#Headers],[Tambo]]))+SUMPRODUCT((TablaMovimientos[Cab.])*(TablaMovimientos[Fecha]<=Indices[[#This Row],[Fecha]])*(TablaMovimientos[Actividad]=Indices[[#Headers],[Tambo]])))-(SUMPRODUCT((TablaInventarios[Cab.])*(TablaInventarios[Actividad]=Indices[[#Headers],[Tambo]])*(TablaInventarios[Categoría]=\"Terneros al pie\"))+SUMPRODUCT((TablaMovimientos[Cab.])*(TablaMovimientos[Fecha]<=Indices[[#This Row],[Fecha]])*(TablaMovimientos[Actividad]=Indices[[#Headers],[Tambo]])*(TablaMovimientos[Categoría]=\"Terneros al pie\"))))","v":0},{"$f":"IF(Indices[[#This Row],[Meses activos]]=0,0,(SUMPRODUCT((TablaInventarios[Cab.])*(TablaInventarios[Actividad]=Indices[[#Headers],[Guachera]]))+SUMPRODUCT((TablaMovimientos[Cab.])*(TablaMovimientos[Fecha]<=Indices[[#This Row],[Fecha]])*(TablaMovimientos[Actividad]=Indices[[#Headers],[Guachera]])))-(SUMPRODUCT((TablaInventarios[Cab.])*(TablaInventarios[Actividad]=Indices[[#Headers],[Guachera]])*(TablaInventarios[Categoría]=\"Terneros al pie\"))+SUMPRODUCT((TablaMovimientos[Cab.])*(TablaMovimientos[Fecha]<=Indices[[#This Row],[Fecha]])*(TablaMovimientos[Actividad]=Indices[[#Headers],[Guachera]])*(TablaMovimientos[Categoría]=\"Terneros al pie\"))))","v":0},{"$f":"+SUM(Indices[[#This Row],[Cría]:[Guachera]])","v":0},{"$f":"IF(DATE(YEAR(Indices[[#This Row],[Fecha]]),MONTH(Indices[[#This Row],[Fecha]]),1)>=DATE(YEAR('Planilla de datos'!$N$19-1),MONTH('Planilla de datos'!$N$19-1),1),1,0)*IF(DATE(YEAR(Indices[[#This Row],[Fecha]]),MONTH(Indices[[#This Row],[Fecha]]),1)<='Planilla de datos'!$P$19,1,0)","v":0}]
["2022-10-01",{"$f":"IF(C22=0,\"\",VLOOKUP('Planilla de datos'!$T$23,'SIPM (Actualización en $)'!$A$6:$C$42,3,FALSE)/C22)","v":""},null,{"$f":"IF(Indices[[#This Row],[Meses activos]]=0,0,(SUMPRODUCT((TablaInventarios[Cab.])*(TablaInventarios[Actividad]=Indices[[#Headers],[Cría]]))+SUMPRODUCT((TablaMovimientos[Cab.])*(TablaMovimientos[Fecha]<=Indices[[#This Row],[Fecha]])*(TablaMovimientos[Actividad]=Indices[[#Headers],[Cría]])))-(SUMPRODUCT((TablaInventarios[Cab.])*(TablaInventarios[Actividad]=Indices[[#Headers],[Cría]])*(TablaInventarios[Categoría]=\"Terneros al pie\"))+SUMPRODUCT((TablaMovimientos[Cab.])*(TablaMovimientos[Fecha]<=Indices[[#This Row],[Fecha]])*(TablaMovimientos[Actividad]=Indices[[#Headers],[Cría]])*(TablaMovimientos[Categoría]=\"Terneros al pie\"))))","v":0},{"$f":"IF(Indices[[#This Row],[Meses activos]]=0,0,(SUMPRODUCT((TablaInventarios[Cab.])*(TablaInventarios[Actividad]=Indices[[#Headers],[Recría]]))+SUMPRODUCT((TablaMovimientos[Cab.])*(TablaMovimientos[Fecha]<=Indices[[#This Row],[Fecha]])*(TablaMovimientos[Actividad]=Indices[[#Headers],[Recría]])))-(SUMPRODUCT((TablaInventarios[Cab.])*(TablaInventarios[Actividad]=Indices[[#Headers],[Recría]])*(TablaInventarios[Categoría]=\"Terneros al pie\"))+SUMPRODUCT((TablaMovimientos[Cab.])*(TablaMovimientos[Fecha]<=Indices[[#This Row],[Fecha]])*(TablaMovimientos[Actividad]=Indices[[#Headers],[Recría]])*(TablaMovimientos[Categoría]=\"Terneros al pie\"))))","v":0},{"$f":"IF(Indices[[#This Row],[Meses activos]]=0,0,(SUMPRODUCT((TablaInventarios[Cab.])*(TablaInventarios[Actividad]=Indices[[#Headers],[Invernada]]))+SUMPRODUCT((TablaMovimientos[Cab.])*(TablaMovimientos[Fecha]<=Indices[[#This Row],[Fecha]])*(TablaMovimientos[Actividad]=Indices[[#Headers],[Invernada]])))-(SUMPRODUCT((TablaInventarios[Cab.])*(TablaInventarios[Actividad]=Indices[[#Headers],[Invernada]])*(TablaInventarios[Categoría]=\"Terneros al pie\"))+SUMPRODUCT((TablaMovimientos[Cab.])*(TablaMovimientos[Fecha]<=Indices[[#This Row],[Fecha]])*(TablaMovimientos[Actividad]=Indices[[#Headers],[Invernada]])*(TablaMovimientos[Categoría]=\"Terneros al pie\"))))","v":0},{"$f":"IF(Indices[[#This Row],[Meses activos]]=0,0,(SUMPRODUCT((TablaInventarios[Cab.])*(TablaInventarios[Actividad]=Indices[[#Headers],[Feed-lot]]))+SUMPRODUCT((TablaMovimientos[Cab.])*(TablaMovimientos[Fecha]<=Indices[[#This Row],[Fecha]])*(TablaMovimientos[Actividad]=Indices[[#Headers],[Feed-lot]])))-(SUMPRODUCT((TablaInventarios[Cab.])*(TablaInventarios[Actividad]=Indices[[#Headers],[Feed-lot]])*(TablaInventarios[Categoría]=\"Terneros al pie\"))+SUMPRODUCT((TablaMovimientos[Cab.])*(TablaMovimientos[Fecha]<=Indices[[#This Row],[Fecha]])*(TablaMovimientos[Actividad]=Indices[[#Headers],[Feed-lot]])*(TablaMovimientos[Categoría]=\"Terneros al pie\"))))","v":0},{"$f":"IF(Indices[[#This Row],[Meses activos]]=0,0,(SUMPRODUCT((TablaInventarios[Cab.])*(TablaInventarios[Actividad]=Indices[[#Headers],[Cabaña]]))+SUMPRODUCT((TablaMovimientos[Cab.])*(TablaMovimientos[Fecha]<=Indices[[#This Row],[Fecha]])*(TablaMovimientos[Actividad]=Indices[[#Headers],[Cabaña]])))-(SUMPRODUCT((TablaInventarios[Cab.])*(TablaInventarios[Actividad]=Indices[[#Headers],[Cabaña]])*(TablaInventarios[Categoría]=\"Terneros al pie\"))+SUMPRODUCT((TablaMovimientos[Cab.])*(TablaMovimientos[Fecha]<=Indices[[#This Row],[Fecha]])*(TablaMovimientos[Actividad]=Indices[[#Headers],[Cabaña]])*(TablaMovimientos[Categoría]=\"Terneros al pie\"))))","v":0},{"$f":"IF(Indices[[#This Row],[Meses activos]]=0,0,(SUMPRODUCT((TablaInventarios[Cab.])*(TablaInventarios[Actividad]=Indices[[#Headers],[Tambo]]))+SUMPRODUCT((TablaMovimientos[Cab.])*(TablaMovimientos[Fecha]<=Indices[[#This Row],[Fecha]])*(TablaMovimientos[Actividad]=Indices[[#Headers],[Tambo]])))-(SUMPRODUCT((TablaInventarios[Cab.])*(TablaInventarios[Actividad]=Indices[[#Headers],[Tambo]])*(TablaInventarios[Categoría]=\"Terneros al pie\"))+SUMPRODUCT((TablaMovimientos[Cab.])*(TablaMovimientos[Fecha]<=Indices[[#This Row],[Fecha]])*(TablaMovimientos[Actividad]=Indices[[#Headers],[Tambo]])*(TablaMovimientos[Categoría]=\"Terneros al pie\"))))","v":0},{"$f":"IF(Indices[[#This Row],[Meses activos]]=0,0,(SUMPRODUCT((TablaInventarios[Cab.])*(TablaInventarios[Actividad]=Indices[[#Headers],[Guachera]]))+SUMPRODUCT((TablaMovimientos[Cab.])*(TablaMovimientos[Fecha]<=Indices[[#This Row],[Fecha]])*(TablaMovimientos[Actividad]=Indices[[#Headers],[Guachera]])))-(SUMPRODUCT((TablaInventarios[Cab.])*(TablaInventarios[Actividad]=Indices[[#Headers],[Guachera]])*(TablaInventarios[Categoría]=\"Terneros al pie\"))+SUMPRODUCT((TablaMovimientos[Cab.])*(TablaMovimientos[Fecha]<=Indices[[#This Row],[Fecha]])*(TablaMovimientos[Actividad]=Indices[[#Headers],[Guachera]])*(TablaMovimientos[Categoría]=\"Terneros al pie\"))))","v":0},{"$f":"+SUM(Indices[[#This Row],[Cría]:[Guachera]])","v":0},{"$f":"IF(DATE(YEAR(Indices[[#This Row],[Fecha]]),MONTH(Indices[[#This Row],[Fecha]]),1)>=DATE(YEAR('Planilla de datos'!$N$19-1),MONTH('Planilla de datos'!$N$19-1),1),1,0)*IF(DATE(YEAR(Indices[[#This Row],[Fecha]]),MONTH(Indices[[#This Row],[Fecha]]),1)<='Planilla de datos'!$P$19,1,0)","v":0}]
["2022-11-01",{"$f":"IF(C23=0,\"\",VLOOKUP('Planilla de datos'!$T$23,'SIPM (Actualización en $)'!$A$6:$C$42,3,FALSE)/C23)","v":""},null,{"$f":"IF(Indices[[#This Row],[Meses activos]]=0,0,(SUMPRODUCT((TablaInventarios[Cab.])*(TablaInventarios[Actividad]=Indices[[#Headers],[Cría]]))+SUMPRODUCT((TablaMovimientos[Cab.])*(TablaMovimientos[Fecha]<=Indices[[#This Row],[Fecha]])*(TablaMovimientos[Actividad]=Indices[[#Headers],[Cría]])))-(SUMPRODUCT((TablaInventarios[Cab.])*(TablaInventarios[Actividad]=Indices[[#Headers],[Cría]])*(TablaInventarios[Categoría]=\"Terneros al pie\"))+SUMPRODUCT((TablaMovimientos[Cab.])*(TablaMovimientos[Fecha]<=Indices[[#This Row],[Fecha]])*(TablaMovimientos[Actividad]=Indices[[#Headers],[Cría]])*(TablaMovimientos[Categoría]=\"Terneros al pie\"))))","v":0},{"$f":"IF(Indices[[#This Row],[Meses activos]]=0,0,(SUMPRODUCT((TablaInventarios[Cab.])*(TablaInventarios[Actividad]=Indices[[#Headers],[Recría]]))+SUMPRODUCT((TablaMovimientos[Cab.])*(TablaMovimientos[Fecha]<=Indices[[#This Row],[Fecha]])*(TablaMovimientos[Actividad]=Indices[[#Headers],[Recría]])))-(SUMPRODUCT((TablaInventarios[Cab.])*(TablaInventarios[Actividad]=Indices[[#Headers],[Recría]])*(TablaInventarios[Categoría]=\"Terneros al pie\"))+SUMPRODUCT((TablaMovimientos[Cab.])*(TablaMovimientos[Fecha]<=Indices[[#This Row],[Fecha]])*(TablaMovimientos[Actividad]=Indices[[#Headers],[Recría]])*(TablaMovimientos[Categoría]=\"Terneros al pie\"))))","v":0},{"$f":"IF(Indices[[#This Row],[Meses activos]]=0,0,(SUMPRODUCT((TablaInventarios[Cab.])*(TablaInventarios[Actividad]=Indices[[#Headers],[Invernada]]))+SUMPRODUCT((TablaMovimientos[Cab.])*(TablaMovimientos[Fecha]<=Indices[[#This Row],[Fecha]])*(TablaMovimientos[Actividad]=Indices[[#Headers],[Invernada]])))-(SUMPRODUCT((TablaInventarios[Cab.])*(TablaInventarios[Actividad]=Indices[[#Headers],[Invernada]])*(TablaInventarios[Categoría]=\"Terneros al pie\"))+SUMPRODUCT((TablaMovimientos[Cab.])*(TablaMovimientos[Fecha]<=Indices[[#This Row],[Fecha]])*(TablaMovimientos[Actividad]=Indices[[#Headers],[Invernada]])*(TablaMovimientos[Categoría]=\"Terneros al pie\"))))","v":0},{"$f":"IF(Indices[[#This Row],[Meses activos]]=0,0,(SUMPRODUCT((TablaInventarios[Cab.])*(TablaInventarios[Actividad]=Indices[[#Headers],[Feed-lot]]))+SUMPRODUCT((TablaMovimientos[Cab.])*(TablaMovimientos[Fecha]<=Indices[[#This Row],[Fecha]])*(TablaMovimientos[Actividad]=Indices[[#Headers],[Feed-lot]])))-(SUMPRODUCT((TablaInventarios[Cab.])*(TablaInventarios[Actividad]=Indices[[#Headers],[Feed-lot]])*(TablaInventarios[Categoría]=\"Terneros al pie\"))+SUMPRODUCT((TablaMovimientos[Cab.])*(TablaMovimientos[Fecha]<=Indices[[#This Row],[Fecha]])*(TablaMovimientos[Actividad]=Indices[[#Headers],[Feed-lot]])*(TablaMovimientos[Categoría]=\"Terneros al pie\"))))","v":0},{"$f":"IF(Indices[[#This Row],[Meses activos]]=0,0,(SUMPRODUCT((TablaInventarios[Cab.])*(TablaInventarios[Actividad]=Indices[[#Headers],[Cabaña]]))+SUMPRODUCT((TablaMovimientos[Cab.])*(TablaMovimientos[Fecha]<=Indices[[#This Row],[Fecha]])*(TablaMovimientos[Actividad]=Indices[[#Headers],[Cabaña]])))-(SUMPRODUCT((TablaInventarios[Cab.])*(TablaInventarios[Actividad]=Indices[[#Headers],[Cabaña]])*(TablaInventarios[Categoría]=\"Terneros al pie\"))+SUMPRODUCT((TablaMovimientos[Cab.])*(TablaMovimientos[Fecha]<=Indices[[#This Row],[Fecha]])*(TablaMovimientos[Actividad]=Indices[[#Headers],[Cabaña]])*(TablaMovimientos[Categoría]=\"Terneros al pie\"))))","v":0},{"$f":"IF(Indices[[#This Row],[Meses activos]]=0,0,(SUMPRODUCT((TablaInventarios[Cab.])*(TablaInventarios[Actividad]=Indices[[#Headers],[Tambo]]))+SUMPRODUCT((TablaMovimientos[Cab.])*(TablaMovimientos[Fecha]<=Indices[[#This Row],[Fecha]])*(TablaMovimientos[Actividad]=Indices[[#Headers],[Tambo]])))-(SUMPRODUCT((TablaInventarios[Cab.])*(TablaInventarios[Actividad]=Indices[[#Headers],[Tambo]])*(TablaInventarios[Categoría]=\"Terneros al pie\"))+SUMPRODUCT((TablaMovimientos[Cab.])*(TablaMovimientos[Fecha]<=Indices[[#This Row],[Fecha]])*(TablaMovimientos[Actividad]=Indices[[#Headers],[Tambo]])*(TablaMovimientos[Categoría]=\"Terneros al pie\"))))","v":0},{"$f":"IF(Indices[[#This Row],[Meses activos]]=0,0,(SUMPRODUCT((TablaInventarios[Cab.])*(TablaInventarios[Actividad]=Indices[[#Headers],[Guachera]]))+SUMPRODUCT((TablaMovimientos[Cab.])*(TablaMovimientos[Fecha]<=Indices[[#This Row],[Fecha]])*(TablaMovimientos[Actividad]=Indices[[#Headers],[Guachera]])))-(SUMPRODUCT((TablaInventarios[Cab.])*(TablaInventarios[Actividad]=Indices[[#Headers],[Guachera]])*(TablaInventarios[Categoría]=\"Terneros al pie\"))+SUMPRODUCT((TablaMovimientos[Cab.])*(TablaMovimientos[Fecha]<=Indices[[#This Row],[Fecha]])*(TablaMovimientos[Actividad]=Indices[[#Headers],[Guachera]])*(TablaMovimientos[Categoría]=\"Terneros al pie\"))))","v":0},{"$f":"+SUM(Indices[[#This Row],[Cría]:[Guachera]])","v":0},{"$f":"IF(DATE(YEAR(Indices[[#This Row],[Fecha]]),MONTH(Indices[[#This Row],[Fecha]]),1)>=DATE(YEAR('Planilla de datos'!$N$19-1),MONTH('Planilla de datos'!$N$19-1),1),1,0)*IF(DATE(YEAR(Indices[[#This Row],[Fecha]]),MONTH(Indices[[#This Row],[Fecha]]),1)<='Planilla de datos'!$P$19,1,0)","v":0}]
["2022-12-01",{"$f":"IF(C24=0,\"\",VLOOKUP('Planilla de datos'!$T$23,'SIPM (Actualización en $)'!$A$6:$C$42,3,FALSE)/C24)","v":""},null,{"$f":"IF(Indices[[#This Row],[Meses activos]]=0,0,(SUMPRODUCT((TablaInventarios[Cab.])*(TablaInventarios[Actividad]=Indices[[#Headers],[Cría]]))+SUMPRODUCT((TablaMovimientos[Cab.])*(TablaMovimientos[Fecha]<=Indices[[#This Row],[Fecha]])*(TablaMovimientos[Actividad]=Indices[[#Headers],[Cría]])))-(SUMPRODUCT((TablaInventarios[Cab.])*(TablaInventarios[Actividad]=Indices[[#Headers],[Cría]])*(TablaInventarios[Categoría]=\"Terneros al pie\"))+SUMPRODUCT((TablaMovimientos[Cab.])*(TablaMovimientos[Fecha]<=Indices[[#This Row],[Fecha]])*(TablaMovimientos[Actividad]=Indices[[#Headers],[Cría]])*(TablaMovimientos[Categoría]=\"Terneros al pie\"))))","v":0},{"$f":"IF(Indices[[#This Row],[Meses activos]]=0,0,(SUMPRODUCT((TablaInventarios[Cab.])*(TablaInventarios[Actividad]=Indices[[#Headers],[Recría]]))+SUMPRODUCT((TablaMovimientos[Cab.])*(TablaMovimientos[Fecha]<=Indices[[#This Row],[Fecha]])*(TablaMovimientos[Actividad]=Indices[[#Headers],[Recría]])))-(SUMPRODUCT((TablaInventarios[Cab.])*(TablaInventarios[Actividad]=Indices[[#Headers],[Recría]])*(TablaInventarios[Categoría]=\"Terneros al pie\"))+SUMPRODUCT((TablaMovimientos[Cab.])*(TablaMovimientos[Fecha]<=Indices[[#This Row],[Fecha]])*(TablaMovimientos[Actividad]=Indices[[#Headers],[Recría]])*(TablaMovimientos[Categoría]=\"Terneros al pie\"))))","v":0},{"$f":"IF(Indices[[#This Row],[Meses activos]]=0,0,(SUMPRODUCT((TablaInventarios[Cab.])*(TablaInventarios[Actividad]=Indices[[#Headers],[Invernada]]))+SUMPRODUCT((TablaMovimientos[Cab.])*(TablaMovimientos[Fecha]<=Indices[[#This Row],[Fecha]])*(TablaMovimientos[Actividad]=Indices[[#Headers],[Invernada]])))-(SUMPRODUCT((TablaInventarios[Cab.])*(TablaInventarios[Actividad]=Indices[[#Headers],[Invernada]])*(TablaInventarios[Categoría]=\"Terneros al pie\"))+SUMPRODUCT((TablaMovimientos[Cab.])*(TablaMovimientos[Fecha]<=Indices[[#This Row],[Fecha]])*(TablaMovimientos[Actividad]=Indices[[#Headers],[Invernada]])*(TablaMovimientos[Categoría]=\"Terneros al pie\"))))","v":0},{"$f":"IF(Indices[[#This Row],[Meses activos]]=0,0,(SUMPRODUCT((TablaInventarios[Cab.])*(TablaInventarios[Actividad]=Indices[[#Headers],[Feed-lot]]))+SUMPRODUCT((TablaMovimientos[Cab.])*(TablaMovimientos[Fecha]<=Indices[[#This Row],[Fecha]])*(TablaMovimientos[Actividad]=Indices[[#Headers],[Feed-lot]])))-(SUMPRODUCT((TablaInventarios[Cab.])*(TablaInventarios[Actividad]=Indices[[#Headers],[Feed-lot]])*(TablaInventarios[Categoría]=\"Terneros al pie\"))+SUMPRODUCT((TablaMovimientos[Cab.])*(TablaMovimientos[Fecha]<=Indices[[#This Row],[Fecha]])*(TablaMovimientos[Actividad]=Indices[[#Headers],[Feed-lot]])*(TablaMovimientos[Categoría]=\"Terneros al pie\"))))","v":0},{"$f":"IF(Indices[[#This Row],[Meses activos]]=0,0,(SUMPRODUCT((TablaInventarios[Cab.])*(TablaInventarios[Actividad]=Indices[[#Headers],[Cabaña]]))+SUMPRODUCT((TablaMovimientos[Cab.])*(TablaMovimientos[Fecha]<=Indices[[#This Row],[Fecha]])*(TablaMovimientos[Actividad]=Indices[[#Headers],[Cabaña]])))-(SUMPRODUCT((TablaInventarios[Cab.])*(TablaInventarios[Actividad]=Indices[[#Headers],[Cabaña]])*(TablaInventarios[Categoría]=\"Terneros al pie\"))+SUMPRODUCT((TablaMovimientos[Cab.])*(TablaMovimientos[Fecha]<=Indices[[#This Row],[Fecha]])*(TablaMovimientos[Actividad]=Indices[[#Headers],[Cabaña]])*(TablaMovimientos[Categoría]=\"Terneros al pie\"))))","v":0},{"$f":"IF(Indices[[#This Row],[Meses activos]]=0,0,(SUMPRODUCT((TablaInventarios[Cab.])*(TablaInventarios[Actividad]=Indices[[#Headers],[Tambo]]))+SUMPRODUCT((TablaMovimientos[Cab.])*(TablaMovimientos[Fecha]<=Indices[[#This Row],[Fecha]])*(TablaMovimientos[Actividad]=Indices[[#Headers],[Tambo]])))-(SUMPRODUCT((TablaInventarios[Cab.])*(TablaInventarios[Actividad]=Indices[[#Headers],[Tambo]])*(TablaInventarios[Categoría]=\"Terneros al pie\"))+SUMPRODUCT((TablaMovimientos[Cab.])*(TablaMovimientos[Fecha]<=Indices[[#This Row],[Fecha]])*(TablaMovimientos[Actividad]=Indices[[#Headers],[Tambo]])*(TablaMovimientos[Categoría]=\"Terneros al pie\"))))","v":0},{"$f":"IF(Indices[[#This Row],[Meses activos]]=0,0,(SUMPRODUCT((TablaInventarios[Cab.])*(TablaInventarios[Actividad]=Indices[[#Headers],[Guachera]]))+SUMPRODUCT((TablaMovimientos[Cab.])*(TablaMovimientos[Fecha]<=Indices[[#This Row],[Fecha]])*(TablaMovimientos[Actividad]=Indices[[#Headers],[Guachera]])))-(SUMPRODUCT((TablaInventarios[Cab.])*(TablaInventarios[Actividad]=Indices[[#Headers],[Guachera]])*(TablaInventarios[Categoría]=\"Terneros al pie\"))+SUMPRODUCT((TablaMovimientos[Cab.])*(TablaMovimientos[Fecha]<=Indices[[#This Row],[Fecha]])*(TablaMovimientos[Actividad]=Indices[[#Headers],[Guachera]])*(TablaMovimientos[Categoría]=\"Terneros al pie\"))))","v":0},{"$f":"+SUM(Indices[[#This Row],[Cría]:[Guachera]])","v":0},{"$f":"IF(DATE(YEAR(Indices[[#This Row],[Fecha]]),MONTH(Indices[[#This Row],[Fecha]]),1)>=DATE(YEAR('Planilla de datos'!$N$19-1),MONTH('Planilla de datos'!$N$19-1),1),1,0)*IF(DATE(YEAR(Indices[[#This Row],[Fecha]]),MONTH(Indices[[#This Row],[Fecha]]),1)<='Planilla de datos'!$P$19,1,0)","v":0}]
["2023-01-01",{"$f":"IF(C25=0,\"\",VLOOKUP('Planilla de datos'!$T$23,'SIPM (Actualización en $)'!$A$6:$C$42,3,FALSE)/C25)","v":""},null,{"$f":"IF(Indices[[#This Row],[Meses activos]]=0,0,(SUMPRODUCT((TablaInventarios[Cab.])*(TablaInventarios[Actividad]=Indices[[#Headers],[Cría]]))+SUMPRODUCT((TablaMovimientos[Cab.])*(TablaMovimientos[Fecha]<=Indices[[#This Row],[Fecha]])*(TablaMovimientos[Actividad]=Indices[[#Headers],[Cría]])))-(SUMPRODUCT((TablaInventarios[Cab.])*(TablaInventarios[Actividad]=Indices[[#Headers],[Cría]])*(TablaInventarios[Categoría]=\"Terneros al pie\"))+SUMPRODUCT((TablaMovimientos[Cab.])*(TablaMovimientos[Fecha]<=Indices[[#This Row],[Fecha]])*(TablaMovimientos[Actividad]=Indices[[#Headers],[Cría]])*(TablaMovimientos[Categoría]=\"Terneros al pie\"))))","v":0},{"$f":"IF(Indices[[#This Row],[Meses activos]]=0,0,(SUMPRODUCT((TablaInventarios[Cab.])*(TablaInventarios[Actividad]=Indices[[#Headers],[Recría]]))+SUMPRODUCT((TablaMovimientos[Cab.])*(TablaMovimientos[Fecha]<=Indices[[#This Row],[Fecha]])*(TablaMovimientos[Actividad]=Indices[[#Headers],[Recría]])))-(SUMPRODUCT((TablaInventarios[Cab.])*(TablaInventarios[Actividad]=Indices[[#Headers],[Recría]])*(TablaInventarios[Categoría]=\"Terneros al pie\"))+SUMPRODUCT((TablaMovimientos[Cab.])*(TablaMovimientos[Fecha]<=Indices[[#This Row],[Fecha]])*(TablaMovimientos[Actividad]=Indices[[#Headers],[Recría]])*(TablaMovimientos[Categoría]=\"Terneros al pie\"))))","v":0},{"$f":"IF(Indices[[#This Row],[Meses activos]]=0,0,(SUMPRODUCT((TablaInventarios[Cab.])*(TablaInventarios[Actividad]=Indices[[#Headers],[Invernada]]))+SUMPRODUCT((TablaMovimientos[Cab.])*(TablaMovimientos[Fecha]<=Indices[[#This Row],[Fecha]])*(TablaMovimientos[Actividad]=Indices[[#Headers],[Invernada]])))-(SUMPRODUCT((TablaInventarios[Cab.])*(TablaInventarios[Actividad]=Indices[[#Headers],[Invernada]])*(TablaInventarios[Categoría]=\"Terneros al pie\"))+SUMPRODUCT((TablaMovimientos[Cab.])*(TablaMovimientos[Fecha]<=Indices[[#This Row],[Fecha]])*(TablaMovimientos[Actividad]=Indices[[#Headers],[Invernada]])*(TablaMovimientos[Categoría]=\"Terneros al pie\"))))","v":0},{"$f":"IF(Indices[[#This Row],[Meses activos]]=0,0,(SUMPRODUCT((TablaInventarios[Cab.])*(TablaInventarios[Actividad]=Indices[[#Headers],[Feed-lot]]))+SUMPRODUCT((TablaMovimientos[Cab.])*(TablaMovimientos[Fecha]<=Indices[[#This Row],[Fecha]])*(TablaMovimientos[Actividad]=Indices[[#Headers],[Feed-lot]])))-(SUMPRODUCT((TablaInventarios[Cab.])*(TablaInventarios[Actividad]=Indices[[#Headers],[Feed-lot]])*(TablaInventarios[Categoría]=\"Terneros al pie\"))+SUMPRODUCT((TablaMovimientos[Cab.])*(TablaMovimientos[Fecha]<=Indices[[#This Row],[Fecha]])*(TablaMovimientos[Actividad]=Indices[[#Headers],[Feed-lot]])*(TablaMovimientos[Categoría]=\"Terneros al pie\"))))","v":0},{"$f":"IF(Indices[[#This Row],[Meses activos]]=0,0,(SUMPRODUCT((TablaInventarios[Cab.])*(TablaInventarios[Actividad]=Indices[[#Headers],[Cabaña]]))+SUMPRODUCT((TablaMovimientos[Cab.])*(TablaMovimientos[Fecha]<=Indices[[#This Row],[Fecha]])*(TablaMovimientos[Actividad]=Indices[[#Headers],[Cabaña]])))-(SUMPRODUCT((TablaInventarios[Cab.])*(TablaInventarios[Actividad]=Indices[[#Headers],[Cabaña]])*(TablaInventarios[Categoría]=\"Terneros al pie\"))+SUMPRODUCT((TablaMovimientos[Cab.])*(TablaMovimientos[Fecha]<=Indices[[#This Row],[Fecha]])*(TablaMovimientos[Actividad]=Indices[[#Headers],[Cabaña]])*(TablaMovimientos[Categoría]=\"Terneros al pie\"))))","v":0},{"$f":"IF(Indices[[#This Row],[Meses activos]]=0,0,(SUMPRODUCT((TablaInventarios[Cab.])*(TablaInventarios[Actividad]=Indices[[#Headers],[Tambo]]))+SUMPRODUCT((TablaMovimientos[Cab.])*(TablaMovimientos[Fecha]<=Indices[[#This Row],[Fecha]])*(TablaMovimientos[Actividad]=Indices[[#Headers],[Tambo]])))-(SUMPRODUCT((TablaInventarios[Cab.])*(TablaInventarios[Actividad]=Indices[[#Headers],[Tambo]])*(TablaInventarios[Categoría]=\"Terneros al pie\"))+SUMPRODUCT((TablaMovimientos[Cab.])*(TablaMovimientos[Fecha]<=Indices[[#This Row],[Fecha]])*(TablaMovimientos[Actividad]=Indices[[#Headers],[Tambo]])*(TablaMovimientos[Categoría]=\"Terneros al pie\"))))","v":0},{"$f":"IF(Indices[[#This Row],[Meses activos]]=0,0,(SUMPRODUCT((TablaInventarios[Cab.])*(TablaInventarios[Actividad]=Indices[[#Headers],[Guachera]]))+SUMPRODUCT((TablaMovimientos[Cab.])*(TablaMovimientos[Fecha]<=Indices[[#This Row],[Fecha]])*(TablaMovimientos[Actividad]=Indices[[#Headers],[Guachera]])))-(SUMPRODUCT((TablaInventarios[Cab.])*(TablaInventarios[Actividad]=Indices[[#Headers],[Guachera]])*(TablaInventarios[Categoría]=\"Terneros al pie\"))+SUMPRODUCT((TablaMovimientos[Cab.])*(TablaMovimientos[Fecha]<=Indices[[#This Row],[Fecha]])*(TablaMovimientos[Actividad]=Indices[[#Headers],[Guachera]])*(TablaMovimientos[Categoría]=\"Terneros al pie\"))))","v":0},{"$f":"+SUM(Indices[[#This Row],[Cría]:[Guachera]])","v":0},{"$f":"IF(DATE(YEAR(Indices[[#This Row],[Fecha]]),MONTH(Indices[[#This Row],[Fecha]]),1)>=DATE(YEAR('Planilla de datos'!$N$19-1),MONTH('Planilla de datos'!$N$19-1),1),1,0)*IF(DATE(YEAR(Indices[[#This Row],[Fecha]]),MONTH(Indices[[#This Row],[Fecha]]),1)<='Planilla de datos'!$P$19,1,0)","v":0}]
["2023-02-01",{"$f":"IF(C26=0,\"\",VLOOKUP('Planilla de datos'!$T$23,'SIPM (Actualización en $)'!$A$6:$C$42,3,FALSE)/C26)","v":""},null,{"$f":"IF(Indices[[#This Row],[Meses activos]]=0,0,(SUMPRODUCT((TablaInventarios[Cab.])*(TablaInventarios[Actividad]=Indices[[#Headers],[Cría]]))+SUMPRODUCT((TablaMovimientos[Cab.])*(TablaMovimientos[Fecha]<=Indices[[#This Row],[Fecha]])*(TablaMovimientos[Actividad]=Indices[[#Headers],[Cría]])))-(SUMPRODUCT((TablaInventarios[Cab.])*(TablaInventarios[Actividad]=Indices[[#Headers],[Cría]])*(TablaInventarios[Categoría]=\"Terneros al pie\"))+SUMPRODUCT((TablaMovimientos[Cab.])*(TablaMovimientos[Fecha]<=Indices[[#This Row],[Fecha]])*(TablaMovimientos[Actividad]=Indices[[#Headers],[Cría]])*(TablaMovimientos[Categoría]=\"Terneros al pie\"))))","v":0},{"$f":"IF(Indices[[#This Row],[Meses activos]]=0,0,(SUMPRODUCT((TablaInventarios[Cab.])*(TablaInventarios[Actividad]=Indices[[#Headers],[Recría]]))+SUMPRODUCT((TablaMovimientos[Cab.])*(TablaMovimientos[Fecha]<=Indices[[#This Row],[Fecha]])*(TablaMovimientos[Actividad]=Indices[[#Headers],[Recría]])))-(SUMPRODUCT((TablaInventarios[Cab.])*(TablaInventarios[Actividad]=Indices[[#Headers],[Recría]])*(TablaInventarios[Categoría]=\"Terneros al pie\"))+SUMPRODUCT((TablaMovimientos[Cab.])*(TablaMovimientos[Fecha]<=Indices[[#This Row],[Fecha]])*(TablaMovimientos[Actividad]=Indices[[#Headers],[Recría]])*(TablaMovimientos[Categoría]=\"Terneros al pie\"))))","v":0},{"$f":"IF(Indices[[#This Row],[Meses activos]]=0,0,(SUMPRODUCT((TablaInventarios[Cab.])*(TablaInventarios[Actividad]=Indices[[#Headers],[Invernada]]))+SUMPRODUCT((TablaMovimientos[Cab.])*(TablaMovimientos[Fecha]<=Indices[[#This Row],[Fecha]])*(TablaMovimientos[Actividad]=Indices[[#Headers],[Invernada]])))-(SUMPRODUCT((TablaInventarios[Cab.])*(TablaInventarios[Actividad]=Indices[[#Headers],[Invernada]])*(TablaInventarios[Categoría]=\"Terneros al pie\"))+SUMPRODUCT((TablaMovimientos[Cab.])*(TablaMovimientos[Fecha]<=Indices[[#This Row],[Fecha]])*(TablaMovimientos[Actividad]=Indices[[#Headers],[Invernada]])*(TablaMovimientos[Categoría]=\"Terneros al pie\"))))","v":0},{"$f":"IF(Indices[[#This Row],[Meses activos]]=0,0,(SUMPRODUCT((TablaInventarios[Cab.])*(TablaInventarios[Actividad]=Indices[[#Headers],[Feed-lot]]))+SUMPRODUCT((TablaMovimientos[Cab.])*(TablaMovimientos[Fecha]<=Indices[[#This Row],[Fecha]])*(TablaMovimientos[Actividad]=Indices[[#Headers],[Feed-lot]])))-(SUMPRODUCT((TablaInventarios[Cab.])*(TablaInventarios[Actividad]=Indices[[#Headers],[Feed-lot]])*(TablaInventarios[Categoría]=\"Terneros al pie\"))+SUMPRODUCT((TablaMovimientos[Cab.])*(TablaMovimientos[Fecha]<=Indices[[#This Row],[Fecha]])*(TablaMovimientos[Actividad]=Indices[[#Headers],[Feed-lot]])*(TablaMovimientos[Categoría]=\"Terneros al pie\"))))","v":0},{"$f":"IF(Indices[[#This Row],[Meses activos]]=0,0,(SUMPRODUCT((TablaInventarios[Cab.])*(TablaInventarios[Actividad]=Indices[[#Headers],[Cabaña]]))+SUMPRODUCT((TablaMovimientos[Cab.])*(TablaMovimientos[Fecha]<=Indices[[#This Row],[Fecha]])*(TablaMovimientos[Actividad]=Indices[[#Headers],[Cabaña]])))-(SUMPRODUCT((TablaInventarios[Cab.])*(TablaInventarios[Actividad]=Indices[[#Headers],[Cabaña]])*(TablaInventarios[Categoría]=\"Terneros al pie\"))+SUMPRODUCT((TablaMovimientos[Cab.])*(TablaMovimientos[Fecha]<=Indices[[#This Row],[Fecha]])*(TablaMovimientos[Actividad]=Indices[[#Headers],[Cabaña]])*(TablaMovimientos[Categoría]=\"Terneros al pie\"))))","v":0},{"$f":"IF(Indices[[#This Row],[Meses activos]]=0,0,(SUMPRODUCT((TablaInventarios[Cab.])*(TablaInventarios[Actividad]=Indices[[#Headers],[Tambo]]))+SUMPRODUCT((TablaMovimientos[Cab.])*(TablaMovimientos[Fecha]<=Indices[[#This Row],[Fecha]])*(TablaMovimientos[Actividad]=Indices[[#Headers],[Tambo]])))-(SUMPRODUCT((TablaInventarios[Cab.])*(TablaInventarios[Actividad]=Indices[[#Headers],[Tambo]])*(TablaInventarios[Categoría]=\"Terneros al pie\"))+SUMPRODUCT((TablaMovimientos[Cab.])*(TablaMovimientos[Fecha]<=Indices[[#This Row],[Fecha]])*(TablaMovimientos[Actividad]=Indices[[#Headers],[Tambo]])*(TablaMovimientos[Categoría]=\"Terneros al pie\"))))","v":0},{"$f":"IF(Indices[[#This Row],[Meses activos]]=0,0,(SUMPRODUCT((TablaInventarios[Cab.])*(TablaInventarios[Actividad]=Indices[[#Headers],[Guachera]]))+SUMPRODUCT((TablaMovimientos[Cab.])*(TablaMovimientos[Fecha]<=Indices[[#This Row],[Fecha]])*(TablaMovimientos[Actividad]=Indices[[#Headers],[Guachera]])))-(SUMPRODUCT((TablaInventarios[Cab.])*(TablaInventarios[Actividad]=Indices[[#Headers],[Guachera]])*(TablaInventarios[Categoría]=\"Terneros al pie\"))+SUMPRODUCT((TablaMovimientos[Cab.])*(TablaMovimientos[Fecha]<=Indices[[#This Row],[Fecha]])*(TablaMovimientos[Actividad]=Indices[[#Headers],[Guachera]])*(TablaMovimientos[Categoría]=\"Terneros al pie\"))))","v":0},{"$f":"+SUM(Indices[[#This Row],[Cría]:[Guachera]])","v":0},{"$f":"IF(DATE(YEAR(Indices[[#This Row],[Fecha]]),MONTH(Indices[[#This Row],[Fecha]]),1)>=DATE(YEAR('Planilla de datos'!$N$19-1),MONTH('Planilla de datos'!$N$19-1),1),1,0)*IF(DATE(YEAR(Indices[[#This Row],[Fecha]]),MONTH(Indices[[#This Row],[Fecha]]),1)<='Planilla de datos'!$P$19,1,0)","v":0}]
["2023-03-01",{"$f":"IF(C27=0,\"\",VLOOKUP('Planilla de datos'!$T$23,'SIPM (Actualización en $)'!$A$6:$C$42,3,FALSE)/C27)","v":""},null,{"$f":"IF(Indices[[#This Row],[Meses activos]]=0,0,(SUMPRODUCT((TablaInventarios[Cab.])*(TablaInventarios[Actividad]=Indices[[#Headers],[Cría]]))+SUMPRODUCT((TablaMovimientos[Cab.])*(TablaMovimientos[Fecha]<=Indices[[#This Row],[Fecha]])*(TablaMovimientos[Actividad]=Indices[[#Headers],[Cría]])))-(SUMPRODUCT((TablaInventarios[Cab.])*(TablaInventarios[Actividad]=Indices[[#Headers],[Cría]])*(TablaInventarios[Categoría]=\"Terneros al pie\"))+SUMPRODUCT((TablaMovimientos[Cab.])*(TablaMovimientos[Fecha]<=Indices[[#This Row],[Fecha]])*(TablaMovimientos[Actividad]=Indices[[#Headers],[Cría]])*(TablaMovimientos[Categoría]=\"Terneros al pie\"))))","v":0},{"$f":"IF(Indices[[#This Row],[Meses activos]]=0,0,(SUMPRODUCT((TablaInventarios[Cab.])*(TablaInventarios[Actividad]=Indices[[#Headers],[Recría]]))+SUMPRODUCT((TablaMovimientos[Cab.])*(TablaMovimientos[Fecha]<=Indices[[#This Row],[Fecha]])*(TablaMovimientos[Actividad]=Indices[[#Headers],[Recría]])))-(SUMPRODUCT((TablaInventarios[Cab.])*(TablaInventarios[Actividad]=Indices[[#Headers],[Recría]])*(TablaInventarios[Categoría]=\"Terneros al pie\"))+SUMPRODUCT((TablaMovimientos[Cab.])*(TablaMovimientos[Fecha]<=Indices[[#This Row],[Fecha]])*(TablaMovimientos[Actividad]=Indices[[#Headers],[Recría]])*(TablaMovimientos[Categoría]=\"Terneros al pie\"))))","v":0},{"$f":"IF(Indices[[#This Row],[Meses activos]]=0,0,(SUMPRODUCT((TablaInventarios[Cab.])*(TablaInventarios[Actividad]=Indices[[#Headers],[Invernada]]))+SUMPRODUCT((TablaMovimientos[Cab.])*(TablaMovimientos[Fecha]<=Indices[[#This Row],[Fecha]])*(TablaMovimientos[Actividad]=Indices[[#Headers],[Invernada]])))-(SUMPRODUCT((TablaInventarios[Cab.])*(TablaInventarios[Actividad]=Indices[[#Headers],[Invernada]])*(TablaInventarios[Categoría]=\"Terneros al pie\"))+SUMPRODUCT((TablaMovimientos[Cab.])*(TablaMovimientos[Fecha]<=Indices[[#This Row],[Fecha]])*(TablaMovimientos[Actividad]=Indices[[#Headers],[Invernada]])*(TablaMovimientos[Categoría]=\"Terneros al pie\"))))","v":0},{"$f":"IF(Indices[[#This Row],[Meses activos]]=0,0,(SUMPRODUCT((TablaInventarios[Cab.])*(TablaInventarios[Actividad]=Indices[[#Headers],[Feed-lot]]))+SUMPRODUCT((TablaMovimientos[Cab.])*(TablaMovimientos[Fecha]<=Indices[[#This Row],[Fecha]])*(TablaMovimientos[Actividad]=Indices[[#Headers],[Feed-lot]])))-(SUMPRODUCT((TablaInventarios[Cab.])*(TablaInventarios[Actividad]=Indices[[#Headers],[Feed-lot]])*(TablaInventarios[Categoría]=\"Terneros al pie\"))+SUMPRODUCT((TablaMovimientos[Cab.])*(TablaMovimientos[Fecha]<=Indices[[#This Row],[Fecha]])*(TablaMovimientos[Actividad]=Indices[[#Headers],[Feed-lot]])*(TablaMovimientos[Categoría]=\"Terneros al pie\"))))","v":0},{"$f":"IF(Indices[[#This Row],[Meses activos]]=0,0,(SUMPRODUCT((TablaInventarios[Cab.])*(TablaInventarios[Actividad]=Indices[[#Headers],[Cabaña]]))+SUMPRODUCT((TablaMovimientos[Cab.])*(TablaMovimientos[Fecha]<=Indices[[#This Row],[Fecha]])*(TablaMovimientos[Actividad]=Indices[[#Headers],[Cabaña]])))-(SUMPRODUCT((TablaInventarios[Cab.])*(TablaInventarios[Actividad]=Indices[[#Headers],[Cabaña]])*(TablaInventarios[Categoría]=\"Terneros al pie\"))+SUMPRODUCT((TablaMovimientos[Cab.])*(TablaMovimientos[Fecha]<=Indices[[#This Row],[Fecha]])*(TablaMovimientos[Actividad]=Indices[[#Headers],[Cabaña]])*(TablaMovimientos[Categoría]=\"Terneros al pie\"))))","v":0},{"$f":"IF(Indices[[#This Row],[Meses activos]]=0,0,(SUMPRODUCT((TablaInventarios[Cab.])*(TablaInventarios[Actividad]=Indices[[#Headers],[Tambo]]))+SUMPRODUCT((TablaMovimientos[Cab.])*(TablaMovimientos[Fecha]<=Indices[[#This Row],[Fecha]])*(TablaMovimientos[Actividad]=Indices[[#Headers],[Tambo]])))-(SUMPRODUCT((TablaInventarios[Cab.])*(TablaInventarios[Actividad]=Indices[[#Headers],[Tambo]])*(TablaInventarios[Categoría]=\"Terneros al pie\"))+SUMPRODUCT((TablaMovimientos[Cab.])*(TablaMovimientos[Fecha]<=Indices[[#This Row],[Fecha]])*(TablaMovimientos[Actividad]=Indices[[#Headers],[Tambo]])*(TablaMovimientos[Categoría]=\"Terneros al pie\"))))","v":0},{"$f":"IF(Indices[[#This Row],[Meses activos]]=0,0,(SUMPRODUCT((TablaInventarios[Cab.])*(TablaInventarios[Actividad]=Indices[[#Headers],[Guachera]]))+SUMPRODUCT((TablaMovimientos[Cab.])*(TablaMovimientos[Fecha]<=Indices[[#This Row],[Fecha]])*(TablaMovimientos[Actividad]=Indices[[#Headers],[Guachera]])))-(SUMPRODUCT((TablaInventarios[Cab.])*(TablaInventarios[Actividad]=Indices[[#Headers],[Guachera]])*(TablaInventarios[Categoría]=\"Terneros al pie\"))+SUMPRODUCT((TablaMovimientos[Cab.])*(TablaMovimientos[Fecha]<=Indices[[#This Row],[Fecha]])*(TablaMovimientos[Actividad]=Indices[[#Headers],[Guachera]])*(TablaMovimientos[Categoría]=\"Terneros al pie\"))))","v":0},{"$f":"+SUM(Indices[[#This Row],[Cría]:[Guachera]])","v":0},{"$f":"IF(DATE(YEAR(Indices[[#This Row],[Fecha]]),MONTH(Indices[[#This Row],[Fecha]]),1)>=DATE(YEAR('Planilla de datos'!$N$19-1),MONTH('Planilla de datos'!$N$19-1),1),1,0)*IF(DATE(YEAR(Indices[[#This Row],[Fecha]]),MONTH(Indices[[#This Row],[Fecha]]),1)<='Planilla de datos'!$P$19,1,0)","v":0}]
["2023-04-01",{"$f":"IF(C28=0,\"\",VLOOKUP('Planilla de datos'!$T$23,'SIPM (Actualización en $)'!$A$6:$C$42,3,FALSE)/C28)","v":""},null,{"$f":"IF(Indices[[#This Row],[Meses activos]]=0,0,(SUMPRODUCT((TablaInventarios[Cab.])*(TablaInventarios[Actividad]=Indices[[#Headers],[Cría]]))+SUMPRODUCT((TablaMovimientos[Cab.])*(TablaMovimientos[Fecha]<=Indices[[#This Row],[Fecha]])*(TablaMovimientos[Actividad]=Indices[[#Headers],[Cría]])))-(SUMPRODUCT((TablaInventarios[Cab.])*(TablaInventarios[Actividad]=Indices[[#Headers],[Cría]])*(TablaInventarios[Categoría]=\"Terneros al pie\"))+SUMPRODUCT((TablaMovimientos[Cab.])*(TablaMovimientos[Fecha]<=Indices[[#This Row],[Fecha]])*(TablaMovimientos[Actividad]=Indices[[#Headers],[Cría]])*(TablaMovimientos[Categoría]=\"Terneros al pie\"))))","v":0},{"$f":"IF(Indices[[#This Row],[Meses activos]]=0,0,(SUMPRODUCT((TablaInventarios[Cab.])*(TablaInventarios[Actividad]=Indices[[#Headers],[Recría]]))+SUMPRODUCT((TablaMovimientos[Cab.])*(TablaMovimientos[Fecha]<=Indices[[#This Row],[Fecha]])*(TablaMovimientos[Actividad]=Indices[[#Headers],[Recría]])))-(SUMPRODUCT((TablaInventarios[Cab.])*(TablaInventarios[Actividad]=Indices[[#Headers],[Recría]])*(TablaInventarios[Categoría]=\"Terneros al pie\"))+SUMPRODUCT((TablaMovimientos[Cab.])*(TablaMovimientos[Fecha]<=Indices[[#This Row],[Fecha]])*(TablaMovimientos[Actividad]=Indices[[#Headers],[Recría]])*(TablaMovimientos[Categoría]=\"Terneros al pie\"))))","v":0},{"$f":"IF(Indices[[#This Row],[Meses activos]]=0,0,(SUMPRODUCT((TablaInventarios[Cab.])*(TablaInventarios[Actividad]=Indices[[#Headers],[Invernada]]))+SUMPRODUCT((TablaMovimientos[Cab.])*(TablaMovimientos[Fecha]<=Indices[[#This Row],[Fecha]])*(TablaMovimientos[Actividad]=Indices[[#Headers],[Invernada]])))-(SUMPRODUCT((TablaInventarios[Cab.])*(TablaInventarios[Actividad]=Indices[[#Headers],[Invernada]])*(TablaInventarios[Categoría]=\"Terneros al pie\"))+SUMPRODUCT((TablaMovimientos[Cab.])*(TablaMovimientos[Fecha]<=Indices[[#This Row],[Fecha]])*(TablaMovimientos[Actividad]=Indices[[#Headers],[Invernada]])*(TablaMovimientos[Categoría]=\"Terneros al pie\"))))","v":0},{"$f":"IF(Indices[[#This Row],[Meses activos]]=0,0,(SUMPRODUCT((TablaInventarios[Cab.])*(TablaInventarios[Actividad]=Indices[[#Headers],[Feed-lot]]))+SUMPRODUCT((TablaMovimientos[Cab.])*(TablaMovimientos[Fecha]<=Indices[[#This Row],[Fecha]])*(TablaMovimientos[Actividad]=Indices[[#Headers],[Feed-lot]])))-(SUMPRODUCT((TablaInventarios[Cab.])*(TablaInventarios[Actividad]=Indices[[#Headers],[Feed-lot]])*(TablaInventarios[Categoría]=\"Terneros al pie\"))+SUMPRODUCT((TablaMovimientos[Cab.])*(TablaMovimientos[Fecha]<=Indices[[#This Row],[Fecha]])*(TablaMovimientos[Actividad]=Indices[[#Headers],[Feed-lot]])*(TablaMovimientos[Categoría]=\"Terneros al pie\"))))","v":0},{"$f":"IF(Indices[[#This Row],[Meses activos]]=0,0,(SUMPRODUCT((TablaInventarios[Cab.])*(TablaInventarios[Actividad]=Indices[[#Headers],[Cabaña]]))+SUMPRODUCT((TablaMovimientos[Cab.])*(TablaMovimientos[Fecha]<=Indices[[#This Row],[Fecha]])*(TablaMovimientos[Actividad]=Indices[[#Headers],[Cabaña]])))-(SUMPRODUCT((TablaInventarios[Cab.])*(TablaInventarios[Actividad]=Indices[[#Headers],[Cabaña]])*(TablaInventarios[Categoría]=\"Terneros al pie\"))+SUMPRODUCT((TablaMovimientos[Cab.])*(TablaMovimientos[Fecha]<=Indices[[#This Row],[Fecha]])*(TablaMovimientos[Actividad]=Indices[[#Headers],[Cabaña]])*(TablaMovimientos[Categoría]=\"Terneros al pie\"))))","v":0},{"$f":"IF(Indices[[#This Row],[Meses activos]]=0,0,(SUMPRODUCT((TablaInventarios[Cab.])*(TablaInventarios[Actividad]=Indices[[#Headers],[Tambo]]))+SUMPRODUCT((TablaMovimientos[Cab.])*(TablaMovimientos[Fecha]<=Indices[[#This Row],[Fecha]])*(TablaMovimientos[Actividad]=Indices[[#Headers],[Tambo]])))-(SUMPRODUCT((TablaInventarios[Cab.])*(TablaInventarios[Actividad]=Indices[[#Headers],[Tambo]])*(TablaInventarios[Categoría]=\"Terneros al pie\"))+SUMPRODUCT((TablaMovimientos[Cab.])*(TablaMovimientos[Fecha]<=Indices[[#This Row],[Fecha]])*(TablaMovimientos[Actividad]=Indices[[#Headers],[Tambo]])*(TablaMovimientos[Categoría]=\"Terneros al pie\"))))","v":0},{"$f":"IF(Indices[[#This Row],[Meses activos]]=0,0,(SUMPRODUCT((TablaInventarios[Cab.])*(TablaInventarios[Actividad]=Indices[[#Headers],[Guachera]]))+SUMPRODUCT((TablaMovimientos[Cab.])*(TablaMovimientos[Fecha]<=Indices[[#This Row],[Fecha]])*(TablaMovimientos[Actividad]=Indices[[#Headers],[Guachera]])))-(SUMPRODUCT((TablaInventarios[Cab.])*(TablaInventarios[Actividad]=Indices[[#Headers],[Guachera]])*(TablaInventarios[Categoría]=\"Terneros al pie\"))+SUMPRODUCT((TablaMovimientos[Cab.])*(TablaMovimientos[Fecha]<=Indices[[#This Row],[Fecha]])*(TablaMovimientos[Actividad]=Indices[[#Headers],[Guachera]])*(TablaMovimientos[Categoría]=\"Terneros al pie\"))))","v":0},{"$f":"+SUM(Indices[[#This Row],[Cría]:[Guachera]])","v":0},{"$f":"IF(DATE(YEAR(Indices[[#This Row],[Fecha]]),MONTH(Indices[[#This Row],[Fecha]]),1)>=DATE(YEAR('Planilla de datos'!$N$19-1),MONTH('Planilla de datos'!$N$19-1),1),1,0)*IF(DATE(YEAR(Indices[[#This Row],[Fecha]]),MONTH(Indices[[#This Row],[Fecha]]),1)<='Planilla de datos'!$P$19,1,0)","v":0}]
["2023-05-01",{"$f":"IF(C29=0,\"\",VLOOKUP('Planilla de datos'!$T$23,'SIPM (Actualización en $)'!$A$6:$C$42,3,FALSE)/C29)","v":""},null,{"$f":"IF(Indices[[#This Row],[Meses activos]]=0,0,(SUMPRODUCT((TablaInventarios[Cab.])*(TablaInventarios[Actividad]=Indices[[#Headers],[Cría]]))+SUMPRODUCT((TablaMovimientos[Cab.])*(TablaMovimientos[Fecha]<=Indices[[#This Row],[Fecha]])*(TablaMovimientos[Actividad]=Indices[[#Headers],[Cría]])))-(SUMPRODUCT((TablaInventarios[Cab.])*(TablaInventarios[Actividad]=Indices[[#Headers],[Cría]])*(TablaInventarios[Categoría]=\"Terneros al pie\"))+SUMPRODUCT((TablaMovimientos[Cab.])*(TablaMovimientos[Fecha]<=Indices[[#This Row],[Fecha]])*(TablaMovimientos[Actividad]=Indices[[#Headers],[Cría]])*(TablaMovimientos[Categoría]=\"Terneros al pie\"))))","v":0},{"$f":"IF(Indices[[#This Row],[Meses activos]]=0,0,(SUMPRODUCT((TablaInventarios[Cab.])*(TablaInventarios[Actividad]=Indices[[#Headers],[Recría]]))+SUMPRODUCT((TablaMovimientos[Cab.])*(TablaMovimientos[Fecha]<=Indices[[#This Row],[Fecha]])*(TablaMovimientos[Actividad]=Indices[[#Headers],[Recría]])))-(SUMPRODUCT((TablaInventarios[Cab.])*(TablaInventarios[Actividad]=Indices[[#Headers],[Recría]])*(TablaInventarios[Categoría]=\"Terneros al pie\"))+SUMPRODUCT((TablaMovimientos[Cab.])*(TablaMovimientos[Fecha]<=Indices[[#This Row],[Fecha]])*(TablaMovimientos[Actividad]=Indices[[#Headers],[Recría]])*(TablaMovimientos[Categoría]=\"Terneros al pie\"))))","v":0},{"$f":"IF(Indices[[#This Row],[Meses activos]]=0,0,(SUMPRODUCT((TablaInventarios[Cab.])*(TablaInventarios[Actividad]=Indices[[#Headers],[Invernada]]))+SUMPRODUCT((TablaMovimientos[Cab.])*(TablaMovimientos[Fecha]<=Indices[[#This Row],[Fecha]])*(TablaMovimientos[Actividad]=Indices[[#Headers],[Invernada]])))-(SUMPRODUCT((TablaInventarios[Cab.])*(TablaInventarios[Actividad]=Indices[[#Headers],[Invernada]])*(TablaInventarios[Categoría]=\"Terneros al pie\"))+SUMPRODUCT((TablaMovimientos[Cab.])*(TablaMovimientos[Fecha]<=Indices[[#This Row],[Fecha]])*(TablaMovimientos[Actividad]=Indices[[#Headers],[Invernada]])*(TablaMovimientos[Categoría]=\"Terneros al pie\"))))","v":0},{"$f":"IF(Indices[[#This Row],[Meses activos]]=0,0,(SUMPRODUCT((TablaInventarios[Cab.])*(TablaInventarios[Actividad]=Indices[[#Headers],[Feed-lot]]))+SUMPRODUCT((TablaMovimientos[Cab.])*(TablaMovimientos[Fecha]<=Indices[[#This Row],[Fecha]])*(TablaMovimientos[Actividad]=Indices[[#Headers],[Feed-lot]])))-(SUMPRODUCT((TablaInventarios[Cab.])*(TablaInventarios[Actividad]=Indices[[#Headers],[Feed-lot]])*(TablaInventarios[Categoría]=\"Terneros al pie\"))+SUMPRODUCT((TablaMovimientos[Cab.])*(TablaMovimientos[Fecha]<=Indices[[#This Row],[Fecha]])*(TablaMovimientos[Actividad]=Indices[[#Headers],[Feed-lot]])*(TablaMovimientos[Categoría]=\"Terneros al pie\"))))","v":0},{"$f":"IF(Indices[[#This Row],[Meses activos]]=0,0,(SUMPRODUCT((TablaInventarios[Cab.])*(TablaInventarios[Actividad]=Indices[[#Headers],[Cabaña]]))+SUMPRODUCT((TablaMovimientos[Cab.])*(TablaMovimientos[Fecha]<=Indices[[#This Row],[Fecha]])*(TablaMovimientos[Actividad]=Indices[[#Headers],[Cabaña]])))-(SUMPRODUCT((TablaInventarios[Cab.])*(TablaInventarios[Actividad]=Indices[[#Headers],[Cabaña]])*(TablaInventarios[Categoría]=\"Terneros al pie\"))+SUMPRODUCT((TablaMovimientos[Cab.])*(TablaMovimientos[Fecha]<=Indices[[#This Row],[Fecha]])*(TablaMovimientos[Actividad]=Indices[[#Headers],[Cabaña]])*(TablaMovimientos[Categoría]=\"Terneros al pie\"))))","v":0},{"$f":"IF(Indices[[#This Row],[Meses activos]]=0,0,(SUMPRODUCT((TablaInventarios[Cab.])*(TablaInventarios[Actividad]=Indices[[#Headers],[Tambo]]))+SUMPRODUCT((TablaMovimientos[Cab.])*(TablaMovimientos[Fecha]<=Indices[[#This Row],[Fecha]])*(TablaMovimientos[Actividad]=Indices[[#Headers],[Tambo]])))-(SUMPRODUCT((TablaInventarios[Cab.])*(TablaInventarios[Actividad]=Indices[[#Headers],[Tambo]])*(TablaInventarios[Categoría]=\"Terneros al pie\"))+SUMPRODUCT((TablaMovimientos[Cab.])*(TablaMovimientos[Fecha]<=Indices[[#This Row],[Fecha]])*(TablaMovimientos[Actividad]=Indices[[#Headers],[Tambo]])*(TablaMovimientos[Categoría]=\"Terneros al pie\"))))","v":0},{"$f":"IF(Indices[[#This Row],[Meses activos]]=0,0,(SUMPRODUCT((TablaInventarios[Cab.])*(TablaInventarios[Actividad]=Indices[[#Headers],[Guachera]]))+SUMPRODUCT((TablaMovimientos[Cab.])*(TablaMovimientos[Fecha]<=Indices[[#This Row],[Fecha]])*(TablaMovimientos[Actividad]=Indices[[#Headers],[Guachera]])))-(SUMPRODUCT((TablaInventarios[Cab.])*(TablaInventarios[Actividad]=Indices[[#Headers],[Guachera]])*(TablaInventarios[Categoría]=\"Terneros al pie\"))+SUMPRODUCT((TablaMovimientos[Cab.])*(TablaMovimientos[Fecha]<=Indices[[#This Row],[Fecha]])*(TablaMovimientos[Actividad]=Indices[[#Headers],[Guachera]])*(TablaMovimientos[Categoría]=\"Terneros al pie\"))))","v":0},{"$f":"+SUM(Indices[[#This Row],[Cría]:[Guachera]])","v":0},{"$f":"IF(DATE(YEAR(Indices[[#This Row],[Fecha]]),MONTH(Indices[[#This Row],[Fecha]]),1)>=DATE(YEAR('Planilla de datos'!$N$19-1),MONTH('Planilla de datos'!$N$19-1),1),1,0)*IF(DATE(YEAR(Indices[[#This Row],[Fecha]]),MONTH(Indices[[#This Row],[Fecha]]),1)<='Planilla de datos'!$P$19,1,0)","v":0}]
["2023-06-01",{"$f":"IF(C30=0,\"\",VLOOKUP('Planilla de datos'!$T$23,'SIPM (Actualización en $)'!$A$6:$C$42,3,FALSE)/C30)","v":3.8314176245210727},261,{"$f":"IF(Indices[[#This Row],[Meses activos]]=0,0,(SUMPRODUCT((TablaInventarios[Cab.])*(TablaInventarios[Actividad]=Indices[[#Headers],[Cría]]))+SUMPRODUCT((TablaMovimientos[Cab.])*(TablaMovimientos[Fecha]<=Indices[[#This Row],[Fecha]])*(TablaMovimientos[Actividad]=Indices[[#Headers],[Cría]])))-(SUMPRODUCT((TablaInventarios[Cab.])*(TablaInventarios[Actividad]=Indices[[#Headers],[Cría]])*(TablaInventarios[Categoría]=\"Terneros al pie\"))+SUMPRODUCT((TablaMovimientos[Cab.])*(TablaMovimientos[Fecha]<=Indices[[#This Row],[Fecha]])*(TablaMovimientos[Actividad]=Indices[[#Headers],[Cría]])*(TablaMovimientos[Categoría]=\"Terneros al pie\"))))","v":0},{"$f":"IF(Indices[[#This Row],[Meses activos]]=0,0,(SUMPRODUCT((TablaInventarios[Cab.])*(TablaInventarios[Actividad]=Indices[[#Headers],[Recría]]))+SUMPRODUCT((TablaMovimientos[Cab.])*(TablaMovimientos[Fecha]<=Indices[[#This Row],[Fecha]])*(TablaMovimientos[Actividad]=Indices[[#Headers],[Recría]])))-(SUMPRODUCT((TablaInventarios[Cab.])*(TablaInventarios[Actividad]=Indices[[#Headers],[Recría]])*(TablaInventarios[Categoría]=\"Terneros al pie\"))+SUMPRODUCT((TablaMovimientos[Cab.])*(TablaMovimientos[Fecha]<=Indices[[#This Row],[Fecha]])*(TablaMovimientos[Actividad]=Indices[[#Headers],[Recría]])*(TablaMovimientos[Categoría]=\"Terneros al pie\"))))","v":0},{"$f":"IF(Indices[[#This Row],[Meses activos]]=0,0,(SUMPRODUCT((TablaInventarios[Cab.])*(TablaInventarios[Actividad]=Indices[[#Headers],[Invernada]]))+SUMPRODUCT((TablaMovimientos[Cab.])*(TablaMovimientos[Fecha]<=Indices[[#This Row],[Fecha]])*(TablaMovimientos[Actividad]=Indices[[#Headers],[Invernada]])))-(SUMPRODUCT((TablaInventarios[Cab.])*(TablaInventarios[Actividad]=Indices[[#Headers],[Invernada]])*(TablaInventarios[Categoría]=\"Terneros al pie\"))+SUMPRODUCT((TablaMovimientos[Cab.])*(TablaMovimientos[Fecha]<=Indices[[#This Row],[Fecha]])*(TablaMovimientos[Actividad]=Indices[[#Headers],[Invernada]])*(TablaMovimientos[Categoría]=\"Terneros al pie\"))))","v":0},{"$f":"IF(Indices[[#This Row],[Meses activos]]=0,0,(SUMPRODUCT((TablaInventarios[Cab.])*(TablaInventarios[Actividad]=Indices[[#Headers],[Feed-lot]]))+SUMPRODUCT((TablaMovimientos[Cab.])*(TablaMovimientos[Fecha]<=Indices[[#This Row],[Fecha]])*(TablaMovimientos[Actividad]=Indices[[#Headers],[Feed-lot]])))-(SUMPRODUCT((TablaInventarios[Cab.])*(TablaInventarios[Actividad]=Indices[[#Headers],[Feed-lot]])*(TablaInventarios[Categoría]=\"Terneros al pie\"))+SUMPRODUCT((TablaMovimientos[Cab.])*(TablaMovimientos[Fecha]<=Indices[[#This Row],[Fecha]])*(TablaMovimientos[Actividad]=Indices[[#Headers],[Feed-lot]])*(TablaMovimientos[Categoría]=\"Terneros al pie\"))))","v":0},{"$f":"IF(Indices[[#This Row],[Meses activos]]=0,0,(SUMPRODUCT((TablaInventarios[Cab.])*(TablaInventarios[Actividad]=Indices[[#Headers],[Cabaña]]))+SUMPRODUCT((TablaMovimientos[Cab.])*(TablaMovimientos[Fecha]<=Indices[[#This Row],[Fecha]])*(TablaMovimientos[Actividad]=Indices[[#Headers],[Cabaña]])))-(SUMPRODUCT((TablaInventarios[Cab.])*(TablaInventarios[Actividad]=Indices[[#Headers],[Cabaña]])*(TablaInventarios[Categoría]=\"Terneros al pie\"))+SUMPRODUCT((TablaMovimientos[Cab.])*(TablaMovimientos[Fecha]<=Indices[[#This Row],[Fecha]])*(TablaMovimientos[Actividad]=Indices[[#Headers],[Cabaña]])*(TablaMovimientos[Categoría]=\"Terneros al pie\"))))","v":0},{"$f":"IF(Indices[[#This Row],[Meses activos]]=0,0,(SUMPRODUCT((TablaInventarios[Cab.])*(TablaInventarios[Actividad]=Indices[[#Headers],[Tambo]]))+SUMPRODUCT((TablaMovimientos[Cab.])*(TablaMovimientos[Fecha]<=Indices[[#This Row],[Fecha]])*(TablaMovimientos[Actividad]=Indices[[#Headers],[Tambo]])))-(SUMPRODUCT((TablaInventarios[Cab.])*(TablaInventarios[Actividad]=Indices[[#Headers],[Tambo]])*(TablaInventarios[Categoría]=\"Terneros al pie\"))+SUMPRODUCT((TablaMovimientos[Cab.])*(TablaMovimientos[Fecha]<=Indices[[#This Row],[Fecha]])*(TablaMovimientos[Actividad]=Indices[[#Headers],[Tambo]])*(TablaMovimientos[Categoría]=\"Terneros al pie\"))))","v":0},{"$f":"IF(Indices[[#This Row],[Meses activos]]=0,0,(SUMPRODUCT((TablaInventarios[Cab.])*(TablaInventarios[Actividad]=Indices[[#Headers],[Guachera]]))+SUMPRODUCT((TablaMovimientos[Cab.])*(TablaMovimientos[Fecha]<=Indices[[#This Row],[Fecha]])*(TablaMovimientos[Actividad]=Indices[[#Headers],[Guachera]])))-(SUMPRODUCT((TablaInventarios[Cab.])*(TablaInventarios[Actividad]=Indices[[#Headers],[Guachera]])*(TablaInventarios[Categoría]=\"Terneros al pie\"))+SUMPRODUCT((TablaMovimientos[Cab.])*(TablaMovimientos[Fecha]<=Indices[[#This Row],[Fecha]])*(TablaMovimientos[Actividad]=Indices[[#Headers],[Guachera]])*(TablaMovimientos[Categoría]=\"Terneros al pie\"))))","v":0},{"$f":"+SUM(Indices[[#This Row],[Cría]:[Guachera]])","v":0},{"$f":"IF(DATE(YEAR(Indices[[#This Row],[Fecha]]),MONTH(Indices[[#This Row],[Fecha]]),1)>=DATE(YEAR('Planilla de datos'!$N$19-1),MONTH('Planilla de datos'!$N$19-1),1),1,0)*IF(DATE(YEAR(Indices[[#This Row],[Fecha]]),MONTH(Indices[[#This Row],[Fecha]]),1)<='Planilla de datos'!$P$19,1,0)","v":1}]
["2023-07-01",{"$f":"IF(C31=0,\"\",VLOOKUP('Planilla de datos'!$T$23,'SIPM (Actualización en $)'!$A$6:$C$42,3,FALSE)/C31)","v":3.5842293906810037},279,{"$f":"IF(Indices[[#This Row],[Meses activos]]=0,0,(SUMPRODUCT((TablaInventarios[Cab.])*(TablaInventarios[Actividad]=Indices[[#Headers],[Cría]]))+SUMPRODUCT((TablaMovimientos[Cab.])*(TablaMovimientos[Fecha]<=Indices[[#This Row],[Fecha]])*(TablaMovimientos[Actividad]=Indices[[#Headers],[Cría]])))-(SUMPRODUCT((TablaInventarios[Cab.])*(TablaInventarios[Actividad]=Indices[[#Headers],[Cría]])*(TablaInventarios[Categoría]=\"Terneros al pie\"))+SUMPRODUCT((TablaMovimientos[Cab.])*(TablaMovimientos[Fecha]<=Indices[[#This Row],[Fecha]])*(TablaMovimientos[Actividad]=Indices[[#Headers],[Cría]])*(TablaMovimientos[Categoría]=\"Terneros al pie\"))))","v":0},{"$f":"IF(Indices[[#This Row],[Meses activos]]=0,0,(SUMPRODUCT((TablaInventarios[Cab.])*(TablaInventarios[Actividad]=Indices[[#Headers],[Recría]]))+SUMPRODUCT((TablaMovimientos[Cab.])*(TablaMovimientos[Fecha]<=Indices[[#This Row],[Fecha]])*(TablaMovimientos[Actividad]=Indices[[#Headers],[Recría]])))-(SUMPRODUCT((TablaInventarios[Cab.])*(TablaInventarios[Actividad]=Indices[[#Headers],[Recría]])*(TablaInventarios[Categoría]=\"Terneros al pie\"))+SUMPRODUCT((TablaMovimientos[Cab.])*(TablaMovimientos[Fecha]<=Indices[[#This Row],[Fecha]])*(TablaMovimientos[Actividad]=Indices[[#Headers],[Recría]])*(TablaMovimientos[Categoría]=\"Terneros al pie\"))))","v":0},{"$f":"IF(Indices[[#This Row],[Meses activos]]=0,0,(SUMPRODUCT((TablaInventarios[Cab.])*(TablaInventarios[Actividad]=Indices[[#Headers],[Invernada]]))+SUMPRODUCT((TablaMovimientos[Cab.])*(TablaMovimientos[Fecha]<=Indices[[#This Row],[Fecha]])*(TablaMovimientos[Actividad]=Indices[[#Headers],[Invernada]])))-(SUMPRODUCT((TablaInventarios[Cab.])*(TablaInventarios[Actividad]=Indices[[#Headers],[Invernada]])*(TablaInventarios[Categoría]=\"Terneros al pie\"))+SUMPRODUCT((TablaMovimientos[Cab.])*(TablaMovimientos[Fecha]<=Indices[[#This Row],[Fecha]])*(TablaMovimientos[Actividad]=Indices[[#Headers],[Invernada]])*(TablaMovimientos[Categoría]=\"Terneros al pie\"))))","v":0},{"$f":"IF(Indices[[#This Row],[Meses activos]]=0,0,(SUMPRODUCT((TablaInventarios[Cab.])*(TablaInventarios[Actividad]=Indices[[#Headers],[Feed-lot]]))+SUMPRODUCT((TablaMovimientos[Cab.])*(TablaMovimientos[Fecha]<=Indices[[#This Row],[Fecha]])*(TablaMovimientos[Actividad]=Indices[[#Headers],[Feed-lot]])))-(SUMPRODUCT((TablaInventarios[Cab.])*(TablaInventarios[Actividad]=Indices[[#Headers],[Feed-lot]])*(TablaInventarios[Categoría]=\"Terneros al pie\"))+SUMPRODUCT((TablaMovimientos[Cab.])*(TablaMovimientos[Fecha]<=Indices[[#This Row],[Fecha]])*(TablaMovimientos[Actividad]=Indices[[#Headers],[Feed-lot]])*(TablaMovimientos[Categoría]=\"Terneros al pie\"))))","v":0},{"$f":"IF(Indices[[#This Row],[Meses activos]]=0,0,(SUMPRODUCT((TablaInventarios[Cab.])*(TablaInventarios[Actividad]=Indices[[#Headers],[Cabaña]]))+SUMPRODUCT((TablaMovimientos[Cab.])*(TablaMovimientos[Fecha]<=Indices[[#This Row],[Fecha]])*(TablaMovimientos[Actividad]=Indices[[#Headers],[Cabaña]])))-(SUMPRODUCT((TablaInventarios[Cab.])*(TablaInventarios[Actividad]=Indices[[#Headers],[Cabaña]])*(TablaInventarios[Categoría]=\"Terneros al pie\"))+SUMPRODUCT((TablaMovimientos[Cab.])*(TablaMovimientos[Fecha]<=Indices[[#This Row],[Fecha]])*(TablaMovimientos[Actividad]=Indices[[#Headers],[Cabaña]])*(TablaMovimientos[Categoría]=\"Terneros al pie\"))))","v":0},{"$f":"IF(Indices[[#This Row],[Meses activos]]=0,0,(SUMPRODUCT((TablaInventarios[Cab.])*(TablaInventarios[Actividad]=Indices[[#Headers],[Tambo]]))+SUMPRODUCT((TablaMovimientos[Cab.])*(TablaMovimientos[Fecha]<=Indices[[#This Row],[Fecha]])*(TablaMovimientos[Actividad]=Indices[[#Headers],[Tambo]])))-(SUMPRODUCT((TablaInventarios[Cab.])*(TablaInventarios[Actividad]=Indices[[#Headers],[Tambo]])*(TablaInventarios[Categoría]=\"Terneros al pie\"))+SUMPRODUCT((TablaMovimientos[Cab.])*(TablaMovimientos[Fecha]<=Indices[[#This Row],[Fecha]])*(TablaMovimientos[Actividad]=Indices[[#Headers],[Tambo]])*(TablaMovimientos[Categoría]=\"Terneros al pie\"))))","v":0},{"$f":"IF(Indices[[#This Row],[Meses activos]]=0,0,(SUMPRODUCT((TablaInventarios[Cab.])*(TablaInventarios[Actividad]=Indices[[#Headers],[Guachera]]))+SUMPRODUCT((TablaMovimientos[Cab.])*(TablaMovimientos[Fecha]<=Indices[[#This Row],[Fecha]])*(TablaMovimientos[Actividad]=Indices[[#Headers],[Guachera]])))-(SUMPRODUCT((TablaInventarios[Cab.])*(TablaInventarios[Actividad]=Indices[[#Headers],[Guachera]])*(TablaInventarios[Categoría]=\"Terneros al pie\"))+SUMPRODUCT((TablaMovimientos[Cab.])*(TablaMovimientos[Fecha]<=Indices[[#This Row],[Fecha]])*(TablaMovimientos[Actividad]=Indices[[#Headers],[Guachera]])*(TablaMovimientos[Categoría]=\"Terneros al pie\"))))","v":0},{"$f":"+SUM(Indices[[#This Row],[Cría]:[Guachera]])","v":0},{"$f":"IF(DATE(YEAR(Indices[[#This Row],[Fecha]]),MONTH(Indices[[#This Row],[Fecha]]),1)>=DATE(YEAR('Planilla de datos'!$N$19-1),MONTH('Planilla de datos'!$N$19-1),1),1,0)*IF(DATE(YEAR(Indices[[#This Row],[Fecha]]),MONTH(Indices[[#This Row],[Fecha]]),1)<='Planilla de datos'!$P$19,1,0)","v":1}]
["2023-08-01",{"$f":"IF(C32=0,\"\",VLOOKUP('Planilla de datos'!$T$23,'SIPM (Actualización en $)'!$A$6:$C$42,3,FALSE)/C32)","v":3.0120481927710845},332,{"$f":"IF(Indices[[#This Row],[Meses activos]]=0,0,(SUMPRODUCT((TablaInventarios[Cab.])*(TablaInventarios[Actividad]=Indices[[#Headers],[Cría]]))+SUMPRODUCT((TablaMovimientos[Cab.])*(TablaMovimientos[Fecha]<=Indices[[#This Row],[Fecha]])*(TablaMovimientos[Actividad]=Indices[[#Headers],[Cría]])))-(SUMPRODUCT((TablaInventarios[Cab.])*(TablaInventarios[Actividad]=Indices[[#Headers],[Cría]])*(TablaInventarios[Categoría]=\"Terneros al pie\"))+SUMPRODUCT((TablaMovimientos[Cab.])*(TablaMovimientos[Fecha]<=Indices[[#This Row],[Fecha]])*(TablaMovimientos[Actividad]=Indices[[#Headers],[Cría]])*(TablaMovimientos[Categoría]=\"Terneros al pie\"))))","v":0},{"$f":"IF(Indices[[#This Row],[Meses activos]]=0,0,(SUMPRODUCT((TablaInventarios[Cab.])*(TablaInventarios[Actividad]=Indices[[#Headers],[Recría]]))+SUMPRODUCT((TablaMovimientos[Cab.])*(TablaMovimientos[Fecha]<=Indices[[#This Row],[Fecha]])*(TablaMovimientos[Actividad]=Indices[[#Headers],[Recría]])))-(SUMPRODUCT((TablaInventarios[Cab.])*(TablaInventarios[Actividad]=Indices[[#Headers],[Recría]])*(TablaInventarios[Categoría]=\"Terneros al pie\"))+SUMPRODUCT((TablaMovimientos[Cab.])*(TablaMovimientos[Fecha]<=Indices[[#This Row],[Fecha]])*(TablaMovimientos[Actividad]=Indices[[#Headers],[Recría]])*(TablaMovimientos[Categoría]=\"Terneros al pie\"))))","v":0},{"$f":"IF(Indices[[#This Row],[Meses activos]]=0,0,(SUMPRODUCT((TablaInventarios[Cab.])*(TablaInventarios[Actividad]=Indices[[#Headers],[Invernada]]))+SUMPRODUCT((TablaMovimientos[Cab.])*(TablaMovimientos[Fecha]<=Indices[[#This Row],[Fecha]])*(TablaMovimientos[Actividad]=Indices[[#Headers],[Invernada]])))-(SUMPRODUCT((TablaInventarios[Cab.])*(TablaInventarios[Actividad]=Indices[[#Headers],[Invernada]])*(TablaInventarios[Categoría]=\"Terneros al pie\"))+SUMPRODUCT((TablaMovimientos[Cab.])*(TablaMovimientos[Fecha]<=Indices[[#This Row],[Fecha]])*(TablaMovimientos[Actividad]=Indices[[#Headers],[Invernada]])*(TablaMovimientos[Categoría]=\"Terneros al pie\"))))","v":0},{"$f":"IF(Indices[[#This Row],[Meses activos]]=0,0,(SUMPRODUCT((TablaInventarios[Cab.])*(TablaInventarios[Actividad]=Indices[[#Headers],[Feed-lot]]))+SUMPRODUCT((TablaMovimientos[Cab.])*(TablaMovimientos[Fecha]<=Indices[[#This Row],[Fecha]])*(TablaMovimientos[Actividad]=Indices[[#Headers],[Feed-lot]])))-(SUMPRODUCT((TablaInventarios[Cab.])*(TablaInventarios[Actividad]=Indices[[#Headers],[Feed-lot]])*(TablaInventarios[Categoría]=\"Terneros al pie\"))+SUMPRODUCT((TablaMovimientos[Cab.])*(TablaMovimientos[Fecha]<=Indices[[#This Row],[Fecha]])*(TablaMovimientos[Actividad]=Indices[[#Headers],[Feed-lot]])*(TablaMovimientos[Categoría]=\"Terneros al pie\"))))","v":0},{"$f":"IF(Indices[[#This Row],[Meses activos]]=0,0,(SUMPRODUCT((TablaInventarios[Cab.])*(TablaInventarios[Actividad]=Indices[[#Headers],[Cabaña]]))+SUMPRODUCT((TablaMovimientos[Cab.])*(TablaMovimientos[Fecha]<=Indices[[#This Row],[Fecha]])*(TablaMovimientos[Actividad]=Indices[[#Headers],[Cabaña]])))-(SUMPRODUCT((TablaInventarios[Cab.])*(TablaInventarios[Actividad]=Indices[[#Headers],[Cabaña]])*(TablaInventarios[Categoría]=\"Terneros al pie\"))+SUMPRODUCT((TablaMovimientos[Cab.])*(TablaMovimientos[Fecha]<=Indices[[#This Row],[Fecha]])*(TablaMovimientos[Actividad]=Indices[[#Headers],[Cabaña]])*(TablaMovimientos[Categoría]=\"Terneros al pie\"))))","v":0},{"$f":"IF(Indices[[#This Row],[Meses activos]]=0,0,(SUMPRODUCT((TablaInventarios[Cab.])*(TablaInventarios[Actividad]=Indices[[#Headers],[Tambo]]))+SUMPRODUCT((TablaMovimientos[Cab.])*(TablaMovimientos[Fecha]<=Indices[[#This Row],[Fecha]])*(TablaMovimientos[Actividad]=Indices[[#Headers],[Tambo]])))-(SUMPRODUCT((TablaInventarios[Cab.])*(TablaInventarios[Actividad]=Indices[[#Headers],[Tambo]])*(TablaInventarios[Categoría]=\"Terneros al pie\"))+SUMPRODUCT((TablaMovimientos[Cab.])*(TablaMovimientos[Fecha]<=Indices[[#This Row],[Fecha]])*(TablaMovimientos[Actividad]=Indices[[#Headers],[Tambo]])*(TablaMovimientos[Categoría]=\"Terneros al pie\"))))","v":0},{"$f":"IF(Indices[[#This Row],[Meses activos]]=0,0,(SUMPRODUCT((TablaInventarios[Cab.])*(TablaInventarios[Actividad]=Indices[[#Headers],[Guachera]]))+SUMPRODUCT((TablaMovimientos[Cab.])*(TablaMovimientos[Fecha]<=Indices[[#This Row],[Fecha]])*(TablaMovimientos[Actividad]=Indices[[#Headers],[Guachera]])))-(SUMPRODUCT((TablaInventarios[Cab.])*(TablaInventarios[Actividad]=Indices[[#Headers],[Guachera]])*(TablaInventarios[Categoría]=\"Terneros al pie\"))+SUMPRODUCT((TablaMovimientos[Cab.])*(TablaMovimientos[Fecha]<=Indices[[#This Row],[Fecha]])*(TablaMovimientos[Actividad]=Indices[[#Headers],[Guachera]])*(TablaMovimientos[Categoría]=\"Terneros al pie\"))))","v":0},{"$f":"+SUM(Indices[[#This Row],[Cría]:[Guachera]])","v":0},{"$f":"IF(DATE(YEAR(Indices[[#This Row],[Fecha]]),MONTH(Indices[[#This Row],[Fecha]]),1)>=DATE(YEAR('Planilla de datos'!$N$19-1),MONTH('Planilla de datos'!$N$19-1),1),1,0)*IF(DATE(YEAR(Indices[[#This Row],[Fecha]]),MONTH(Indices[[#This Row],[Fecha]]),1)<='Planilla de datos'!$P$19,1,0)","v":1}]
["2023-09-01",{"$f":"IF(C33=0,\"\",VLOOKUP('Planilla de datos'!$T$23,'SIPM (Actualización en $)'!$A$6:$C$42,3,FALSE)/C33)","v":2.7624309392265194},362,{"$f":"IF(Indices[[#This Row],[Meses activos]]=0,0,(SUMPRODUCT((TablaInventarios[Cab.])*(TablaInventarios[Actividad]=Indices[[#Headers],[Cría]]))+SUMPRODUCT((TablaMovimientos[Cab.])*(TablaMovimientos[Fecha]<=Indices[[#This Row],[Fecha]])*(TablaMovimientos[Actividad]=Indices[[#Headers],[Cría]])))-(SUMPRODUCT((TablaInventarios[Cab.])*(TablaInventarios[Actividad]=Indices[[#Headers],[Cría]])*(TablaInventarios[Categoría]=\"Terneros al pie\"))+SUMPRODUCT((TablaMovimientos[Cab.])*(TablaMovimientos[Fecha]<=Indices[[#This Row],[Fecha]])*(TablaMovimientos[Actividad]=Indices[[#Headers],[Cría]])*(TablaMovimientos[Categoría]=\"Terneros al pie\"))))","v":0},{"$f":"IF(Indices[[#This Row],[Meses activos]]=0,0,(SUMPRODUCT((TablaInventarios[Cab.])*(TablaInventarios[Actividad]=Indices[[#Headers],[Recría]]))+SUMPRODUCT((TablaMovimientos[Cab.])*(TablaMovimientos[Fecha]<=Indices[[#This Row],[Fecha]])*(TablaMovimientos[Actividad]=Indices[[#Headers],[Recría]])))-(SUMPRODUCT((TablaInventarios[Cab.])*(TablaInventarios[Actividad]=Indices[[#Headers],[Recría]])*(TablaInventarios[Categoría]=\"Terneros al pie\"))+SUMPRODUCT((TablaMovimientos[Cab.])*(TablaMovimientos[Fecha]<=Indices[[#This Row],[Fecha]])*(TablaMovimientos[Actividad]=Indices[[#Headers],[Recría]])*(TablaMovimientos[Categoría]=\"Terneros al pie\"))))","v":0},{"$f":"IF(Indices[[#This Row],[Meses activos]]=0,0,(SUMPRODUCT((TablaInventarios[Cab.])*(TablaInventarios[Actividad]=Indices[[#Headers],[Invernada]]))+SUMPRODUCT((TablaMovimientos[Cab.])*(TablaMovimientos[Fecha]<=Indices[[#This Row],[Fecha]])*(TablaMovimientos[Actividad]=Indices[[#Headers],[Invernada]])))-(SUMPRODUCT((TablaInventarios[Cab.])*(TablaInventarios[Actividad]=Indices[[#Headers],[Invernada]])*(TablaInventarios[Categoría]=\"Terneros al pie\"))+SUMPRODUCT((TablaMovimientos[Cab.])*(TablaMovimientos[Fecha]<=Indices[[#This Row],[Fecha]])*(TablaMovimientos[Actividad]=Indices[[#Headers],[Invernada]])*(TablaMovimientos[Categoría]=\"Terneros al pie\"))))","v":0},{"$f":"IF(Indices[[#This Row],[Meses activos]]=0,0,(SUMPRODUCT((TablaInventarios[Cab.])*(TablaInventarios[Actividad]=Indices[[#Headers],[Feed-lot]]))+SUMPRODUCT((TablaMovimientos[Cab.])*(TablaMovimientos[Fecha]<=Indices[[#This Row],[Fecha]])*(TablaMovimientos[Actividad]=Indices[[#Headers],[Feed-lot]])))-(SUMPRODUCT((TablaInventarios[Cab.])*(TablaInventarios[Actividad]=Indices[[#Headers],[Feed-lot]])*(TablaInventarios[Categoría]=\"Terneros al pie\"))+SUMPRODUCT((TablaMovimientos[Cab.])*(TablaMovimientos[Fecha]<=Indices[[#This Row],[Fecha]])*(TablaMovimientos[Actividad]=Indices[[#Headers],[Feed-lot]])*(TablaMovimientos[Categoría]=\"Terneros al pie\"))))","v":0},{"$f":"IF(Indices[[#This Row],[Meses activos]]=0,0,(SUMPRODUCT((TablaInventarios[Cab.])*(TablaInventarios[Actividad]=Indices[[#Headers],[Cabaña]]))+SUMPRODUCT((TablaMovimientos[Cab.])*(TablaMovimientos[Fecha]<=Indices[[#This Row],[Fecha]])*(TablaMovimientos[Actividad]=Indices[[#Headers],[Cabaña]])))-(SUMPRODUCT((TablaInventarios[Cab.])*(TablaInventarios[Actividad]=Indices[[#Headers],[Cabaña]])*(TablaInventarios[Categoría]=\"Terneros al pie\"))+SUMPRODUCT((TablaMovimientos[Cab.])*(TablaMovimientos[Fecha]<=Indices[[#This Row],[Fecha]])*(TablaMovimientos[Actividad]=Indices[[#Headers],[Cabaña]])*(TablaMovimientos[Categoría]=\"Terneros al pie\"))))","v":0},{"$f":"IF(Indices[[#This Row],[Meses activos]]=0,0,(SUMPRODUCT((TablaInventarios[Cab.])*(TablaInventarios[Actividad]=Indices[[#Headers],[Tambo]]))+SUMPRODUCT((TablaMovimientos[Cab.])*(TablaMovimientos[Fecha]<=Indices[[#This Row],[Fecha]])*(TablaMovimientos[Actividad]=Indices[[#Headers],[Tambo]])))-(SUMPRODUCT((TablaInventarios[Cab.])*(TablaInventarios[Actividad]=Indices[[#Headers],[Tambo]])*(TablaInventarios[Categoría]=\"Terneros al pie\"))+SUMPRODUCT((TablaMovimientos[Cab.])*(TablaMovimientos[Fecha]<=Indices[[#This Row],[Fecha]])*(TablaMovimientos[Actividad]=Indices[[#Headers],[Tambo]])*(TablaMovimientos[Categoría]=\"Terneros al pie\"))))","v":0},{"$f":"IF(Indices[[#This Row],[Meses activos]]=0,0,(SUMPRODUCT((TablaInventarios[Cab.])*(TablaInventarios[Actividad]=Indices[[#Headers],[Guachera]]))+SUMPRODUCT((TablaMovimientos[Cab.])*(TablaMovimientos[Fecha]<=Indices[[#This Row],[Fecha]])*(TablaMovimientos[Actividad]=Indices[[#Headers],[Guachera]])))-(SUMPRODUCT((TablaInventarios[Cab.])*(TablaInventarios[Actividad]=Indices[[#Headers],[Guachera]])*(TablaInventarios[Categoría]=\"Terneros al pie\"))+SUMPRODUCT((TablaMovimientos[Cab.])*(TablaMovimientos[Fecha]<=Indices[[#This Row],[Fecha]])*(TablaMovimientos[Actividad]=Indices[[#Headers],[Guachera]])*(TablaMovimientos[Categoría]=\"Terneros al pie\"))))","v":0},{"$f":"+SUM(Indices[[#This Row],[Cría]:[Guachera]])","v":0},{"$f":"IF(DATE(YEAR(Indices[[#This Row],[Fecha]]),MONTH(Indices[[#This Row],[Fecha]]),1)>=DATE(YEAR('Planilla de datos'!$N$19-1),MONTH('Planilla de datos'!$N$19-1),1),1,0)*IF(DATE(YEAR(Indices[[#This Row],[Fecha]]),MONTH(Indices[[#This Row],[Fecha]]),1)<='Planilla de datos'!$P$19,1,0)","v":1}]
["2023-10-01",{"$f":"IF(C34=0,\"\",VLOOKUP('Planilla de datos'!$T$23,'SIPM (Actualización en $)'!$A$6:$C$42,3,FALSE)/C34)","v":2.5839793281653747},387,{"$f":"IF(Indices[[#This Row],[Meses activos]]=0,0,(SUMPRODUCT((TablaInventarios[Cab.])*(TablaInventarios[Actividad]=Indices[[#Headers],[Cría]]))+SUMPRODUCT((TablaMovimientos[Cab.])*(TablaMovimientos[Fecha]<=Indices[[#This Row],[Fecha]])*(TablaMovimientos[Actividad]=Indices[[#Headers],[Cría]])))-(SUMPRODUCT((TablaInventarios[Cab.])*(TablaInventarios[Actividad]=Indices[[#Headers],[Cría]])*(TablaInventarios[Categoría]=\"Terneros al pie\"))+SUMPRODUCT((TablaMovimientos[Cab.])*(TablaMovimientos[Fecha]<=Indices[[#This Row],[Fecha]])*(TablaMovimientos[Actividad]=Indices[[#Headers],[Cría]])*(TablaMovimientos[Categoría]=\"Terneros al pie\"))))","v":0},{"$f":"IF(Indices[[#This Row],[Meses activos]]=0,0,(SUMPRODUCT((TablaInventarios[Cab.])*(TablaInventarios[Actividad]=Indices[[#Headers],[Recría]]))+SUMPRODUCT((TablaMovimientos[Cab.])*(TablaMovimientos[Fecha]<=Indices[[#This Row],[Fecha]])*(TablaMovimientos[Actividad]=Indices[[#Headers],[Recría]])))-(SUMPRODUCT((TablaInventarios[Cab.])*(TablaInventarios[Actividad]=Indices[[#Headers],[Recría]])*(TablaInventarios[Categoría]=\"Terneros al pie\"))+SUMPRODUCT((TablaMovimientos[Cab.])*(TablaMovimientos[Fecha]<=Indices[[#This Row],[Fecha]])*(TablaMovimientos[Actividad]=Indices[[#Headers],[Recría]])*(TablaMovimientos[Categoría]=\"Terneros al pie\"))))","v":0},{"$f":"IF(Indices[[#This Row],[Meses activos]]=0,0,(SUMPRODUCT((TablaInventarios[Cab.])*(TablaInventarios[Actividad]=Indices[[#Headers],[Invernada]]))+SUMPRODUCT((TablaMovimientos[Cab.])*(TablaMovimientos[Fecha]<=Indices[[#This Row],[Fecha]])*(TablaMovimientos[Actividad]=Indices[[#Headers],[Invernada]])))-(SUMPRODUCT((TablaInventarios[Cab.])*(TablaInventarios[Actividad]=Indices[[#Headers],[Invernada]])*(TablaInventarios[Categoría]=\"Terneros al pie\"))+SUMPRODUCT((TablaMovimientos[Cab.])*(TablaMovimientos[Fecha]<=Indices[[#This Row],[Fecha]])*(TablaMovimientos[Actividad]=Indices[[#Headers],[Invernada]])*(TablaMovimientos[Categoría]=\"Terneros al pie\"))))","v":0},{"$f":"IF(Indices[[#This Row],[Meses activos]]=0,0,(SUMPRODUCT((TablaInventarios[Cab.])*(TablaInventarios[Actividad]=Indices[[#Headers],[Feed-lot]]))+SUMPRODUCT((TablaMovimientos[Cab.])*(TablaMovimientos[Fecha]<=Indices[[#This Row],[Fecha]])*(TablaMovimientos[Actividad]=Indices[[#Headers],[Feed-lot]])))-(SUMPRODUCT((TablaInventarios[Cab.])*(TablaInventarios[Actividad]=Indices[[#Headers],[Feed-lot]])*(TablaInventarios[Categoría]=\"Terneros al pie\"))+SUMPRODUCT((TablaMovimientos[Cab.])*(TablaMovimientos[Fecha]<=Indices[[#This Row],[Fecha]])*(TablaMovimientos[Actividad]=Indices[[#Headers],[Feed-lot]])*(TablaMovimientos[Categoría]=\"Terneros al pie\"))))","v":0},{"$f":"IF(Indices[[#This Row],[Meses activos]]=0,0,(SUMPRODUCT((TablaInventarios[Cab.])*(TablaInventarios[Actividad]=Indices[[#Headers],[Cabaña]]))+SUMPRODUCT((TablaMovimientos[Cab.])*(TablaMovimientos[Fecha]<=Indices[[#This Row],[Fecha]])*(TablaMovimientos[Actividad]=Indices[[#Headers],[Cabaña]])))-(SUMPRODUCT((TablaInventarios[Cab.])*(TablaInventarios[Actividad]=Indices[[#Headers],[Cabaña]])*(TablaInventarios[Categoría]=\"Terneros al pie\"))+SUMPRODUCT((TablaMovimientos[Cab.])*(TablaMovimientos[Fecha]<=Indices[[#This Row],[Fecha]])*(TablaMovimientos[Actividad]=Indices[[#Headers],[Cabaña]])*(TablaMovimientos[Categoría]=\"Terneros al pie\"))))","v":0},{"$f":"IF(Indices[[#This Row],[Meses activos]]=0,0,(SUMPRODUCT((TablaInventarios[Cab.])*(TablaInventarios[Actividad]=Indices[[#Headers],[Tambo]]))+SUMPRODUCT((TablaMovimientos[Cab.])*(TablaMovimientos[Fecha]<=Indices[[#This Row],[Fecha]])*(TablaMovimientos[Actividad]=Indices[[#Headers],[Tambo]])))-(SUMPRODUCT((TablaInventarios[Cab.])*(TablaInventarios[Actividad]=Indices[[#Headers],[Tambo]])*(TablaInventarios[Categoría]=\"Terneros al pie\"))+SUMPRODUCT((TablaMovimientos[Cab.])*(TablaMovimientos[Fecha]<=Indices[[#This Row],[Fecha]])*(TablaMovimientos[Actividad]=Indices[[#Headers],[Tambo]])*(TablaMovimientos[Categoría]=\"Terneros al pie\"))))","v":0},{"$f":"IF(Indices[[#This Row],[Meses activos]]=0,0,(SUMPRODUCT((TablaInventarios[Cab.])*(TablaInventarios[Actividad]=Indices[[#Headers],[Guachera]]))+SUMPRODUCT((TablaMovimientos[Cab.])*(TablaMovimientos[Fecha]<=Indices[[#This Row],[Fecha]])*(TablaMovimientos[Actividad]=Indices[[#Headers],[Guachera]])))-(SUMPRODUCT((TablaInventarios[Cab.])*(TablaInventarios[Actividad]=Indices[[#Headers],[Guachera]])*(TablaInventarios[Categoría]=\"Terneros al pie\"))+SUMPRODUCT((TablaMovimientos[Cab.])*(TablaMovimientos[Fecha]<=Indices[[#This Row],[Fecha]])*(TablaMovimientos[Actividad]=Indices[[#Headers],[Guachera]])*(TablaMovimientos[Categoría]=\"Terneros al pie\"))))","v":0},{"$f":"+SUM(Indices[[#This Row],[Cría]:[Guachera]])","v":0},{"$f":"IF(DATE(YEAR(Indices[[#This Row],[Fecha]]),MONTH(Indices[[#This Row],[Fecha]]),1)>=DATE(YEAR('Planilla de datos'!$N$19-1),MONTH('Planilla de datos'!$N$19-1),1),1,0)*IF(DATE(YEAR(Indices[[#This Row],[Fecha]]),MONTH(Indices[[#This Row],[Fecha]]),1)<='Planilla de datos'!$P$19,1,0)","v":1}]
["2023-11-01",{"$f":"IF(C35=0,\"\",VLOOKUP('Planilla de datos'!$T$23,'SIPM (Actualización en $)'!$A$6:$C$42,3,FALSE)/C35)","v":2.3255813953488373},430,{"$f":"IF(Indices[[#This Row],[Meses activos]]=0,0,(SUMPRODUCT((TablaInventarios[Cab.])*(TablaInventarios[Actividad]=Indices[[#Headers],[Cría]]))+SUMPRODUCT((TablaMovimientos[Cab.])*(TablaMovimientos[Fecha]<=Indices[[#This Row],[Fecha]])*(TablaMovimientos[Actividad]=Indices[[#Headers],[Cría]])))-(SUMPRODUCT((TablaInventarios[Cab.])*(TablaInventarios[Actividad]=Indices[[#Headers],[Cría]])*(TablaInventarios[Categoría]=\"Terneros al pie\"))+SUMPRODUCT((TablaMovimientos[Cab.])*(TablaMovimientos[Fecha]<=Indices[[#This Row],[Fecha]])*(TablaMovimientos[Actividad]=Indices[[#Headers],[Cría]])*(TablaMovimientos[Categoría]=\"Terneros al pie\"))))","v":0},{"$f":"IF(Indices[[#This Row],[Meses activos]]=0,0,(SUMPRODUCT((TablaInventarios[Cab.])*(TablaInventarios[Actividad]=Indices[[#Headers],[Recría]]))+SUMPRODUCT((TablaMovimientos[Cab.])*(TablaMovimientos[Fecha]<=Indices[[#This Row],[Fecha]])*(TablaMovimientos[Actividad]=Indices[[#Headers],[Recría]])))-(SUMPRODUCT((TablaInventarios[Cab.])*(TablaInventarios[Actividad]=Indices[[#Headers],[Recría]])*(TablaInventarios[Categoría]=\"Terneros al pie\"))+SUMPRODUCT((TablaMovimientos[Cab.])*(TablaMovimientos[Fecha]<=Indices[[#This Row],[Fecha]])*(TablaMovimientos[Actividad]=Indices[[#Headers],[Recría]])*(TablaMovimientos[Categoría]=\"Terneros al pie\"))))","v":0},{"$f":"IF(Indices[[#This Row],[Meses activos]]=0,0,(SUMPRODUCT((TablaInventarios[Cab.])*(TablaInventarios[Actividad]=Indices[[#Headers],[Invernada]]))+SUMPRODUCT((TablaMovimientos[Cab.])*(TablaMovimientos[Fecha]<=Indices[[#This Row],[Fecha]])*(TablaMovimientos[Actividad]=Indices[[#Headers],[Invernada]])))-(SUMPRODUCT((TablaInventarios[Cab.])*(TablaInventarios[Actividad]=Indices[[#Headers],[Invernada]])*(TablaInventarios[Categoría]=\"Terneros al pie\"))+SUMPRODUCT((TablaMovimientos[Cab.])*(TablaMovimientos[Fecha]<=Indices[[#This Row],[Fecha]])*(TablaMovimientos[Actividad]=Indices[[#Headers],[Invernada]])*(TablaMovimientos[Categoría]=\"Terneros al pie\"))))","v":0},{"$f":"IF(Indices[[#This Row],[Meses activos]]=0,0,(SUMPRODUCT((TablaInventarios[Cab.])*(TablaInventarios[Actividad]=Indices[[#Headers],[Feed-lot]]))+SUMPRODUCT((TablaMovimientos[Cab.])*(TablaMovimientos[Fecha]<=Indices[[#This Row],[Fecha]])*(TablaMovimientos[Actividad]=Indices[[#Headers],[Feed-lot]])))-(SUMPRODUCT((TablaInventarios[Cab.])*(TablaInventarios[Actividad]=Indices[[#Headers],[Feed-lot]])*(TablaInventarios[Categoría]=\"Terneros al pie\"))+SUMPRODUCT((TablaMovimientos[Cab.])*(TablaMovimientos[Fecha]<=Indices[[#This Row],[Fecha]])*(TablaMovimientos[Actividad]=Indices[[#Headers],[Feed-lot]])*(TablaMovimientos[Categoría]=\"Terneros al pie\"))))","v":0},{"$f":"IF(Indices[[#This Row],[Meses activos]]=0,0,(SUMPRODUCT((TablaInventarios[Cab.])*(TablaInventarios[Actividad]=Indices[[#Headers],[Cabaña]]))+SUMPRODUCT((TablaMovimientos[Cab.])*(TablaMovimientos[Fecha]<=Indices[[#This Row],[Fecha]])*(TablaMovimientos[Actividad]=Indices[[#Headers],[Cabaña]])))-(SUMPRODUCT((TablaInventarios[Cab.])*(TablaInventarios[Actividad]=Indices[[#Headers],[Cabaña]])*(TablaInventarios[Categoría]=\"Terneros al pie\"))+SUMPRODUCT((TablaMovimientos[Cab.])*(TablaMovimientos[Fecha]<=Indices[[#This Row],[Fecha]])*(TablaMovimientos[Actividad]=Indices[[#Headers],[Cabaña]])*(TablaMovimientos[Categoría]=\"Terneros al pie\"))))","v":0},{"$f":"IF(Indices[[#This Row],[Meses activos]]=0,0,(SUMPRODUCT((TablaInventarios[Cab.])*(TablaInventarios[Actividad]=Indices[[#Headers],[Tambo]]))+SUMPRODUCT((TablaMovimientos[Cab.])*(TablaMovimientos[Fecha]<=Indices[[#This Row],[Fecha]])*(TablaMovimientos[Actividad]=Indices[[#Headers],[Tambo]])))-(SUMPRODUCT((TablaInventarios[Cab.])*(TablaInventarios[Actividad]=Indices[[#Headers],[Tambo]])*(TablaInventarios[Categoría]=\"Terneros al pie\"))+SUMPRODUCT((TablaMovimientos[Cab.])*(TablaMovimientos[Fecha]<=Indices[[#This Row],[Fecha]])*(TablaMovimientos[Actividad]=Indices[[#Headers],[Tambo]])*(TablaMovimientos[Categoría]=\"Terneros al pie\"))))","v":0},{"$f":"IF(Indices[[#This Row],[Meses activos]]=0,0,(SUMPRODUCT((TablaInventarios[Cab.])*(TablaInventarios[Actividad]=Indices[[#Headers],[Guachera]]))+SUMPRODUCT((TablaMovimientos[Cab.])*(TablaMovimientos[Fecha]<=Indices[[#This Row],[Fecha]])*(TablaMovimientos[Actividad]=Indices[[#Headers],[Guachera]])))-(SUMPRODUCT((TablaInventarios[Cab.])*(TablaInventarios[Actividad]=Indices[[#Headers],[Guachera]])*(TablaInventarios[Categoría]=\"Terneros al pie\"))+SUMPRODUCT((TablaMovimientos[Cab.])*(TablaMovimientos[Fecha]<=Indices[[#This Row],[Fecha]])*(TablaMovimientos[Actividad]=Indices[[#Headers],[Guachera]])*(TablaMovimientos[Categoría]=\"Terneros al pie\"))))","v":0},{"$f":"+SUM(Indices[[#This Row],[Cría]:[Guachera]])","v":0},{"$f":"IF(DATE(YEAR(Indices[[#This Row],[Fecha]]),MONTH(Indices[[#This Row],[Fecha]]),1)>=DATE(YEAR('Planilla de datos'!$N$19-1),MONTH('Planilla de datos'!$N$19-1),1),1,0)*IF(DATE(YEAR(Indices[[#This Row],[Fecha]]),MONTH(Indices[[#This Row],[Fecha]]),1)<='Planilla de datos'!$P$19,1,0)","v":1}]
["2023-12-01",{"$f":"IF(C36=0,\"\",VLOOKUP('Planilla de datos'!$T$23,'SIPM (Actualización en $)'!$A$6:$C$42,3,FALSE)/C36)","v":1.5151515151515151},660,{"$f":"IF(Indices[[#This Row],[Meses activos]]=0,0,(SUMPRODUCT((TablaInventarios[Cab.])*(TablaInventarios[Actividad]=Indices[[#Headers],[Cría]]))+SUMPRODUCT((TablaMovimientos[Cab.])*(TablaMovimientos[Fecha]<=Indices[[#This Row],[Fecha]])*(TablaMovimientos[Actividad]=Indices[[#Headers],[Cría]])))-(SUMPRODUCT((TablaInventarios[Cab.])*(TablaInventarios[Actividad]=Indices[[#Headers],[Cría]])*(TablaInventarios[Categoría]=\"Terneros al pie\"))+SUMPRODUCT((TablaMovimientos[Cab.])*(TablaMovimientos[Fecha]<=Indices[[#This Row],[Fecha]])*(TablaMovimientos[Actividad]=Indices[[#Headers],[Cría]])*(TablaMovimientos[Categoría]=\"Terneros al pie\"))))","v":0},{"$f":"IF(Indices[[#This Row],[Meses activos]]=0,0,(SUMPRODUCT((TablaInventarios[Cab.])*(TablaInventarios[Actividad]=Indices[[#Headers],[Recría]]))+SUMPRODUCT((TablaMovimientos[Cab.])*(TablaMovimientos[Fecha]<=Indices[[#This Row],[Fecha]])*(TablaMovimientos[Actividad]=Indices[[#Headers],[Recría]])))-(SUMPRODUCT((TablaInventarios[Cab.])*(TablaInventarios[Actividad]=Indices[[#Headers],[Recría]])*(TablaInventarios[Categoría]=\"Terneros al pie\"))+SUMPRODUCT((TablaMovimientos[Cab.])*(TablaMovimientos[Fecha]<=Indices[[#This Row],[Fecha]])*(TablaMovimientos[Actividad]=Indices[[#Headers],[Recría]])*(TablaMovimientos[Categoría]=\"Terneros al pie\"))))","v":0},{"$f":"IF(Indices[[#This Row],[Meses activos]]=0,0,(SUMPRODUCT((TablaInventarios[Cab.])*(TablaInventarios[Actividad]=Indices[[#Headers],[Invernada]]))+SUMPRODUCT((TablaMovimientos[Cab.])*(TablaMovimientos[Fecha]<=Indices[[#This Row],[Fecha]])*(TablaMovimientos[Actividad]=Indices[[#Headers],[Invernada]])))-(SUMPRODUCT((TablaInventarios[Cab.])*(TablaInventarios[Actividad]=Indices[[#Headers],[Invernada]])*(TablaInventarios[Categoría]=\"Terneros al pie\"))+SUMPRODUCT((TablaMovimientos[Cab.])*(TablaMovimientos[Fecha]<=Indices[[#This Row],[Fecha]])*(TablaMovimientos[Actividad]=Indices[[#Headers],[Invernada]])*(TablaMovimientos[Categoría]=\"Terneros al pie\"))))","v":0},{"$f":"IF(Indices[[#This Row],[Meses activos]]=0,0,(SUMPRODUCT((TablaInventarios[Cab.])*(TablaInventarios[Actividad]=Indices[[#Headers],[Feed-lot]]))+SUMPRODUCT((TablaMovimientos[Cab.])*(TablaMovimientos[Fecha]<=Indices[[#This Row],[Fecha]])*(TablaMovimientos[Actividad]=Indices[[#Headers],[Feed-lot]])))-(SUMPRODUCT((TablaInventarios[Cab.])*(TablaInventarios[Actividad]=Indices[[#Headers],[Feed-lot]])*(TablaInventarios[Categoría]=\"Terneros al pie\"))+SUMPRODUCT((TablaMovimientos[Cab.])*(TablaMovimientos[Fecha]<=Indices[[#This Row],[Fecha]])*(TablaMovimientos[Actividad]=Indices[[#Headers],[Feed-lot]])*(TablaMovimientos[Categoría]=\"Terneros al pie\"))))","v":0},{"$f":"IF(Indices[[#This Row],[Meses activos]]=0,0,(SUMPRODUCT((TablaInventarios[Cab.])*(TablaInventarios[Actividad]=Indices[[#Headers],[Cabaña]]))+SUMPRODUCT((TablaMovimientos[Cab.])*(TablaMovimientos[Fecha]<=Indices[[#This Row],[Fecha]])*(TablaMovimientos[Actividad]=Indices[[#Headers],[Cabaña]])))-(SUMPRODUCT((TablaInventarios[Cab.])*(TablaInventarios[Actividad]=Indices[[#Headers],[Cabaña]])*(TablaInventarios[Categoría]=\"Terneros al pie\"))+SUMPRODUCT((TablaMovimientos[Cab.])*(TablaMovimientos[Fecha]<=Indices[[#This Row],[Fecha]])*(TablaMovimientos[Actividad]=Indices[[#Headers],[Cabaña]])*(TablaMovimientos[Categoría]=\"Terneros al pie\"))))","v":0},{"$f":"IF(Indices[[#This Row],[Meses activos]]=0,0,(SUMPRODUCT((TablaInventarios[Cab.])*(TablaInventarios[Actividad]=Indices[[#Headers],[Tambo]]))+SUMPRODUCT((TablaMovimientos[Cab.])*(TablaMovimientos[Fecha]<=Indices[[#This Row],[Fecha]])*(TablaMovimientos[Actividad]=Indices[[#Headers],[Tambo]])))-(SUMPRODUCT((TablaInventarios[Cab.])*(TablaInventarios[Actividad]=Indices[[#Headers],[Tambo]])*(TablaInventarios[Categoría]=\"Terneros al pie\"))+SUMPRODUCT((TablaMovimientos[Cab.])*(TablaMovimientos[Fecha]<=Indices[[#This Row],[Fecha]])*(TablaMovimientos[Actividad]=Indices[[#Headers],[Tambo]])*(TablaMovimientos[Categoría]=\"Terneros al pie\"))))","v":0},{"$f":"IF(Indices[[#This Row],[Meses activos]]=0,0,(SUMPRODUCT((TablaInventarios[Cab.])*(TablaInventarios[Actividad]=Indices[[#Headers],[Guachera]]))+SUMPRODUCT((TablaMovimientos[Cab.])*(TablaMovimientos[Fecha]<=Indices[[#This Row],[Fecha]])*(TablaMovimientos[Actividad]=Indices[[#Headers],[Guachera]])))-(SUMPRODUCT((TablaInventarios[Cab.])*(TablaInventarios[Actividad]=Indices[[#Headers],[Guachera]])*(TablaInventarios[Categoría]=\"Terneros al pie\"))+SUMPRODUCT((TablaMovimientos[Cab.])*(TablaMovimientos[Fecha]<=Indices[[#This Row],[Fecha]])*(TablaMovimientos[Actividad]=Indices[[#Headers],[Guachera]])*(TablaMovimientos[Categoría]=\"Terneros al pie\"))))","v":0},{"$f":"+SUM(Indices[[#This Row],[Cría]:[Guachera]])","v":0},{"$f":"IF(DATE(YEAR(Indices[[#This Row],[Fecha]]),MONTH(Indices[[#This Row],[Fecha]]),1)>=DATE(YEAR('Planilla de datos'!$N$19-1),MONTH('Planilla de datos'!$N$19-1),1),1,0)*IF(DATE(YEAR(Indices[[#This Row],[Fecha]]),MONTH(Indices[[#This Row],[Fecha]]),1)<='Planilla de datos'!$P$19,1,0)","v":1}]
["2024-01-01",{"$f":"IF(C37=0,\"\",VLOOKUP('Planilla de datos'!$T$23,'SIPM (Actualización en $)'!$A$6:$C$42,3,FALSE)/C37)","v":1.2820512820512822},780,{"$f":"IF(Indices[[#This Row],[Meses activos]]=0,0,(SUMPRODUCT((TablaInventarios[Cab.])*(TablaInventarios[Actividad]=Indices[[#Headers],[Cría]]))+SUMPRODUCT((TablaMovimientos[Cab.])*(TablaMovimientos[Fecha]<=Indices[[#This Row],[Fecha]])*(TablaMovimientos[Actividad]=Indices[[#Headers],[Cría]])))-(SUMPRODUCT((TablaInventarios[Cab.])*(TablaInventarios[Actividad]=Indices[[#Headers],[Cría]])*(TablaInventarios[Categoría]=\"Terneros al pie\"))+SUMPRODUCT((TablaMovimientos[Cab.])*(TablaMovimientos[Fecha]<=Indices[[#This Row],[Fecha]])*(TablaMovimientos[Actividad]=Indices[[#Headers],[Cría]])*(TablaMovimientos[Categoría]=\"Terneros al pie\"))))","v":0},{"$f":"IF(Indices[[#This Row],[Meses activos]]=0,0,(SUMPRODUCT((TablaInventarios[Cab.])*(TablaInventarios[Actividad]=Indices[[#Headers],[Recría]]))+SUMPRODUCT((TablaMovimientos[Cab.])*(TablaMovimientos[Fecha]<=Indices[[#This Row],[Fecha]])*(TablaMovimientos[Actividad]=Indices[[#Headers],[Recría]])))-(SUMPRODUCT((TablaInventarios[Cab.])*(TablaInventarios[Actividad]=Indices[[#Headers],[Recría]])*(TablaInventarios[Categoría]=\"Terneros al pie\"))+SUMPRODUCT((TablaMovimientos[Cab.])*(TablaMovimientos[Fecha]<=Indices[[#This Row],[Fecha]])*(TablaMovimientos[Actividad]=Indices[[#Headers],[Recría]])*(TablaMovimientos[Categoría]=\"Terneros al pie\"))))","v":0},{"$f":"IF(Indices[[#This Row],[Meses activos]]=0,0,(SUMPRODUCT((TablaInventarios[Cab.])*(TablaInventarios[Actividad]=Indices[[#Headers],[Invernada]]))+SUMPRODUCT((TablaMovimientos[Cab.])*(TablaMovimientos[Fecha]<=Indices[[#This Row],[Fecha]])*(TablaMovimientos[Actividad]=Indices[[#Headers],[Invernada]])))-(SUMPRODUCT((TablaInventarios[Cab.])*(TablaInventarios[Actividad]=Indices[[#Headers],[Invernada]])*(TablaInventarios[Categoría]=\"Terneros al pie\"))+SUMPRODUCT((TablaMovimientos[Cab.])*(TablaMovimientos[Fecha]<=Indices[[#This Row],[Fecha]])*(TablaMovimientos[Actividad]=Indices[[#Headers],[Invernada]])*(TablaMovimientos[Categoría]=\"Terneros al pie\"))))","v":0},{"$f":"IF(Indices[[#This Row],[Meses activos]]=0,0,(SUMPRODUCT((TablaInventarios[Cab.])*(TablaInventarios[Actividad]=Indices[[#Headers],[Feed-lot]]))+SUMPRODUCT((TablaMovimientos[Cab.])*(TablaMovimientos[Fecha]<=Indices[[#This Row],[Fecha]])*(TablaMovimientos[Actividad]=Indices[[#Headers],[Feed-lot]])))-(SUMPRODUCT((TablaInventarios[Cab.])*(TablaInventarios[Actividad]=Indices[[#Headers],[Feed-lot]])*(TablaInventarios[Categoría]=\"Terneros al pie\"))+SUMPRODUCT((TablaMovimientos[Cab.])*(TablaMovimientos[Fecha]<=Indices[[#This Row],[Fecha]])*(TablaMovimientos[Actividad]=Indices[[#Headers],[Feed-lot]])*(TablaMovimientos[Categoría]=\"Terneros al pie\"))))","v":0},{"$f":"IF(Indices[[#This Row],[Meses activos]]=0,0,(SUMPRODUCT((TablaInventarios[Cab.])*(TablaInventarios[Actividad]=Indices[[#Headers],[Cabaña]]))+SUMPRODUCT((TablaMovimientos[Cab.])*(TablaMovimientos[Fecha]<=Indices[[#This Row],[Fecha]])*(TablaMovimientos[Actividad]=Indices[[#Headers],[Cabaña]])))-(SUMPRODUCT((TablaInventarios[Cab.])*(TablaInventarios[Actividad]=Indices[[#Headers],[Cabaña]])*(TablaInventarios[Categoría]=\"Terneros al pie\"))+SUMPRODUCT((TablaMovimientos[Cab.])*(TablaMovimientos[Fecha]<=Indices[[#This Row],[Fecha]])*(TablaMovimientos[Actividad]=Indices[[#Headers],[Cabaña]])*(TablaMovimientos[Categoría]=\"Terneros al pie\"))))","v":0},{"$f":"IF(Indices[[#This Row],[Meses activos]]=0,0,(SUMPRODUCT((TablaInventarios[Cab.])*(TablaInventarios[Actividad]=Indices[[#Headers],[Tambo]]))+SUMPRODUCT((TablaMovimientos[Cab.])*(TablaMovimientos[Fecha]<=Indices[[#This Row],[Fecha]])*(TablaMovimientos[Actividad]=Indices[[#Headers],[Tambo]])))-(SUMPRODUCT((TablaInventarios[Cab.])*(TablaInventarios[Actividad]=Indices[[#Headers],[Tambo]])*(TablaInventarios[Categoría]=\"Terneros al pie\"))+SUMPRODUCT((TablaMovimientos[Cab.])*(TablaMovimientos[Fecha]<=Indices[[#This Row],[Fecha]])*(TablaMovimientos[Actividad]=Indices[[#Headers],[Tambo]])*(TablaMovimientos[Categoría]=\"Terneros al pie\"))))","v":0},{"$f":"IF(Indices[[#This Row],[Meses activos]]=0,0,(SUMPRODUCT((TablaInventarios[Cab.])*(TablaInventarios[Actividad]=Indices[[#Headers],[Guachera]]))+SUMPRODUCT((TablaMovimientos[Cab.])*(TablaMovimientos[Fecha]<=Indices[[#This Row],[Fecha]])*(TablaMovimientos[Actividad]=Indices[[#Headers],[Guachera]])))-(SUMPRODUCT((TablaInventarios[Cab.])*(TablaInventarios[Actividad]=Indices[[#Headers],[Guachera]])*(TablaInventarios[Categoría]=\"Terneros al pie\"))+SUMPRODUCT((TablaMovimientos[Cab.])*(TablaMovimientos[Fecha]<=Indices[[#This Row],[Fecha]])*(TablaMovimientos[Actividad]=Indices[[#Headers],[Guachera]])*(TablaMovimientos[Categoría]=\"Terneros al pie\"))))","v":0},{"$f":"+SUM(Indices[[#This Row],[Cría]:[Guachera]])","v":0},{"$f":"IF(DATE(YEAR(Indices[[#This Row],[Fecha]]),MONTH(Indices[[#This Row],[Fecha]]),1)>=DATE(YEAR('Planilla de datos'!$N$19-1),MONTH('Planilla de datos'!$N$19-1),1),1,0)*IF(DATE(YEAR(Indices[[#This Row],[Fecha]]),MONTH(Indices[[#This Row],[Fecha]]),1)<='Planilla de datos'!$P$19,1,0)","v":1}]
["2024-02-01",{"$f":"IF(C38=0,\"\",VLOOKUP('Planilla de datos'!$T$23,'SIPM (Actualización en $)'!$A$6:$C$42,3,FALSE)/C38)","v":1.1627906976744187},860,{"$f":"IF(Indices[[#This Row],[Meses activos]]=0,0,(SUMPRODUCT((TablaInventarios[Cab.])*(TablaInventarios[Actividad]=Indices[[#Headers],[Cría]]))+SUMPRODUCT((TablaMovimientos[Cab.])*(TablaMovimientos[Fecha]<=Indices[[#This Row],[Fecha]])*(TablaMovimientos[Actividad]=Indices[[#Headers],[Cría]])))-(SUMPRODUCT((TablaInventarios[Cab.])*(TablaInventarios[Actividad]=Indices[[#Headers],[Cría]])*(TablaInventarios[Categoría]=\"Terneros al pie\"))+SUMPRODUCT((TablaMovimientos[Cab.])*(TablaMovimientos[Fecha]<=Indices[[#This Row],[Fecha]])*(TablaMovimientos[Actividad]=Indices[[#Headers],[Cría]])*(TablaMovimientos[Categoría]=\"Terneros al pie\"))))","v":0},{"$f":"IF(Indices[[#This Row],[Meses activos]]=0,0,(SUMPRODUCT((TablaInventarios[Cab.])*(TablaInventarios[Actividad]=Indices[[#Headers],[Recría]]))+SUMPRODUCT((TablaMovimientos[Cab.])*(TablaMovimientos[Fecha]<=Indices[[#This Row],[Fecha]])*(TablaMovimientos[Actividad]=Indices[[#Headers],[Recría]])))-(SUMPRODUCT((TablaInventarios[Cab.])*(TablaInventarios[Actividad]=Indices[[#Headers],[Recría]])*(TablaInventarios[Categoría]=\"Terneros al pie\"))+SUMPRODUCT((TablaMovimientos[Cab.])*(TablaMovimientos[Fecha]<=Indices[[#This Row],[Fecha]])*(TablaMovimientos[Actividad]=Indices[[#Headers],[Recría]])*(TablaMovimientos[Categoría]=\"Terneros al pie\"))))","v":0},{"$f":"IF(Indices[[#This Row],[Meses activos]]=0,0,(SUMPRODUCT((TablaInventarios[Cab.])*(TablaInventarios[Actividad]=Indices[[#Headers],[Invernada]]))+SUMPRODUCT((TablaMovimientos[Cab.])*(TablaMovimientos[Fecha]<=Indices[[#This Row],[Fecha]])*(TablaMovimientos[Actividad]=Indices[[#Headers],[Invernada]])))-(SUMPRODUCT((TablaInventarios[Cab.])*(TablaInventarios[Actividad]=Indices[[#Headers],[Invernada]])*(TablaInventarios[Categoría]=\"Terneros al pie\"))+SUMPRODUCT((TablaMovimientos[Cab.])*(TablaMovimientos[Fecha]<=Indices[[#This Row],[Fecha]])*(TablaMovimientos[Actividad]=Indices[[#Headers],[Invernada]])*(TablaMovimientos[Categoría]=\"Terneros al pie\"))))","v":0},{"$f":"IF(Indices[[#This Row],[Meses activos]]=0,0,(SUMPRODUCT((TablaInventarios[Cab.])*(TablaInventarios[Actividad]=Indices[[#Headers],[Feed-lot]]))+SUMPRODUCT((TablaMovimientos[Cab.])*(TablaMovimientos[Fecha]<=Indices[[#This Row],[Fecha]])*(TablaMovimientos[Actividad]=Indices[[#Headers],[Feed-lot]])))-(SUMPRODUCT((TablaInventarios[Cab.])*(TablaInventarios[Actividad]=Indices[[#Headers],[Feed-lot]])*(TablaInventarios[Categoría]=\"Terneros al pie\"))+SUMPRODUCT((TablaMovimientos[Cab.])*(TablaMovimientos[Fecha]<=Indices[[#This Row],[Fecha]])*(TablaMovimientos[Actividad]=Indices[[#Headers],[Feed-lot]])*(TablaMovimientos[Categoría]=\"Terneros al pie\"))))","v":0},{"$f":"IF(Indices[[#This Row],[Meses activos]]=0,0,(SUMPRODUCT((TablaInventarios[Cab.])*(TablaInventarios[Actividad]=Indices[[#Headers],[Cabaña]]))+SUMPRODUCT((TablaMovimientos[Cab.])*(TablaMovimientos[Fecha]<=Indices[[#This Row],[Fecha]])*(TablaMovimientos[Actividad]=Indices[[#Headers],[Cabaña]])))-(SUMPRODUCT((TablaInventarios[Cab.])*(TablaInventarios[Actividad]=Indices[[#Headers],[Cabaña]])*(TablaInventarios[Categoría]=\"Terneros al pie\"))+SUMPRODUCT((TablaMovimientos[Cab.])*(TablaMovimientos[Fecha]<=Indices[[#This Row],[Fecha]])*(TablaMovimientos[Actividad]=Indices[[#Headers],[Cabaña]])*(TablaMovimientos[Categoría]=\"Terneros al pie\"))))","v":0},{"$f":"IF(Indices[[#This Row],[Meses activos]]=0,0,(SUMPRODUCT((TablaInventarios[Cab.])*(TablaInventarios[Actividad]=Indices[[#Headers],[Tambo]]))+SUMPRODUCT((TablaMovimientos[Cab.])*(TablaMovimientos[Fecha]<=Indices[[#This Row],[Fecha]])*(TablaMovimientos[Actividad]=Indices[[#Headers],[Tambo]])))-(SUMPRODUCT((TablaInventarios[Cab.])*(TablaInventarios[Actividad]=Indices[[#Headers],[Tambo]])*(TablaInventarios[Categoría]=\"Terneros al pie\"))+SUMPRODUCT((TablaMovimientos[Cab.])*(TablaMovimientos[Fecha]<=Indices[[#This Row],[Fecha]])*(TablaMovimientos[Actividad]=Indices[[#Headers],[Tambo]])*(TablaMovimientos[Categoría]=\"Terneros al pie\"))))","v":0},{"$f":"IF(Indices[[#This Row],[Meses activos]]=0,0,(SUMPRODUCT((TablaInventarios[Cab.])*(TablaInventarios[Actividad]=Indices[[#Headers],[Guachera]]))+SUMPRODUCT((TablaMovimientos[Cab.])*(TablaMovimientos[Fecha]<=Indices[[#This Row],[Fecha]])*(TablaMovimientos[Actividad]=Indices[[#Headers],[Guachera]])))-(SUMPRODUCT((TablaInventarios[Cab.])*(TablaInventarios[Actividad]=Indices[[#Headers],[Guachera]])*(TablaInventarios[Categoría]=\"Terneros al pie\"))+SUMPRODUCT((TablaMovimientos[Cab.])*(TablaMovimientos[Fecha]<=Indices[[#This Row],[Fecha]])*(TablaMovimientos[Actividad]=Indices[[#Headers],[Guachera]])*(TablaMovimientos[Categoría]=\"Terneros al pie\"))))","v":0},{"$f":"+SUM(Indices[[#This Row],[Cría]:[Guachera]])","v":0},{"$f":"IF(DATE(YEAR(Indices[[#This Row],[Fecha]]),MONTH(Indices[[#This Row],[Fecha]]),1)>=DATE(YEAR('Planilla de datos'!$N$19-1),MONTH('Planilla de datos'!$N$19-1),1),1,0)*IF(DATE(YEAR(Indices[[#This Row],[Fecha]]),MONTH(Indices[[#This Row],[Fecha]]),1)<='Planilla de datos'!$P$19,1,0)","v":1}]
["2024-03-01",{"$f":"IF(C39=0,\"\",VLOOKUP('Planilla de datos'!$T$23,'SIPM (Actualización en $)'!$A$6:$C$42,3,FALSE)/C39)","v":1.1049723756906078},905,{"$f":"IF(Indices[[#This Row],[Meses activos]]=0,0,(SUMPRODUCT((TablaInventarios[Cab.])*(TablaInventarios[Actividad]=Indices[[#Headers],[Cría]]))+SUMPRODUCT((TablaMovimientos[Cab.])*(TablaMovimientos[Fecha]<=Indices[[#This Row],[Fecha]])*(TablaMovimientos[Actividad]=Indices[[#Headers],[Cría]])))-(SUMPRODUCT((TablaInventarios[Cab.])*(TablaInventarios[Actividad]=Indices[[#Headers],[Cría]])*(TablaInventarios[Categoría]=\"Terneros al pie\"))+SUMPRODUCT((TablaMovimientos[Cab.])*(TablaMovimientos[Fecha]<=Indices[[#This Row],[Fecha]])*(TablaMovimientos[Actividad]=Indices[[#Headers],[Cría]])*(TablaMovimientos[Categoría]=\"Terneros al pie\"))))","v":0},{"$f":"IF(Indices[[#This Row],[Meses activos]]=0,0,(SUMPRODUCT((TablaInventarios[Cab.])*(TablaInventarios[Actividad]=Indices[[#Headers],[Recría]]))+SUMPRODUCT((TablaMovimientos[Cab.])*(TablaMovimientos[Fecha]<=Indices[[#This Row],[Fecha]])*(TablaMovimientos[Actividad]=Indices[[#Headers],[Recría]])))-(SUMPRODUCT((TablaInventarios[Cab.])*(TablaInventarios[Actividad]=Indices[[#Headers],[Recría]])*(TablaInventarios[Categoría]=\"Terneros al pie\"))+SUMPRODUCT((TablaMovimientos[Cab.])*(TablaMovimientos[Fecha]<=Indices[[#This Row],[Fecha]])*(TablaMovimientos[Actividad]=Indices[[#Headers],[Recría]])*(TablaMovimientos[Categoría]=\"Terneros al pie\"))))","v":0},{"$f":"IF(Indices[[#This Row],[Meses activos]]=0,0,(SUMPRODUCT((TablaInventarios[Cab.])*(TablaInventarios[Actividad]=Indices[[#Headers],[Invernada]]))+SUMPRODUCT((TablaMovimientos[Cab.])*(TablaMovimientos[Fecha]<=Indices[[#This Row],[Fecha]])*(TablaMovimientos[Actividad]=Indices[[#Headers],[Invernada]])))-(SUMPRODUCT((TablaInventarios[Cab.])*(TablaInventarios[Actividad]=Indices[[#Headers],[Invernada]])*(TablaInventarios[Categoría]=\"Terneros al pie\"))+SUMPRODUCT((TablaMovimientos[Cab.])*(TablaMovimientos[Fecha]<=Indices[[#This Row],[Fecha]])*(TablaMovimientos[Actividad]=Indices[[#Headers],[Invernada]])*(TablaMovimientos[Categoría]=\"Terneros al pie\"))))","v":0},{"$f":"IF(Indices[[#This Row],[Meses activos]]=0,0,(SUMPRODUCT((TablaInventarios[Cab.])*(TablaInventarios[Actividad]=Indices[[#Headers],[Feed-lot]]))+SUMPRODUCT((TablaMovimientos[Cab.])*(TablaMovimientos[Fecha]<=Indices[[#This Row],[Fecha]])*(TablaMovimientos[Actividad]=Indices[[#Headers],[Feed-lot]])))-(SUMPRODUCT((TablaInventarios[Cab.])*(TablaInventarios[Actividad]=Indices[[#Headers],[Feed-lot]])*(TablaInventarios[Categoría]=\"Terneros al pie\"))+SUMPRODUCT((TablaMovimientos[Cab.])*(TablaMovimientos[Fecha]<=Indices[[#This Row],[Fecha]])*(TablaMovimientos[Actividad]=Indices[[#Headers],[Feed-lot]])*(TablaMovimientos[Categoría]=\"Terneros al pie\"))))","v":0},{"$f":"IF(Indices[[#This Row],[Meses activos]]=0,0,(SUMPRODUCT((TablaInventarios[Cab.])*(TablaInventarios[Actividad]=Indices[[#Headers],[Cabaña]]))+SUMPRODUCT((TablaMovimientos[Cab.])*(TablaMovimientos[Fecha]<=Indices[[#This Row],[Fecha]])*(TablaMovimientos[Actividad]=Indices[[#Headers],[Cabaña]])))-(SUMPRODUCT((TablaInventarios[Cab.])*(TablaInventarios[Actividad]=Indices[[#Headers],[Cabaña]])*(TablaInventarios[Categoría]=\"Terneros al pie\"))+SUMPRODUCT((TablaMovimientos[Cab.])*(TablaMovimientos[Fecha]<=Indices[[#This Row],[Fecha]])*(TablaMovimientos[Actividad]=Indices[[#Headers],[Cabaña]])*(TablaMovimientos[Categoría]=\"Terneros al pie\"))))","v":0},{"$f":"IF(Indices[[#This Row],[Meses activos]]=0,0,(SUMPRODUCT((TablaInventarios[Cab.])*(TablaInventarios[Actividad]=Indices[[#Headers],[Tambo]]))+SUMPRODUCT((TablaMovimientos[Cab.])*(TablaMovimientos[Fecha]<=Indices[[#This Row],[Fecha]])*(TablaMovimientos[Actividad]=Indices[[#Headers],[Tambo]])))-(SUMPRODUCT((TablaInventarios[Cab.])*(TablaInventarios[Actividad]=Indices[[#Headers],[Tambo]])*(TablaInventarios[Categoría]=\"Terneros al pie\"))+SUMPRODUCT((TablaMovimientos[Cab.])*(TablaMovimientos[Fecha]<=Indices[[#This Row],[Fecha]])*(TablaMovimientos[Actividad]=Indices[[#Headers],[Tambo]])*(TablaMovimientos[Categoría]=\"Terneros al pie\"))))","v":0},{"$f":"IF(Indices[[#This Row],[Meses activos]]=0,0,(SUMPRODUCT((TablaInventarios[Cab.])*(TablaInventarios[Actividad]=Indices[[#Headers],[Guachera]]))+SUMPRODUCT((TablaMovimientos[Cab.])*(TablaMovimientos[Fecha]<=Indices[[#This Row],[Fecha]])*(TablaMovimientos[Actividad]=Indices[[#Headers],[Guachera]])))-(SUMPRODUCT((TablaInventarios[Cab.])*(TablaInventarios[Actividad]=Indices[[#Headers],[Guachera]])*(TablaInventarios[Categoría]=\"Terneros al pie\"))+SUMPRODUCT((TablaMovimientos[Cab.])*(TablaMovimientos[Fecha]<=Indices[[#This Row],[Fecha]])*(TablaMovimientos[Actividad]=Indices[[#Headers],[Guachera]])*(TablaMovimientos[Categoría]=\"Terneros al pie\"))))","v":0},{"$f":"+SUM(Indices[[#This Row],[Cría]:[Guachera]])","v":0},{"$f":"IF(DATE(YEAR(Indices[[#This Row],[Fecha]]),MONTH(Indices[[#This Row],[Fecha]]),1)>=DATE(YEAR('Planilla de datos'!$N$19-1),MONTH('Planilla de datos'!$N$19-1),1),1,0)*IF(DATE(YEAR(Indices[[#This Row],[Fecha]]),MONTH(Indices[[#This Row],[Fecha]]),1)<='Planilla de datos'!$P$19,1,0)","v":1}]
["2024-04-01",{"$f":"IF(C40=0,\"\",VLOOKUP('Planilla de datos'!$T$23,'SIPM (Actualización en $)'!$A$6:$C$42,3,FALSE)/C40)","v":1.0615711252653928},942,{"$f":"IF(Indices[[#This Row],[Meses activos]]=0,0,(SUMPRODUCT((TablaInventarios[Cab.])*(TablaInventarios[Actividad]=Indices[[#Headers],[Cría]]))+SUMPRODUCT((TablaMovimientos[Cab.])*(TablaMovimientos[Fecha]<=Indices[[#This Row],[Fecha]])*(TablaMovimientos[Actividad]=Indices[[#Headers],[Cría]])))-(SUMPRODUCT((TablaInventarios[Cab.])*(TablaInventarios[Actividad]=Indices[[#Headers],[Cría]])*(TablaInventarios[Categoría]=\"Terneros al pie\"))+SUMPRODUCT((TablaMovimientos[Cab.])*(TablaMovimientos[Fecha]<=Indices[[#This Row],[Fecha]])*(TablaMovimientos[Actividad]=Indices[[#Headers],[Cría]])*(TablaMovimientos[Categoría]=\"Terneros al pie\"))))","v":0},{"$f":"IF(Indices[[#This Row],[Meses activos]]=0,0,(SUMPRODUCT((TablaInventarios[Cab.])*(TablaInventarios[Actividad]=Indices[[#Headers],[Recría]]))+SUMPRODUCT((TablaMovimientos[Cab.])*(TablaMovimientos[Fecha]<=Indices[[#This Row],[Fecha]])*(TablaMovimientos[Actividad]=Indices[[#Headers],[Recría]])))-(SUMPRODUCT((TablaInventarios[Cab.])*(TablaInventarios[Actividad]=Indices[[#Headers],[Recría]])*(TablaInventarios[Categoría]=\"Terneros al pie\"))+SUMPRODUCT((TablaMovimientos[Cab.])*(TablaMovimientos[Fecha]<=Indices[[#This Row],[Fecha]])*(TablaMovimientos[Actividad]=Indices[[#Headers],[Recría]])*(TablaMovimientos[Categoría]=\"Terneros al pie\"))))","v":0},{"$f":"IF(Indices[[#This Row],[Meses activos]]=0,0,(SUMPRODUCT((TablaInventarios[Cab.])*(TablaInventarios[Actividad]=Indices[[#Headers],[Invernada]]))+SUMPRODUCT((TablaMovimientos[Cab.])*(TablaMovimientos[Fecha]<=Indices[[#This Row],[Fecha]])*(TablaMovimientos[Actividad]=Indices[[#Headers],[Invernada]])))-(SUMPRODUCT((TablaInventarios[Cab.])*(TablaInventarios[Actividad]=Indices[[#Headers],[Invernada]])*(TablaInventarios[Categoría]=\"Terneros al pie\"))+SUMPRODUCT((TablaMovimientos[Cab.])*(TablaMovimientos[Fecha]<=Indices[[#This Row],[Fecha]])*(TablaMovimientos[Actividad]=Indices[[#Headers],[Invernada]])*(TablaMovimientos[Categoría]=\"Terneros al pie\"))))","v":0},{"$f":"IF(Indices[[#This Row],[Meses activos]]=0,0,(SUMPRODUCT((TablaInventarios[Cab.])*(TablaInventarios[Actividad]=Indices[[#Headers],[Feed-lot]]))+SUMPRODUCT((TablaMovimientos[Cab.])*(TablaMovimientos[Fecha]<=Indices[[#This Row],[Fecha]])*(TablaMovimientos[Actividad]=Indices[[#Headers],[Feed-lot]])))-(SUMPRODUCT((TablaInventarios[Cab.])*(TablaInventarios[Actividad]=Indices[[#Headers],[Feed-lot]])*(TablaInventarios[Categoría]=\"Terneros al pie\"))+SUMPRODUCT((TablaMovimientos[Cab.])*(TablaMovimientos[Fecha]<=Indices[[#This Row],[Fecha]])*(TablaMovimientos[Actividad]=Indices[[#Headers],[Feed-lot]])*(TablaMovimientos[Categoría]=\"Terneros al pie\"))))","v":0},{"$f":"IF(Indices[[#This Row],[Meses activos]]=0,0,(SUMPRODUCT((TablaInventarios[Cab.])*(TablaInventarios[Actividad]=Indices[[#Headers],[Cabaña]]))+SUMPRODUCT((TablaMovimientos[Cab.])*(TablaMovimientos[Fecha]<=Indices[[#This Row],[Fecha]])*(TablaMovimientos[Actividad]=Indices[[#Headers],[Cabaña]])))-(SUMPRODUCT((TablaInventarios[Cab.])*(TablaInventarios[Actividad]=Indices[[#Headers],[Cabaña]])*(TablaInventarios[Categoría]=\"Terneros al pie\"))+SUMPRODUCT((TablaMovimientos[Cab.])*(TablaMovimientos[Fecha]<=Indices[[#This Row],[Fecha]])*(TablaMovimientos[Actividad]=Indices[[#Headers],[Cabaña]])*(TablaMovimientos[Categoría]=\"Terneros al pie\"))))","v":0},{"$f":"IF(Indices[[#This Row],[Meses activos]]=0,0,(SUMPRODUCT((TablaInventarios[Cab.])*(TablaInventarios[Actividad]=Indices[[#Headers],[Tambo]]))+SUMPRODUCT((TablaMovimientos[Cab.])*(TablaMovimientos[Fecha]<=Indices[[#This Row],[Fecha]])*(TablaMovimientos[Actividad]=Indices[[#Headers],[Tambo]])))-(SUMPRODUCT((TablaInventarios[Cab.])*(TablaInventarios[Actividad]=Indices[[#Headers],[Tambo]])*(TablaInventarios[Categoría]=\"Terneros al pie\"))+SUMPRODUCT((TablaMovimientos[Cab.])*(TablaMovimientos[Fecha]<=Indices[[#This Row],[Fecha]])*(TablaMovimientos[Actividad]=Indices[[#Headers],[Tambo]])*(TablaMovimientos[Categoría]=\"Terneros al pie\"))))","v":0},{"$f":"IF(Indices[[#This Row],[Meses activos]]=0,0,(SUMPRODUCT((TablaInventarios[Cab.])*(TablaInventarios[Actividad]=Indices[[#Headers],[Guachera]]))+SUMPRODUCT((TablaMovimientos[Cab.])*(TablaMovimientos[Fecha]<=Indices[[#This Row],[Fecha]])*(TablaMovimientos[Actividad]=Indices[[#Headers],[Guachera]])))-(SUMPRODUCT((TablaInventarios[Cab.])*(TablaInventarios[Actividad]=Indices[[#Headers],[Guachera]])*(TablaInventarios[Categoría]=\"Terneros al pie\"))+SUMPRODUCT((TablaMovimientos[Cab.])*(TablaMovimientos[Fecha]<=Indices[[#This Row],[Fecha]])*(TablaMovimientos[Actividad]=Indices[[#Headers],[Guachera]])*(TablaMovimientos[Categoría]=\"Terneros al pie\"))))","v":0},{"$f":"+SUM(Indices[[#This Row],[Cría]:[Guachera]])","v":0},{"$f":"IF(DATE(YEAR(Indices[[#This Row],[Fecha]]),MONTH(Indices[[#This Row],[Fecha]]),1)>=DATE(YEAR('Planilla de datos'!$N$19-1),MONTH('Planilla de datos'!$N$19-1),1),1,0)*IF(DATE(YEAR(Indices[[#This Row],[Fecha]]),MONTH(Indices[[#This Row],[Fecha]]),1)<='Planilla de datos'!$P$19,1,0)","v":1}]
["2024-05-01",{"$f":"IF(C41=0,\"\",VLOOKUP('Planilla de datos'!$T$23,'SIPM (Actualización en $)'!$A$6:$C$42,3,FALSE)/C41)","v":1.0309278350515463},970,{"$f":"IF(Indices[[#This Row],[Meses activos]]=0,0,(SUMPRODUCT((TablaInventarios[Cab.])*(TablaInventarios[Actividad]=Indices[[#Headers],[Cría]]))+SUMPRODUCT((TablaMovimientos[Cab.])*(TablaMovimientos[Fecha]<=Indices[[#This Row],[Fecha]])*(TablaMovimientos[Actividad]=Indices[[#Headers],[Cría]])))-(SUMPRODUCT((TablaInventarios[Cab.])*(TablaInventarios[Actividad]=Indices[[#Headers],[Cría]])*(TablaInventarios[Categoría]=\"Terneros al pie\"))+SUMPRODUCT((TablaMovimientos[Cab.])*(TablaMovimientos[Fecha]<=Indices[[#This Row],[Fecha]])*(TablaMovimientos[Actividad]=Indices[[#Headers],[Cría]])*(TablaMovimientos[Categoría]=\"Terneros al pie\"))))","v":0},{"$f":"IF(Indices[[#This Row],[Meses activos]]=0,0,(SUMPRODUCT((TablaInventarios[Cab.])*(TablaInventarios[Actividad]=Indices[[#Headers],[Recría]]))+SUMPRODUCT((TablaMovimientos[Cab.])*(TablaMovimientos[Fecha]<=Indices[[#This Row],[Fecha]])*(TablaMovimientos[Actividad]=Indices[[#Headers],[Recría]])))-(SUMPRODUCT((TablaInventarios[Cab.])*(TablaInventarios[Actividad]=Indices[[#Headers],[Recría]])*(TablaInventarios[Categoría]=\"Terneros al pie\"))+SUMPRODUCT((TablaMovimientos[Cab.])*(TablaMovimientos[Fecha]<=Indices[[#This Row],[Fecha]])*(TablaMovimientos[Actividad]=Indices[[#Headers],[Recría]])*(TablaMovimientos[Categoría]=\"Terneros al pie\"))))","v":0},{"$f":"IF(Indices[[#This Row],[Meses activos]]=0,0,(SUMPRODUCT((TablaInventarios[Cab.])*(TablaInventarios[Actividad]=Indices[[#Headers],[Invernada]]))+SUMPRODUCT((TablaMovimientos[Cab.])*(TablaMovimientos[Fecha]<=Indices[[#This Row],[Fecha]])*(TablaMovimientos[Actividad]=Indices[[#Headers],[Invernada]])))-(SUMPRODUCT((TablaInventarios[Cab.])*(TablaInventarios[Actividad]=Indices[[#Headers],[Invernada]])*(TablaInventarios[Categoría]=\"Terneros al pie\"))+SUMPRODUCT((TablaMovimientos[Cab.])*(TablaMovimientos[Fecha]<=Indices[[#This Row],[Fecha]])*(TablaMovimientos[Actividad]=Indices[[#Headers],[Invernada]])*(TablaMovimientos[Categoría]=\"Terneros al pie\"))))","v":0},{"$f":"IF(Indices[[#This Row],[Meses activos]]=0,0,(SUMPRODUCT((TablaInventarios[Cab.])*(TablaInventarios[Actividad]=Indices[[#Headers],[Feed-lot]]))+SUMPRODUCT((TablaMovimientos[Cab.])*(TablaMovimientos[Fecha]<=Indices[[#This Row],[Fecha]])*(TablaMovimientos[Actividad]=Indices[[#Headers],[Feed-lot]])))-(SUMPRODUCT((TablaInventarios[Cab.])*(TablaInventarios[Actividad]=Indices[[#Headers],[Feed-lot]])*(TablaInventarios[Categoría]=\"Terneros al pie\"))+SUMPRODUCT((TablaMovimientos[Cab.])*(TablaMovimientos[Fecha]<=Indices[[#This Row],[Fecha]])*(TablaMovimientos[Actividad]=Indices[[#Headers],[Feed-lot]])*(TablaMovimientos[Categoría]=\"Terneros al pie\"))))","v":0},{"$f":"IF(Indices[[#This Row],[Meses activos]]=0,0,(SUMPRODUCT((TablaInventarios[Cab.])*(TablaInventarios[Actividad]=Indices[[#Headers],[Cabaña]]))+SUMPRODUCT((TablaMovimientos[Cab.])*(TablaMovimientos[Fecha]<=Indices[[#This Row],[Fecha]])*(TablaMovimientos[Actividad]=Indices[[#Headers],[Cabaña]])))-(SUMPRODUCT((TablaInventarios[Cab.])*(TablaInventarios[Actividad]=Indices[[#Headers],[Cabaña]])*(TablaInventarios[Categoría]=\"Terneros al pie\"))+SUMPRODUCT((TablaMovimientos[Cab.])*(TablaMovimientos[Fecha]<=Indices[[#This Row],[Fecha]])*(TablaMovimientos[Actividad]=Indices[[#Headers],[Cabaña]])*(TablaMovimientos[Categoría]=\"Terneros al pie\"))))","v":0},{"$f":"IF(Indices[[#This Row],[Meses activos]]=0,0,(SUMPRODUCT((TablaInventarios[Cab.])*(TablaInventarios[Actividad]=Indices[[#Headers],[Tambo]]))+SUMPRODUCT((TablaMovimientos[Cab.])*(TablaMovimientos[Fecha]<=Indices[[#This Row],[Fecha]])*(TablaMovimientos[Actividad]=Indices[[#Headers],[Tambo]])))-(SUMPRODUCT((TablaInventarios[Cab.])*(TablaInventarios[Actividad]=Indices[[#Headers],[Tambo]])*(TablaInventarios[Categoría]=\"Terneros al pie\"))+SUMPRODUCT((TablaMovimientos[Cab.])*(TablaMovimientos[Fecha]<=Indices[[#This Row],[Fecha]])*(TablaMovimientos[Actividad]=Indices[[#Headers],[Tambo]])*(TablaMovimientos[Categoría]=\"Terneros al pie\"))))","v":0},{"$f":"IF(Indices[[#This Row],[Meses activos]]=0,0,(SUMPRODUCT((TablaInventarios[Cab.])*(TablaInventarios[Actividad]=Indices[[#Headers],[Guachera]]))+SUMPRODUCT((TablaMovimientos[Cab.])*(TablaMovimientos[Fecha]<=Indices[[#This Row],[Fecha]])*(TablaMovimientos[Actividad]=Indices[[#Headers],[Guachera]])))-(SUMPRODUCT((TablaInventarios[Cab.])*(TablaInventarios[Actividad]=Indices[[#Headers],[Guachera]])*(TablaInventarios[Categoría]=\"Terneros al pie\"))+SUMPRODUCT((TablaMovimientos[Cab.])*(TablaMovimientos[Fecha]<=Indices[[#This Row],[Fecha]])*(TablaMovimientos[Actividad]=Indices[[#Headers],[Guachera]])*(TablaMovimientos[Categoría]=\"Terneros al pie\"))))","v":0},{"$f":"+SUM(Indices[[#This Row],[Cría]:[Guachera]])","v":0},{"$f":"IF(DATE(YEAR(Indices[[#This Row],[Fecha]]),MONTH(Indices[[#This Row],[Fecha]]),1)>=DATE(YEAR('Planilla de datos'!$N$19-1),MONTH('Planilla de datos'!$N$19-1),1),1,0)*IF(DATE(YEAR(Indices[[#This Row],[Fecha]]),MONTH(Indices[[#This Row],[Fecha]]),1)<='Planilla de datos'!$P$19,1,0)","v":1}]
["2024-06-01",{"$f":"IF(C42=0,\"\",VLOOKUP('Planilla de datos'!$T$23,'SIPM (Actualización en $)'!$A$6:$C$42,3,FALSE)/C42)","v":1},1000,{"$f":"IF(Indices[[#This Row],[Meses activos]]=0,0,(SUMPRODUCT((TablaInventarios[Cab.])*(TablaInventarios[Actividad]=Indices[[#Headers],[Cría]]))+SUMPRODUCT((TablaMovimientos[Cab.])*(TablaMovimientos[Fecha]<=Indices[[#This Row],[Fecha]])*(TablaMovimientos[Actividad]=Indices[[#Headers],[Cría]])))-(SUMPRODUCT((TablaInventarios[Cab.])*(TablaInventarios[Actividad]=Indices[[#Headers],[Cría]])*(TablaInventarios[Categoría]=\"Terneros al pie\"))+SUMPRODUCT((TablaMovimientos[Cab.])*(TablaMovimientos[Fecha]<=Indices[[#This Row],[Fecha]])*(TablaMovimientos[Actividad]=Indices[[#Headers],[Cría]])*(TablaMovimientos[Categoría]=\"Terneros al pie\"))))","v":0},{"$f":"IF(Indices[[#This Row],[Meses activos]]=0,0,(SUMPRODUCT((TablaInventarios[Cab.])*(TablaInventarios[Actividad]=Indices[[#Headers],[Recría]]))+SUMPRODUCT((TablaMovimientos[Cab.])*(TablaMovimientos[Fecha]<=Indices[[#This Row],[Fecha]])*(TablaMovimientos[Actividad]=Indices[[#Headers],[Recría]])))-(SUMPRODUCT((TablaInventarios[Cab.])*(TablaInventarios[Actividad]=Indices[[#Headers],[Recría]])*(TablaInventarios[Categoría]=\"Terneros al pie\"))+SUMPRODUCT((TablaMovimientos[Cab.])*(TablaMovimientos[Fecha]<=Indices[[#This Row],[Fecha]])*(TablaMovimientos[Actividad]=Indices[[#Headers],[Recría]])*(TablaMovimientos[Categoría]=\"Terneros al pie\"))))","v":0},{"$f":"IF(Indices[[#This Row],[Meses activos]]=0,0,(SUMPRODUCT((TablaInventarios[Cab.])*(TablaInventarios[Actividad]=Indices[[#Headers],[Invernada]]))+SUMPRODUCT((TablaMovimientos[Cab.])*(TablaMovimientos[Fecha]<=Indices[[#This Row],[Fecha]])*(TablaMovimientos[Actividad]=Indices[[#Headers],[Invernada]])))-(SUMPRODUCT((TablaInventarios[Cab.])*(TablaInventarios[Actividad]=Indices[[#Headers],[Invernada]])*(TablaInventarios[Categoría]=\"Terneros al pie\"))+SUMPRODUCT((TablaMovimientos[Cab.])*(TablaMovimientos[Fecha]<=Indices[[#This Row],[Fecha]])*(TablaMovimientos[Actividad]=Indices[[#Headers],[Invernada]])*(TablaMovimientos[Categoría]=\"Terneros al pie\"))))","v":0},{"$f":"IF(Indices[[#This Row],[Meses activos]]=0,0,(SUMPRODUCT((TablaInventarios[Cab.])*(TablaInventarios[Actividad]=Indices[[#Headers],[Feed-lot]]))+SUMPRODUCT((TablaMovimientos[Cab.])*(TablaMovimientos[Fecha]<=Indices[[#This Row],[Fecha]])*(TablaMovimientos[Actividad]=Indices[[#Headers],[Feed-lot]])))-(SUMPRODUCT((TablaInventarios[Cab.])*(TablaInventarios[Actividad]=Indices[[#Headers],[Feed-lot]])*(TablaInventarios[Categoría]=\"Terneros al pie\"))+SUMPRODUCT((TablaMovimientos[Cab.])*(TablaMovimientos[Fecha]<=Indices[[#This Row],[Fecha]])*(TablaMovimientos[Actividad]=Indices[[#Headers],[Feed-lot]])*(TablaMovimientos[Categoría]=\"Terneros al pie\"))))","v":0},{"$f":"IF(Indices[[#This Row],[Meses activos]]=0,0,(SUMPRODUCT((TablaInventarios[Cab.])*(TablaInventarios[Actividad]=Indices[[#Headers],[Cabaña]]))+SUMPRODUCT((TablaMovimientos[Cab.])*(TablaMovimientos[Fecha]<=Indices[[#This Row],[Fecha]])*(TablaMovimientos[Actividad]=Indices[[#Headers],[Cabaña]])))-(SUMPRODUCT((TablaInventarios[Cab.])*(TablaInventarios[Actividad]=Indices[[#Headers],[Cabaña]])*(TablaInventarios[Categoría]=\"Terneros al pie\"))+SUMPRODUCT((TablaMovimientos[Cab.])*(TablaMovimientos[Fecha]<=Indices[[#This Row],[Fecha]])*(TablaMovimientos[Actividad]=Indices[[#Headers],[Cabaña]])*(TablaMovimientos[Categoría]=\"Terneros al pie\"))))","v":0},{"$f":"IF(Indices[[#This Row],[Meses activos]]=0,0,(SUMPRODUCT((TablaInventarios[Cab.])*(TablaInventarios[Actividad]=Indices[[#Headers],[Tambo]]))+SUMPRODUCT((TablaMovimientos[Cab.])*(TablaMovimientos[Fecha]<=Indices[[#This Row],[Fecha]])*(TablaMovimientos[Actividad]=Indices[[#Headers],[Tambo]])))-(SUMPRODUCT((TablaInventarios[Cab.])*(TablaInventarios[Actividad]=Indices[[#Headers],[Tambo]])*(TablaInventarios[Categoría]=\"Terneros al pie\"))+SUMPRODUCT((TablaMovimientos[Cab.])*(TablaMovimientos[Fecha]<=Indices[[#This Row],[Fecha]])*(TablaMovimientos[Actividad]=Indices[[#Headers],[Tambo]])*(TablaMovimientos[Categoría]=\"Terneros al pie\"))))","v":0},{"$f":"IF(Indices[[#This Row],[Meses activos]]=0,0,(SUMPRODUCT((TablaInventarios[Cab.])*(TablaInventarios[Actividad]=Indices[[#Headers],[Guachera]]))+SUMPRODUCT((TablaMovimientos[Cab.])*(TablaMovimientos[Fecha]<=Indices[[#This Row],[Fecha]])*(TablaMovimientos[Actividad]=Indices[[#Headers],[Guachera]])))-(SUMPRODUCT((TablaInventarios[Cab.])*(TablaInventarios[Actividad]=Indices[[#Headers],[Guachera]])*(TablaInventarios[Categoría]=\"Terneros al pie\"))+SUMPRODUCT((TablaMovimientos[Cab.])*(TablaMovimientos[Fecha]<=Indices[[#This Row],[Fecha]])*(TablaMovimientos[Actividad]=Indices[[#Headers],[Guachera]])*(TablaMovimientos[Categoría]=\"Terneros al pie\"))))","v":0},{"$f":"+SUM(Indices[[#This Row],[Cría]:[Guachera]])","v":0},{"$f":"IF(DATE(YEAR(Indices[[#This Row],[Fecha]]),MONTH(Indices[[#This Row],[Fecha]]),1)>=DATE(YEAR('Planilla de datos'!$N$19-1),MONTH('Planilla de datos'!$N$19-1),1),1,0)*IF(DATE(YEAR(Indices[[#This Row],[Fecha]]),MONTH(Indices[[#This Row],[Fecha]]),1)<='Planilla de datos'!$P$19,1,0)","v":1}]
[]
[]
[]
[]
[]
[]
[]
[]
[]
[]
[]
[]
[]
[]
[]
[]
[]
[]
[]
[]
[]
[]
[]
[]
[]
[]
[]
[]
[]
[]
[]
[]
[null,null,809.37168740717391,831.99366997019149,855.68247177400372,880.88864612376449,900.78036666067555,934.33619002336945,978.60325697028588,1040.5419938330967,1101.9533166314045,1158.9222798841117,1214.824148470205]
[]
[null,null,809.37168740717391]
[null,null,831.99366997019149]
[null,null,855.68247177400372]
[null,null,880.88864612376449]
[null,null,900.78036666067555]
[null,null,934.33619002336945]
[null,null,978.60325697028588]
[null,null,1040.5419938330967]
[null,null,1101.9533166314045]
[null,null,1158.9222798841117]
[null,null,1214.824148470205]

{"sheet":"Dólar","index":5,"n_rows":937,"n_cols":15,"rows_kept":937,"cut":false,"hidden":false,"merged":[]}
["Dólar Oficial",null,null,null,null,"Dólar Informal",null,null,null,null,"Dólar MEP"]
["https://www.ambito.com/contenidos/dolar-oficial-historico.html",null,null,null,null,"https://www.ambito.com/contenidos/dolar-informal-historico.html",null,null,null,null,"https://www.ambito.com/contenidos/dolar-mep-historico.html"]
[]
["Fecha","Compra","Venta",null,null,"Fecha","Compra","Venta",null,null,"Fecha","MEP"]
["2018-12-28",36.83,38.83,null,null,"2018-12-28",38.5,40.5,null,null,"2018-12-28"]
["2019-01-02",36.770000000000003,38.770000000000003,null,null,"2019-01-02",38.5,40.5,null,null,"2019-01-02"]
["2019-01-03",36.51,38.51,null,null,"2019-01-03",38.25,40.25,null,null,"2019-01-03"]
["2019-01-04",36.42,38.42,null,null,"2019-01-04",38,40,null,null,"2019-01-04"]
["2019-01-07",36.409999999999997,38.409999999999997,null,null,"2019-01-07",37.5,39.5,null,null,"2019-01-07"]
["2019-01-08",36.61,38.61,null,null,"2019-01-08",37.25,39.25,null,null,"2019-01-08"]
["2019-01-09",36.49,38.49,null,null,"2019-01-09",37.75,39.75,null,null,"2019-01-09"]
["2019-01-10",36.18,38.18,null,null,"2019-01-10",37.25,39.25,null,null,"2019-01-10"]
["2019-01-11",36.03,38.03,null,null,"2019-01-11",37.25,39.25,null,null,"2019-01-11"]
["2019-01-14",36.06,38.06,null,null,"2019-01-14",37.25,39,null,null,"2019-01-14"]
["2019-01-15",36.200000000000003,38.200000000000003,null,null,"2019-01-15",37.25,39.25,null,null,"2019-01-15"]
["2019-01-16",36.479999999999997,38.479999999999997,null,null,"2019-01-16",37.25,39.25,null,null,"2019-01-16"]
["2019-01-17",36.75,38.75,null,null,"2019-01-17",37,39,null,null,"2019-01-17"]
["2019-01-18",36.630000000000003,38.630000000000003,null,null,"2019-01-18",37,39,null,null,"2019-01-18"]
["2019-01-21",36.729999999999997,38.729999999999997,null,null,"2019-01-21",36.75,38.75,null,null,"2019-01-21"]
["2019-01-22",36.53,38.53,null,null,"2019-01-22",36.75,38.75,null,null,"2019-01-22"]
["2019-01-23",36.58,38.58,null,null,"2019-01-23",37,39,null,null,"2019-01-23"]
["2019-01-24",36.479999999999997,38.479999999999997,null,null,"2019-01-24",36.5,38.5,null,null,"2019-01-24"]
["2019-01-25",36.03,38.03,null,null,"2019-01-25",36.25,38.25,null,null,"2019-01-25"]
["2019-01-28",36.15,38.15,null,null,"2019-01-28",36.25,38.25,null,null,"2019-01-28"]
["2019-01-29",36.6,38.6,null,null,"2019-01-29",36.5,38.5,null,null,"2019-01-29"]
["2019-01-30",36.65,38.65,null,null,"2019-01-30",36.25,38.25,null,null,"2019-01-30"]
["2019-01-31",36.31,38.31,null,null,"2019-01-31",35.5,37.5,null,null,"2019-01-31"]
["2019-02-01",36.31,38.31,null,null,"2019-02-01",35.75,37.75,null,null,"2019-02-01"]
["2019-02-04",36.29,38.29,null,null,"2019-02-04",35.5,37.5,null,null,"2019-02-04"]
["2019-02-05",36.28,38.28,null,null,"2019-02-05",35.299999999999997,37.299999999999997,null,null,"2019-02-05"]
["2019-02-06",36.590000000000003,38.590000000000003,null,null,"2019-02-06",35.25,37.25,null,null,"2019-02-06"]
["2019-02-07",36.92,38.92,null,null,"2019-02-07",36.75,37.75,null,null,"2019-02-07"]
["2019-02-08",36.92,38.92,null,null,"2019-02-08",36.5,37.5,null,null,"2019-02-08"]
["2019-02-11",37.090000000000003,39.090000000000003,null,null,"2019-02-11",37,38,null,null,"2019-02-11"]
["2019-02-12",36.950000000000003,38.950000000000003,null,null,"2019-02-12",37,38,null,null,"2019-02-12"]
["2019-02-13",37.21,39.21,null,null,"2019-02-13",37.25,38.25,null,null,"2019-02-13"]
["2019-02-14",37.32,39.32,null,null,"2019-02-14",37.5,38.5,null,null,"2019-02-14"]
["2019-02-15",37.53,39.53,null,null,"2019-02-15",37.75,38.75,null,null,"2019-02-15"]
["2019-02-18",37.79,39.79,null,null,"2019-02-18",37.75,38.75,null,null,"2019-02-18"]
["2019-02-19",38.32,40.32,null,null,"2019-02-19",38,39,null,null,"2019-02-19"]
["2019-02-20",38.76,40.76,null,null,"2019-02-20",38.75,39.75,null,null,"2019-02-20"]
["2019-02-21",38.56,40.56,null,null,"2019-02-21",38.25,39.25,null,null,"2019-02-21"]
["2019-02-22",39.21,40.21,null,null,"2019-02-22",38.75,38.75,null,null,"2019-02-22"]
["2019-02-25",38,40,null,null,"2019-02-25",36.75,38.75,null,null,"2019-02-25"]
["2019-02-26",38,40,null,null,"2019-02-26",37.25,39.25,null,null,"2019-02-26"]
["2019-02-27",37.83,39.83,null,null,"2019-02-27",38,39,null,null,"2019-02-27"]
["2019-02-28",38.14,40.14,null,null,"2019-02-28",38,39,null,null,"2019-02-28"]
["2019-03-01",38.840000000000003,40.840000000000003,null,null,"2019-03-01",37,39,null,null,"2019-03-01"]
["2019-03-06",39.72,41.72,null,null,"2019-03-06",38.5,40.5,null,null,"2019-03-06"]
["2019-03-07",41.5,43.5,null,null,"2019-03-07",41.5,42.5,null,null,"2019-03-07"]
["2019-03-08",40.270000000000003,42.27,null,null,"2019-03-08",40,41,null,null,"2019-03-08"]
["2019-03-11",40.26,42.26,null,null,"2019-03-11",40,41,null,null,"2019-03-11"]
["2019-03-12",40.520000000000003,42.52,null,null,"2019-03-12",40.25,41.25,null,null,"2019-03-12"]
["2019-03-13",40.299999999999997,42.3,null,null,"2019-03-13",40.5,41.5,null,null,"2019-03-13"]
["2019-03-14",39.76,41.76,null,null,"2019-03-14",40,41,null,null,"2019-03-14"]
["2019-03-15",39.130000000000003,41.13,null,null,"2019-03-15",39,41,null,null,"2019-03-15"]
["2019-03-18",39.020000000000003,41.02,null,null,"2019-03-18",40,41,null,null,"2019-03-18"]
["2019-03-19",39.590000000000003,41.59,null,null,"2019-03-19",40.25,41.25,null,null,"2019-03-19"]
["2019-03-20",39.950000000000003,41.95,null,null,"2019-03-20",40.25,41.25,null,null,"2019-03-20"]
["2019-03-21",40.020000000000003,42.02,null,null,"2019-03-21",39.25,41.25,null,null,"2019-03-21"]
["2019-03-22",40.86,42.86,null,null,"2019-03-22",39.75,41.75,null,null,"2019-03-22"]
["2019-03-25",41.01,43.01,null,null,"2019-03-25",40.9,41.9,null,null,"2019-03-25"]
["2019-03-26",41.67,43.67,null,null,"2019-03-26",41.55,42.55,null,null,"2019-03-26"]
["2019-03-27",42.92,44.92,null,null,"2019-03-27",43,44,null,null,"2019-03-27"]
["2019-03-28",42.69,44.69,null,null,"2019-03-28",41.8,43.8,null,null,"2019-03-28"]
["2019-03-29",42.4,44.4,null,null,"2019-03-29",42.65,43.65,null,null,"2019-03-29"]
["2019-04-01",41.86,43.86,null,null,"2019-04-01",42.5,43.5,null,null,"2019-04-01"]
["2019-04-03",41.84,43.84,null,null,"2019-04-03",42.5,43.5,null,null,"2019-04-03"]
["2019-04-04",42.29,44.29,null,null,"2019-04-04",42.65,43.65,null,null,"2019-04-04"]
["2019-04-05",42.96,44.96,null,null,"2019-04-05",43,44,null,null,"2019-04-05"]
["2019-04-08",42.83,44.83,null,null,"2019-04-08",43,44,null,null,"2019-04-08"]
["2019-04-09",42.52,44.52,null,null,"2019-04-09",43,44,null,null,"2019-04-09"]
["2019-04-10",42.22,44.22,null,null,"2019-04-10",43,44,null,null,"2019-04-10"]
["2019-04-11",41.9,43.9,null,null,"2019-04-11",43,44,null,null,"2019-04-11"]
["2019-04-12",41.29,43.29,null,null,"2019-04-12",42.65,43.65,null,null,"2019-04-12"]
["2019-04-15",40.65,42.65,null,null,"2019-04-15",42.5,43.5,null,null,"2019-04-15"]
["2019-04-16",41.38,43.38,null,null,"2019-04-16",42.8,43.8,null,null,"2019-04-16"]
["2019-04-17",40.98,42.98,null,null,"2019-04-17",41.4,43.45,null,null,"2019-04-17"]
["2019-04-22",41.69,43.69,null,null,"2019-04-22",43.35,44.35,null,null,"2019-04-22"]
["2019-04-23",41.52,43.52,null,null,"2019-04-23",43.15,44.15,null,null,"2019-04-23"]
["2019-04-24",42.92,44.92,null,null,"2019-04-24",43.5,44.5,null,null,"2019-04-24"]
["2019-04-25",44.13,46.13,null,null,"2019-04-25",45,46,null,null,"2019-04-25"]
["2019-04-26",44.9,46.9,null,null,"2019-04-26",45.1,46.1,null,null,"2019-04-26"]
["2019-04-29",43.6,45.6,null,null,"2019-04-29",44.07,45.07,null,null,"2019-04-29"]
["2019-04-30",43.16,45.36,null,null,"2019-04-30",45,46,null,null,"2019-04-30"]
["2019-05-02",43.75,45.95,null,null,"2019-05-02",45.25,46.25,null,null,"2019-05-02"]
["2019-05-03",43.35,45.55,null,null,"2019-05-03",44.55,45.75,null,null,"2019-05-03"]
["2019-05-06",43.66,45.86,null,null,"2019-05-06",45.5,46.5,null,null,"2019-05-06"]
["2019-05-07",44.16,46.36,null,null,"2019-05-07",45,46,null,null,"2019-05-07"]
["2019-05-08",44.13,46.33,null,null,"2019-05-08",45,46,null,null,"2019-05-08"]
["2019-05-09",44.3,46.5,null,null,"2019-05-09",45,46,null,null,"2019-05-09"]
["2019-05-10",43.85,46.05,null,null,"2019-05-10",44.5,46,null,null,"2019-05-10"]
["2019-05-13",44.2,46.4,null,null,"2019-05-13",44.5,46,null,null,"2019-05-13"]
["2019-05-14",43.96,46.16,null,null,"2019-05-14",44.5,46,null,null,"2019-05-14"]
["2019-05-15",43.96,46.16,null,null,"2019-05-15",44.5,46,null,null,"2019-05-15"]
["2019-05-16",43.76,45.96,null,null,"2019-05-16",44.5,46,null,null,"2019-05-16"]
["2019-05-17",44,46.2,null,null,"2019-05-17",44.6,46.1,null,null,"2019-05-17"]
["2019-05-20",44.22,46.42,null,null,"2019-05-20",44.85,46.35,null,null,"2019-05-20"]
["2019-05-21",43.84,46.04,null,null,"2019-05-21",44.75,46.25,null,null,"2019-05-21"]
["2019-05-22",43.85,46.05,null,null,"2019-05-22",44.6,46.1,null,null,"2019-05-22"]
["2019-05-23",44.06,46.26,null,null,"2019-05-23",44.7,46.2,null,null,"2019-05-23"]
["2019-05-24",43.86,46.06,null,null,"2019-05-24",44.65,46.15,null,null,"2019-05-24"]
["2019-05-27",43.89,46.09,null,null,"2019-05-27",44.65,46.15,null,null,"2019-05-27"]
["2019-05-28",43.68,45.88,null,null,"2019-05-28",44.7,46.2,null,null,"2019-05-28"]
["2019-05-29",43.58,45.78,null,null,"2019-05-29",44.7,46.2,null,null,"2019-05-29"]
["2019-05-30",43.45,45.65,null,null,"2019-05-30",44.4,45.9,null,null,"2019-05-30"]
["2019-05-31",43.85,46.1,null,null,"2019-05-31",44.5,46,null,null,"2019-05-31"]
["2019-06-03",43.93,46.13,null,null,"2019-06-03",44.6,46.1,null,null,"2019-06-03"]
["2019-06-04",43.76,45.96,null,null,"2019-06-04",44.5,46,null,null,"2019-06-04"]
["2019-06-05",43.88,46.08,null,null,"2019-06-05",44.1,45.6,null,null,"2019-06-05"]
["2019-06-06",43.92,46.12,null,null,"2019-06-06",44.15,45.65,null,null,"2019-06-06"]
["2019-06-07",43.92,46.12,null,null,"2019-06-07",44.2,45.7,null,null,"2019-06-07"]
["2019-06-10",43.94,46.14,null,null,"2019-06-10",44,45.5,null,null,"2019-06-10"]
["2019-06-11",43.74,45.94,null,null,"2019-06-11",44,45.5,null,null,"2019-06-11"]
["2019-06-12",42.67,44.87,null,null,"2019-06-12",43.8,45.3,null,null,"2019-06-12"]
["2019-06-13",42.42,44.62,null,null,"2019-06-13",43.8,45.3,null,null,"2019-06-13"]
["2019-06-14",42.97,45.17,null,null,"2019-06-14",43.7,45.2,null,null,"2019-06-14"]
["2019-06-18",42.51,44.71,null,null,"2019-06-18",43.65,45.15,null,null,"2019-06-18"]
["2019-06-19",42.3,44.5,null,null,"2019-06-19",43.4,44.9,null,null,"2019-06-19"]
["2019-06-21",41.87,44.07,null,null,"2019-06-21",43,44.5,null,null,"2019-06-21"]
["2019-06-24",41.45,43.65,null,null,"2019-06-24",42.94,44.44,null,null,"2019-06-24"]
["2019-06-25",41.28,43.48,null,null,"2019-06-25",42.6,44.1,null,null,"2019-06-25"]
["2019-06-26",41.75,43.95,null,null,"2019-06-26",42.7,44.2,null,null,"2019-06-26"]
["2019-06-27",41.74,43.94,null,null,"2019-06-27",42.7,44.2,null,null,"2019-06-27"]
["2019-06-28",41.5,43.7,null,null,"2019-06-28",42.3,43.8,null,null,"2019-06-28"]
["2019-07-01",41.28,43.48,null,null,"2019-07-01",41.95,43.45,null,null,"2019-07-01"]
["2019-07-02",41.25,43.45,null,null,"2019-07-02",42,43.5,null,null,"2019-07-02"]
["2019-07-03",41.05,43.25,null,null,"2019-07-03",41.55,43.05,null,null,"2019-07-03"]
["2019-07-04",40.69,42.89,null,null,"2019-07-04",41.4,42.9,null,null,"2019-07-04"]
["2019-07-05",40.9,43.1,null,null,"2019-07-05",41.4,42.9,null,null,"2019-07-05"]
["2019-07-10",40.89,43.09,null,null,"2019-07-10",41.3,42.8,null,null,"2019-07-10"]
["2019-07-11",40.72,42.92,null,null,"2019-07-11",41.7,43.2,null,null,"2019-07-11"]
["2019-07-12",40.65,42.85,null,null,"2019-07-12",41.75,43.25,null,null,"2019-07-12"]
["2019-07-15",41.21,43.41,null,null,"2019-07-15",42.25,43.75,null,null,"2019-07-15"]
["2019-07-16",41.58,43.78,null,null,"2019-07-16",42.95,44.45,null,null,"2019-07-16"]
["2019-07-17",41.51,43.71,null,null,"2019-07-17",42.7,44.2,null,null,"2019-07-17"]
["2019-07-18",41.41,43.61,null,null,"2019-07-18",42.45,43.95,null,null,"2019-07-18"]
["2019-07-19",41.42,43.62,null,null,"2019-07-19",42.45,43.95,null,null,"2019-07-19"]
["2019-07-22",41.41,43.61,null,null,"2019-07-22",42.55,44.05,null,null,"2019-07-22"]
["2019-07-23",41.67,43.87,null,null,"2019-07-23",42.75,44.25,null,null,"2019-07-23"]
["2019-07-24",41.85,44.05,null,null,"2019-07-24",43.1,44.6,null,null,"2019-07-24"]
["2019-07-25",42.36,44.56,null,null,"2019-07-25",43.45,44.95,null,null,"2019-07-25"]
["2019-07-26",42.31,44.51,null,null,"2019-07-26",43.45,44.95,null,null,"2019-07-26"]
["2019-07-29",42.73,44.93,null,null,"2019-07-29",43.65,45.15,null,null,"2019-07-29"]
["2019-07-30",42.86,45.06,null,null,"2019-07-30",43.65,45.15,null,null,"2019-07-30"]
["2019-07-31",42.83,45.03,null,null,"2019-07-31",43.7,45.2,null,null,"2019-07-31"]
["2019-08-01",43.35,45.55,null,null,"2019-08-01",43.93,45.43,null,null,"2019-08-01"]
["2019-08-02",43.69,45.89,null,null,"2019-08-02",44.4,45.9,null,null,"2019-08-02"]
["2019-08-05",44.48,46.68,null,null,"2019-08-05",45.1,46.6,null,null,"2019-08-05"]
["2019-08-06",44.28,46.48,null,null,"2019-08-06",44.9,46.4,null,null,"2019-08-06"]
["2019-08-07",44.6,46.8,null,null,"2019-08-07",45,46.5,null,null,"2019-08-07"]
["2019-08-08",44.27,46.47,null,null,"2019-08-08",45.22,46.72,null,null,"2019-08-08"]
["2019-08-09",44.35,46.55,null,null,"2019-08-09",45.4,46.9,null,null,"2019-08-09"]
["2019-08-12",51.23,57.3,null,null,"2019-08-12",53,57,null,null,"2019-08-12"]
["2019-08-13",52.07,58.14,null,null,"2019-08-13",53,57,null,null,"2019-08-13"]
["2019-08-14",57.18,62.18,null,null,"2019-08-14",58.5,62,null,null,"2019-08-14"]
["2019-08-15",54.72,59.72,null,null,"2019-08-15",55,59,null,null,"2019-08-15"]
["2019-08-16",53.12,58.12,null,null,"2019-08-16",55,59,null,null,"2019-08-16"]
["2019-08-20",52.39,57.39,null,null,"2019-08-20",53,58,null,null,"2019-08-20"]
["2019-08-21",52.27,57.27,null,null,"2019-08-21",54.5,58.5,null,null,"2019-08-21"]
["2019-08-22",52.24,57.24,null,null,"2019-08-22",54,58,null,null,"2019-08-22"]
["2019-08-23",52.31,57.31,null,null,"2019-08-23",54,58,null,null,"2019-08-23"]
["2019-08-26",53.03,57.21,null,null,"2019-08-26",54.5,57.5,null,null,"2019-08-26"]
["2019-08-27",54.66,58.66,null,null,"2019-08-27",56,59,null,null,"2019-08-27"]
["2019-08-28",56.17,60.17,null,null,"2019-08-28",59.5,60.5,null,null,"2019-08-28"]
["2019-08-29",56.3,60.3,null,null,"2019-08-29",57.75,60.75,null,null,"2019-08-29"]
["2019-08-30",57.54,62.04,null,null,"2019-08-30",60,63,null,null,"2019-08-30"]
["2019-09-02",53.31,58.41,null,null,"2019-09-02",59.5,63.5,null,null,"2019-09-02"]
["2019-09-03",53.49,58.49,null,null,"2019-09-03",57,61,null,null,"2019-09-03"]
["2019-09-04",53.06,58.06,null,null,"2019-09-04",54,59,null,null,"2019-09-04"]
["2019-09-05",54.21,58.21,null,null,"2019-09-05",54,59,null,null,"2019-09-05"]
["2019-09-06",54.02,58.02,null,null,"2019-09-06",55,59,null,null,"2019-09-06"]
["2019-09-09",54.15,58.15,null,null,"2019-09-09",55,59,null,null,"2019-09-09"]
["2019-09-10",54.13,58.13,null,null,"2019-09-10",54.5,58.75,null,null,"2019-09-10"]
["2019-09-11",54.24,58.24,null,null,"2019-09-11",55,59,null,null,"2019-09-11"]
["2019-09-12",54.41,58.41,null,null,"2019-09-12",55,60,null,null,"2019-09-12"]
["2019-09-13",54.44,58.44,null,null,"2019-09-13",57.5,61.5,null,null,"2019-09-13"]
["2019-09-16",54.78,58.78,null,null,"2019-09-16",58.5,61.5,null,null,"2019-09-16"]
["2019-09-17",55.06,59.06,null,null,"2019-09-17",59,62,null,null,"2019-09-17"]
["2019-09-18",55.15,59.15,null,null,"2019-09-18",59.75,62.75,null,null,"2019-09-18"]
["2019-09-19",55.07,59.07,null,null,"2019-09-19",60,63,null,null,"2019-09-19"]
["2019-09-20",55.08,59.08,null,null,"2019-09-20",58.75,62.75,null,null,"2019-09-20"]
["2019-09-23",55.32,59.32,null,null,"2019-09-23",59.25,62.25,null,null,"2019-09-23"]
["2019-09-24",55.34,59.34,null,null,"2019-09-24",58.75,61.75,null,null,"2019-09-24"]
["2019-09-25",55.34,59.34,null,null,"2019-09-25",58.75,61.75,null,null,"2019-09-25"]
["2019-09-26",55.51,59.51,null,null,"2019-09-26",59,62,null,null,"2019-09-26"]
["2019-09-27",55.56,59.56,null,null,"2019-09-27",58.5,61.5,null,null,"2019-09-27"]
["2019-09-30",55.82,59.82,null,null,"2019-09-30",58.25,61.25,null,null,"2019-09-30"]
["2019-10-01",56.1,60.1,null,null,"2019-10-01",57.75,60.75,null,null,"2019-10-01"]
["2019-10-02",56.22,60.22,null,null,"2019-10-02",58.5,61.5,null,null,"2019-10-02"]
["2019-10-03",56.22,60.22,null,null,"2019-10-03",58,61,null,null,"2019-10-03"]
["2019-10-04",56.09,60.09,null,null,"2019-10-04",58.25,61.25,null,null,"2019-10-04"]
["2019-10-07",56.19,60.19,null,null,"2019-10-07",58.25,61.25,null,null,"2019-10-07"]
["2019-10-08",56.24,60.24,null,null,"2019-10-08",57.5,61.5,null,null,"2019-10-08"]
["2019-10-09",56.29,60.29,null,null,"2019-10-09",59.75,61.75,null,null,"2019-10-09"]
["2019-10-10",56.3,60.3,null,null,"2019-10-10",61,63,null,null,"2019-10-10"]
["2019-10-11",56.31,60.31,null,null,"2019-10-11",61.5,63.5,null,null,"2019-10-11"]
["2019-10-15",56.43,60.43,null,null,"2019-10-15",61.5,63.5,null,null,"2019-10-15"]
["2019-10-16",56.53,60.53,null,null,"2019-10-16",62.5,64.5,null,null,"2019-10-16"]
["2019-10-17",56.59,60.59,null,null,"2019-10-17",64.5,67.5,null,null,"2019-10-17"]
["2019-10-18",56.73,60.73,null,null,"2019-10-18",62.25,65.25,null,null,"2019-10-18"]
["2019-10-21",56.99,60.99,null,null,"2019-10-21",63.25,66.25,null,null,"2019-10-21"]
["2019-10-22",57.33,61.33,null,null,"2019-10-22",64.25,67.25,null,null,"2019-10-22"]
["2019-10-23",58.37,62.37,null,null,"2019-10-23",66.75,69.75,null,null,"2019-10-23"]
["2019-10-24",59.34,63.34,null,null,"2019-10-24",66.75,69.75,null,null,"2019-10-24"]
["2019-10-25",61,65,null,null,"2019-10-25",72.75,75.75,null,null,"2019-10-25"]
["2019-10-28",58.45,63.45,null,null,"2019-10-28",71,74,null,null,"2019-10-28"]
["2019-10-29",58.42,63.42,null,null,"2019-10-29",64,67,null,null,"2019-10-29"]
["2019-10-30",58.42,63.42,null,null,"2019-10-30",64,67,null,null,"2019-10-30"]
["2019-10-31",58.22,63.22,null,null,"2019-10-31",66,69,null,null,"2019-10-31"]
["2019-11-01",58.35,63.35,null,null,"2019-11-01",64.5,67.5,null,null,"2019-11-01"]
["2019-11-04",58.32,63.32,null,null,"2019-11-04",62.5,65.5,null,null,"2019-11-04"]
["2019-11-05",58.26,63.26,null,null,"2019-11-05",61.5,64.5,null,null,"2019-11-05"]
["2019-11-06",{"$f":"+B213","v":58.26},{"$f":"+C213","v":63.26},null,null,"2019-11-06",62,65,null,null,"2019-11-06"]
["2019-11-07",58.22,63.22,null,null,"2019-11-07",61,64,null,null,"2019-11-07"]
["2019-11-08",58.05,63.05,null,null,"2019-11-08",62.25,65.25,null,null,"2019-11-08"]
["2019-11-11",58.07,63.07,null,null,"2019-11-11",61.5,64.5,null,null,"2019-11-11"]
["2019-11-12",57.98,62.98,null,null,"2019-11-12",62.5,65.5,null,null,"2019-11-12"]
["2019-11-13",58,63,null,null,"2019-11-13",63.75,66.75,null,null,"2019-11-13"]
["2019-11-14",57.97,62.97,null,null,"2019-11-14",63.75,66.75,null,null,"2019-11-14"]
["2019-11-15",57.93,62.93,null,null,"2019-11-15",63.75,66.75,null,null,"2019-11-15"]
["2019-11-19",57.9,62.9,null,null,"2019-11-19",63.5,66.5,null,null,"2019-11-19"]
["2019-11-20",57.9,62.9,null,null,"2019-11-20",63.75,66.75,null,null,"2019-11-20"]
["2019-11-21",57.91,62.91,null,null,"2019-11-21",63.75,66.75,null,null,"2019-11-21"]
["2019-11-22",57.9,62.9,null,null,"2019-11-22",65.5,68.5,null,null,"2019-11-22"]
["2019-11-25",57.91,62.91,null,null,"2019-11-25",65,68,null,null,"2019-11-25"]
["2019-11-26",57.87,62.87,null,null,"2019-11-26",65.25,68.25,null,null,"2019-11-26"]
["2019-11-27",57.87,62.87,null,null,"2019-11-27",66.25,69.25,null,null,"2019-11-27"]
["2019-11-28",57.88,62.88,null,null,"2019-11-28",66.75,69.75,null,null,"2019-11-28"]
["2019-11-29",57.93,62.93,null,null,"2019-11-29",66.25,69.25,null,null,"2019-11-29"]
["2019-12-02",57.93,62.93,null,null,"2019-12-02",64.25,68.25,null,null,"2019-12-02"]
["2019-12-03",57.9,62.9,null,null,"2019-12-03",64.5,68.5,null,null,"2019-12-03"]
["2019-12-04",57.94,62.94,null,null,"2019-12-04",65,69,null,null,"2019-12-04"]
["2019-12-05",57.94,62.94,null,null,"2019-12-05",66,70,null,null,"2019-12-05"]
["2019-12-06",57.94,62.94,null,null,"2019-12-06",68,71,null,null,"2019-12-06"]
["2019-12-09",58.99,62.99,null,null,"2019-12-09",66,70,null,null,"2019-12-09"]
["2019-12-10",59,63,null,null,"2019-12-10",65.5,69.5,null,null,"2019-12-10"]
["2019-12-11",58.08,63.08,null,null,"2019-12-11",64.5,68.5,null,null,"2019-12-11"]
["2019-12-12",58.09,63.09,null,null,"2019-12-12",62.5,66.5,null,null,"2019-12-12"]
["2019-12-13",58.07,63.07,null,null,"2019-12-13",61.75,66.75,null,null,"2019-12-13"]
["2019-12-16",58.09,63.09,null,null,"2019-12-16",68.5,72.5,null,null,"2019-12-16"]
["2019-12-17",58.09,63.09,null,null,"2019-12-17",69,74,null,null,"2019-12-17"]
["2019-12-18",58.08,63.08,null,null,"2019-12-18",72,76,null,null,"2019-12-18"]
["2019-12-19",58.08,63.08,null,null,"2019-12-19",72.75,75.75,null,null,"2019-12-19"]
["2019-12-20",57.99,62.99,null,null,"2019-12-20",70,75,null,null,"2019-12-20"]
["2019-12-23",58,63,null,null,"2019-12-23",71.75,76.75,null,null,"2019-12-23"]
["2019-12-26",57.99,62.99,null,null,"2019-12-26",75,80,null,null,"2019-12-26"]
["2019-12-27",57.99,62.99,null,null,"2019-12-27",73.5,78.5,null,null,"2019-12-27"]
["2019-12-30",57.99,62.99,null,null,"2019-12-30",73.5,78.5,null,null,"2019-12-30"]
["2020-01-02",58,63,null,null,"2020-01-02",72,77,null,null,"2020-01-02"]
["2020-01-03",57.98,62.98,null,null,"2020-01-03",72,77,null,null,"2020-01-03"]
["2020-01-06",57.99,62.99,null,null,"2020-01-06",72.25,77.25,null,null,"2020-01-06"]
["2020-01-07",57.99,62.99,null,null,"2020-01-07",71.25,76.25,null,null,"2020-01-07"]
["2020-01-08",57.99,62.99,null,null,"2020-01-08",71.5,76.5,null,null,"2020-01-08"]
["2020-01-09",57.98,62.98,null,null,"2020-01-09",71.5,76.5,null,null,"2020-01-09"]
["2020-01-10",57.96,62.96,null,null,"2020-01-10",71.5,76.5,null,null,"2020-01-10"]
["2020-01-13",57.96,62.96,null,null,"2020-01-13",71.5,76.5,null,null,"2020-01-13"]
["2020-01-14",57.97,62.97,null,null,"2020-01-14",73.5,77.5,null,null,"2020-01-14"]
["2020-01-15",57.98,62.98,null,null,"2020-01-15",74,78,null,null,"2020-01-15"]
["2020-01-16",57.97,62.97,null,null,"2020-01-16",73.75,77.75,null,null,"2020-01-16"]
["2020-01-17",57.97,62.97,null,null,"2020-01-17",73.75,77.75,null,null,"2020-01-17"]
["2020-01-20",57.97,62.97,null,null,"2020-01-20",74,78,null,null,"2020-01-20"]
["2020-01-21",57.98,62.98,null,null,"2020-01-21",73.5,77.5,null,null,"2020-01-21"]
["2020-01-22",57.98,62.98,null,null,"2020-01-22",73.75,77.75,null,null,"2020-01-22"]
["2020-01-23",57.98,62.98,null,null,"2020-01-23",73.75,77.75,null,null,"2020-01-23"]
["2020-01-24",57.98,62.98,null,null,"2020-01-24",74.5,78.5,null,null,"2020-01-24"]
["2020-01-27",57.97,62.97,null,null,"2020-01-27",74,78,null,null,"2020-01-27"]
["2020-01-28",58.07,63.07,null,null,"2020-01-28",74.25,78.25,null,null,"2020-01-28"]
["2020-01-29",57.97,62.97,null,null,"2020-01-29",74.25,78.25,null,null,"2020-01-29"]
["2020-01-30",57.97,62.97,null,null,"2020-01-30",74,78,null,null,"2020-01-30"]
["2020-01-31",58.03,63.03,null,null,"2020-01-31",74,78,null,null,"2020-01-31"]
["2020-02-03",58.05,63.05,null,null,"2020-02-03",74,78,null,null,"2020-02-03"]
["2020-02-04",58.07,63.07,null,null,"2020-02-04",74,78,null,null,"2020-02-04"]
["2020-02-05",57.1,63.1,null,null,"2020-02-05",74,78,null,null,"2020-02-05"]
["2020-02-06",57.01,63.01,null,null,"2020-02-06",73.5,77.5,null,null,"2020-02-06"]
["2020-02-07",57.05,63.05,null,null,"2020-02-07",73.5,77.5,null,null,"2020-02-07"]
["2020-02-10",57.31,63.31,null,null,"2020-02-10",73,77,null,null,"2020-02-10"]
["2020-02-11",57.46,63.46,null,null,"2020-02-11",73.5,77.5,null,null,"2020-02-11"]
["2020-02-12",57.62,63.62,null,null,"2020-02-12",74.25,78.25,null,null,"2020-02-12"]
["2020-02-13",57.66,63.66,null,null,"2020-02-13",74.900000000000006,78.900000000000006,null,null,"2020-02-13"]
["2020-02-14",57.73,63.73,null,null,"2020-02-14",73.900000000000006,77.900000000000006,null,null,"2020-02-14"]
["2020-02-17",58.78,63.78,null,null,"2020-02-17",74,78,null,null,"2020-02-17"]
["2020-02-18",58.99,63.99,null,null,"2020-02-18",74.7,78.7,null,null,"2020-02-18"]
["2020-02-19",58.71,63.71,null,null,"2020-02-19",74.900000000000006,78.900000000000006,null,null,"2020-02-19"]
["2020-02-20",58.86,63.86,null,null,"2020-02-20",74.8,78.8,null,null,"2020-02-20"]
["2020-02-21",58.99,63.99,null,null,"2020-02-21",74.8,78.8,null,null,"2020-02-21"]
["2020-02-26",59.09,64.09,null,null,"2020-02-26",74.7,78.7,null,null,"2020-02-26"]
["2020-02-27",59.03,64.03,null,null,"2020-02-27",74.5,78.5,null,null,"2020-02-27"]
["2020-02-28",59.26,64.260000000000005,null,null,"2020-02-28",74.5,78.5,null,null,"2020-02-28"]
["2020-03-02",59.39,64.39,null,null,"2020-03-02",74.5,78.5,null,null,"2020-03-02"]
["2020-03-03",59.51,64.510000000000005,null,null,"2020-03-03",74.5,78.5,null,null,"2020-03-03"]
["2020-03-04",59.53,64.53,null,null,"2020-03-04",74.5,78.5,null,null,"2020-03-04"]
["2020-03-05",59.41,64.41,null,null,"2020-03-05",74.5,78.5,null,null,"2020-03-05"]
["2020-03-06",59.71,64.709999999999994,null,null,"2020-03-06",74.5,78.5,null,null,"2020-03-06"]
["2020-03-09",59.71,64.709999999999994,null,null,"2020-03-09",75.5,79.5,null,null,"2020-03-09"]
["2020-03-10",59.72,64.72,null,null,"2020-03-10",75.75,79.75,null,null,"2020-03-10"]
["2020-03-11",59.74,64.739999999999995,null,null,"2020-03-11",76,80,null,null,"2020-03-11"]
["2020-03-12",60.02,65.02,null,null,"2020-03-12",79,83,null,null,"2020-03-12"]
["2020-03-13",60.05,65.05,null,null,"2020-03-13",79.75,83.75,null,null,"2020-03-13"]
["2020-03-16",60.09,65.09,null,null,"2020-03-16",81,85,null,null,"2020-03-16"]
["2020-03-17",59.96,64.959999999999994,null,null,"2020-03-17",82.5,86.5,null,null,"2020-03-17"]
["2020-03-18",60.46,65.459999999999994,null,null,"2020-03-18",84.25,89.25,null,null,"2020-03-18"]
["2020-03-19",60.59,65.59,null,null,"2020-03-19",81.5,85.5,null,null,"2020-03-19"]
["2020-03-20",60.91,65.91,null,null,"2020-03-20",80.5,85.5,null,null,"2020-03-20",91.4,{"$f":"+L304/G304-1","v":0.13540372670807455}]
["2020-03-25",60.85,65.849999999999994,null,null,"2020-03-25",79.5,84.5,null,null,"2020-03-25",86.79,{"$f":"+L305/G305-1","v":9.1698113207547172E-2}]
["2020-03-26",61.13,66.13,null,null,"2020-03-26",79.5,84.5,null,null,"2020-03-26",83.2,4.6540880503144644E-2]
["2020-03-27",61.44,66.44,null,null,"2020-03-27",78.5,83.5,null,null,"2020-03-27",85.42,8.815286624203833E-2]
["2020-03-30",61.58,66.58,null,null,"2020-03-30",78.5,83.5,null,null,"2020-03-30",85.96,9.5031847133757896E-2]
["2020-04-01",61.61,66.61,null,null,"2020-04-01",79.5,83.5,null,null,"2020-04-01",87.88,0.10540880503144656]
["2020-04-02",61.51,66.510000000000005,null,null,"2020-04-02",78.5,83.5,null,null,"2020-04-02",87.78,0.1182165605095542]
["2020-04-03",61.85,66.849999999999994,null,null,"2020-04-03",78.5,83.5,null,null,"2020-04-03",88.42,0.12636942675159246]
["2020-04-06",61.98,66.98,null,null,"2020-04-06",80,85,null,null,"2020-04-06",89.57,0.11962499999999987]
["2020-04-07",62.09,67.09,null,null,"2020-04-07",80,85,null,null,"2020-04-07",90.44,0.13050000000000006]
["2020-04-08",62.07,67.069999999999993,null,null,"2020-04-08",80,85,null,null,"2020-04-08",94.27,0.17837499999999995]
["2020-04-13",62.43,67.430000000000007,null,null,"2020-04-13",84.25,89.25,null,null,"2020-04-13",101.09,0.19988130563798223]
["2020-04-14",62.53,67.53,null,null,"2020-04-14",85,90,null,null,"2020-04-14",106.26,0.25011764705882356]
["2020-04-15",62.6,67.599999999999994,null,null,"2020-04-15",90,96,null,null,"2020-04-15",108.32,0.20355555555555549]
["2020-04-16",62.87,67.87,null,null,"2020-04-16",95,100,null,null,"2020-04-16",103.37,8.8105263157894687E-2]
["2020-04-17",62.96,67.959999999999994,null,null,"2020-04-17",96,105,null,null,"2020-04-17",99.84,4.0000000000000036E-2]
["2020-04-20",62.96,67.959999999999994,null,null,"2020-04-20",96,105,null,null,"2020-04-20",104.23,8.5729166666666634E-2]
["2020-04-21",63.34,68.34,null,null,"2020-04-21",98,107,null,null,"2020-04-21",108.43,0.10642857142857154]
["2020-04-22",63.43,68.430000000000007,null,null,"2020-04-22",100,110,null,null,"2020-04-22",109.18,9.1800000000000104E-2]
["2020-04-23",63.44,68.44,null,null,"2020-04-23",110,120,null,null,"2020-04-23",110.05,4.5454545454548523E-4]
["2020-04-24",63.69,68.69,null,null,"2020-04-24",107,117,null,null,"2020-04-24",108.35,1.2616822429906582E-2]
["2020-04-27",63.89,68.89,null,null,"2020-04-27",108,118,null,null,"2020-04-27",112.92,4.5555555555555571E-2]
["2020-04-28",63.97,68.97,null,null,"2020-04-28",110,120,null,null,"2020-04-28",116.95,6.3181818181818228E-2]
["2020-04-29",64.069999999999993,69.069999999999993,null,null,"2020-04-29",111,121,null,null,"2020-04-29",108.87,-1.9189189189189104E-2]
["2020-04-30",64.16,69.16,null,null,"2020-04-30",108,118,null,null,"2020-04-30",112.31,3.9907407407407502E-2]
["2020-05-04",64.16,69.16,null,null,"2020-05-04",110,120,null,null,"2020-05-04",110.19,1.7272727272727995E-3]
["2020-05-05",64.31,69.31,null,null,"2020-05-05",110,120,null,null,"2020-05-05",117.08,6.4363636363636401E-2]
["2020-05-06",64.459999999999994,69.459999999999994,null,null,"2020-05-06",112,122,null,null,"2020-05-06",115.88,3.4642857142857197E-2]
["2020-05-07",64.540000000000006,69.540000000000006,null,null,"2020-05-07",112,122,null,null,"2020-05-07",115.77,3.3660714285714155E-2]
["2020-05-08",64.63,69.63,null,null,"2020-05-08",112,122,null,null,"2020-05-08",112.98,8.7500000000000355E-3]
["2020-05-11",64.63,69.63,null,null,"2020-05-11",114.5,124.5,null,null,"2020-05-11",115.98,1.2925764192139866E-2]
["2020-05-12",64.66,69.66,null,null,"2020-05-12",117,127,null,null,"2020-05-12",119.31,1.9743589743589807E-2]
["2020-05-13",64.84,69.84,null,null,"2020-05-13",123,133,null,null,"2020-05-13",122.77,-1.8699186991870675E-3]
["2020-05-14",65.05,70.05,null,null,"2020-05-14",128,138,null,null,"2020-05-14",119.36,-6.7500000000000004E-2]
["2020-05-15",65.06,70.06,null,null,"2020-05-15",128,138,null,null,"2020-05-15",117.95,-7.8515624999999978E-2]
["2020-05-18",65.260000000000005,70.260000000000005,null,null,"2020-05-18",118,128,null,null,"2020-05-18",115.54,-2.0847457627118593E-2]
["2020-05-19",65.319999999999993,70.319999999999993,null,null,"2020-05-19",114,124,null,null,"2020-05-19",114.22,1.9298245614034482E-3]
["2020-05-20",65.33,70.33,null,null,"2020-05-20",114,124,null,null,"2020-05-20",114.84,7.3684210526316907E-3]
["2020-05-21",65.38,70.38,null,null,"2020-05-21",115,125,null,null,"2020-05-21",114.37,-5.4782608695651547E-3]
["2020-05-22",65.58,70.58,null,null,"2020-05-22",116,126,null,null,"2020-05-22",109.53,-5.5775862068965454E-2]
["2020-05-26",65.61,70.61,null,null,"2020-05-26",119,129,null,null,"2020-05-26",106.32,-0.10655462184873954]
["2020-05-27",65.63,70.63,null,null,"2020-05-27",117,127,null,null,"2020-05-27",105.56,-9.7777777777777741E-2]
["2020-05-28",65.69,70.69,null,null,"2020-05-28",114,124,null,null,"2020-05-28",109.41,-4.026315789473689E-2]
["2020-05-29",65.760000000000005,70.760000000000005,null,null,"2020-05-29",115,125,null,null,"2020-05-29",107.71,-6.3391304347826138E-2]
["2020-06-01",65.72,70.72,null,null,"2020-06-01",118,128,null,null,"2020-06-01",108.77,-7.8220338983050919E-2]
["2020-06-02",66.010000000000005,71.010000000000005,null,null,"2020-06-02",114,124,null,null,"2020-06-02",106.39,-6.6754385964912233E-2]
["2020-06-03",65.92,70.92,null,null,"2020-06-03",113,123,null,null,"2020-06-03",107.91,-4.5044247787610625E-2]
["2020-06-04",66.150000000000006,71.150000000000006,null,null,"2020-06-04",113,123,null,null,"2020-06-04",108.27,-4.1858407079646054E-2]
["2020-06-05",66.48,71.48,null,null,"2020-06-05",115,125,null,null,"2020-06-05",109.86,-4.4695652173913025E-2]
["2020-06-08",66.88,71.88,null,null,"2020-06-08",115,125,null,null,"2020-06-08",110,-4.3478260869565188E-2]
["2020-06-09",67.040000000000006,72.040000000000006,null,null,"2020-06-09",114,124,null,null,"2020-06-09",108.73,-4.6228070175438507E-2]
["2020-06-10",67.19,72.19,null,null,"2020-06-10",114,124,null,null,"2020-06-10",108.07,-5.2017543859649185E-2]
["2020-06-11",67.34,72.34,null,null,"2020-06-11",113,123,null,null,"2020-06-11",107.49,-4.8761061946902662E-2]
["2020-06-12",67.5,72.5,null,null,"2020-06-12",116,126,null,null,"2020-06-12",106.59,-8.1120689655172384E-2]
["2020-06-16",67.680000000000007,72.680000000000007,null,null,"2020-06-16",115,125,null,null,"2020-06-16",105.31,-8.4260869565217389E-2]
["2020-06-17",67.86,72.86,null,null,"2020-06-17",114,124,null,null,"2020-06-17",104.96,-7.929824561403509E-2]
["2020-06-18",67.98,72.98,null,null,"2020-06-18",117,127,null,null,"2020-06-18",107.1,-8.4615384615384648E-2]
["2020-06-19",68.08,73.08,null,null,"2020-06-19",118,128,null,null,"2020-06-19",109.53,-7.1779661016949103E-2]
["2020-06-22",68.13,73.13,null,null,"2020-06-22",117,127,null,null,"2020-06-22",108.12,-7.5897435897435805E-2]
["2020-06-23",68.44,73.44,null,null,"2020-06-23",117,127,null,null,"2020-06-23",107.67,-7.9743589743589749E-2]
["2020-06-24",68.510000000000005,73.510000000000005,null,null,"2020-06-24",118,128,null,null,"2020-06-24",107.3,-9.0677966101694985E-2]
["2020-06-25",68.53,73.53,null,null,"2020-06-25",118,128,null,null,"2020-06-25",104.21,-0.11686440677966103]
["2020-06-26",68.56,73.56,null,null,"2020-06-26",119,129,null,null,"2020-06-26",102.47,-0.13890756302521012]
["2020-06-29",68.86,73.86,null,null,"2020-06-29",119,129,null,null,"2020-06-29",100.39,-0.15638655462184869]
["2020-06-30",69.069999999999993,74.069999999999993,null,null,"2020-06-30",116,126,null,null,"2020-06-30",100.53,-0.13336206896551728]
["2020-07-01",69.13,74.13,null,null,"2020-07-01",118,128,null,null,"2020-07-01",105.5,{"$f":"+L369/G369-1","v":-0.10593220338983056}]
["2020-07-02",69.180000000000007,74.180000000000007,null,null,"2020-07-02",119,129,null,null,"2020-07-02",107.24,-9.8823529411764754E-2]
["2020-07-03",69.319999999999993,74.319999999999993,null,null,"2020-07-03",117,127,null,null,"2020-07-03",105.79,-9.5811965811965716E-2]
["2020-07-06",69.61,74.61,null,null,"2020-07-06",117,127,null,null,"2020-07-06",106.7,-8.8034188034188054E-2]
["2020-07-07",69.64,74.64,null,null,"2020-07-07",117,127,null,null,"2020-07-07",108.58,-7.1965811965811977E-2]
["2020-07-08",69.709999999999994,74.709999999999994,null,null,"2020-07-08",117,127,null,null,"2020-07-08",108.98,-6.8547008547008459E-2]
["2020-07-10",{"$f":"+B374","v":69.709999999999994},{"$f":"+C374","v":74.709999999999994},null,null,"2020-07-10",117,127,null,null,"2020-07-10",108.98,-6.8547008547008459E-2]
["2020-07-13",69.989999999999995,74.989999999999995,null,null,"2020-07-13",117,127,null,null,"2020-07-13",109.73,-6.2136752136752071E-2]
["2020-07-14",70.09,75.09,null,null,"2020-07-14",117,127,null,null,"2020-07-14",110.97,-5.1538461538461533E-2]
["2020-07-15",70.209999999999994,75.209999999999994,null,null,"2020-07-15",117,127,null,null,"2020-07-15",112.02,-4.2564102564102591E-2]
["2020-07-16",70.209999999999994,75.209999999999994,null,null,"2020-07-16",120,130,null,null,"2020-07-16",112,-6.6666666666666652E-2]
["2020-07-17",70.25,75.25,null,null,"2020-07-17",125,130,null,null,"2020-07-17",115.39,-7.6879999999999948E-2]
["2020-07-20",70.56,75.56,null,null,"2020-07-20",125,130,null,null,"2020-07-20",117.57,-5.9440000000000048E-2]
["2020-07-21",70.64,75.64,null,null,"2020-07-21",127,132,null,null,"2020-07-21",116.07,-8.6062992125984339E-2]
["2020-07-22",70.66,75.66,null,null,"2020-07-22",128,133,null,null,"2020-07-22",114.45,-0.10585937499999998]
["2020-07-23",70.86,75.86,null,null,"2020-07-23",131,136,null,null,"2020-07-23",111.78,-0.14671755725190838]
["2020-07-24",70.92,75.92,null,null,"2020-07-24",134,139,null,null,"2020-07-24",114.57,-0.14500000000000002]
["2020-07-27",71,76,null,null,"2020-07-27",131,136,null,null,"2020-07-27",115.67,-0.11702290076335875]
["2020-07-28",71.099999999999994,76.099999999999994,null,null,"2020-07-28",130,135,null,null,"2020-07-28",115.89,-0.10853846153846158]
["2020-07-29",71.08,76.08,null,null,"2020-07-29",130,135,null,null,"2020-07-29",116.72,-0.10215384615384615]
["2020-07-30",71.27,76.27,null,null,"2020-07-30",131,136,null,null,"2020-07-30",119.54,-8.7480916030534317E-2]
["2020-07-31",71.39,76.39,null,null,"2020-07-31",131,136,null,null,"2020-07-31",122.21,-6.7099236641221416E-2]
["2020-08-03",71.64,76.64,null,null,"2020-08-03",131,136,null,null,"2020-08-03",122,-6.8702290076335881E-2]
["2020-08-04",71.69,76.69,null,null,"2020-08-04",123,128,null,null,"2020-08-04",116.28,-5.4634146341463352E-2]
["2020-08-05",71.89,76.89,null,null,"2020-08-05",124,129,null,null,"2020-08-05",117.17,-5.5080645161290298E-2]
["2020-08-06",71.89,76.89,null,null,"2020-08-06",125,130,null,null,"2020-08-06",121.68,-2.6559999999999917E-2]
["2020-08-07",71.91,76.91,null,null,"2020-08-07",127,132,null,null,"2020-08-07",124.65,-1.8503937007874005E-2]
["2020-08-10",72.13,77.13,null,null,"2020-08-10",126,131,null,null,"2020-08-10",125.84,-1.2698412698411987E-3]
["2020-08-11",72.17,77.17,null,null,"2020-08-11",126,131,null,null,"2020-08-11",124.53,-1.1666666666666603E-2]
["2020-08-12",72.319999999999993,77.319999999999993,null,null,"2020-08-12",127,132,null,null,"2020-08-12",125.73,-1.0000000000000009E-2]
["2020-08-13",72.42,77.42,null,null,"2020-08-13",128,133,null,null,"2020-08-13",125.3,-2.1093750000000022E-2]
["2020-08-14",72.39,77.39,null,null,"2020-08-14",127,132,null,null,"2020-08-14",124.22,-2.188976377952756E-2]
["2020-08-17",{"$f":"+B400","v":72.39},{"$f":"+C400","v":77.39},null,null,"2020-08-17",127,132,null,null,"2020-08-17",124.22,-2.188976377952756E-2]
["2020-08-18",72.540000000000006,77.540000000000006,null,null,"2020-08-18",127,132,null,null,"2020-08-18",125.69,-1.0314960629921321E-2]
["2020-08-19",72.7,77.7,null,null,"2020-08-19",129,134,null,null,"2020-08-19",127.61,-1.07751937984496E-2]
["2020-08-20",72.77,77.77,null,null,"2020-08-20",131,136,null,null,"2020-08-20",129.41999999999999,-1.2061068702290179E-2]
["2020-08-21",72.8,77.8,null,null,"2020-08-21",134,138,null,null,"2020-08-21",129.52000000000001,-3.3432835820895401E-2]
["2020-08-24",72.92,77.92,null,null,"2020-08-24",133,137,null,null,"2020-08-24",130.33000000000001,-2.007518796992469E-2]
["2020-08-25",72.94,77.94,null,null,"2020-08-25",133,137,null,null,"2020-08-25",127.69,-3.9924812030075252E-2]
["2020-08-26",72.95,77.95,null,null,"2020-08-26",133,137,null,null,"2020-08-26",125.16,-5.8947368421052637E-2]
["2020-08-27",73.13,78.13,null,null,"2020-08-27",134,138,null,null,"2020-08-27",122.29,-8.7388059701492438E-2]
["2020-08-28",73.180000000000007,78.180000000000007,null,null,"2020-08-28",132,136,null,null,"2020-08-28",121.73,-7.7803030303030263E-2]
["2020-08-31",73.36,78.36,null,null,"2020-08-31",131,135,null,null,"2020-08-31",121.57,-7.1984732824427522E-2]
["2020-09-01",73.5,78.5,null,null,"2020-09-01",129,133,null,null,"2020-09-01",117.64,-8.8062015503875934E-2]
["2020-09-02",73.63,78.63,null,null,"2020-09-02",129,133,null,null,"2020-09-02",119.72,-7.1937984496123986E-2]
["2020-09-03",73.63,78.63,null,null,"2020-09-03",130,134,null,null,"2020-09-03",119.51,-8.0692307692307619E-2]
["2020-09-04",73.64,78.64,null,null,"2020-09-04",128,132,null,null,"2020-09-04",120,-6.25E-2]
["2020-09-07",73.94,78.94,null,null,"2020-09-07",127,131,null,null,"2020-09-07",117.84,-7.2125984251968478E-2]
["2020-09-08",74.03,79.03,null,null,"2020-09-08",127,131,null,null,"2020-09-08",116.41,-8.3385826771653515E-2]
["2020-09-09",74.05,79.05,null,null,"2020-09-09",127,131,null,null,"2020-09-09",119.67,-5.771653543307087E-2]
["2020-09-10",74.069999999999993,79.069999999999993,null,null,"2020-09-10",127,131,null,null,"2020-09-10",123.41,-2.8267716535433141E-2]
["2020-09-11",74.16,79.16,null,null,"2020-09-11",127,131,null,null,"2020-09-11",125.17,-1.4409448818897608E-2]
["2020-09-14",74.239999999999995,79.239999999999995,null,null,"2020-09-14",128,132,null,null,"2020-09-14",123.21,-3.7421875000000049E-2]
["2020-09-15",74.36,79.36,null,null,"2020-09-15",127,131,null,null,"2020-09-15",122.06,-3.8897637795275553E-2]
["2020-09-16",74.55,79.55,null,null,"2020-09-16",135,145,null,null,"2020-09-16",127.61,-5.4740740740740756E-2]
["2020-09-17",74.59,79.59,null,null,"2020-09-17",135,141,null,null,"2020-09-17",126.33,-6.4222222222222181E-2]
["2020-09-18",74.59,79.59,null,null,"2020-09-18",134,140,null,null,"2020-09-18",129.72,-3.1940298507462717E-2]
["2020-09-21",74.709999999999994,79.709999999999994,null,null,"2020-09-21",135,141,null,null,"2020-09-21",130.97999999999999,-2.9777777777777903E-2]
["2020-09-22",74.86,79.86,null,null,"2020-09-22",138,144,null,null,"2020-09-22",134.38999999999999,-2.6159420289855184E-2]
["2020-09-23",74.89,79.89,null,null,"2020-09-23",139,145,null,null,"2020-09-23",134.69,-3.1007194244604297E-2]
["2020-09-24",74.989999999999995,79.989999999999995,null,null,"2020-09-24",141,147,null,null,"2020-09-24",130.87,-7.1843971631205594E-2]
["2020-09-25",75.05,80.05,null,null,"2020-09-25",139,145,null,null,"2020-09-25",135.29,-2.669064748201444E-2]
["2020-09-28",75.150000000000006,80.150000000000006,null,null,"2020-09-28",139,145,null,null,"2020-09-28",137.31,-1.2158273381294937E-2]
["2020-09-29",75.239999999999995,80.239999999999995,null,null,"2020-09-29",140,146,null,null,"2020-09-29",138.80000000000001,-8.5714285714284522E-3]
["2020-09-30",75.62,80.62,null,null,"2020-09-30",140,146,null,null,"2020-09-30",138.79,{"$f":"+L433/G433-1","v":-8.6428571428571743E-3}]
["2020-10-01",75.8,80.8,null,null,"2020-10-01",141,147,null,null,"2020-10-01",139.04,-1.3900709219858198E-2]
["2020-10-02",76.44,82.44,null,null,"2020-10-02",144,150,null,null,"2020-10-02",138.15,-4.0624999999999911E-2]
["2020-10-05",76.64,82.64,null,null,"2020-10-05",144,150,null,null,"2020-10-05",140.79,-2.229166666666671E-2]
["2020-10-06",76.72,82.72,null,null,"2020-10-06",146,152,null,null,"2020-10-06",140.16,-4.0000000000000036E-2]
["2020-10-07",76.72,82.72,null,null,"2020-10-07",149,155,null,null,"2020-10-07",138.97,-6.7315436241610738E-2]
["2020-10-08",76.790000000000006,82.79,null,null,"2020-10-08",152,158,null,null,"2020-10-08",140.94,-7.2763157894736863E-2]
["2020-10-09",76.739999999999995,82.74,null,null,"2020-10-09",161,167,null,null,"2020-10-09",143.41999999999999,-0.10919254658385102]
["2020-10-13",76.92,82.92,null,null,"2020-10-13",160,166,null,null,"2020-10-13",144.94999999999999,-9.4062500000000049E-2]
["2020-10-14",76.95,82.95,null,null,"2020-10-14",161,167,null,null,"2020-10-14",150.28,-6.6583850931676958E-2]
["2020-10-15",76.989999999999995,82.99,null,null,"2020-10-15",165,171,null,null,"2020-10-15",154.97,-6.0787878787878835E-2]
["2020-10-16",77.2,83.2,null,null,"2020-10-16",172,178,null,null,"2020-10-16",152.07,-0.11587209302325585]
["2020-10-19",77.209999999999994,83.21,null,null,"2020-10-19",175,181,null,null,"2020-10-19",153.4,-0.12342857142857144]
["2020-10-20",77.27,83.27,null,null,"2020-10-20",174,180,null,null,"2020-10-20",160.91999999999999,-7.5172413793103465E-2]
["2020-10-21",77.319999999999993,83.32,null,null,"2020-10-21",177,183,null,null,"2020-10-21",162.66,-8.1016949152542428E-2]
["2020-10-22",77.78,83.78,null,null,"2020-10-22",184,190,null,null,"2020-10-22",163.09,-0.11364130434782604]
["2020-10-23",77.849999999999994,83.85,null,null,"2020-10-23",189,195,null,null,"2020-10-23",155.16999999999999,-0.17899470899470904]
["2020-10-26",77.900000000000006,83.9,null,null,"2020-10-26",184,190,null,null,"2020-10-26",157.21,-0.14559782608695648]
["2020-10-27",77.89,83.89,null,null,"2020-10-27",175,181,null,null,"2020-10-27",152.97999999999999,-0.12582857142857151]
["2020-10-28",77.900000000000006,83.9,null,null,"2020-10-28",172,178,null,null,"2020-10-28",144.85,-0.15784883720930232]
["2020-10-29",77.900000000000006,83.9,null,null,"2020-10-29",169,175,null,null,"2020-10-29",144.04,-0.14769230769230779]
["2020-10-30",77.89,83.89,null,null,"2020-10-30",163,169,null,null,"2020-10-30",143.22999999999999,-0.12128834355828222]
["2020-11-02",78.41,84.41,null,null,"2020-11-02",162,168,null,null,"2020-11-02",139.22999999999999,-0.14055555555555566]
["2020-11-03",78.52,84.52,null,null,"2020-11-03",159,165,null,null,"2020-11-03",140.18,-0.11836477987421379]
["2020-11-04",78.62,84.62,null,null,"2020-11-04",155,161,null,null,"2020-11-04",139.75,-9.838709677419355E-2]
["2020-11-05",78.63,84.63,null,null,"2020-11-05",151,157,null,null,"2020-11-05",141.88,-6.0397350993377508E-2]
["2020-11-06",{"$f":"+B458","v":78.63},{"$f":"+C458","v":84.63},null,null,"2020-11-06",151,157,null,null,"2020-11-06",141.58000000000001,-6.238410596026478E-2]
["2020-11-09",78.95,84.95,null,null,"2020-11-09",145,151,null,null,"2020-11-09",141.97999999999999,-2.082758620689662E-2]
["2020-11-10",79.03,85.03,null,null,"2020-11-10",143,149,null,null,"2020-11-10",141.43,-1.0979020979020926E-2]
["2020-11-11",79.040000000000006,85.04,null,null,"2020-11-11",156,162,null,null,"2020-11-11",145.54,-6.705128205128208E-2]
["2020-11-12",79.14,85.14,null,null,"2020-11-12",161,167,null,null,"2020-11-12",141.5,-0.1211180124223602]
["2020-11-13",79.27,85.27,null,null,"2020-11-13",166,172,null,null,"2020-11-13",141.22999999999999,-0.14921686746987961]
["2020-11-16",79.599999999999994,85.6,null,null,"2020-11-16",156,162,null,null,"2020-11-16",142.82,-8.4487179487179542E-2]
["2020-11-17",79.599999999999994,85.6,null,null,"2020-11-17",157,163,null,null,"2020-11-17",144.1,-8.2165605095541383E-2]
["2020-11-18",79.569999999999993,85.57,null,null,"2020-11-18",158,164,null,null,"2020-11-18",145.94999999999999,-7.62658227848102E-2]
["2020-11-19",79.739999999999995,85.74,null,null,"2020-11-19",157,163,null,null,"2020-11-19",146.53,-6.6687898089171971E-2]
["2020-11-20",79.91,85.91,null,null,"2020-11-20",155,161,null,null,"2020-11-20",147.16999999999999,-5.0516129032258106E-2]
["2020-11-24",80.13,86.13,null,null,"2020-11-24",154,160,null,null,"2020-11-24",147.88,-3.9740259740259742E-2]
["2020-11-25",80.19,86.19,null,null,"2020-11-25",152,158,null,null,"2020-11-25",146.68,-3.499999999999992E-2]
["2020-11-26",80.53,86.53,null,null,"2020-11-26",151,157,null,null,"2020-11-26",146.59,-2.9205298013245007E-2]
["2020-11-27",80.61,86.61,null,null,"2020-11-27",150,156,null,null,"2020-11-27",145.44999999999999,-3.0333333333333434E-2]
["2020-11-30",80.72,86.72,null,null,"2020-11-30",149,155,null,null,"2020-11-30",144.55000000000001,-2.9865771812080499E-2]
["2020-12-01",80.95,86.95,null,null,"2020-12-01",147,153,null,null,"2020-12-01",144.69999999999999,-1.56462585034014E-2]
["2020-12-02",81,87,null,null,"2020-12-02",147,153,null,null,"2020-12-02",144.36000000000001,-1.795918367346927E-2]
["2020-12-03",81.14,87.14,null,null,"2020-12-03",145,151,null,null,"2020-12-03",139.74,-3.6275862068965492E-2]
["2020-12-04",81.17,87.17,null,null,"2020-12-04",144,150,null,null,"2020-12-04",142.05000000000001,-1.3541666666666563E-2]
["2020-12-09",81.38,87.38,null,null,"2020-12-09",143,149,null,null,"2020-12-09",139.49,-2.4545454545454537E-2]
["2020-12-10",81.84,87.84,null,null,"2020-12-10",140,146,null,null,"2020-12-10",138.22,-1.2714285714285678E-2]
["2020-12-11",81.849999999999994,87.85,null,null,"2020-12-11",142,148,null,null,"2020-12-11",138.22,-2.6619718309859208E-2]
["2020-12-14",81.96,87.96,null,null,"2020-12-14",145,151,null,null,"2020-12-14",140.29,-3.2482758620689722E-2]
["2020-12-15",82.12,88.12,null,null,"2020-12-15",145,151,null,null,"2020-12-15",141.82,-2.1931034482758682E-2]
["2020-12-16",82.13,88.13,null,null,"2020-12-16",144,150,null,null,"2020-12-16",141.26,-1.9027777777777866E-2]
["2020-12-17",82.18,88.18,null,null,"2020-12-17",143,149,null,null,"2020-12-17",140.79,-1.5454545454545499E-2]
["2020-12-18",82.26,88.26,null,null,"2020-12-18",144,150,null,null,"2020-12-18",140.72999999999999,-2.2708333333333441E-2]
["2020-12-21",82.76,88.76,null,null,"2020-12-21",144,150,null,null,"2020-12-21",138.81,-3.6041666666666639E-2]
["2020-12-22",82.8,88.8,null,null,"2020-12-22",146,152,null,null,"2020-12-22",140.04,-4.0821917808219199E-2]
["2020-12-23",82.92,88.92,null,null,"2020-12-23",153,159,null,null,"2020-12-23",140.35,-8.2679738562091543E-2]
["2020-12-28",83.24,89.24,null,null,"2020-12-28",158,164,null,null,"2020-12-28",140,-0.11392405063291144]
["2020-12-29",83.7,89.7,null,null,"2020-12-29",159,165,null,null,"2020-12-29",140.04,-0.11924528301886794]
["2020-12-30",83.87,89.87,null,null,"2020-12-30",160,166,null,null,"2020-12-30",139.99,-0.12506249999999997]
["2021-01-04",84.22,90.22,null,null,"2021-01-04",159,165,null,null,"2021-01-04",142.32,-0.10490566037735849]
["2021-01-05",84.55,90.55,null,null,"2021-01-05",154,160,null,null,"2021-01-05",143.55000000000001,-6.7857142857142838E-2]
["2021-01-06",84.55,90.55,null,null,"2021-01-06",154,160,null,null,"2021-01-06",144.38999999999999,-6.2402597402597459E-2]
["2021-01-07",84.68,90.68,null,null,"2021-01-07",156,162,null,null,"2021-01-07",145.84,-6.5128205128205052E-2]
["2021-01-08",84.79,90.79,null,null,"2021-01-08",155,161,null,null,"2021-01-08",145.06,{"$f":"+L497/G497-1","v":-6.4129032258064544E-2}]
["2021-01-11",84.99,90.99,null,null,"2021-01-11",153,159,null,null,"2021-01-11",145.80000000000001,-4.7058823529411709E-2]
["2021-01-12",85.07,91.07,null,null,"2021-01-12",153,159,null,null,"2021-01-12",144.97999999999999,-5.2418300653594874E-2]
["2021-01-13",85.03,91.03,null,null,"2021-01-13",154,160,null,null,"2021-01-13",144.72,-6.0259740259740235E-2]
["2021-01-14",85.19,91.19,null,null,"2021-01-14",153,159,null,null,"2021-01-14",145.41999999999999,-4.9542483660130809E-2]
["2021-01-15",85.14,91.14,null,null,"2021-01-15",153,159,null,null,"2021-01-15",145.38999999999999,-4.9738562091503402E-2]
["2021-01-18",85.31,91.31,null,null,"2021-01-18",{"$f":"+G502","v":153},{"$f":"+H502","v":159},null,null,"2021-01-18",145.36000000000001,-4.9934640522875773E-2]
["2021-01-19",85.77,91.77,null,null,"2021-01-19",152,157,null,null,"2021-01-19",145.47999999999999,-4.2894736842105319E-2]
["2021-01-20",85.76,91.76,null,null,"2021-01-20",151,156,null,null,"2021-01-20",145.72,-3.496688741721854E-2]
["2021-01-21",85.91,91.91,null,null,"2021-01-21",151,156,null,null,"2021-01-21",145.96,-3.3377483443708611E-2]
["2021-01-22",86,92,null,null,"2021-01-22",151,156,null,null,"2021-01-22",145.88,-3.3907284768211921E-2]
["2021-01-25",86.35,92.35,null,null,"2021-01-25",151,156,null,null,"2021-01-25",146.38,-3.0596026490066208E-2]
["2021-01-26",86.4,92.4,null,null,"2021-01-26",151,156,null,null,"2021-01-26",146.88999999999999,-2.7218543046357735E-2]
["2021-01-27",86.44,92.44,null,null,"2021-01-27",149,154,null,null,"2021-01-27",147.38,-1.0872483221476492E-2]
["2021-01-28",86.58,92.58,null,null,"2021-01-28",149,154,null,null,"2021-01-28",147.9,-7.382550335570448E-3]
["2021-01-29",86.7,92.7,null,null,"2021-01-29",148,153,null,null,"2021-01-29",147.88,-8.1081081081080253E-4]
["2021-02-01",86.99,92.99,null,null,"2021-02-01",148,153,null,null,"2021-02-01",148.33000000000001,2.2297297297297902E-3]
["2021-02-02",87.06,93.06,null,null,"2021-02-02",148,153,null,null,"2021-02-02",148.83000000000001,5.6081081081083006E-3]
["2021-02-03",86.96,92.96,null,null,"2021-02-03",148,153,null,null,"2021-02-03",149.34,9.0540540540540171E-3]
["2021-02-04",87.19,93.19,null,null,"2021-02-04",145,150,null,null,"2021-02-04",149.84,3.3379310344827662E-2]
["2021-02-05",87.32,93.32,null,null,"2021-02-05",146,151,null,null,"2021-02-05",149.6,2.4657534246575352E-2]
["2021-02-08",87.57,93.57,null,null,"2021-02-08",146,151,null,null,"2021-02-08",149.6,2.4657534246575352E-2]
["2021-02-09",87.58,93.58,null,null,"2021-02-09",147,152,null,null,"2021-02-09",150,2.0408163265306145E-2]
["2021-02-10",87.73,93.73,null,null,"2021-02-10",146,151,null,null,"2021-02-10",149.75,2.5684931506849251E-2]
["2021-02-11",87.87,93.87,null,null,"2021-02-11",144,149,null,null,"2021-02-11",148.34,3.0138888888888937E-2]
["2021-02-12",87.95,93.95,null,null,"2021-02-12",145,150,null,null,"2021-02-12",147.65,1.8275862068965587E-2]
["2021-02-17",88.23,94.23,null,null,"2021-02-17",144,149,null,null,"2021-02-17",143.47,-3.6805555555555758E-3]
["2021-02-18",88.29,94.29,null,null,"2021-02-18",148,148,null,null,"2021-02-18",141.77000000000001,-4.2094594594594525E-2]
["2021-02-19",88.4,94.4,null,null,"2021-02-19",142,147,null,null,"2021-02-19",140.65,-9.5070422535210586E-3]
["2021-02-22",88.77,94.77,null,null,"2021-02-22",142,147,null,null,"2021-02-22",138.79,-2.2605633802816993E-2]
["2021-02-23",88.83,94.83,null,null,"2021-02-23",141,146,null,null,"2021-02-23",139.86000000000001,-8.0851063829786574E-3]
["2021-02-24",89.02,95.02,null,null,"2021-02-24",140,145,null,null,"2021-02-24",140.94,6.7142857142856727E-3]
["2021-02-25",89.08,95.08,null,null,"2021-02-25",138,143,null,null,"2021-02-25",141.91999999999999,2.8405797101449082E-2]
["2021-02-26",89.12,95.12,null,null,"2021-02-26",141,146,null,null,"2021-02-26",141.91999999999999,6.5248226950354038E-3]
["2021-03-01",89.49,95.49,null,null,"2021-03-01",142,147,null,null,"2021-03-01",143.80000000000001,1.2676056338028152E-2]
["2021-03-02",89.67,95.67,null,null,"2021-03-02",140,145,null,null,"2021-03-02",146.13,4.3785714285714317E-2]
["2021-03-03",89.73,95.73,null,null,"2021-03-03",140,145,null,null,"2021-03-03",146.11000000000001,4.3642857142857316E-2]
["2021-03-04",89.75,95.75,null,null,"2021-03-04",139,144,null,null,"2021-03-04",145.11000000000001,4.39568345323742E-2]
["2021-03-05",89.69,95.69,null,null,"2021-03-05",139,144,null,null,"2021-03-05",145.87,4.9424460431654715E-2]
["2021-03-08",90,96,null,null,"2021-03-08",139,144,null,null,"2021-03-08",145.87,4.9424460431654715E-2]
["2021-03-09",90.07,96.07,null,null,"2021-03-09",139,144,null,null,"2021-03-09",145.38999999999999,4.5971223021582741E-2]
["2021-03-10",90.31,96.31,null,null,"2021-03-10",138,143,null,null,"2021-03-10",144.43,4.6594202898550874E-2]
["2021-03-11",90.45,96.45,null,null,"2021-03-11",135,140,null,null,"2021-03-11",144.30000000000001,6.8888888888888999E-2]
["2021-03-12",90.49,96.49,null,null,"2021-03-12",137,142,null,null,"2021-03-12",144.84,5.7226277372262713E-2]
["2021-03-15",90.69,96.69,null,null,"2021-03-15",141,146,null,null,"2021-03-15",144.59,2.546099290780135E-2]
["2021-03-16",90.69,96.69,null,null,"2021-03-16",139,144,null,null,"2021-03-16",144.6,4.0287769784172589E-2]
["2021-03-17",90.76,96.76,null,null,"2021-03-17",139,144,null,null,"2021-03-17",145.28,4.5179856115107997E-2]
["2021-03-18",90.83,96.83,null,null,"2021-03-18",139,144,null,null,"2021-03-18",144.71,4.1079136690647555E-2]
["2021-03-19",90.98,96.98,null,null,"2021-03-19",139,144,null,null,"2021-03-19",144,3.5971223021582732E-2]
["2021-03-22",91.1,97.1,null,null,"2021-03-22",138,143,null,null,"2021-03-22",143.15,3.7318840579710244E-2]
["2021-03-23",91.33,97.33,null,null,"2021-03-23",138,143,null,null,"2021-03-23",142.78,3.4637681159420231E-2]
["2021-03-25",91.45,97.45,null,null,"2021-03-25",138,143,null,null,"2021-03-25",141.19,2.3115942028985481E-2]
["2021-03-26",91.57,97.57,null,null,"2021-03-26",137,142,null,null,"2021-03-26",138.44999999999999,1.0583941605839309E-2]
["2021-03-29",91.61,97.61,null,null,"2021-03-29",137,142,null,null,"2021-03-29",138.47999999999999,1.0802919708029046E-2]
["2021-03-30",91.61,97.61,null,null,"2021-03-30",136,141,null,null,"2021-03-30",140.38999999999999,3.2279411764705834E-2]
["2021-03-31",91.69,97.69,null,null,"2021-03-31",136,141,null,null,"2021-03-31",142.19,4.5514705882352846E-2]
["2021-04-05",92.1,98.1,null,null,"2021-04-05",135,140,null,null,"2021-04-05",141.81,5.0444444444444514E-2]
["2021-04-06",92.1,98.1,null,null,"2021-04-06",135,140,null,null,"2021-04-06",143.66,6.4148148148148065E-2]
["2021-04-07",92.19,98.19,null,null,"2021-04-07",134,139,null,null,"2021-04-07",143.77000000000001,7.2910447761194153E-2]
["2021-04-08",92.2,98.2,null,null,"2021-04-08",135,140,null,null,"2021-04-08",144.66,7.1555555555555594E-2]
["2021-04-09",92.21,98.21,null,null,"2021-04-09",135,140,null,null,"2021-04-09",144.38,6.9481481481481477E-2]
["2021-04-12",92.31,98.31,null,null,"2021-04-12",137,142,null,null,"2021-04-12",143.26,4.569343065693432E-2]
["2021-04-13",92.33,98.33,null,null,"2021-04-13",137,142,null,null,"2021-04-13",142.79,4.2262773722627767E-2]
["2021-04-14",92.32,98.32,null,null,"2021-04-14",138,143,null,null,"2021-04-14",143.80000000000001,4.202898550724643E-2]
["2021-04-15",92.47,98.47,null,null,"2021-04-15",138,143,null,null,"2021-04-15",143.65,{"$f":"+L561/G561-1","v":4.0942028985507362E-2}]
["2021-04-16",92.52,98.52,null,null,"2021-04-16",137,142,null,null,"2021-04-16",143.71,4.8978102189781048E-2]
["2021-04-19",92.59,98.59,null,null,"2021-04-19",138,143,null,null,"2021-04-19",144.37,4.6159420289855202E-2]
["2021-04-20",92.59,98.59,null,null,"2021-04-20",138,143,null,null,"2021-04-20",145.94,5.7536231884057987E-2]
["2021-04-21",92.61,98.61,null,null,"2021-04-21",139,144,null,null,"2021-04-21",145.44,4.6330935251798655E-2]
["2021-04-22",92.64,98.64,null,null,"2021-04-22",142,147,null,null,"2021-04-22",145.5,2.464788732394374E-2]
["2021-04-23",92.78,98.78,null,null,"2021-04-23",147,152,null,null,"2021-04-23",148.36000000000001,9.2517006802721458E-3]
["2021-04-26",92.88,98.88,null,null,"2021-04-26",153,158,null,null,"2021-04-26",150.27000000000001,-1.7843137254901942E-2]
["2021-04-27",92.89,98.89,null,null,"2021-04-27",156,161,null,null,"2021-04-27",151.49,-2.8910256410256352E-2]
["2021-04-28",92.91,98.91,null,null,"2021-04-28",157,162,null,null,"2021-04-28",151.80000000000001,-3.3121019108280136E-2]
["2021-04-29",92.97,98.97,null,null,"2021-04-29",149,154,null,null,"2021-04-29",152.19999999999999,2.147651006711393E-2]
["2021-04-30",92.9,98.9,null,null,"2021-04-30",145,150,null,null,"2021-04-30",152.19,4.9586206896551799E-2]
["2021-05-03",93.21,99.21,null,null,"2021-05-03",148,153,null,null,"2021-05-03",152.96,3.3513513513513615E-2]
["2021-05-04",93.3,99.3,null,null,"2021-05-04",149,154,null,null,"2021-05-04",153.33000000000001,2.906040268456378E-2]
["2021-05-05",93.33,99.33,null,null,"2021-05-05",146,151,null,null,"2021-05-05",153.82,5.3561643835616346E-2]
["2021-05-06",93.34,99.34,null,null,"2021-05-06",145,151,null,null,"2021-05-06",154.30000000000001,6.4137931034482731E-2]
["2021-05-07",93.43,99.43,null,null,"2021-05-07",145,151,null,null,"2021-05-07",154.4,6.4827586206896548E-2]
["2021-05-10",93.5,99.5,null,null,"2021-05-10",147,152,null,null,"2021-05-10",153.94999999999999,4.7278911564625714E-2]
["2021-05-11",93.5,99.5,null,null,"2021-05-11",146,151,null,null,"2021-05-11",153.16,4.9041095890410835E-2]
["2021-05-12",93.51,99.51,null,null,"2021-05-12",147,152,null,null,"2021-05-12",153.21,4.2244897959183625E-2]
["2021-05-13",93.51,99.51,null,null,"2021-05-13",146,151,null,null,"2021-05-13",153.71,5.2808219178082316E-2]
["2021-05-14",93.51,99.51,null,null,"2021-05-14",148,153,null,null,"2021-05-14",154.16999999999999,4.1689189189189069E-2]
["2021-05-17",93.64,99.64,null,null,"2021-05-17",148,153,null,null,"2021-05-17",154.65,4.4932432432432501E-2]
["2021-05-18",93.64,99.64,null,null,"2021-05-18",151,156,null,null,"2021-05-18",154.65,2.4172185430463511E-2]
["2021-05-19",93.7,99.7,null,null,"2021-05-19",150,156,null,null,"2021-05-19",156.49,4.3266666666666787E-2]
["2021-05-20",93.71,99.71,null,null,"2021-05-20",149,155,null,null,"2021-05-20",157.22,5.5167785234899291E-2]
["2021-05-21",93.71,99.71,null,null,"2021-05-21",148,153,null,null,"2021-05-21",158.37,7.006756756756749E-2]
["2021-05-24",{"$f":"+B587","v":93.71},{"$f":"+C587","v":99.71},null,null,"2021-05-24",148,153,null,null,"2021-05-24",158.37,7.006756756756749E-2]
["2021-05-26",93.96,99.96,null,null,"2021-05-26",150,155,null,null,"2021-05-26",158.05000000000001,5.3666666666666751E-2]
["2021-05-27",94.02,100.02,null,null,"2021-05-27",152,157,null,null,"2021-05-27",158.72,4.4210526315789478E-2]
["2021-05-28",94.04,100.04,null,null,"2021-05-28",152,157,null,null,"2021-05-28",159.49,4.9276315789473779E-2]
["2021-05-31",94.09,100.09,null,null,"2021-05-31",152,157,null,null,"2021-05-31",160.22999999999999,5.4144736842105301E-2]
["2021-06-01",94.23,100.23,null,null,"2021-06-01",150,155,null,null,"2021-06-01",160.96,7.3066666666666613E-2]
["2021-06-02",94.26,100.26,null,null,"2021-06-02",151,156,null,null,"2021-06-02",161.71,7.0927152317880937E-2]
["2021-06-03",94.26,100.26,null,null,"2021-06-03",151,156,null,null,"2021-06-03",161.33000000000001,6.8410596026490245E-2]
["2021-06-04",94.28,100.28,null,null,"2021-06-04",152,157,null,null,"2021-06-04",160.86000000000001,5.8289473684210558E-2]
["2021-06-07",94.34,100.34,null,null,"2021-06-07",152,157,null,null,"2021-06-07",160.55000000000001,5.6250000000000133E-2]
["2021-06-08",94.37,100.37,null,null,"2021-06-08",151,156,null,null,"2021-06-08",160.47999999999999,6.2781456953642234E-2]
["2021-06-09",94.36,100.36,null,null,"2021-06-09",151,156,null,null,"2021-06-09",159.68,5.7483443708609361E-2]
["2021-06-10",94.37,100.37,null,null,"2021-06-10",152,157,null,null,"2021-06-10",159.07,4.6513157894736867E-2]
["2021-06-11",94.39,100.39,null,null,"2021-06-11",153,158,null,null,"2021-06-11",158.09,3.3267973856209165E-2]
["2021-06-14",94.53,100.53,null,null,"2021-06-14",153,158,null,null,"2021-06-14",157.94999999999999,3.2352941176470473E-2]
["2021-06-15",94.67,100.67,null,null,"2021-06-15",155,160,null,null,"2021-06-15",158.72,2.4000000000000021E-2]
["2021-06-16",94.62,100.62,null,null,"2021-06-16",158,163,null,null,"2021-06-16",159.19,7.5316455696201601E-3]
["2021-06-17",94.71,100.71,null,null,"2021-06-17",158,163,null,null,"2021-06-17",160.41,1.5253164556962018E-2]
["2021-06-18",94.71,100.71,null,null,"2021-06-18",159,164,null,null,"2021-06-18",159.84,5.2830188679244827E-3]
["2021-06-22",94.69,100.69,null,null,"2021-06-22",160,165,null,null,"2021-06-22",160.63,3.9374999999999272E-3]
["2021-06-23",94.89,100.89,null,null,"2021-06-23",161,166,null,null,"2021-06-23",160.91999999999999,-4.9689440993794243E-4]
["2021-06-24",94.89,100.89,null,null,"2021-06-24",165,170,null,null,"2021-06-24",162.03,-1.8000000000000016E-2]
["2021-06-25",94.99,100.99,null,null,"2021-06-25",169,174,null,null,"2021-06-25",163.53,-3.2366863905325394E-2]
["2021-06-28",95.1,101.1,null,null,"2021-06-28",168,173,null,null,"2021-06-28",162.78,-3.1071428571428528E-2]
["2021-06-29",95.14,101.14,null,null,"2021-06-29",165,170,null,null,"2021-06-29",163.75,-7.575757575757569E-3]
["2021-06-30",95.17,101.17,null,null,"2021-06-30",163,168,null,null,"2021-06-30",163.57,3.4969325153373365E-3]
["2021-07-01",95.23,101.23,null,null,"2021-07-01",164,169,null,null,"2021-07-01",165.77,1.0792682926829222E-2]
["2021-07-02",95.19,101.19,null,null,"2021-07-02",165,170,null,null,"2021-07-02",166.35,8.181818181818068E-3]
["2021-07-05",95.28,101.28,null,null,"2021-07-05",166,171,null,null,"2021-07-05",166.45,2.7108433734939208E-3]
["2021-07-06",95.33,101.33,null,null,"2021-07-06",166,171,null,null,"2021-07-06",165.98,-1.2048192771085819E-4]
["2021-07-07",95.34,101.34,null,null,"2021-07-07",167,172,null,null,"2021-07-07",166.2,-4.7904191616766623E-3]
["2021-07-08",95.34,101.34,null,null,"2021-07-08",169,174,null,null,"2021-07-08",166.42,-1.5266272189349173E-2]
["2021-07-12",95.42,101.42,null,null,"2021-07-12",172,177,null,null,"2021-07-12",166.05,-3.4593023255813926E-2]
["2021-07-13",95.48,101.48,null,null,"2021-07-13",171,176,null,null,"2021-07-13",165.38,-3.2865497076023376E-2]
["2021-07-14",95.63,101.63,null,null,"2021-07-14",172,177,null,null,"2021-07-14",165.29,-3.9011627906976765E-2]
["2021-07-15",95.64,101.64,null,null,"2021-07-15",173,178,null,null,"2021-07-15",165.26,-4.4739884393063645E-2]
["2021-07-16",95.65,101.65,null,null,"2021-07-16",174,179,null,null,"2021-07-16",165.5,-4.8850574712643646E-2]
["2021-07-19",95.72,101.72,null,null,"2021-07-19",175,180,null,null,"2021-07-19",165.79,{"$f":"+L625/G625-1","v":-5.2628571428571469E-2}]
["2021-07-20",95.75,101.75,null,null,"2021-07-20",177,182,null,null,"2021-07-20",166.07,-6.1751412429378538E-2]
["2021-07-21",95.76,101.76,null,null,"2021-07-21",177.5,182.5,null,null,"2021-07-21",166.3,-6.3098591549295757E-2]
["2021-07-22",95.69,101.69,null,null,"2021-07-22",179.5,184.5,null,null,"2021-07-22",166.39,-7.3036211699164411E-2]
["2021-07-23",95.75,101.75,null,null,"2021-07-23",180,185,null,null,"2021-07-23",166.48,-7.5111111111111128E-2]
["2021-07-26",95.77,101.82,null,null,"2021-07-26",179,184,null,null,"2021-07-26",166.81,-6.8100558659217825E-2]
["2021-07-27",95.95,101.95,null,null,"2021-07-27",178,183,null,null,"2021-07-27",167.36,-5.9775280898876293E-2]
["2021-07-28",96,102,null,null,"2021-07-28",175,180,null,null,"2021-07-28",167.9,-4.0571428571428592E-2]
["2021-07-29",95.99,101.99,null,null,"2021-07-29",175,180,null,null,"2021-07-29",167.9,-4.0571428571428592E-2]
["2021-07-30",96.06,102.06,null,null,"2021-07-30",175.5,180.5,null,null,"2021-07-30",168.19,-4.1652421652421667E-2]
["2021-08-02",96.12,102.12,null,null,"2021-08-02",175.5,180.5,null,null,"2021-08-02",168.67,-3.8917378917379009E-2]
["2021-08-03",96.18,102.18,null,null,"2021-08-03",175.5,180.5,null,null,"2021-08-03",169.57,-3.3789173789173788E-2]
["2021-08-04",96.25,102.25,null,null,"2021-08-04",175.5,180.5,null,null,"2021-08-04",169.73,-3.2877492877492975E-2]
["2021-08-05",96.28,102.28,null,null,"2021-08-05",174.5,179.5,null,null,"2021-08-05",169.93,-2.618911174785099E-2]
["2021-08-06",96.3,102.3,null,null,"2021-08-06",173.5,178.5,null,null,"2021-08-06",170.09,-1.9654178674351597E-2]
["2021-08-09",96.33,102.33,null,null,"2021-08-09",174,179,null,null,"2021-08-09",169.94,-2.3333333333333317E-2]
["2021-08-10",96.34,102.34,null,null,"2021-08-10",173,178,null,null,"2021-08-10",169.87,-1.8092485549132897E-2]
["2021-08-11",96.34,102.34,null,null,"2021-08-11",173,178,null,null,"2021-08-11",170.03,-1.7167630057803418E-2]
["2021-08-12",96.36,102.36,null,null,"2021-08-12",173.5,178.5,null,null,"2021-08-12",169.62,-2.2363112391930784E-2]
["2021-08-13",96.53,102.53,null,null,"2021-08-13",177,182,null,null,"2021-08-13",169.45,-4.265536723163843E-2]
["2021-08-17",96.57,102.57,null,null,"2021-08-17",178,183,null,null,"2021-08-17",169.41,-4.8258426966292123E-2]
["2021-08-18",96.57,102.57,null,null,"2021-08-18",177,182,null,null,"2021-08-18",169.39,-4.2994350282485994E-2]
["2021-08-19",96.61,102.61,null,null,"2021-08-19",176.5,181.5,null,null,"2021-08-19",169.36,-4.0453257790368236E-2]
["2021-08-20",96.64,102.64,null,null,"2021-08-20",177,182,null,null,"2021-08-20",169.32,-4.3389830508474669E-2]
["2021-08-23",96.76,102.76,null,null,"2021-08-23",177,182,null,null,"2021-08-23",169.46,-4.2598870056497096E-2]
["2021-08-24",96.79,102.79,null,null,"2021-08-24",177,182,null,null,"2021-08-24",169.43,-4.2768361581920877E-2]
["2021-08-25",96.79,102.79,null,null,"2021-08-25",176.5,181.5,null,null,"2021-08-25",169.66,-3.8753541076487319E-2]
["2021-08-26",96.97,102.97,null,null,"2021-08-26",176.5,181.5,null,null,"2021-08-26",169.96,-3.705382436260618E-2]
["2021-08-27",96.97,102.97,null,null,"2021-08-27",177,182,null,null,"2021-08-27",169.97,-3.9717514124293807E-2]
["2021-08-30",97.11,103.11,null,null,"2021-08-30",177,182,null,null,"2021-08-30",169.98,-3.9661016949152583E-2]
["2021-08-31",97.14,103.14,null,null,"2021-08-31",176.5,181.5,null,null,"2021-08-31",170.26,-3.5354107648725264E-2]
["2021-09-01",97.22,103.22,null,null,"2021-09-01",175.5,180.5,null,null,"2021-09-01",170.42,-2.8945868945869035E-2]
["2021-09-02",97.31,103.31,null,null,"2021-09-02",176,181,null,null,"2021-09-02",170.58,-3.0795454545454515E-2]
["2021-09-03",97.33,103.33,null,null,"2021-09-03",177,182,null,null,"2021-09-03",170.58,-3.6271186440677949E-2]
["2021-09-06",97.45,103.45,null,null,"2021-09-06",178,182,null,null,"2021-09-06",170.82,-4.0337078651685454E-2]
["2021-09-07",97.42,103.42,null,null,"2021-09-07",179.5,183.5,null,null,"2021-09-07",171.2,-4.6239554317548781E-2]
["2021-09-08",97.53,103.53,null,null,"2021-09-08",183,187,null,null,"2021-09-08",170.68,-6.7322404371584654E-2]
["2021-09-09",97.54,103.54,null,null,"2021-09-09",182.5,186.5,null,null,"2021-09-09",170.67,-6.482191780821922E-2]
["2021-09-10",97.56,103.56,null,null,"2021-09-10",181,185,null,null,"2021-09-10",170.65,-5.7182320441988899E-2]
["2021-09-13",97.62,103.62,null,null,"2021-09-13",177,181,null,null,"2021-09-13",171.04,-3.3672316384180889E-2]
["2021-09-14",97.62,103.62,null,null,"2021-09-14",178.5,182.5,null,null,"2021-09-14",171.44,-3.9551820728291331E-2]
["2021-09-15",97.65,103.71,null,null,"2021-09-15",181,185,null,null,"2021-09-15",171.83,-5.066298342541431E-2]
["2021-09-16",97.65,103.65,null,null,"2021-09-16",182,186,null,null,"2021-09-16",172.32,-5.3186813186813175E-2]
["2021-09-17",97.77,103.77,null,null,"2021-09-17",181,185,null,null,"2021-09-17",172.44,-4.7292817679558063E-2]
["2021-09-20",98.09,104.09,null,null,"2021-09-20",180,184,null,null,"2021-09-20",172.68,-4.0666666666666629E-2]
["2021-09-21",98.26,104.26,null,null,"2021-09-21",180,184,null,null,"2021-09-21",172.67,-4.0722222222222326E-2]
["2021-09-22",98.1,104.1,null,null,"2021-09-22",181,185,null,null,"2021-09-22",172.99,-4.4254143646408783E-2]
["2021-09-23",98.04,104.04,null,null,"2021-09-23",181,185,null,null,"2021-09-23",173.33,-4.2375690607734717E-2]
["2021-09-24",98.12,104.12,null,null,"2021-09-24",182,186,null,null,"2021-09-24",173.42,-4.7142857142857264E-2]
["2021-09-27",98.18,104.18,null,null,"2021-09-27",182.5,186.5,null,null,"2021-09-27",173.92,-4.7013698630137046E-2]
["2021-09-28",98.19,104.19,null,null,"2021-09-28",183,187,null,null,"2021-09-28",174.41,-4.6939890710382515E-2]
["2021-09-29",98.2,104.2,null,null,"2021-09-29",183,187,null,null,"2021-09-29",174.64,-4.5683060109289686E-2]
["2021-09-30",98.3,104.3,null,null,"2021-09-30",182,186,null,null,"2021-09-30",175.03,-3.8296703296703316E-2]
["2021-10-01",98.3,104.3,null,null,"2021-10-01",182,186,null,null,"2021-10-01",175.47,-3.5879120879120929E-2]
["2021-10-04",98.34,104.34,null,null,"2021-10-04",181,185,null,null,"2021-10-04",175.89,-2.8232044198895134E-2]
["2021-10-05",98.53,104.53,null,null,"2021-10-05",181,185,null,null,"2021-10-05",176.34,-2.5745856353591168E-2]
["2021-10-06",98.53,104.53,null,null,"2021-10-06",181.5,185.5,null,null,"2021-10-06",176.33,-2.8484848484848446E-2]
["2021-10-07",98.53,104.53,null,null,"2021-10-07",180.5,184.5,null,null,"2021-10-07",176.45,-2.2437673130193958E-2]
["2021-10-12",98.47,104.47,null,null,"2021-10-12",181,185,null,null,"2021-10-12",176.78,-2.3314917127071788E-2]
["2021-10-13",98.64,104.64,null,null,"2021-10-13",181,185,null,null,"2021-10-13",177.1,-2.1546961325966896E-2]
["2021-10-14",98.59,104.59,null,null,"2021-10-14",181.5,185.5,null,null,"2021-10-14",177.43,-2.2424242424242347E-2]
["2021-10-15",98.7,104.7,null,null,"2021-10-15",182.5,186.5,null,null,"2021-10-15",177.68,-2.6410958904109605E-2]
["2021-10-18",98.79,104.79,null,null,"2021-10-18",181.5,185.5,null,null,"2021-10-18",178.02,-1.9173553719008196E-2]
["2021-10-19",98.88,104.88,null,null,"2021-10-19",183,187,null,null,"2021-10-19",178.36,-2.53551912568305E-2]
["2021-10-20",98.88,104.88,null,null,"2021-10-20",184,188,null,null,"2021-10-20",178.6,{"$f":"+L689/G689-1","v":-2.9347826086956519E-2}]
["2021-10-21",98.89,104.89,null,null,"2021-10-21",187,191,null,null,"2021-10-21",178.83,-4.3689839572192413E-2]
["2021-10-22",98.94,104.94,null,null,"2021-10-22",191,195,null,null,"2021-10-22",179.23,-6.1623036649214757E-2]
["2021-10-25",99.04,105.04,null,null,"2021-10-25",190,194,null,null,"2021-10-25",179.23,-5.6684210526315892E-2]
["2021-10-26",99.05,105.05,null,null,"2021-10-26",192,196,null,null,"2021-10-26",179.24,-6.6458333333333286E-2]
["2021-10-27",99.13,105.13,null,null,"2021-10-27",193,197,null,null,"2021-10-27",179.23,-7.134715025906746E-2]
["2021-10-28",99.15,105.15,null,null,"2021-10-28",194,198,null,null,"2021-10-28",179.23,-7.6134020618556786E-2]
["2021-10-29",99.23,105.23,null,null,"2021-10-29",193.5,197.5,null,null,"2021-10-29",179.22,-7.3798449612403116E-2]
["2021-11-01",99.35,105.35,null,null,"2021-11-01",192.5,196.5,null,null,"2021-11-01",179.22,-6.8987012987013041E-2]
["2021-11-02",99.36,105.36,null,null,"2021-11-02",193.5,197.5,null,null,"2021-11-02",179.32,-7.3281653746770092E-2]
["2021-11-03",99.38,105.38,null,null,"2021-11-03",195,199,null,null,"2021-11-03",180.07,-7.6564102564102621E-2]
["2021-11-04",99.4,105.4,null,null,"2021-11-04",195,199,null,null,"2021-11-04",180.56,-7.4051282051282086E-2]
["2021-11-05",99.45,105.45,null,null,"2021-11-05",195,199,null,null,"2021-11-05",181.26,-7.0461538461538464E-2]
["2021-11-08",99.58,105.58,null,null,"2021-11-08",195,199,null,null,"2021-11-08",181.86,-6.7384615384615265E-2]
["2021-11-09",99.63,105.63,null,null,"2021-11-09",195.5,199.5,null,null,"2021-11-09",182.46,-6.6700767263427108E-2]
["2021-11-10",99.67,105.67,null,null,"2021-11-10",201,205,null,null,"2021-11-10",182.74,-9.0845771144278609E-2]
["2021-11-11",100.79,105.79,null,null,"2021-11-11",202.5,206.5,null,null,"2021-11-11",183.23,-9.5160493827160519E-2]
["2021-11-12",99.82,105.82,null,null,"2021-11-12",196,200,null,null,"2021-11-12",183.98,-6.1326530612244912E-2]
["2021-11-15",99.88,105.88,null,null,"2021-11-15",195.5,199.5,null,null,"2021-11-15",188.78,-3.4373401534526837E-2]
["2021-11-16",99.92,105.92,null,null,"2021-11-16",196.5,200.5,null,null,"2021-11-16",200.3,1.9338422391857568E-2]
["2021-11-17",99.94,105.94,null,null,"2021-11-17",197.5,201.5,null,null,"2021-11-17",200,1.2658227848101333E-2]
["2021-11-18",99.95,105.95,null,null,"2021-11-18",197,201,null,null,"2021-11-18",204.52,3.8172588832487309E-2]
["2021-11-19",99.96,105.96,null,null,"2021-11-19",197.5,201.5,null,null,"2021-11-19",203.03,2.8000000000000025E-2]
["2021-11-23",100.09,106.09,null,null,"2021-11-23",197,201,null,null,"2021-11-23",205.82,4.477157360406081E-2]
["2021-11-24",100.08,106.08,null,null,"2021-11-24",196.5,200.5,null,null,"2021-11-24",204.88,4.2646310432570056E-2]
["2021-11-25",100.16,106.16,null,null,"2021-11-25",197,201,null,null,"2021-11-25",203.55,3.3248730964467121E-2]
["2021-11-26",100.17,106.17,null,null,"2021-11-26",197,201,null,null,"2021-11-26",200.17,1.6091370558375617E-2]
["2021-11-29",100.41,106.41,null,null,"2021-11-29",197,201,null,null,"2021-11-29",196.94,-3.0456852791882483E-4]
["2021-11-30",100.48,106.48,null,null,"2021-11-30",197.5,201.5,null,null,"2021-11-30",200.72,1.630379746835442E-2]
["2021-12-01",100.55,106.55,null,null,"2021-12-01",196.5,200.5,null,null,"2021-12-01",200.6,2.0865139949109324E-2]
["2021-12-02",100.6,106.6,null,null,"2021-12-02",196.5,200.5,null,null,"2021-12-02",203.33,3.4758269720101875E-2]
["2021-12-03",100.63,106.63,null,null,"2021-12-03",196.5,200.5,null,null,"2021-12-03",203.25,3.4351145038167941E-2]
["2021-12-06",100.65,106.65,null,null,"2021-12-06",195,199,null,null,"2021-12-06",201.96,3.569230769230769E-2]
["2021-12-07",100.88,106.88,null,null,"2021-12-07",194,198,null,null,"2021-12-07",198.1,2.1134020618556626E-2]
["2021-12-09",101.26,107.26,null,null,"2021-12-09",192,196,null,null,"2021-12-09",195.98,2.0729166666666687E-2]
["2021-12-10",101.3,107.3,null,null,"2021-12-10",192.5,196.5,null,null,"2021-12-10",197.1,2.389610389610386E-2]
["2021-12-13",101.38,107.38,null,null,"2021-12-13",191.5,195.5,null,null,"2021-12-13",195.55,2.1148825065274268E-2]
["2021-12-14",101.49,107.49,null,null,"2021-12-14",192.5,196.5,null,null,"2021-12-14",194.39,9.818181818181726E-3]
["2021-12-15",101.51,107.51,null,null,"2021-12-15",194.5,198.5,null,null,"2021-12-15",191.69,-1.444730077120826E-2]
["2021-12-16",101.55,107.55,null,null,"2021-12-16",194.5,198.5,null,null,"2021-12-16",191.64,-1.4704370179948634E-2]
["2021-12-17",101.57,107.57,null,null,"2021-12-17",196,200,null,null,"2021-12-17",199.22,1.6428571428571459E-2]
["2021-12-20",101.61,107.61,null,null,"2021-12-20",196,200,null,null,"2021-12-20",200.41,2.2499999999999964E-2]
["2021-12-21",101.73,107.73,null,null,"2021-12-21",195,199,null,null,"2021-12-21",202.17,3.6769230769230665E-2]
["2021-12-22",101.79,107.79,null,null,"2021-12-22",196.5,200.5,null,null,"2021-12-22",199.84,1.6997455470737943E-2]
["2021-12-23",101.74,107.74,null,null,"2021-12-23",200,204,null,null,"2021-12-23",199.21,-3.9500000000000091E-3]
["2021-12-27",101.94,107.94,null,null,"2021-12-27",199.5,203.5,null,null,"2021-12-27",194.53,-2.491228070175433E-2]
["2021-12-28",102.14,108.14,null,null,"2021-12-28",202,206,null,null,"2021-12-28",193.34,-4.2871287128712909E-2]
["2021-12-29",102.16,108.16,null,null,"2021-12-29",205,209,null,null,"2021-12-29",196.03,-4.3756097560975649E-2]
["2021-12-30",102.29,108.29,null,null,"2021-12-30",204,208,null,null,"2021-12-30",197.8,-3.039215686274499E-2]
["2022-01-03",102.48,108.48,null,null,"2022-01-03",202,206,null,null,"2022-01-03",198.26,-1.8514851485148531E-2]
["2022-01-04",102.61,108.61,null,null,"2022-01-04",202.5,206.5,null,null,"2022-01-04",197.4,-2.5185185185185199E-2]
["2022-01-05",102.63,108.63,null,null,"2022-01-05",203.5,207.5,null,null,"2022-01-05",199.07,-2.1769041769041819E-2]
["2022-01-06",102.72,108.72,null,null,"2022-01-06",204.5,208.5,null,null,"2022-01-06",202.09,-1.1784841075794583E-2]
["2022-01-07",102.86,108.86,null,null,"2022-01-07",204,208,null,null,"2022-01-07",203.84,-7.8431372549014888E-4]
["2022-01-10",102.96,108.96,null,null,"2022-01-10",202,206,null,null,"2022-01-10",202.78,3.8613861386138648E-3]
["2022-01-11",102.97,108.97,null,null,"2022-01-11",205,209,null,null,"2022-01-11",202.46,-1.2390243902439035E-2]
["2022-01-12",103.05,109.05,null,null,"2022-01-12",204.5,208.5,null,null,"2022-01-12",201.96,-1.2420537897310457E-2]
["2022-01-13",103.11,109.11,null,null,"2022-01-13",205.5,209.5,null,null,"2022-01-13",200.74,-2.3163017031630151E-2]
["2022-01-14",103.21,109.21,null,null,"2022-01-14",205.5,209.5,null,null,"2022-01-14",202.46,-1.479318734793178E-2]
["2022-01-17",103.46,109.46,null,null,"2022-01-17",205,209,null,null,"2022-01-17",204.11,-4.3414634146340392E-3]
["2022-01-18",103.64,109.64,null,null,"2022-01-18",207,211,null,null,"2022-01-18",203.6,-1.6425120772946888E-2]
["2022-01-19",103.67,109.67,null,null,"2022-01-19",209,213,null,null,"2022-01-19",206.58,-1.1578947368421022E-2]
["2022-01-20",103.71,109.71,null,null,"2022-01-20",210,214,null,null,"2022-01-20",212.32,1.1047619047618973E-2]
["2022-01-21",103.79,109.79,null,null,"2022-01-21",215,219,null,null,"2022-01-21",212.74,-1.0511627906976684E-2]
["2022-01-24",104.08,110.08,null,null,"2022-01-24",215,219,null,null,"2022-01-24",219.09,{"$f":"+L753/G753-1","v":1.9023255813953588E-2}]
["2022-01-25",104.11,110.11,null,null,"2022-01-25",215.5,219.5,null,null,"2022-01-25",218.84,1.5498839907192696E-2]
["2022-01-26",104.15,110.15,null,null,"2022-01-26",217,221,null,null,"2022-01-26",216.85,-6.9124423963140558E-4]
["2022-01-27",104.5,110.5,null,null,"2022-01-27",218.5,222.5,null,null,"2022-01-27",223.75,2.4027459954233388E-2]
["2022-01-28",104.68,110.68,null,null,"2022-01-28",208.5,212.5,null,null,"2022-01-28",216.66,3.9136690647481931E-2]
["2022-01-31",104.71,110.71,null,null,"2022-01-31",209,213,null,null,"2022-01-31",214.67,2.712918660287067E-2]
["2022-02-01",104.91,110.91,null,null,"2022-02-01",210,214,null,null,"2022-02-01",214.63,2.2047619047619094E-2]
["2022-02-02",104.75,110.75,null,null,"2022-02-02",212.5,216.5,null,null,"2022-02-02",210.88,-7.6235294117646957E-3]
["2022-02-03",104.92,110.92,null,null,"2022-02-03",212,216,null,null,"2022-02-03",211.71,-1.3679245283018115E-3]
["2022-02-04",105.37,111.37,null,null,"2022-02-04",210,214,null,null,"2022-02-04",212.23,1.0619047619047528E-2]
["2022-02-07",105.46,111.46,null,null,"2022-02-07",210,214,null,null,"2022-02-07",210.22,1.047619047618964E-3]
["2022-02-08",105.49,111.49,null,null,"2022-02-08",211,215,null,null,"2022-02-08",207.9,-1.469194312796207E-2]
["2022-02-09",105.52,111.52,null,null,"2022-02-09",213,217,null,null,"2022-02-09",204.97,-3.7699530516431934E-2]
["2022-02-10",105.61,111.61,null,null,"2022-02-10",211.5,215.5,null,null,"2022-02-10",207.15,-2.0567375886524797E-2]
["2022-02-11",105.67,111.67,null,null,"2022-02-11",210.5,215.5,null,null,"2022-02-11",207.59,-1.3824228028503582E-2]
["2022-02-14",106.01,112.01,null,null,"2022-02-14",211,215,null,null,"2022-02-14",207.41,-1.7014218009478665E-2]
["2022-02-15",106.17,112.17,null,null,"2022-02-15",211,215,null,null,"2022-02-15",205.49,-2.6113744075829337E-2]
["2022-02-16",106.21,112.21,null,null,"2022-02-16",211,215,null,null,"2022-02-16",203.93,-3.3507109004739299E-2]
["2022-02-17",106.24,112.24,null,null,"2022-02-17",210,214,null,null,"2022-02-17",203.03,-3.3190476190476215E-2]
["2022-02-18",106.48,112.48,null,null,"2022-02-18",207,211,null,null,"2022-02-18",199.72,-3.5169082125603879E-2]
["2022-02-21",106.71,112.71,null,null,"2022-02-21",207.5,211.5,null,null,"2022-02-21",201.12,-3.0746987951807192E-2]
["2022-02-22",106.8,112.8,null,null,"2022-02-22",206,210,null,null,"2022-02-22",196.05,-4.8300970873786375E-2]
["2022-02-23",106.83,112.83,null,null,"2022-02-23",206,210,null,null,"2022-02-23",196.81,-4.4611650485436916E-2]
["2022-02-24",106.89,112.89,null,null,"2022-02-24",206.5,210.5,null,null,"2022-02-24",197.19,-4.5084745762711931E-2]
["2022-02-25",106.95,112.95,null,null,"2022-02-25",207,211,null,null,"2022-02-25",195.31,-5.6473429951690801E-2]
["2022-03-02",107.33,113.33,null,null,"2022-03-02",202,206,null,null,"2022-03-02",196.84,-2.5544554455445567E-2]
["2022-03-03",107.48,113.48,null,null,"2022-03-03",200,204,null,null,"2022-03-03",196.82,-1.5900000000000025E-2]
["2022-03-04",107.69,113.69,null,null,"2022-03-04",197,201,null,null,"2022-03-04",197.6,3.0456852791878042E-3]
["2022-03-07",107.94,113.94,null,null,"2022-03-07",197,201,null,null,"2022-03-07",197.28,1.4213197969543678E-3]
["2022-03-08",108.06,114.06,null,null,"2022-03-08",198,202,null,null,"2022-03-08",194.54,-1.7474747474747532E-2]
["2022-03-09",108.37,114.37,null,null,"2022-03-09",200.5,204.5,null,null,"2022-03-09",190.85,-4.8129675810473893E-2]
["2022-03-10",108.38,114.38,null,null,"2022-03-10",199,203,null,null,"2022-03-10",189.62,-4.7135678391959757E-2]
["2022-03-11",108.49,114.49,null,null,"2022-03-11",198,202,null,null,"2022-03-11",187.41,-5.3484848484848468E-2]
["2022-03-14",108.72,114.72,null,null,"2022-03-14",196,200,null,null,"2022-03-14",185.6,-5.3061224489795999E-2]
["2022-03-15",108.82,114.82,null,null,"2022-03-15",196,200,null,null,"2022-03-15",187.94,-4.112244897959183E-2]
["2022-03-16",108.88,114.88,null,null,"2022-03-16",198,202,null,null,"2022-03-16",193.3,-2.3737373737373724E-2]
["2022-03-17",108.91,114.91,null,null,"2022-03-17",198,202,null,null,"2022-03-17",195.27,-1.3787878787878682E-2]
["2022-03-18",108.93,114.93,null,null,"2022-03-18",198.5,202.5,null,null,"2022-03-18",195.17,-1.6775818639798601E-2]
["2022-03-21",109.35,115.35,null,null,"2022-03-21",198,202,null,null,"2022-03-21",197.9,-5.0505050505045279E-4]
["2022-03-22",109.42,115.42,null,null,"2022-03-22",197,201,null,null,"2022-03-22",199.82,1.4314720812182768E-2]
["2022-03-23",109.61,115.61,null,null,"2022-03-23",197,201,null,null,"2022-03-23",200.72,1.8883248730964475E-2]
["2022-03-25",109.69,115.69,null,null,"2022-03-25",198,202,null,null,"2022-03-25",200.31,1.1666666666666714E-2]
["2022-03-28",110.19,116.19,null,null,"2022-03-28",196,200,null,null,"2022-03-28",196.27,1.377551020408152E-3]
["2022-03-29",110.21,116.21,null,null,"2022-03-29",196,200,null,null,"2022-03-29",191.99,-2.0459183673469328E-2]
["2022-03-30",110.31,116.31,null,null,"2022-03-30",197,201,null,null,"2022-03-30",192.52,-2.2741116751268997E-2]
["2022-03-31",110.45,116.45,null,null,"2022-03-31",196,200,null,null,"2022-03-31",190.56,-2.7755102040816326E-2]
["2022-04-01",110.64,116.64,null,null,"2022-04-01",196,200,null,null,"2022-04-01",189.75,-3.1887755102040782E-2]
["2022-04-04",111.02,117.02,null,null,"2022-04-04",195,199,null,null,"2022-04-04",190.88,-2.1128205128205124E-2]
["2022-04-05",111.1,117.1,null,null,"2022-04-05",192,196,null,null,"2022-04-05",190.17,-9.5312500000001021E-3]
["2022-04-06",111.33,117.33,null,null,"2022-04-06",192,196,null,null,"2022-04-06",190.21,-9.3229166666666252E-3]
["2022-04-07",111.65,117.65,null,null,"2022-04-07",192,196,null,null,"2022-04-07",192.32,1.6666666666667052E-3]
["2022-04-08",111.69,117.69,null,null,"2022-04-08",192.5,196.5,null,null,"2022-04-08",191.15,-7.0129870129870264E-3]
["2022-04-11",112.02,118.02,null,null,"2022-04-11",191,195,null,null,"2022-04-11",191.31,1.6230366492147041E-3]
["2022-04-12",112.1,118.1,null,null,"2022-04-12",191,195,null,null,"2022-04-12",191.67,3.5078534031411923E-3]
["2022-04-13",112.39,118.39,null,null,"2022-04-13",191,195,null,null,"2022-04-13",191.33,1.7277486910995954E-3]
["2022-04-18",112.88,118.88,null,null,"2022-04-18",191,195,null,null,"2022-04-18",189.3,-8.9005235602093169E-3]
["2022-04-19",113.03,119.03,null,null,"2022-04-19",194,198,null,null,"2022-04-19",191.69,-1.1907216494845385E-2]
["2022-04-20",113.16,119.16,null,null,"2022-04-20",195.5,199.5,null,null,"2022-04-20",195.24,-1.3299232736572186E-3]
["2022-04-21",113.58,119.58,null,null,"2022-04-21",198,202,null,null,"2022-04-21",203.97,3.015151515151504E-2]
["2022-04-22",113.69,119.69,null,null,"2022-04-22",199,203,null,null,"2022-04-22",208.27,4.6582914572864453E-2]
["2022-04-25",113.78,119.78,null,null,"2022-04-25",201.5,205.5,null,null,"2022-04-25",207.96,3.205955334987598E-2]
["2022-04-26",114.1,120.1,null,null,"2022-04-26",208.5,212.5,null,null,"2022-04-26",212.07,1.7122302158273373E-2]
["2022-04-27",114.13,120.13,null,null,"2022-04-27",202.5,206.5,null,null,"2022-04-27",208.33,2.8790123456790218E-2]
["2022-04-28",114.29,120.29,null,null,"2022-04-28",200,204,null,null,"2022-04-28",203.99,1.9950000000000134E-2]
["2022-04-29",114.64,120.64,null,null,"2022-04-29",196.5,200.5,null,null,"2022-04-29",205.99,{"$f":"+L817/G817-1","v":4.8295165394402151E-2}]
["2022-05-02",114.97,120.97,null,null,"2022-05-02",197,201,null,null,"2022-05-02",209.38,6.2842639593908567E-2]
["2022-05-03",115.33,121.33,null,null,"2022-05-03",199.5,203.5,null,null,"2022-05-03",207.49,4.0050125313283225E-2]
["2022-05-04",115.45,121.45,null,null,"2022-05-04",197,201,null,null,"2022-05-04",203.57,3.3350253807106656E-2]
["2022-05-05",115.73,121.73,null,null,"2022-05-05",197.5,201.5,null,null,"2022-05-05",205.39,3.9949367088607524E-2]
["2022-05-06",115.97,121.97,null,null,"2022-05-06",197,201,null,null,"2022-05-06",208.49,5.8324873096446739E-2]
["2022-05-09",116.16,122.16,null,null,"2022-05-09",197.5,201.5,null,null,"2022-05-09",206.52,4.567088607594938E-2]
["2022-05-10",116.32,122.32,null,null,"2022-05-10",198,202,null,null,"2022-05-10",207.79,4.9444444444444402E-2]
["2022-05-11",116.5,122.5,null,null,"2022-05-11",201,205,null,null,"2022-05-11",207.08,3.0248756218905548E-2]
["2022-05-12",116.7,122.7,null,null,"2022-05-12",199.5,203.5,null,null,"2022-05-12",206.38,3.4486215538847009E-2]
["2022-05-13",117.11,123.11,null,null,"2022-05-13",199.5,203.5,null,null,"2022-05-13",210.85,5.6892230576440994E-2]
["2022-05-16",117.27,123.27,null,null,"2022-05-16",201,205,null,null,"2022-05-16",210.79,4.870646766169151E-2]
["2022-05-17",117.55,123.55,null,null,"2022-05-17",204,208,null,null,"2022-05-17",209.31,2.6029411764705968E-2]
["2022-05-19",117.77,123.77,null,null,"2022-05-19",202,206,null,null,"2022-05-19",207.88,2.9108910891089135E-2]
["2022-05-20",117.91,123.91,null,null,"2022-05-20",201,204,null,null,"2022-05-20",209.56,4.2587064676616881E-2]
["2022-05-23",118.33,124.33,null,null,"2022-05-23",202.5,206.5,null,null,"2022-05-23",210.61,4.004938271604952E-2]
["2022-05-24",118.45,124.45,null,null,"2022-05-24",204,208,null,null,"2022-05-24",211.33,3.5931372549019569E-2]
["2022-05-26",118.62,124.62,null,null,"2022-05-26",203,207,null,null,"2022-05-26",211.41,4.142857142857137E-2]
["2022-05-27",118.81,124.81,null,null,"2022-05-27",202.5,206.5,null,null,"2022-05-27",210.35,3.8765432098765373E-2]
["2022-05-30",118.81,124.81,null,null,"2022-05-30",202.5,206.5,null,null,"2022-05-30",209.15,3.2839506172839483E-2]
["2022-05-31",119.62,125.62,null,null,"2022-05-31",201,206,null,null,"2022-05-31",207.35,3.1592039800995009E-2]
["2022-06-01",119.88,125.88,null,null,"2022-06-01",202,206,null,null,"2022-06-01",208.62,3.2772277227722801E-2]
["2022-06-02",119.95,125.95,null,null,"2022-06-02",202,206,null,null,"2022-06-02",207.04,2.4950495049504973E-2]
["2022-06-03",120.41,126.41,null,null,"2022-06-03",201,205,null,null,"2022-06-03",207.75,3.3582089552238736E-2]
["2022-06-06",120.6,126.6,null,null,"2022-06-06",201,205,null,null,"2022-06-06",208.84,3.9004975124378172E-2]
["2022-06-07",120.65,126.65,null,null,"2022-06-07",202,206,null,null,"2022-06-07",208.68,3.3069306930693099E-2]
["2022-06-08",120.77,126.77,null,null,"2022-06-08",204,208,null,null,"2022-06-08",209.15,2.5245098039215819E-2]
["2022-06-09",121,127,null,null,"2022-06-09",204,208,null,null,"2022-06-09",217.5,6.6176470588235281E-2]
["2022-06-10",121.1,127.1,null,null,"2022-06-10",206,210,null,null,"2022-06-10",223.2,8.3495145631067968E-2]
["2022-06-13",121.6,127.6,null,null,"2022-06-13",212,216,null,null,"2022-06-13",227.37,7.2500000000000009E-2]
["2022-06-14",121.62,127.62,null,null,"2022-06-14",220,224,null,null,"2022-06-14",231.96,5.4363636363636392E-2]
["2022-06-15",122.03,128.03,null,null,"2022-06-15",213,217,null,null,"2022-06-15",229.83,7.9014084507042393E-2]
["2022-06-16",122.19,128.19,null,null,"2022-06-16",212,216,null,null,"2022-06-16",235.09,0.10891509433962265]
["2022-06-21",122.99,128.99,null,null,"2022-06-21",216,220,null,null,"2022-06-21",233.27,7.9953703703703694E-2]
["2022-06-22",123.01,129.01,null,null,"2022-06-22",220,224,null,null,"2022-06-22",227.94,3.6090909090909173E-2]
["2022-06-23",123.11,129.11000000000001,null,null,"2022-06-23",220,224,null,null,"2022-06-23",232.23,5.5590909090909024E-2]
["2022-06-24",123.15,129.15,null,null,"2022-06-24",222,226,null,null,"2022-06-24",232.72,4.8288288288288239E-2]
["2022-06-27",124.07,130.07,null,null,"2022-06-27",228,232,null,null,"2022-06-27",240.09,5.3026315789473699E-2]
["2022-06-28",124.14,130.13999999999999,null,null,"2022-06-28",235,239,null,null,"2022-06-28",243.07,3.4340425531914853E-2]
["2022-06-29",123.99,129.99,null,null,"2022-06-29",235,239,null,null,"2022-06-29",245.67,4.5404255319148934E-2]
["2022-06-30",124.44,130.44,null,null,"2022-06-30",234,238,null,null,"2022-06-30",249.59,6.6623931623931654E-2]
["2022-07-01",124.69,130.69,null,null,"2022-07-01",235,239,null,null,"2022-07-01",247.9,5.4893617021276597E-2]
["2022-07-04",126.07,132.07,null,null,"2022-07-04",250,260,null,null,"2022-07-04",272.39,8.9559999999999862E-2]
["2022-07-05",126.54,132.54,null,null,"2022-07-05",242,252,null,null,"2022-07-05",265.27999999999997,9.6198347107437909E-2]
["2022-07-06",126.85,132.85,null,null,"2022-07-06",245,255,null,null,"2022-07-06",270.17,0.10273469387755108]
["2022-07-07",127.27,133.27000000000001,null,null,"2022-07-07",247,257,null,null,"2022-07-07",284.32,0.15109311740890696]
["2022-07-08",127.89,133.88999999999999,null,null,"2022-07-08",263,273,null,null,"2022-07-08",289.29000000000002,9.9961977186311834E-2]
["2022-07-11",128.66999999999999,134.66999999999999,null,null,"2022-07-11",258,268,null,null,"2022-07-11",285.69,0.10732558139534887]
["2022-07-12",128.88,134.88,null,null,"2022-07-12",262,272,null,null,"2022-07-12",279.39999999999998,6.6412213740457915E-2]
["2022-07-13",129.15,135.15,null,null,"2022-07-13",273,283,null,null,"2022-07-13",280.06,2.5860805860805858E-2]
["2022-07-14",129.21,135.21,null,null,"2022-07-14",279,289,null,null,"2022-07-14",284.27999999999997,1.8924731182795584E-2]
["2022-07-15",129.29,135.29,null,null,"2022-07-15",283,293,null,null,"2022-07-15",292.5,3.3568904593639592E-2]
["2022-07-18",129.79,135.79,null,null,"2022-07-18",281,291,null,null,"2022-07-18",295.24,5.0676156583630005E-2]
["2022-07-19",130.08000000000001,136.08000000000001,null,null,"2022-07-19",291,301,null,null,"2022-07-19",297.83999999999997,2.350515463917513E-2]
["2022-07-20",130.1,136.1,null,null,"2022-07-20",307,317,null,null,"2022-07-20",303.44,-1.1596091205211767E-2]
["2022-07-21",130.32,136.32,null,null,"2022-07-21",327,337,null,null,"2022-07-21",326.08999999999997,-2.7828746177370745E-3]
["2022-07-22",130.61000000000001,136.61000000000001,null,null,"2022-07-22",328,338,null,null,"2022-07-22",315.5,-3.8109756097560954E-2]
["2022-07-25",131.30000000000001,137.30000000000001,null,null,"2022-07-25",312,322,null,null,"2022-07-25",319.72000000000003,2.4743589743589922E-2]
["2022-07-26",131.38,137.38,null,null,"2022-07-26",313,323,null,null,"2022-07-26",324.88,3.7955271565495163E-2]
["2022-07-27",131.58000000000001,137.58000000000001,null,null,"2022-07-27",316,326,null,null,"2022-07-27",323.77,2.458860759493664E-2]
["2022-07-28",131.86000000000001,137.86000000000001,null,null,"2022-07-28",304,314,null,null,"2022-07-28",298.16000000000003,-1.9210526315789345E-2]
["2022-07-29",131.93,137.93,null,null,"2022-07-29",286,296,null,null,"2022-07-29",276.70999999999998,-3.2482517482517514E-2]
["2022-08-01",132.9,138.9,null,null,"2022-08-01",272,282,null,null,"2022-08-01",272.48,1.7647058823531125E-3]
["2022-08-02",133.07,139.07,null,null,"2022-08-02",281,291,null,null,"2022-08-02",276.66000000000003,-1.5444839857651105E-2]
["2022-08-03",133.31,139.31,null,null,"2022-08-03",288,298,null,null,"2022-08-03",281.02,{"$f":"+L881/G881-1","v":-2.4236111111111125E-2}]
["2022-08-04",133.86000000000001,139.86000000000001,null,null,"2022-08-04",281,291,null,null,"2022-08-04",284.47000000000003,1.2348754448398669E-2]
["2022-08-05",133.88999999999999,139.88999999999999,null,null,"2022-08-05",283,293,null,null,"2022-08-05",278.77999999999997,-1.4911660777385261E-2]
["2022-08-08",134.49,140.49,null,null,"2022-08-08",282,292,null,null,"2022-08-08",278.94,-1.0851063829787289E-2]
["2022-08-09",134.77000000000001,140.77000000000001,null,null,"2022-08-09",283,293,null,null,"2022-08-09",279.2,-1.3427561837455859E-2]
["2022-08-10",134.77000000000001,140.77000000000001,null,null,"2022-08-10",285,295,null,null,"2022-08-10",284.58999999999997,-1.4385964912281279E-3]
["2022-08-11",134.97999999999999,140.97999999999999,null,null,"2022-08-11",287,297,null,null,"2022-08-11",279.36,-2.6620209059233457E-2]
["2022-08-12",135.5,141.5,null,null,"2022-08-12",285,295,null,null,"2022-08-12",279.12,-2.0631578947368445E-2]
["2022-08-16",136.41,142.41,null,null,"2022-08-16",286,291,null,null,"2022-08-16",275.77999999999997,-3.5734265734265858E-2]
["2022-08-17",136.52000000000001,142.52000000000001,null,null,"2022-08-17",287,292,null,null,"2022-08-17",281.37,-1.9616724738675928E-2]
["2022-08-18",136.38999999999999,142.38999999999999,null,null,"2022-08-18",288,293,null,null,"2022-08-18",288.13,4.5138888888884843E-4]
["2022-08-19",137.06,143.06,null,null,"2022-08-19",290,295,null,null,"2022-08-19",292.02999999999997,6.9999999999998952E-3]
["2022-08-22",138.04,144.04,null,null,"2022-08-22",287,292,null,null,"2022-08-22",287.88,3.0662020905922738E-3]
["2022-08-23",138.04,144.04,null,null,"2022-08-23",292,297,null,null,"2022-08-23",288.14999999999998,-1.3184931506849407E-2]
["2022-08-24",138.29,144.29,null,null,"2022-08-24",290,295,null,null,"2022-08-24",286.60000000000002,-1.172413793103444E-2]
["2022-08-25",138.58000000000001,144.58000000000001,null,null,"2022-08-25",288,293,null,null,"2022-08-25",286.60000000000002,-4.8611111111109828E-3]
["2022-08-26",138.72999999999999,144.72999999999999,null,null,"2022-08-26",288,292,null,null,"2022-08-26",282.57,-1.8854166666666727E-2]
["2022-08-29",139.44999999999999,145.44999999999999,null,null,"2022-08-29",287,292,null,null,"2022-08-29",281.77999999999997,-1.8188153310104593E-2]
["2022-08-30",139.62,145.62,null,null,"2022-08-30",286,291,null,null,"2022-08-30",283.83,-7.5874125874126896E-3]
["2022-08-31",139.77000000000001,145.77000000000001,null,null,"2022-08-31",285,290,null,null,"2022-08-31",283.08,-6.7368421052632632E-3]
["2022-09-01",139.86000000000001,145.86000000000001,null,null,"2022-09-01",280,285,null,null,"2022-09-01",278.73,-4.5357142857141985E-3]
["2022-09-02",139.86000000000001,145.86000000000001,null,null,"2022-09-02",280,285,null,null,"2022-09-02",278.73,-4.5357142857141985E-3]
["2022-09-05",141.05000000000001,147.05000000000001,null,null,"2022-09-05",266,270,null,null,"2022-09-05",271.19,1.9511278195488702E-2]
["2022-09-06",141.35,147.35,null,null,"2022-09-06",272,276,null,null,"2022-09-06",270.33999999999997,-6.1029411764706998E-3]
["2022-09-07",141.68,147.68,null,null,"2022-09-07",280,284,null,null,"2022-09-07",271.02999999999997,-3.203571428571439E-2]
["2022-09-08",142.15,148.15,null,null,"2022-09-08",276,280,null,null,"2022-09-08",273.02,-1.0797101449275481E-2]
["2022-09-09",142.41999999999999,148.41999999999999,null,null,"2022-09-09",270,274,null,null,"2022-09-09",269.56,-1.6296296296296475E-3]
["2022-09-12",143.43,149.43,null,null,"2022-09-12",268,272,null,null,"2022-09-12",269.39,5.18656716417909E-3]
["2022-09-13",143.52000000000001,149.52000000000001,null,null,"2022-09-13",269,273,null,null,"2022-09-13",269.89999999999998,3.3457249070631967E-3]
["2022-09-14",143.61000000000001,149.61000000000001,null,null,"2022-09-14",273,277,null,null,"2022-09-14",275.45,8.9743589743589425E-3]
["2022-09-15",143.99,149.99,null,null,"2022-09-15",272,276,null,null,"2022-09-15",289.66000000000003,6.4926470588235308E-2]
["2022-09-16",142.16999999999999,150.16999999999999,null,null,"2022-09-16",273,277,null,null,"2022-09-16",294.19,7.7619047619047699E-2]
["2022-09-19",142.93,150.93,null,null,"2022-09-19",273,277,null,null,"2022-09-19",297.11,8.8315018315018312E-2]
["2022-09-20",143.24,151.24,null,null,"2022-09-20",283,287,null,null,"2022-09-20",295.10000000000002,4.2756183745583209E-2]
["2022-09-21",143.56,151.56,null,null,"2022-09-21",283,287,null,null,"2022-09-21",297.91000000000003,5.2685512367491194E-2]
["2022-09-22",143.63999999999999,151.63999999999999,null,null,"2022-09-22",281,285,null,null,"2022-09-22",302.19,7.5409252669039084E-2]
["2022-09-23",144.24,152.24,null,null,"2022-09-23",283,287,null,null,"2022-09-23",301.82,6.6501766784452299E-2]
["2022-09-26",145.01,153.01,null,null,"2022-09-26",282,286,null,null,"2022-09-26",298.25,5.7624113475177374E-2]
["2022-09-27",145.31,153.31,null,null,"2022-09-27",286,290,null,null,"2022-09-27",296.77999999999997,3.7692307692307692E-2]
["2022-09-28",145.61000000000001,153.61000000000001,null,null,"2022-09-28",286,290,null,null,"2022-09-28",297.99,4.1923076923076952E-2]
["2022-09-29",145.9,153.9,null,null,"2022-09-29",284,288,null,null,"2022-09-29",295.83,4.1654929577464639E-2]
["2022-09-30",146.25,154.25,null,null,"2022-09-30",284,288,null,null,"2022-09-30",302.48,6.5070422535211225E-2,{"$f":"+L937/Tabla6[[#This Row],[MEP]]-1","v":-2.9258132769108824E-2},{"$f":"+H937/Tabla3[[#This Row],[Venta]]-1","v":1.736111111111116E-2}]
["2022-10-03",147.33000000000001,155.33000000000001,null,null,"2022-10-03",280,284,null,null,"2022-10-03",297.97000000000003,6.4178571428571418E-2]
["2022-10-04",147.66999999999999,155.66999999999999,null,null,"2022-10-04",278,282,null,null,"2022-10-04",299.77,7.8309352517985653E-2]
["2022-10-05",147.9,155.9,null,null,"2022-10-05",278,282,null,null,"2022-10-05",297.5,7.0143884892086339E-2]
["2022-10-06",148.29,156.29,null,null,"2022-10-06",273,277,null,null,"2022-10-06",293.25,7.4175824175824134E-2]
["2022-10-11",149.76,157.76,null,null,"2022-10-11",276,280,null,null,"2022-10-11",288.14999999999998,4.4021739130434723E-2]
["2022-10-12",149.96,157.96,null,null,"2022-10-12",285,289,null,null,"2022-10-12",293.69,3.0491228070175458E-2]
["2022-10-13",150.19,158.19,null,null,"2022-10-13",287,291,null,null,"2022-10-13",299.42,4.3275261324041914E-2]
["2022-10-14",150.28,158.28,null,null,"2022-10-14",286,290,null,null,"2022-10-14",299.04000000000002,4.5594405594405751E-2]
["2022-10-17",151.49,159.49,null,null,"2022-10-17",283,287,null,null,"2022-10-17",295.58,4.4452296819788018E-2]
["2022-10-18",151.71,159.71,null,null,"2022-10-18",286,290,null,null,"2022-10-18",293.33,2.5629370629370651E-2]
["2022-10-19",151.94,159.94,null,null,"2022-10-19",288,292,null,null,"2022-10-19",292.41000000000003,1.5312500000000062E-2]
["2022-10-20",152.27000000000001,160.27000000000001,null,null,"2022-10-20",287,291,null,null,"2022-10-20",290.87,1.3484320557491269E-2]
["2022-10-21",152.57,160.57,null,null,"2022-10-21",287,291,null,null,"2022-10-21",290.63,1.2648083623693296E-2]
["2022-10-24",153.56,161.56,null,null,"2022-10-24",287,291,null,null,"2022-10-24",291.89,1.7038327526132324E-2]
["2022-10-25",154.1,162.1,null,null,"2022-10-25",289,293,null,null,"2022-10-25",293.63,1.6020761245674642E-2]